Workbook

Sheet Calculator
B6: BASEL III SSFA Calculator for the FHLB MPF Program
B8: Enable Macros before using the Calculator
B14: MPF Program | H14: Original
B16: Dollar Amount of Sold and Outstanding | H16: 12000000
B18: Dollar Amount of CE Obligation | H18: 600000
B20: Dollar Amount of First Loss Account | H20: 150000
B22: Dollar Amount of Loans Greater than 90 days Past Due | H22: 75000
K25: Scenario Analysis
K27: =H27 -> 0
K29: =H29 -> 0
K31: =MAX(H31-1%,0) -> 0
K33: =MAX(H33-1%,0) -> 0
K39: =Scenario!P44 -> 12.5
K40: =K39*H18 -> 7500000
K41: =MAX(K39*K31,20%) -> 0.2
B56: mailto:info@wilwinn.com?subject=SSFA Calculator
B58: Original
B59: 100/125
B60: 35

Sheet Base Case (hidden)
B3: MPF Product | P3: Original
P4: day 1
B5: KG | E5: weighted average capital requirement | N5: inpt | O5: KG | P5: =Output!I13 -> 0.04025
B7: KA = (1 - W) * KG + (0.5 * W) | E7: W is ratio of delinquent to total balance (90 days or more past due) | N7: inpt | O7: W | P7: =Output!I15 -> 0.00625
F8: is 0 at start and might grow over time | O8: KA | P8: =(1-P7)*P5+(0.5*P7) -> 0.0431234375
F9: KA = KG on day 1
B10: CE Obligation Amount | P10: =Output!I17 -> 0.05
B12: A | E12: attachment point for the position | N12: inpt | O12: A | P12: =Output!I19 -> 0.0125
F13: ratio of current dollar amount of underlying exposures that are subordinated to the position to the current dollar amount of underlying exposures
F15: decimal between 0 and 1
F16: likely at or near 0 at start of pool and might grow to be something material over time with no losses (FLA)
B19: D | E19: detachment point for the position | N19: inpt | O19: D | P19: =P10+P12 -> 0.0625
F20: represents the threshold at which credit losses of principal allocated to the position would result in total loss of principal
F22: decimal between 0 and 1
F23: equals A plus ratio of positions pari passu to total current amount of underlying exposures
B26: P | E26: callibration parmeter | O26: P | P26: 0.5
F27: .5 for securitizations that are not re-securitizations
B29: alpha | E29: -1 | O29: alpha | P29: =-1/(P26*P8) -> -46.37849197
E30: P * KA
B33: u | E33: D - KA | O33: u | P33: =P19-P8 -> 0.0193765625
B35: L | E35: A - KA | O35: L | P35: =MAX(P12-P8,0) -> 0
B38: KSSFA | E38: e^(alpha*u) - e^(alpha*L) | L38: e= | M38: 2.71828 | O38: KSSFA | P38: =IFERROR((EXP(P29*P33)-EXP(P29*P35))/(P29*(P33-P35)),0) -> 0.659744782
E39: alpha (u-L)
B42: Risk Weight (RW) if D < KA | E42: 12.5 | P42: =IF(P19<=P8,1250%,0) -> 0
B43: Risk Weight (RW) if A >= KA | E43: KSSFA*1250 | P43: =IF(P12>=P8,P38*12.5,0) -> 0
B44: Risk Weight (RW) = | E44: [(KA-A)/(D-A)*1250%]+[(D-KA)/(D-A)*1250%*KSSFA] | P44: =IF(P42>0,P42,IF(P43>0,P43,(((P8-P12)/(P19-P12))*1250%)+(((P19-P8)/(P19-P12))*1250%*P38))) -> 10.85175588
B46: Final Risk Weight (with 20% minimum) | P46: =IF(P44*P48<(0.2*P48),(0.2*P48)/P48,P44) -> 10.85175588
B48: CE Obligation | P48: =Calculator!H18 -> 600000

Sheet Scenario (hidden)
B3: MPF Product | P3: Original
P4: day 1
B5: KG | E5: weighted average capital requirement | N5: inpt | O5: KG | P5: =Calculator!$K$27 -> 0
B7: KA = (1 - W) * KG + (0.5 * W) | E7: W is ratio of delinquent to total balance (90 days or more past due) | N7: inpt | O7: W | P7: =Calculator!$K$29 -> 0
F8: is 0 at start and might grow over time | O8: KA | P8: =(1-P7)*P5+(0.5*P7) -> 0
F9: KA = KG on day 1
B10: CE Obligation Amount | P10: =Calculator!$K$31 -> 0
B12: A | E12: attachment point for the position | N12: inpt | O12: A | P12: =Calculator!$K$33 -> 0
F13: ratio of current dollar amount of underlying exposures that are subordinated to the position to the current dollar amount of underlying exposures
F15: decimal between 0 and 1
F16: likely at or near 0 at start of pool and might grow to be something material over time with no losses (FLA)
B19: D | E19: detachment point for the position | N19: inpt | O19: D | P19: =P10+P12 -> 0
F20: represents the threshold at which credit losses of principal allocated to the position would result in total loss of principal
F22: decimal between 0 and 1
F23: equals A plus ratio of positions pari passu to total current amount of underlying exposures
B26: P | E26: callibration parmeter | O26: P | P26: 0.5
F27: .5 for securitizations that are not re-securitizations
B29: alpha | E29: -1 | O29: alpha | P29: =-1/(P26*P8) -> 
E30: P * KA
B33: u | E33: D - KA | O33: u | P33: =P19-P8 -> 0
B35: L | E35: A - KA | O35: L | P35: =MAX(P12-P8,0) -> 0
B38: KSSFA | E38: e^(alpha*u) - e^(alpha*L) | L38: e= | M38: 2.71828 | O38: KSSFA | P38: =IFERROR((EXP(P29*P33)-EXP(P29*P35))/(P29*(P33-P35)),0) -> 0
E39: alpha (u-L)
B42: Risk Weight (RW) if D < KA | E42: 12.5 | P42: =IF(P19<=P8,1250%,0) -> 12.5
B43: Risk Weight (RW) if A >= KA | E43: KSSFA*1250 | P43: =IF(P12>=P8,P38*12.5,0) -> 0
B44: Risk Weight (RW) = | E44: [(KA-A)/(D-A)*1250%]+[(D-KA)/(D-A)*1250%*KSSFA] | P44: =IF(P42>0,P42,IF(P43>0,P43,(((P8-P12)/(P19-P12))*1250%)+(((P19-P8)/(P19-P12))*1250%*P38))) -> 12.5

Sheet Output
B6: BASEL III SSFA Calculator for the FHLB MPF Program
B13: Weighted Average Capital Requirement (KG) (%): | I13: =IFERROR((((Calculator!H16-Calculator!H22)*4%)+(Calculator!H22*8%))/Calculator!H16,0) -> 0.04025
B15: Ratio of Delinquent Loans (90+ days) to Total Balance (%): | I15: =IFERROR(Calculator!H22/Calculator!H16,0) -> 0.00625
B17: Credit Enhancement Obligation (%): | I17: =IFERROR(Calculator!H18/Calculator!H16,0) -> 0.05
B19: First Loss Account (%): | I19: =IFERROR(Calculator!H20/Calculator!H16,0) -> 0.0125
B24: SSFA:
B25: Risk Weight | I25: ='Base Case'!$P$46 -> 10.85175588
B26: Total Increase to Risk-Weighted Assets $ Amt | I26: =I25*Calculator!H18 -> 6511053.525
B27: Total Increase to Risk-Weighted Assets % | I27: =I25*I17 -> 0.5425877938
B30: Gross-Up:
B31: Risk Weight | I31: =(1-I15)*0.5+I15 -> 0.503125
B32: Total Increase to Risk-Weighted Assets $ Amt | I32: =MAX((Calculator!H16-Calculator!H20)*Output!I31,Calculator!H18*0.2) -> 5962031.25
B33: Total Increase to Risk-Weighted Assets % | I33: =I32/Calculator!H16 -> 0.4968359375
B36: CE times 1250%:
B37: Total Increase to Risk-Weighted Assets $ Amt | I37: =Calculator!H18*12.5 -> 7500000
B38: Total Increase to Risk-Weighted Assets % | I38: =I37/Calculator!H16 -> 0.625
B41: Shock Analysis - Risk Weight Multiplier
B42: MPF - Original
D43: First Loss Account
D44: 0 | E44: 0.0006 | F44: 0.0012 | G44: 0.0018 | H44: 0.0024 | I44: 0.003 | J44: 0.0036 | K44: 0.0042 | L44: 0.0048 | M44: 0.0054 | N44: 0.006 | O44: 0.0066 | P44: 0.0072 | Q44: 0.0078 | R44: 0.0084 | S44: 0.009 | T44: 0.0096 | U44: 0.0102 | V44: 0.0108 | W44: 0.0114 | X44: 0.012 | Y44: 0.0126 | Z44: 0.0132 | AA44: 0.0138 | AB44: 0.0144 | AC44: 0.015
B45: Credit Enhancement Obligation | C45: 0.02 | D45: ='Shock Analysis - RW Multiplier'!F21 -> 12.5 | E45: ='Shock Analysis - RW Multiplier'!G21 -> 12.5 | F45: ='Shock Analysis - RW Multiplier'!H21 -> 12.5 | G45: ='Shock Analysis - RW Multiplier'!I21 -> 12.5 | H45: ='Shock Analysis - RW Multiplier'!J21 -> 12.5 | I45: ='Shock Analysis - RW Multiplier'!K21 -> 12.5 | J45: ='Shock Analysis - RW Multiplier'!L21 -> 12.5 | K45: ='Shock Analysis - RW Multiplier'!M21 -> 12.5 | L45: ='Shock Analysis - RW Multiplier'!N21 -> 12.5 | M45: ='Shock Analysis - RW Multiplier'!O21 -> 12.5 | N45: ='Shock Analysis - RW Multiplier'!P21 -> 12.5 | O45: ='Shock Analysis - RW Multiplier'!Q21 -> 12.5 | P45: ='Shock Analysis - RW Multiplier'!R21 -> 12.5 | Q45: ='Shock Analysis - RW Multiplier'!S21 -> 12.5 | R45: ='Shock Analysis - RW Multiplier'!T21 -> 12.5 | S45: ='Shock Analysis - RW Multiplier'!U21 -> 12.5 | T45: ='Shock Analysis - RW Multiplier'!V21 -> 12.5 | U45: ='Shock Analysis - RW Multiplier'!W21 -> 12.5 | V45: ='Shock Analysis - RW Multiplier'!X21 -> 12.5 | W45: ='Shock Analysis - RW Multiplier'!Y21 -> 12.5 | X45: ='Shock Analysis - RW Multiplier'!Z21 -> 12.5 | Y45: ='Shock Analysis - RW Multiplier'!AA21 -> 12.5 | Z45: ='Shock Analysis - RW Multiplier'!AB21 -> 12.5 | AA45: ='Shock Analysis - RW Multiplier'!AC21 -> 12.5 | AB45: ='Shock Analysis - RW Multiplier'!AD21 -> 12.5 | AC45: ='Shock Analysis - RW Multiplier'!AE21 -> 12.5
C46: 0.025 | D46: ='Shock Analysis - RW Multiplier'!F22 -> 12.5 | E46: ='Shock Analysis - RW Multiplier'!G22 -> 12.5 | F46: ='Shock Analysis - RW Multiplier'!H22 -> 12.5 | G46: ='Shock Analysis - RW Multiplier'!I22 -> 12.5 | H46: ='Shock Analysis - RW Multiplier'!J22 -> 12.5 | I46: ='Shock Analysis - RW Multiplier'!K22 -> 12.5 | J46: ='Shock Analysis - RW Multiplier'!L22 -> 12.5 | K46: ='Shock Analysis - RW Multiplier'!M22 -> 12.5 | L46: ='Shock Analysis - RW Multiplier'!N22 -> 12.5 | M46: ='Shock Analysis - RW Multiplier'!O22 -> 12.5 | N46: ='Shock Analysis - RW Multiplier'!P22 -> 12.5 | O46: ='Shock Analysis - RW Multiplier'!Q22 -> 12.5 | P46: ='Shock Analysis - RW Multiplier'!R22 -> 12.5 | Q46: ='Shock Analysis - RW Multiplier'!S22 -> 12.5 | R46: ='Shock Analysis - RW Multiplier'!T22 -> 12.5 | S46: ='Shock Analysis - RW Multiplier'!U22 -> 12.5 | T46: ='Shock Analysis - RW Multiplier'!V22 -> 12.5 | U46: ='Shock Analysis - RW Multiplier'!W22 -> 12.5 | V46: ='Shock Analysis - RW Multiplier'!X22 -> 12.5 | W46: ='Shock Analysis - RW Multiplier'!Y22 -> 12.5 | X46: ='Shock Analysis - RW Multiplier'!Z22 -> 12.5 | Y46: ='Shock Analysis - RW Multiplier'!AA22 -> 12.5 | Z46: ='Shock Analysis - RW Multiplier'!AB22 -> 12.5 | AA46: ='Shock Analysis - RW Multiplier'!AC22 -> 12.5 | AB46: ='Shock Analysis - RW Multiplier'!AD22 -> 12.5 | AC46: ='Shock Analysis - RW Multiplier'!AE22 -> 12.5
C47: 0.03 | D47: ='Shock Analysis - RW Multiplier'!F23 -> 12.5 | E47: ='Shock Analysis - RW Multiplier'!G23 -> 12.5 | F47: ='Shock Analysis - RW Multiplier'!H23 -> 12.5 | G47: ='Shock Analysis - RW Multiplier'!I23 -> 12.5 | H47: ='Shock Analysis - RW Multiplier'!J23 -> 12.5 | I47: ='Shock Analysis - RW Multiplier'!K23 -> 12.5 | J47: ='Shock Analysis - RW Multiplier'!L23 -> 12.5 | K47: ='Shock Analysis - RW Multiplier'!M23 -> 12.5 | L47: ='Shock Analysis - RW Multiplier'!N23 -> 12.5 | M47: ='Shock Analysis - RW Multiplier'!O23 -> 12.5 | N47: ='Shock Analysis - RW Multiplier'!P23 -> 12.5 | O47: ='Shock Analysis - RW Multiplier'!Q23 -> 12.5 | P47: ='Shock Analysis - RW Multiplier'!R23 -> 12.5 | Q47: ='Shock Analysis - RW Multiplier'!S23 -> 12.5 | R47: ='Shock Analysis - RW Multiplier'!T23 -> 12.5 | S47: ='Shock Analysis - RW Multiplier'!U23 -> 12.5 | T47: ='Shock Analysis - RW Multiplier'!V23 -> 12.5 | U47: ='Shock Analysis - RW Multiplier'!W23 -> 12.5 | V47: ='Shock Analysis - RW Multiplier'!X23 -> 12.5 | W47: ='Shock Analysis - RW Multiplier'!Y23 -> 12.5 | X47: ='Shock Analysis - RW Multiplier'!Z23 -> 12.5 | Y47: ='Shock Analysis - RW Multiplier'!AA23 -> 12.5 | Z47: ='Shock Analysis - RW Multiplier'!AB23 -> 12.49994343 | AA47: ='Shock Analysis - RW Multiplier'!AC23 -> 12.49562316 | AB47: ='Shock Analysis - RW Multiplier'!AD23 -> 12.48456058 | AC47: ='Shock Analysis - RW Multiplier'!AE23 -> 12.46694073
C48: 0.035 | D48: ='Shock Analysis - RW Multiplier'!F24 -> 12.5 | E48: ='Shock Analysis - RW Multiplier'!G24 -> 12.5 | F48: ='Shock Analysis - RW Multiplier'!H24 -> 12.5 | G48: ='Shock Analysis - RW Multiplier'!I24 -> 12.5 | H48: ='Shock Analysis - RW Multiplier'!J24 -> 12.5 | I48: ='Shock Analysis - RW Multiplier'!K24 -> 12.5 | J48: ='Shock Analysis - RW Multiplier'!L24 -> 12.5 | K48: ='Shock Analysis - RW Multiplier'!M24 -> 12.5 | L48: ='Shock Analysis - RW Multiplier'!N24 -> 12.5 | M48: ='Shock Analysis - RW Multiplier'!O24 -> 12.5 | N48: ='Shock Analysis - RW Multiplier'!P24 -> 12.5 | O48: ='Shock Analysis - RW Multiplier'!Q24 -> 12.5 | P48: ='Shock Analysis - RW Multiplier'!R24 -> 12.5 | Q48: ='Shock Analysis - RW Multiplier'!S24 -> 12.5 | R48: ='Shock Analysis - RW Multiplier'!T24 -> 12.49936925 | S48: ='Shock Analysis - RW Multiplier'!U24 -> 12.49372189 | T48: ='Shock Analysis - RW Multiplier'!V24 -> 12.48234877 | U48: ='Shock Analysis - RW Multiplier'!W24 -> 12.46540702 | V48: ='Shock Analysis - RW Multiplier'!X24 -> 12.44304946 | W48: ='Shock Analysis - RW Multiplier'!Y24 -> 12.41542472 | X48: ='Shock Analysis - RW Multiplier'!Z24 -> 12.38267736 | Y48: ='Shock Analysis - RW Multiplier'!AA24 -> 12.34494795 | Z48: ='Shock Analysis - RW Multiplier'!AB24 -> 12.30237322 | AA48: ='Shock Analysis - RW Multiplier'!AC24 -> 12.25508614 | AB48: ='Shock Analysis - RW Multiplier'!AD24 -> 12.20321603 | AC48: ='Shock Analysis - RW Multiplier'!AE24 -> 12.14688868
C49: 0.04 | D49: ='Shock Analysis - RW Multiplier'!F25 -> 12.5 | E49: ='Shock Analysis - RW Multiplier'!G25 -> 12.5 | F49: ='Shock Analysis - RW Multiplier'!H25 -> 12.5 | G49: ='Shock Analysis - RW Multiplier'!I25 -> 12.5 | H49: ='Shock Analysis - RW Multiplier'!J25 -> 12.5 | I49: ='Shock Analysis - RW Multiplier'!K25 -> 12.5 | J49: ='Shock Analysis - RW Multiplier'!L25 -> 12.49836626 | K49: ='Shock Analysis - RW Multiplier'!M25 -> 12.49173929 | L49: ='Shock Analysis - RW Multiplier'!N25 -> 12.48014854 | M49: ='Shock Analysis - RW Multiplier'!O25 -> 12.46373022 | N49: ='Shock Analysis - RW Multiplier'!P25 -> 12.44261683 | O49: ='Shock Analysis - RW Multiplier'!Q25 -> 12.41693721 | P49: ='Shock Analysis - RW Multiplier'!R25 -> 12.38681667 | Q49: ='Shock Analysis - RW Multiplier'!S25 -> 12.35237709 | R49: ='Shock Analysis - RW Multiplier'!T25 -> 12.31373699 | S49: ='Shock Analysis - RW Multiplier'!U25 -> 12.27101167 | T49: ='Shock Analysis - RW Multiplier'!V25 -> 12.22431322 | U49: ='Shock Analysis - RW Multiplier'!W25 -> 12.17375068 | V49: ='Shock Analysis - RW Multiplier'!X25 -> 12.1194301 | W49: ='Shock Analysis - RW Multiplier'!Y25 -> 12.06145462 | X49: ='Shock Analysis - RW Multiplier'!Z25 -> 11.99992453 | Y49: ='Shock Analysis - RW Multiplier'!AA25 -> 11.93493739 | Z49: ='Shock Analysis - RW Multiplier'!AB25 -> 11.86658806 | AA49: ='Shock Analysis - RW Multiplier'!AC25 -> 11.79496883 | AB49: ='Shock Analysis - RW Multiplier'!AD25 -> 11.72016942 | AC49: ='Shock Analysis - RW Multiplier'!AE25 -> 11.64227712
C50: 0.045 | D50: ='Shock Analysis - RW Multiplier'!F26 -> 12.47796049 | E50: ='Shock Analysis - RW Multiplier'!G26 -> 12.46196237 | F50: ='Shock Analysis - RW Multiplier'!H26 -> 12.44182938 | G50: ='Shock Analysis - RW Multiplier'!I26 -> 12.417675 | H50: ='Shock Analysis - RW Multiplier'!J26 -> 12.38960958 | I50: ='Shock Analysis - RW Multiplier'!K26 -> 12.35774046 | J50: ='Shock Analysis - RW Multiplier'!L26 -> 12.32217203 | K50: ='Shock Analysis - RW Multiplier'!M26 -> 12.2830058 | L50: ='Shock Analysis - RW Multiplier'!N26 -> 12.24034052 | M50: ='Shock Analysis - RW Multiplier'!O26 -> 12.1942722 | N50: ='Shock Analysis - RW Multiplier'!P26 -> 12.14489425 | O50: ='Shock Analysis - RW Multiplier'!Q26 -> 12.09229749 | P50: ='Shock Analysis - RW Multiplier'!R26 -> 12.03657025 | Q50: ='Shock Analysis - RW Multiplier'!S26 -> 11.97779844 | R50: ='Shock Analysis - RW Multiplier'!T26 -> 11.91606562 | S50: ='Shock Analysis - RW Multiplier'!U26 -> 11.85145306 | T50: ='Shock Analysis - RW Multiplier'!V26 -> 11.78403977 | U50: ='Shock Analysis - RW Multiplier'!W26 -> 11.71390262 | V50: ='Shock Analysis - RW Multiplier'!X26 -> 11.64111637 | W50: ='Shock Analysis - RW Multiplier'!Y26 -> 11.56575371 | X50: ='Shock Analysis - RW Multiplier'!Z26 -> 11.48788535 | Y50: ='Shock Analysis - RW Multiplier'!AA26 -> 11.40758005 | Z50: ='Shock Analysis - RW Multiplier'!AB26 -> 11.3249047 | AA50: ='Shock Analysis - RW Multiplier'!AC26 -> 11.23992433 | AB50: ='Shock Analysis - RW Multiplier'!AD26 -> 11.15270221 | AC50: ='Shock Analysis - RW Multiplier'!AE26 -> 11.06329985
C51: 0.05 | D51: ='Shock Analysis - RW Multiplier'!F27 -> 12.25282208 | E51: ='Shock Analysis - RW Multiplier'!G27 -> 12.21035848 | F51: ='Shock Analysis - RW Multiplier'!H27 -> 12.16494371 | G51: ='Shock Analysis - RW Multiplier'!I27 -> 12.11665875 | H51: ='Shock Analysis - RW Multiplier'!J27 -> 12.06558238 | I51: ='Shock Analysis - RW Multiplier'!K27 -> 12.0117912 | J51: ='Shock Analysis - RW Multiplier'!L27 -> 11.95535971 | K51: ='Shock Analysis - RW Multiplier'!M27 -> 11.89636038 | L51: ='Shock Analysis - RW Multiplier'!N27 -> 11.83486367 | M51: ='Shock Analysis - RW Multiplier'!O27 -> 11.77093812 | N51: ='Shock Analysis - RW Multiplier'!P27 -> 11.70465039 | O51: ='Shock Analysis - RW Multiplier'!Q27 -> 11.63606531 | P51: ='Shock Analysis - RW Multiplier'!R27 -> 11.56524591 | Q51: ='Shock Analysis - RW Multiplier'!S27 -> 11.49225352 | R51: ='Shock Analysis - RW Multiplier'!T27 -> 11.41714778 | S51: ='Shock Analysis - RW Multiplier'!U27 -> 11.33998667 | T51: ='Shock Analysis - RW Multiplier'!V27 -> 11.26082661 | U51: ='Shock Analysis - RW Multiplier'!W27 -> 11.17972246 | V51: ='Shock Analysis - RW Multiplier'!X27 -> 11.09672756 | W51: ='Shock Analysis - RW Multiplier'!Y27 -> 11.01189381 | X51: ='Shock Analysis - RW Multiplier'!Z27 -> 10.92527167 | Y51: ='Shock Analysis - RW Multiplier'!AA27 -> 10.83691022 | Z51: ='Shock Analysis - RW Multiplier'!AB27 -> 10.7468572 | AA51: ='Shock Analysis - RW Multiplier'!AC27 -> 10.65515902 | AB51: ='Shock Analysis - RW Multiplier'!AD27 -> 10.56186083 | AC51: ='Shock Analysis - RW Multiplier'!AE27 -> 10.46700655
C52: 0.055 | D52: ='Shock Analysis - RW Multiplier'!F28 -> 11.87620154 | E52: ='Shock Analysis - RW Multiplier'!G28 -> 11.81736495 | F52: ='Shock Analysis - RW Multiplier'!H28 -> 11.75640074 | G52: ='Shock Analysis - RW Multiplier'!I28 -> 11.6933673 | H52: ='Shock Analysis - RW Multiplier'!J28 -> 11.62832143 | I52: ='Shock Analysis - RW Multiplier'!K28 -> 11.56131836 | J52: ='Shock Analysis - RW Multiplier'!L28 -> 11.49241178 | K52: ='Shock Analysis - RW Multiplier'!M28 -> 11.42165395 | L52: ='Shock Analysis - RW Multiplier'!N28 -> 11.34909567 | M52: ='Shock Analysis - RW Multiplier'!O28 -> 11.27478635 | N52: ='Shock Analysis - RW Multiplier'!P28 -> 11.19877404 | O52: ='Shock Analysis - RW Multiplier'!Q28 -> 11.12110548 | P52: ='Shock Analysis - RW Multiplier'!R28 -> 11.04182612 | Q52: ='Shock Analysis - RW Multiplier'!S28 -> 10.96098017 | R52: ='Shock Analysis - RW Multiplier'!T28 -> 10.87861062 | S52: ='Shock Analysis - RW Multiplier'!U28 -> 10.79475928 | T52: ='Shock Analysis - RW Multiplier'!V28 -> 10.70946682 | U52: ='Shock Analysis - RW Multiplier'!W28 -> 10.6227728 | V52: ='Shock Analysis - RW Multiplier'!X28 -> 10.53471566 | W52: ='Shock Analysis - RW Multiplier'!Y28 -> 10.44533283 | X52: ='Shock Analysis - RW Multiplier'!Z28 -> 10.35466068 | Y52: ='Shock Analysis - RW Multiplier'!AA28 -> 10.26273459 | Z52: ='Shock Analysis - RW Multiplier'!AB28 -> 10.16958899 | AA52: ='Shock Analysis - RW Multiplier'!AC28 -> 10.07525733 | AB52: ='Shock Analysis - RW Multiplier'!AD28 -> 9.979772162 | AC52: ='Shock Analysis - RW Multiplier'!AE28 -> 9.883165151
C53: 0.06 | D53: ='Shock Analysis - RW Multiplier'!F29 -> 11.42247489 | E53: ='Shock Analysis - RW Multiplier'!G29 -> 11.35383281 | F53: ='Shock Analysis - RW Multiplier'!H29 -> 11.28364408 | G53: ='Shock Analysis - RW Multiplier'!I29 -> 11.21195114 | H53: ='Shock Analysis - RW Multiplier'!J29 -> 11.13879527 | I53: ='Shock Analysis - RW Multiplier'!K29 -> 11.06421661 | J53: ='Shock Analysis - RW Multiplier'!L29 -> 10.98825422 | K53: ='Shock Analysis - RW Multiplier'!M29 -> 10.91094606 | L53: ='Shock Analysis - RW Multiplier'!N29 -> 10.83232907 | M53: ='Shock Analysis - RW Multiplier'!O29 -> 10.75243917 | N53: ='Shock Analysis - RW Multiplier'!P29 -> 10.67131129 | O53: ='Shock Analysis - RW Multiplier'!Q29 -> 10.58897941 | P53: ='Shock Analysis - RW Multiplier'!R29 -> 10.50547657 | Q53: ='Shock Analysis - RW Multiplier'!S29 -> 10.4208349 | R53: ='Shock Analysis - RW Multiplier'!T29 -> 10.33508565 | S53: ='Shock Analysis - RW Multiplier'!U29 -> 10.24825923 | T53: ='Shock Analysis - RW Multiplier'!V29 -> 10.16038519 | U53: ='Shock Analysis - RW Multiplier'!W29 -> 10.07149229 | V53: ='Shock Analysis - RW Multiplier'!X29 -> 9.98160848 | W53: ='Shock Analysis - RW Multiplier'!Y29 -> 9.89076096 | X53: ='Shock Analysis - RW Multiplier'!Z29 -> 9.798976178 | Y53: ='Shock Analysis - RW Multiplier'!AA29 -> 9.706279854 | Z53: ='Shock Analysis - RW Multiplier'!AB29 -> 9.612697004 | AA53: ='Shock Analysis - RW Multiplier'!AC29 -> 9.518251958 | AB53: ='Shock Analysis - RW Multiplier'!AD29 -> 9.422968378 | AC53: ='Shock Analysis - RW Multiplier'!AE29 -> 9.326869276
C54: 0.08 | D54: ='Shock Analysis - RW Multiplier'!F30 -> 9.497885653 | E54: ='Shock Analysis - RW Multiplier'!G30 -> 9.420853403 | F54: ='Shock Analysis - RW Multiplier'!H30 -> 9.34336236 | G54: ='Shock Analysis - RW Multiplier'!I30 -> 9.265425114 | H54: ='Shock Analysis - RW Multiplier'!J30 -> 9.187053911 | I54: ='Shock Analysis - RW Multiplier'!K30 -> 9.10826066 | J54: ='Shock Analysis - RW Multiplier'!L30 -> 9.029056943 | K54: ='Shock Analysis - RW Multiplier'!M30 -> 8.949454026 | L54: ='Shock Analysis - RW Multiplier'!N30 -> 8.869462864 | M54: ='Shock Analysis - RW Multiplier'!O30 -> 8.789094111 | N54: ='Shock Analysis - RW Multiplier'!P30 -> 8.70835813 | O54: ='Shock Analysis - RW Multiplier'!Q30 -> 8.627264999 | P54: ='Shock Analysis - RW Multiplier'!R30 -> 8.54582452 | Q54: ='Shock Analysis - RW Multiplier'!S30 -> 8.464046224 | R54: ='Shock Analysis - RW Multiplier'!T30 -> 8.381939383 | S54: ='Shock Analysis - RW Multiplier'!U30 -> 8.299513013 | T54: ='Shock Analysis - RW Multiplier'!V30 -> 8.216775883 | U54: ='Shock Analysis - RW Multiplier'!W30 -> 8.133736521 | V54: ='Shock Analysis - RW Multiplier'!X30 -> 8.050403222 | W54: ='Shock Analysis - RW Multiplier'!Y30 -> 7.966784053 | X54: ='Shock Analysis - RW Multiplier'!Z30 -> 7.882886858 | Y54: ='Shock Analysis - RW Multiplier'!AA30 -> 7.798719268 | Z54: ='Shock Analysis - RW Multiplier'!AB30 -> 7.714288703 | AA54: ='Shock Analysis - RW Multiplier'!AC30 -> 7.629602381 | AB54: ='Shock Analysis - RW Multiplier'!AD30 -> 7.544667319 | AC54: ='Shock Analysis - RW Multiplier'!AE30 -> 7.459490345
C55: 0.1 | D55: ='Shock Analysis - RW Multiplier'!F31 -> 7.892896461 | E55: ='Shock Analysis - RW Multiplier'!G31 -> 7.82318614 | F55: ='Shock Analysis - RW Multiplier'!H31 -> 7.753330652 | G55: ='Shock Analysis - RW Multiplier'!I31 -> 7.683333981 | H55: ='Shock Analysis - RW Multiplier'!J31 -> 7.613200001 | I55: ='Shock Analysis - RW Multiplier'!K31 -> 7.54293248 | J55: ='Shock Analysis - RW Multiplier'!L31 -> 7.472535084 | K55: ='Shock Analysis - RW Multiplier'!M31 -> 7.402011376 | L55: ='Shock Analysis - RW Multiplier'!N31 -> 7.331364823 | M55: ='Shock Analysis - RW Multiplier'!O31 -> 7.260598797 | N55: ='Shock Analysis - RW Multiplier'!P31 -> 7.189716575 | O55: ='Shock Analysis - RW Multiplier'!Q31 -> 7.118721347 | P55: ='Shock Analysis - RW Multiplier'!R31 -> 7.047616214 | Q55: ='Shock Analysis - RW Multiplier'!S31 -> 6.976404193 | R55: ='Shock Analysis - RW Multiplier'!T31 -> 6.905088216 | S55: ='Shock Analysis - RW Multiplier'!U31 -> 6.833671137 | T55: ='Shock Analysis - RW Multiplier'!V31 -> 6.762155729 | U55: ='Shock Analysis - RW Multiplier'!W31 -> 6.690544693 | V55: ='Shock Analysis - RW Multiplier'!X31 -> 6.618840651 | W55: ='Shock Analysis - RW Multiplier'!Y31 -> 6.547046157 | X55: ='Shock Analysis - RW Multiplier'!Z31 -> 6.475163693 | Y55: ='Shock Analysis - RW Multiplier'!AA31 -> 6.403195672 | Z55: ='Shock Analysis - RW Multiplier'!AB31 -> 6.331144444 | AA55: ='Shock Analysis - RW Multiplier'!AC31 -> 6.259012291 | AB55: ='Shock Analysis - RW Multiplier'!AD31 -> 6.186801434 | AC55: ='Shock Analysis - RW Multiplier'!AE31 -> 6.114514033
C56: 0.12 | D56: ='Shock Analysis - RW Multiplier'!F32 -> 6.674508356 | E56: ='Shock Analysis - RW Multiplier'!G32 -> 6.613751807 | F56: ='Shock Analysis - RW Multiplier'!H32 -> 6.552947411 | G56: ='Shock Analysis - RW Multiplier'!I32 -> 6.492096482 | H56: ='Shock Analysis - RW Multiplier'!J32 -> 6.431200297 | I56: ='Shock Analysis - RW Multiplier'!K32 -> 6.370260097 | J56: ='Shock Analysis - RW Multiplier'!L32 -> 6.309277091 | K56: ='Shock Analysis - RW Multiplier'!M32 -> 6.248252454 | L56: ='Shock Analysis - RW Multiplier'!N32 -> 6.187187327 | M56: ='Shock Analysis - RW Multiplier'!O32 -> 6.126082822 | N56: ='Shock Analysis - RW Multiplier'!P32 -> 6.06494002 | O56: ='Shock Analysis - RW Multiplier'!Q32 -> 6.003759972 | P56: ='Shock Analysis - RW Multiplier'!R32 -> 5.9425437 | Q56: ='Shock Analysis - RW Multiplier'!S32 -> 5.881292198 | R56: ='Shock Analysis - RW Multiplier'!T32 -> 5.820006433 | S56: ='Shock Analysis - RW Multiplier'!U32 -> 5.758687345 | T56: ='Shock Analysis - RW Multiplier'!V32 -> 5.697335848 | U56: ='Shock Analysis - RW Multiplier'!W32 -> 5.635952833 | V56: ='Shock Analysis - RW Multiplier'!X32 -> 5.574539163 | W56: ='Shock Analysis - RW Multiplier'!Y32 -> 5.513095681 | X56: ='Shock Analysis - RW Multiplier'!Z32 -> 5.451623205 | Y56: ='Shock Analysis - RW Multiplier'!AA32 -> 5.390122529 | Z56: ='Shock Analysis - RW Multiplier'!AB32 -> 5.328594429 | AA56: ='Shock Analysis - RW Multiplier'!AC32 -> 5.267039656 | AB56: ='Shock Analysis - RW Multiplier'!AD32 -> 5.205458943 | AC56: ='Shock Analysis - RW Multiplier'!AE32 -> 5.143853002
C57: 0.14 | D57: ='Shock Analysis - RW Multiplier'!F33 -> 5.753923386 | E57: ='Shock Analysis - RW Multiplier'!G33 -> 5.700943008 | F57: ='Shock Analysis - RW Multiplier'!H33 -> 5.647946409 | G57: ='Shock Analysis - RW Multiplier'!I33 -> 5.594934035 | H57: ='Shock Analysis - RW Multiplier'!J33 -> 5.541906318 | I57: ='Shock Analysis - RW Multiplier'!K33 -> 5.48886368 | J57: ='Shock Analysis - RW Multiplier'!L33 -> 5.43580653 | K57: ='Shock Analysis - RW Multiplier'!M33 -> 5.382735267 | L57: ='Shock Analysis - RW Multiplier'!N33 -> 5.329650277 | M57: ='Shock Analysis - RW Multiplier'!O33 -> 5.276551938 | N57: ='Shock Analysis - RW Multiplier'!P33 -> 5.223440616 | O57: ='Shock Analysis - RW Multiplier'!Q33 -> 5.170316666 | P57: ='Shock Analysis - RW Multiplier'!R33 -> 5.117180436 | Q57: ='Shock Analysis - RW Multiplier'!S33 -> 5.064032263 | R57: ='Shock Analysis - RW Multiplier'!T33 -> 5.010872475 | S57: ='Shock Analysis - RW Multiplier'!U33 -> 4.957701389 | T57: ='Shock Analysis - RW Multiplier'!V33 -> 4.904519317 | U57: ='Shock Analysis - RW Multiplier'!W33 -> 4.851326559 | V57: ='Shock Analysis - RW Multiplier'!X33 -> 4.798123409 | W57: ='Shock Analysis - RW Multiplier'!Y33 -> 4.744910153 | X57: ='Shock Analysis - RW Multiplier'!Z33 -> 4.691687067 | Y57: ='Shock Analysis - RW Multiplier'!AA33 -> 4.638454421 | Z57: ='Shock Analysis - RW Multiplier'!AB33 -> 4.585212478 | AA57: ='Shock Analysis - RW Multiplier'!AC33 -> 4.531961492 | AB57: ='Shock Analysis - RW Multiplier'!AD33 -> 4.478701713 | AC57: ='Shock Analysis - RW Multiplier'!AE33 -> 4.42543338
C58: 0.16 | D58: ='Shock Analysis - RW Multiplier'!F34 -> 5.046074428 | E58: ='Shock Analysis - RW Multiplier'!G34 -> 4.999403975 | F58: ='Shock Analysis - RW Multiplier'!H34 -> 4.952727909 | G58: ='Shock Analysis - RW Multiplier'!I34 -> 4.906046384 | H58: ='Shock Analysis - RW Multiplier'!J34 -> 4.859359549 | I58: ='Shock Analysis - RW Multiplier'!K34 -> 4.81266755 | J58: ='Shock Analysis - RW Multiplier'!L34 -> 4.765970528 | K58: ='Shock Analysis - RW Multiplier'!M34 -> 4.719268623 | L58: ='Shock Analysis - RW Multiplier'!N34 -> 4.672561967 | M58: ='Shock Analysis - RW Multiplier'!O34 -> 4.625850691 | N58: ='Shock Analysis - RW Multiplier'!P34 -> 4.579134922 | O58: ='Shock Analysis - RW Multiplier'!Q34 -> 4.532414783 | P58: ='Shock Analysis - RW Multiplier'!R34 -> 4.485690394 | Q58: ='Shock Analysis - RW Multiplier'!S34 -> 4.438961872 | R58: ='Shock Analysis - RW Multiplier'!T34 -> 4.39222933 | S58: ='Shock Analysis - RW Multiplier'!U34 -> 4.345492879 | T58: ='Shock Analysis - RW Multiplier'!V34 -> 4.298752625 | U58: ='Shock Analysis - RW Multiplier'!W34 -> 4.252008673 | V58: ='Shock Analysis - RW Multiplier'!X34 -> 4.205261125 | W58: ='Shock Analysis - RW Multiplier'!Y34 -> 4.158510079 | X58: ='Shock Analysis - RW Multiplier'!Z34 -> 4.111755632 | Y58: ='Shock Analysis - RW Multiplier'!AA34 -> 4.064997876 | Z58: ='Shock Analysis - RW Multiplier'!AB34 -> 4.018236902 | AA58: ='Shock Analysis - RW Multiplier'!AC34 -> 3.9714728 | AB58: ='Shock Analysis - RW Multiplier'!AD34 -> 3.924705653 | AC58: ='Shock Analysis - RW Multiplier'!AE34 -> 3.877935547
C59: 0.2 | D59: ='Shock Analysis - RW Multiplier'!F35 -> 4.04188951 | E59: ='Shock Analysis - RW Multiplier'!G35 -> 4.004415108 | F59: ='Shock Analysis - RW Multiplier'!H35 -> 3.966940004 | G59: ='Shock Analysis - RW Multiplier'!I35 -> 3.929464216 | H59: ='Shock Analysis - RW Multiplier'!J35 -> 3.891987764 | I59: ='Shock Analysis - RW Multiplier'!K35 -> 3.854510666 | J59: ='Shock Analysis - RW Multiplier'!L35 -> 3.817032939 | K59: ='Shock Analysis - RW Multiplier'!M35 -> 3.779554601 | L59: ='Shock Analysis - RW Multiplier'!N35 -> 3.742075668 | M59: ='Shock Analysis - RW Multiplier'!O35 -> 3.704596157 | N59: ='Shock Analysis - RW Multiplier'!P35 -> 3.667116084 | O59: ='Shock Analysis - RW Multiplier'!Q35 -> 3.629635464 | P59: ='Shock Analysis - RW Multiplier'!R35 -> 3.592154313 | Q59: ='Shock Analysis - RW Multiplier'!S35 -> 3.554672644 | R59: ='Shock Analysis - RW Multiplier'!T35 -> 3.517190472 | S59: ='Shock Analysis - RW Multiplier'!U35 -> 3.47970781 | T59: ='Shock Analysis - RW Multiplier'!V35 -> 3.442224673 | U59: ='Shock Analysis - RW Multiplier'!W35 -> 3.404741073 | V59: ='Shock Analysis - RW Multiplier'!X35 -> 3.367257023 | W59: ='Shock Analysis - RW Multiplier'!Y35 -> 3.329772535 | X59: ='Shock Analysis - RW Multiplier'!Z35 -> 3.292287622 | Y59: ='Shock Analysis - RW Multiplier'!AA35 -> 3.254802294 | Z59: ='Shock Analysis - RW Multiplier'!AB35 -> 3.217316564 | AA59: ='Shock Analysis - RW Multiplier'!AC35 -> 3.179830442 | AB59: ='Shock Analysis - RW Multiplier'!AD35 -> 3.14234394 | AC59: ='Shock Analysis - RW Multiplier'!AE35 -> 3.104857067
C60: 0.24 | D60: ='Shock Analysis - RW Multiplier'!F36 -> 3.368896961 | E60: ='Shock Analysis - RW Multiplier'!G36 -> 3.337650298 | F60: ='Shock Analysis - RW Multiplier'!H36 -> 3.306403544 | G60: ='Shock Analysis - RW Multiplier'!I36 -> 3.2751567 | H60: ='Shock Analysis - RW Multiplier'!J36 -> 3.24390977 | I60: ='Shock Analysis - RW Multiplier'!K36 -> 3.212662755 | J60: ='Shock Analysis - RW Multiplier'!L36 -> 3.181415659 | K60: ='Shock Analysis - RW Multiplier'!M36 -> 3.150168482 | L60: ='Shock Analysis - RW Multiplier'!N36 -> 3.118921229 | M60: ='Shock Analysis - RW Multiplier'!O36 -> 3.0876739 | N60: ='Shock Analysis - RW Multiplier'!P36 -> 3.056426497 | O60: ='Shock Analysis - RW Multiplier'!Q36 -> 3.025179024 | P60: ='Shock Analysis - RW Multiplier'!R36 -> 2.993931481 | Q60: ='Shock Analysis - RW Multiplier'!S36 -> 2.96268387 | R60: ='Shock Analysis - RW Multiplier'!T36 -> 2.931436194 | S60: ='Shock Analysis - RW Multiplier'!U36 -> 2.900188455 | T60: ='Shock Analysis - RW Multiplier'!V36 -> 2.868940653 | U60: ='Shock Analysis - RW Multiplier'!W36 -> 2.837692791 | V60: ='Shock Analysis - RW Multiplier'!X36 -> 2.80644487 | W60: ='Shock Analysis - RW Multiplier'!Y36 -> 2.775196892 | X60: ='Shock Analysis - RW Multiplier'!Z36 -> 2.743948859 | Y60: ='Shock Analysis - RW Multiplier'!AA36 -> 2.712700772 | Z60: ='Shock Analysis - RW Multiplier'!AB36 -> 2.681452632 | AA60: ='Shock Analysis - RW Multiplier'!AC36 -> 2.650204441 | AB60: ='Shock Analysis - RW Multiplier'!AD36 -> 2.6189562 | AC60: ='Shock Analysis - RW Multiplier'!AE36 -> 2.587707912
C61: 0.28 | D61: ='Shock Analysis - RW Multiplier'!F37 -> 2.887713886 | E61: ='Shock Analysis - RW Multiplier'!G37 -> 2.860928619 | F61: ='Shock Analysis - RW Multiplier'!H37 -> 2.83414334 | G61: ='Shock Analysis - RW Multiplier'!I37 -> 2.807358049 | H61: ='Shock Analysis - RW Multiplier'!J37 -> 2.780572746 | I61: ='Shock Analysis - RW Multiplier'!K37 -> 2.753787432 | J61: ='Shock Analysis - RW Multiplier'!L37 -> 2.727002107 | K61: ='Shock Analysis - RW Multiplier'!M37 -> 2.700216772 | L61: ='Shock Analysis - RW Multiplier'!N37 -> 2.673431426 | M61: ='Shock Analysis - RW Multiplier'!O37 -> 2.646646069 | N61: ='Shock Analysis - RW Multiplier'!P37 -> 2.619860703 | O61: ='Shock Analysis - RW Multiplier'!Q37 -> 2.593075328 | P61: ='Shock Analysis - RW Multiplier'!R37 -> 2.566289943 | Q61: ='Shock Analysis - RW Multiplier'!S37 -> 2.539504549 | R61: ='Shock Analysis - RW Multiplier'!T37 -> 2.512719147 | S61: ='Shock Analysis - RW Multiplier'!U37 -> 2.485933735 | T61: ='Shock Analysis - RW Multiplier'!V37 -> 2.459148316 | U61: ='Shock Analysis - RW Multiplier'!W37 -> 2.432362888 | V61: ='Shock Analysis - RW Multiplier'!X37 -> 2.405577453 | W61: ='Shock Analysis - RW Multiplier'!Y37 -> 2.37879201 | X61: ='Shock Analysis - RW Multiplier'!Z37 -> 2.352006559 | Y61: ='Shock Analysis - RW Multiplier'!AA37 -> 2.325221101 | Z61: ='Shock Analysis - RW Multiplier'!AB37 -> 2.298435636 | AA61: ='Shock Analysis - RW Multiplier'!AC37 -> 2.271650165 | AB61: ='Shock Analysis - RW Multiplier'!AD37 -> 2.244864686 | AC61: ='Shock Analysis - RW Multiplier'!AE37 -> 2.218079201
C62: 0.32 | D62: ='Shock Analysis - RW Multiplier'!F38 -> 2.526761684 | E62: ='Shock Analysis - RW Multiplier'!G38 -> 2.503324246 | F62: ='Shock Analysis - RW Multiplier'!H38 -> 2.479886805 | G62: ='Shock Analysis - RW Multiplier'!I38 -> 2.456449363 | H62: ='Shock Analysis - RW Multiplier'!J38 -> 2.433011919 | I62: ='Shock Analysis - RW Multiplier'!K38 -> 2.409574474 | J62: ='Shock Analysis - RW Multiplier'!L38 -> 2.386137028 | K62: ='Shock Analysis - RW Multiplier'!M38 -> 2.362699579 | L62: ='Shock Analysis - RW Multiplier'!N38 -> 2.33926213 | M62: ='Shock Analysis - RW Multiplier'!O38 -> 2.315824679 | N62: ='Shock Analysis - RW Multiplier'!P38 -> 2.292387226 | O62: ='Shock Analysis - RW Multiplier'!Q38 -> 2.268949773 | P62: ='Shock Analysis - RW Multiplier'!R38 -> 2.245512318 | Q62: ='Shock Analysis - RW Multiplier'!S38 -> 2.222074862 | R62: ='Shock Analysis - RW Multiplier'!T38 -> 2.198637404 | S62: ='Shock Analysis - RW Multiplier'!U38 -> 2.175199946 | T62: ='Shock Analysis - RW Multiplier'!V38 -> 2.151762486 | U62: ='Shock Analysis - RW Multiplier'!W38 -> 2.128325026 | V62: ='Shock Analysis - RW Multiplier'!X38 -> 2.104887564 | W62: ='Shock Analysis - RW Multiplier'!Y38 -> 2.081450101 | X62: ='Shock Analysis - RW Multiplier'!Z38 -> 2.058012637 | Y62: ='Shock Analysis - RW Multiplier'!AA38 -> 2.034575172 | Z62: ='Shock Analysis - RW Multiplier'!AB38 -> 2.011137706 | AA62: ='Shock Analysis - RW Multiplier'!AC38 -> 1.987700239 | AB62: ='Shock Analysis - RW Multiplier'!AD38 -> 1.964262772 | AC62: ='Shock Analysis - RW Multiplier'!AE38 -> 1.940825303
C63: 0.36 | D63: ='Shock Analysis - RW Multiplier'!F39 -> 2.246012059 | E63: ='Shock Analysis - RW Multiplier'!G39 -> 2.225178735 | F63: ='Shock Analysis - RW Multiplier'!H39 -> 2.20434541 | G63: ='Shock Analysis - RW Multiplier'!I39 -> 2.183512084 | H63: ='Shock Analysis - RW Multiplier'!J39 -> 2.162678759 | I63: ='Shock Analysis - RW Multiplier'!K39 -> 2.141845433 | J63: ='Shock Analysis - RW Multiplier'!L39 -> 2.121012107 | K63: ='Shock Analysis - RW Multiplier'!M39 -> 2.100178781 | L63: ='Shock Analysis - RW Multiplier'!N39 -> 2.079345455 | M63: ='Shock Analysis - RW Multiplier'!O39 -> 2.058512128 | N63: ='Shock Analysis - RW Multiplier'!P39 -> 2.037678802 | O63: ='Shock Analysis - RW Multiplier'!Q39 -> 2.016845475 | P63: ='Shock Analysis - RW Multiplier'!R39 -> 1.996012148 | Q63: ='Shock Analysis - RW Multiplier'!S39 -> 1.97517882 | R63: ='Shock Analysis - RW Multiplier'!T39 -> 1.954345493 | S63: ='Shock Analysis - RW Multiplier'!U39 -> 1.933512165 | T63: ='Shock Analysis - RW Multiplier'!V39 -> 1.912678838 | U63: ='Shock Analysis - RW Multiplier'!W39 -> 1.89184551 | V63: ='Shock Analysis - RW Multiplier'!X39 -> 1.871012182 | W63: ='Shock Analysis - RW Multiplier'!Y39 -> 1.850178854 | X63: ='Shock Analysis - RW Multiplier'!Z39 -> 1.829345525 | Y63: ='Shock Analysis - RW Multiplier'!AA39 -> 1.808512197 | Z63: ='Shock Analysis - RW Multiplier'!AB39 -> 1.787678868 | AA63: ='Shock Analysis - RW Multiplier'!AC39 -> 1.76684554 | AB63: ='Shock Analysis - RW Multiplier'!AD39 -> 1.746012211 | AC63: ='Shock Analysis - RW Multiplier'!AE39 -> 1.725178882
C64: 0.4 | D64: ='Shock Analysis - RW Multiplier'!F40 -> 2.021411089 | E64: ='Shock Analysis - RW Multiplier'!G40 -> 2.00266109 | F64: ='Shock Analysis - RW Multiplier'!H40 -> 1.983911091 | G64: ='Shock Analysis - RW Multiplier'!I40 -> 1.965161093 | H64: ='Shock Analysis - RW Multiplier'!J40 -> 1.946411094 | I64: ='Shock Analysis - RW Multiplier'!K40 -> 1.927661095 | J64: ='Shock Analysis - RW Multiplier'!L40 -> 1.908911096 | K64: ='Shock Analysis - RW Multiplier'!M40 -> 1.890161097 | L64: ='Shock Analysis - RW Multiplier'!N40 -> 1.871411098 | M64: ='Shock Analysis - RW Multiplier'!O40 -> 1.852661099 | N64: ='Shock Analysis - RW Multiplier'!P40 -> 1.8339111 | O64: ='Shock Analysis - RW Multiplier'!Q40 -> 1.815161101 | P64: ='Shock Analysis - RW Multiplier'!R40 -> 1.796411102 | Q64: ='Shock Analysis - RW Multiplier'!S40 -> 1.777661102 | R64: ='Shock Analysis - RW Multiplier'!T40 -> 1.758911103 | S64: ='Shock Analysis - RW Multiplier'!U40 -> 1.740161104 | T64: ='Shock Analysis - RW Multiplier'!V40 -> 1.721411105 | U64: ='Shock Analysis - RW Multiplier'!W40 -> 1.702661106 | V64: ='Shock Analysis - RW Multiplier'!X40 -> 1.683911106 | W64: ='Shock Analysis - RW Multiplier'!Y40 -> 1.665161107 | X64: ='Shock Analysis - RW Multiplier'!Z40 -> 1.646411108 | Y64: ='Shock Analysis - RW Multiplier'!AA40 -> 1.627661108 | Z64: ='Shock Analysis - RW Multiplier'!AB40 -> 1.608911109 | AA64: ='Shock Analysis - RW Multiplier'!AC40 -> 1.59016111 | AB64: ='Shock Analysis - RW Multiplier'!AD40 -> 1.57141111 | AC64: ='Shock Analysis - RW Multiplier'!AE40 -> 1.552661111
B66: MPF - 100/125/35
D67: First Loss Account
D68: 0.01 | E68: 0.0108 | F68: 0.0116 | G68: 0.0124 | H68: 0.0132 | I68: 0.014 | J68: 0.0148 | K68: 0.0156 | L68: 0.0164 | M68: 0.0172 | N68: 0.018 | O68: 0.0188 | P68: 0.0196 | Q68: 0.0204 | R68: 0.0212 | S68: 0.022 | T68: 0.0228 | U68: 0.0236 | V68: 0.0244 | W68: 0.0252 | X68: 0.026 | Y68: 0.0268 | Z68: 0.0276 | AA68: 0.0284 | AB68: 0.0292 | AC68: 0.03
B69: Credit Enhancement Obligation | C69: 0.02 | D69: ='Shock Analysis - RW Multiplier'!F46 -> 12.5 | E69: ='Shock Analysis - RW Multiplier'!G46 -> 12.5 | F69: ='Shock Analysis - RW Multiplier'!H46 -> 12.5 | G69: ='Shock Analysis - RW Multiplier'!I46 -> 12.5 | H69: ='Shock Analysis - RW Multiplier'!J46 -> 12.5 | I69: ='Shock Analysis - RW Multiplier'!K46 -> 12.5 | J69: ='Shock Analysis - RW Multiplier'!L46 -> 12.5 | K69: ='Shock Analysis - RW Multiplier'!M46 -> 12.5 | L69: ='Shock Analysis - RW Multiplier'!N46 -> 12.5 | M69: ='Shock Analysis - RW Multiplier'!O46 -> 12.5 | N69: ='Shock Analysis - RW Multiplier'!P46 -> 12.5 | O69: ='Shock Analysis - RW Multiplier'!Q46 -> 12.5 | P69: ='Shock Analysis - RW Multiplier'!R46 -> 12.5 | Q69: ='Shock Analysis - RW Multiplier'!S46 -> 12.5 | R69: ='Shock Analysis - RW Multiplier'!T46 -> 12.5 | S69: ='Shock Analysis - RW Multiplier'!U46 -> 12.5 | T69: ='Shock Analysis - RW Multiplier'!V46 -> 12.5 | U69: ='Shock Analysis - RW Multiplier'!W46 -> 12.49673252 | V69: ='Shock Analysis - RW Multiplier'!X46 -> 12.47684087 | W69: ='Shock Analysis - RW Multiplier'!Y46 -> 12.43946228 | X69: ='Shock Analysis - RW Multiplier'!Z46 -> 12.38523366 | Y69: ='Shock Analysis - RW Multiplier'!AA46 -> 12.31476874 | Z69: ='Shock Analysis - RW Multiplier'!AB46 -> 12.22865891 | AA69: ='Shock Analysis - RW Multiplier'!AC46 -> 12.12747399 | AB69: ='Shock Analysis - RW Multiplier'!AD46 -> 12.01176305 | AC69: ='Shock Analysis - RW Multiplier'!AE46 -> 11.88205519
C70: 0.025 | D70: ='Shock Analysis - RW Multiplier'!F47 -> 12.5 | E70: ='Shock Analysis - RW Multiplier'!G47 -> 12.5 | F70: ='Shock Analysis - RW Multiplier'!H47 -> 12.5 | G70: ='Shock Analysis - RW Multiplier'!I47 -> 12.5 | H70: ='Shock Analysis - RW Multiplier'!J47 -> 12.5 | I70: ='Shock Analysis - RW Multiplier'!K47 -> 12.5 | J70: ='Shock Analysis - RW Multiplier'!L47 -> 12.5 | K70: ='Shock Analysis - RW Multiplier'!M47 -> 12.5 | L70: ='Shock Analysis - RW Multiplier'!N47 -> 12.5 | M70: ='Shock Analysis - RW Multiplier'!O47 -> 12.5 | N70: ='Shock Analysis - RW Multiplier'!P47 -> 12.5 | O70: ='Shock Analysis - RW Multiplier'!Q47 -> 12.49474779 | P70: ='Shock Analysis - RW Multiplier'!R47 -> 12.47528827 | Q70: ='Shock Analysis - RW Multiplier'!S47 -> 12.44196836 | R70: ='Shock Analysis - RW Multiplier'!T47 -> 12.39529289 | S70: ='Shock Analysis - RW Multiplier'!U47 -> 12.3357483 | T70: ='Shock Analysis - RW Multiplier'!V47 -> 12.26380334 | U70: ='Shock Analysis - RW Multiplier'!W47 -> 12.17990965 | V70: ='Shock Analysis - RW Multiplier'!X47 -> 12.08450245 | W70: ='Shock Analysis - RW Multiplier'!Y47 -> 11.97800109 | X70: ='Shock Analysis - RW Multiplier'!Z47 -> 11.86080965 | Y70: ='Shock Analysis - RW Multiplier'!AA47 -> 11.7333175 | Z70: ='Shock Analysis - RW Multiplier'!AB47 -> 11.59589982 | AA70: ='Shock Analysis - RW Multiplier'!AC47 -> 11.44891812 | AB70: ='Shock Analysis - RW Multiplier'!AD47 -> 11.29272076 | AC70: ='Shock Analysis - RW Multiplier'!AE47 -> 11.12764339
C71: 0.03 | D71: ='Shock Analysis - RW Multiplier'!F48 -> 12.5 | E71: ='Shock Analysis - RW Multiplier'!G48 -> 12.5 | F71: ='Shock Analysis - RW Multiplier'!H48 -> 12.5 | G71: ='Shock Analysis - RW Multiplier'!I48 -> 12.5 | H71: ='Shock Analysis - RW Multiplier'!J48 -> 12.49994343 | I71: ='Shock Analysis - RW Multiplier'!K48 -> 12.49267554 | J71: ='Shock Analysis - RW Multiplier'!L48 -> 12.47353139 | K71: ='Shock Analysis - RW Multiplier'!M48 -> 12.44294355 | L71: ='Shock Analysis - RW Multiplier'!N48 -> 12.40132884 | M71: ='Shock Analysis - RW Multiplier'!O48 -> 12.34908889 | N71: ='Shock Analysis - RW Multiplier'!P48 -> 12.28661069 | O71: ='Shock Analysis - RW Multiplier'!Q48 -> 12.21426716 | P71: ='Shock Analysis - RW Multiplier'!R48 -> 12.13241762 | Q71: ='Shock Analysis - RW Multiplier'!S48 -> 12.04140831 | R71: ='Shock Analysis - RW Multiplier'!T48 -> 11.94157284 | S71: ='Shock Analysis - RW Multiplier'!U48 -> 11.83323271 | T71: ='Shock Analysis - RW Multiplier'!V48 -> 11.71669766 | U71: ='Shock Analysis - RW Multiplier'!W48 -> 11.59226619 | V71: ='Shock Analysis - RW Multiplier'!X48 -> 11.4602259 | W71: ='Shock Analysis - RW Multiplier'!Y48 -> 11.32085393 | X71: ='Shock Analysis - RW Multiplier'!Z48 -> 11.17441732 | Y71: ='Shock Analysis - RW Multiplier'!AA48 -> 11.02117339 | Z71: ='Shock Analysis - RW Multiplier'!AB48 -> 10.86137008 | AA71: ='Shock Analysis - RW Multiplier'!AC48 -> 10.69524629 | AB71: ='Shock Analysis - RW Multiplier'!AD48 -> 10.52303225 | AC71: ='Shock Analysis - RW Multiplier'!AE48 -> 10.34494977
C72: 0.035 | D72: ='Shock Analysis - RW Multiplier'!F49 -> 12.47166348 | E72: ='Shock Analysis - RW Multiplier'!G49 -> 12.44304946 | F72: ='Shock Analysis - RW Multiplier'!H49 -> 12.40507109 | G72: ='Shock Analysis - RW Multiplier'!I49 -> 12.35806946 | H72: ='Shock Analysis - RW Multiplier'!J49 -> 12.30237322 | I72: ='Shock Analysis - RW Multiplier'!K49 -> 12.23829905 | J72: ='Shock Analysis - RW Multiplier'!L49 -> 12.16615209 | K72: ='Shock Analysis - RW Multiplier'!M49 -> 12.0862264 | L72: ='Shock Analysis - RW Multiplier'!N49 -> 11.99880528 | M72: ='Shock Analysis - RW Multiplier'!O49 -> 11.90416174 | N72: ='Shock Analysis - RW Multiplier'!P49 -> 11.80255886 | O72: ='Shock Analysis - RW Multiplier'!Q49 -> 11.69425009 | P72: ='Shock Analysis - RW Multiplier'!R49 -> 11.5794797 | Q72: ='Shock Analysis - RW Multiplier'!S49 -> 11.45848303 | R72: ='Shock Analysis - RW Multiplier'!T49 -> 11.33148687 | S72: ='Shock Analysis - RW Multiplier'!U49 -> 11.19870973 | T72: ='Shock Analysis - RW Multiplier'!V49 -> 11.06036217 | U72: ='Shock Analysis - RW Multiplier'!W49 -> 10.91664709 | V72: ='Shock Analysis - RW Multiplier'!X49 -> 10.76775998 | W72: ='Shock Analysis - RW Multiplier'!Y49 -> 10.61388923 | X72: ='Shock Analysis - RW Multiplier'!Z49 -> 10.45521634 | Y72: ='Shock Analysis - RW Multiplier'!AA49 -> 10.29191625 | Z72: ='Shock Analysis - RW Multiplier'!AB49 -> 10.12415746 | AA72: ='Shock Analysis - RW Multiplier'!AC49 -> 9.952102398 | AB72: ='Shock Analysis - RW Multiplier'!AD49 -> 9.775907532 | AC72: ='Shock Analysis - RW Multiplier'!AE49 -> 9.595723648
C73: 0.04 | D73: ='Shock Analysis - RW Multiplier'!F50 -> 12.1910276 | E73: ='Shock Analysis - RW Multiplier'!G50 -> 12.1194301 | F73: ='Shock Analysis - RW Multiplier'!H50 -> 12.04133467 | G73: ='Shock Analysis - RW Multiplier'!I50 -> 11.95697797 | H73: ='Shock Analysis - RW Multiplier'!J50 -> 11.86658806 | I73: ='Shock Analysis - RW Multiplier'!K50 -> 11.77038469 | J73: ='Shock Analysis - RW Multiplier'!L50 -> 11.66857959 | K73: ='Shock Analysis - RW Multiplier'!M50 -> 11.5613768 | L73: ='Shock Analysis - RW Multiplier'!N50 -> 11.44897292 | M73: ='Shock Analysis - RW Multiplier'!O50 -> 11.33155739 | N73: ='Shock Analysis - RW Multiplier'!P50 -> 11.20931274 | O73: ='Shock Analysis - RW Multiplier'!Q50 -> 11.08241487 | P73: ='Shock Analysis - RW Multiplier'!R50 -> 10.95103326 | Q73: ='Shock Analysis - RW Multiplier'!S50 -> 10.81533123 | R73: ='Shock Analysis - RW Multiplier'!T50 -> 10.67546613 | S73: ='Shock Analysis - RW Multiplier'!U50 -> 10.53158959 | T73: ='Shock Analysis - RW Multiplier'!V50 -> 10.38384773 | U73: ='Shock Analysis - RW Multiplier'!W50 -> 10.23238133 | V73: ='Shock Analysis - RW Multiplier'!X50 -> 10.07732604 | W73: ='Shock Analysis - RW Multiplier'!Y50 -> 9.918812596 | X73: ='Shock Analysis - RW Multiplier'!Z50 -> 9.756966941 | Y73: ='Shock Analysis - RW Multiplier'!AA50 -> 9.591910448 | Z73: ='Shock Analysis - RW Multiplier'!AB50 -> 9.423760064 | AA73: ='Shock Analysis - RW Multiplier'!AC50 -> 9.252628478 | AB73: ='Shock Analysis - RW Multiplier'!AD50 -> 9.078624275 | AC73: ='Shock Analysis - RW Multiplier'!AE50 -> 8.901852082
C74: 0.045 | D74: ='Shock Analysis - RW Multiplier'!F51 -> 11.73757966 | E74: ='Shock Analysis - RW Multiplier'!G51 -> 11.64111637 | F74: ='Shock Analysis - RW Multiplier'!H51 -> 11.54007256 | G74: ='Shock Analysis - RW Multiplier'!I51 -> 11.43461509 | H74: ='Shock Analysis - RW Multiplier'!J51 -> 11.3249047 | I74: ='Shock Analysis - RW Multiplier'!K51 -> 11.2110963 | J74: ='Shock Analysis - RW Multiplier'!L51 -> 11.09333915 | K74: ='Shock Analysis - RW Multiplier'!M51 -> 10.97177709 | L74: ='Shock Analysis - RW Multiplier'!N51 -> 10.84654868 | M74: ='Shock Analysis - RW Multiplier'!O51 -> 10.71778748 | N74: ='Shock Analysis - RW Multiplier'!P51 -> 10.58562215 | O74: ='Shock Analysis - RW Multiplier'!Q51 -> 10.45017669 | P74: ='Shock Analysis - RW Multiplier'!R51 -> 10.31157056 | Q74: ='Shock Analysis - RW Multiplier'!S51 -> 10.1699189 | R74: ='Shock Analysis - RW Multiplier'!T51 -> 10.02533261 | S74: ='Shock Analysis - RW Multiplier'!U51 -> 9.877918605 | T74: ='Shock Analysis - RW Multiplier'!V51 -> 9.727779862 | U74: ='Shock Analysis - RW Multiplier'!W51 -> 9.575015628 | V74: ='Shock Analysis - RW Multiplier'!X51 -> 9.419721532 | W74: ='Shock Analysis - RW Multiplier'!Y51 -> 9.261989718 | X74: ='Shock Analysis - RW Multiplier'!Z51 -> 9.101908975 | Y74: ='Shock Analysis - RW Multiplier'!AA51 -> 8.939564858 | Z74: ='Shock Analysis - RW Multiplier'!AB51 -> 8.775039805 | AA74: ='Shock Analysis - RW Multiplier'!AC51 -> 8.608413253 | AB74: ='Shock Analysis - RW Multiplier'!AD51 -> 8.439761745 | AC74: ='Shock Analysis - RW Multiplier'!AE51 -> 8.269159034
C75: 0.05 | D75: ='Shock Analysis - RW Multiplier'!F52 -> 11.20696986 | E75: ='Shock Analysis - RW Multiplier'!G52 -> 11.09672756 | F75: ='Shock Analysis - RW Multiplier'!H52 -> 10.98321602 | G75: ='Shock Analysis - RW Multiplier'!I52 -> 10.86655432 | H75: ='Shock Analysis - RW Multiplier'!J52 -> 10.7468572 | I75: ='Shock Analysis - RW Multiplier'!K52 -> 10.62423521 | J75: ='Shock Analysis - RW Multiplier'!L52 -> 10.49879489 | K75: ='Shock Analysis - RW Multiplier'!M52 -> 10.37063888 | L75: ='Shock Analysis - RW Multiplier'!N52 -> 10.23986611 | M75: ='Shock Analysis - RW Multiplier'!O52 -> 10.10657188 | N75: ='Shock Analysis - RW Multiplier'!P52 -> 9.970848032 | O75: ='Shock Analysis - RW Multiplier'!Q52 -> 9.832783059 | P75: ='Shock Analysis - RW Multiplier'!R52 -> 9.692462231 | Q75: ='Shock Analysis - RW Multiplier'!S52 -> 9.549967713 | R75: ='Shock Analysis - RW Multiplier'!T52 -> 9.405378678 | S75: ='Shock Analysis - RW Multiplier'!U52 -> 9.258771413 | T75: ='Shock Analysis - RW Multiplier'!V52 -> 9.11021943 | U75: ='Shock Analysis - RW Multiplier'!W52 -> 8.959793559 | V75: ='Shock Analysis - RW Multiplier'!X52 -> 8.807562054 | W75: ='Shock Analysis - RW Multiplier'!Y52 -> 8.653590681 | X75: ='Shock Analysis - RW Multiplier'!Z52 -> 8.497942811 | Y75: ='Shock Analysis - RW Multiplier'!AA52 -> 8.340679506 | Z75: ='Shock Analysis - RW Multiplier'!AB52 -> 8.181859607 | AA75: ='Shock Analysis - RW Multiplier'!AC52 -> 8.021539808 | AB75: ='Shock Analysis - RW Multiplier'!AD52 -> 7.85977474 | AC75: ='Shock Analysis - RW Multiplier'!AE52 -> 7.696617045
C76: 0.055 | D76: ='Shock Analysis - RW Multiplier'!F53 -> 10.65182414 | E76: ='Shock Analysis - RW Multiplier'!G53 -> 10.53471566 | F76: ='Shock Analysis - RW Multiplier'!H53 -> 10.41525027 | G76: ='Shock Analysis - RW Multiplier'!I53 -> 10.2935138 | H76: ='Shock Analysis - RW Multiplier'!J53 -> 10.16958899 | I76: ='Shock Analysis - RW Multiplier'!K53 -> 10.04355552 | J76: ='Shock Analysis - RW Multiplier'!L53 -> 9.91549022 | K76: ='Shock Analysis - RW Multiplier'!M53 -> 9.785467079 | L76: ='Shock Analysis - RW Multiplier'!N53 -> 9.653557411 | M76: ='Shock Analysis - RW Multiplier'!O53 -> 9.51982993 | N76: ='Shock Analysis - RW Multiplier'!P53 -> 9.384350845 | O76: ='Shock Analysis - RW Multiplier'!Q53 -> 9.247183955 | P76: ='Shock Analysis - RW Multiplier'!R53 -> 9.108390734 | Q76: ='Shock Analysis - RW Multiplier'!S53 -> 8.968030419 | R76: ='Shock Analysis - RW Multiplier'!T53 -> 8.826160087 | S76: ='Shock Analysis - RW Multiplier'!U53 -> 8.682834738 | T76: ='Shock Analysis - RW Multiplier'!V53 -> 8.538107367 | U76: ='Shock Analysis - RW Multiplier'!W53 -> 8.392029041 | V76: ='Shock Analysis - RW Multiplier'!X53 -> 8.244648965 | W76: ='Shock Analysis - RW Multiplier'!Y53 -> 8.096014553 | X76: ='Shock Analysis - RW Multiplier'!Z53 -> 7.946171491 | Y76: ='Shock Analysis - RW Multiplier'!AA53 -> 7.795163802 | Z76: ='Shock Analysis - RW Multiplier'!AB53 -> 7.643033904 | AA76: ='Shock Analysis - RW Multiplier'!AC53 -> 7.489822673 | AB76: ='Shock Analysis - RW Multiplier'!AD53 -> 7.335569493 | AC76: ='Shock Analysis - RW Multiplier'!AE53 -> 7.180312315
C77: 0.06 | D77: ='Shock Analysis - RW Multiplier'!F54 -> 10.10123472 | E77: ='Shock Analysis - RW Multiplier'!G54 -> 9.98160848 | F77: ='Shock Analysis - RW Multiplier'!H54 -> 9.860268888 | G77: ='Shock Analysis - RW Multiplier'!I54 -> 9.737278352 | H77: ='Shock Analysis - RW Multiplier'!J54 -> 9.612697004 | I77: ='Shock Analysis - RW Multiplier'!K54 -> 9.486582786 | J77: ='Shock Analysis - RW Multiplier'!L54 -> 9.358991529 | K77: ='Shock Analysis - RW Multiplier'!M54 -> 9.229977032 | L77: ='Shock Analysis - RW Multiplier'!N54 -> 9.099591133 | M77: ='Shock Analysis - RW Multiplier'!O54 -> 8.967883782 | N77: ='Shock Analysis - RW Multiplier'!P54 -> 8.834903111 | O77: ='Shock Analysis - RW Multiplier'!Q54 -> 8.700695498 | P77: ='Shock Analysis - RW Multiplier'!R54 -> 8.565305631 | Q77: ='Shock Analysis - RW Multiplier'!S54 -> 8.428776572 | R77: ='Shock Analysis - RW Multiplier'!T54 -> 8.291149813 | S77: ='Shock Analysis - RW Multiplier'!U54 -> 8.152465336 | T77: ='Shock Analysis - RW Multiplier'!V54 -> 8.012761666 | U77: ='Shock Analysis - RW Multiplier'!W54 -> 7.872075924 | V77: ='Shock Analysis - RW Multiplier'!X54 -> 7.730443882 | W77: ='Shock Analysis - RW Multiplier'!Y54 -> 7.587900006 | X77: ='Shock Analysis - RW Multiplier'!Z54 -> 7.444477507 | Y77: ='Shock Analysis - RW Multiplier'!AA54 -> 7.300208388 | Z77: ='Shock Analysis - RW Multiplier'!AB54 -> 7.155123484 | AA77: ='Shock Analysis - RW Multiplier'!AC54 -> 7.00925251 | AB77: ='Shock Analysis - RW Multiplier'!AD54 -> 6.862624096 | AC77: ='Shock Analysis - RW Multiplier'!AE54 -> 6.715265831
C78: 0.08 | D78: ='Shock Analysis - RW Multiplier'!F55 -> 8.161449373 | E78: ='Shock Analysis - RW Multiplier'!G55 -> 8.050403222 | F78: ='Shock Analysis - RW Multiplier'!H55 -> 7.938848832 | G78: ='Shock Analysis - RW Multiplier'!I55 -> 7.826804713 | H78: ='Shock Analysis - RW Multiplier'!J55 -> 7.714288703 | I78: ='Shock Analysis - RW Multiplier'!K55 -> 7.60131799 | J78: ='Shock Analysis - RW Multiplier'!L55 -> 7.487909135 | K78: ='Shock Analysis - RW Multiplier'!M55 -> 7.374078097 | L78: ='Shock Analysis - RW Multiplier'!N55 -> 7.259840253 | M78: ='Shock Analysis - RW Multiplier'!O55 -> 7.145210419 | N78: ='Shock Analysis - RW Multiplier'!P55 -> 7.030202874 | O78: ='Shock Analysis - RW Multiplier'!Q55 -> 6.914831374 | P78: ='Shock Analysis - RW Multiplier'!R55 -> 6.799109176 | Q78: ='Shock Analysis - RW Multiplier'!S55 -> 6.683049054 | R78: ='Shock Analysis - RW Multiplier'!T55 -> 6.566663315 | S78: ='Shock Analysis - RW Multiplier'!U55 -> 6.44996382 | T78: ='Shock Analysis - RW Multiplier'!V55 -> 6.332961996 | U78: ='Shock Analysis - RW Multiplier'!W55 -> 6.215668855 | V78: ='Shock Analysis - RW Multiplier'!X55 -> 6.098095008 | W78: ='Shock Analysis - RW Multiplier'!Y55 -> 5.980250678 | X78: ='Shock Analysis - RW Multiplier'!Z55 -> 5.862145719 | Y78: ='Shock Analysis - RW Multiplier'!AA55 -> 5.743789621 | Z78: ='Shock Analysis - RW Multiplier'!AB55 -> 5.625191534 | AA78: ='Shock Analysis - RW Multiplier'!AC55 -> 5.50636027 | AB78: ='Shock Analysis - RW Multiplier'!AD55 -> 5.387304322 | AC78: ='Shock Analysis - RW Multiplier'!AE55 -> 5.268031875
C79: 0.1 | D79: ='Shock Analysis - RW Multiplier'!F56 -> 6.7144255 | E79: ='Shock Analysis - RW Multiplier'!G56 -> 6.618840651 | F79: ='Shock Analysis - RW Multiplier'!H56 -> 6.52309499 | G79: ='Shock Analysis - RW Multiplier'!I56 -> 6.427194372 | H79: ='Shock Analysis - RW Multiplier'!J56 -> 6.331144444 | I79: ='Shock Analysis - RW Multiplier'!K56 -> 6.234950642 | J79: ='Shock Analysis - RW Multiplier'!L56 -> 6.138618207 | K79: ='Shock Analysis - RW Multiplier'!M56 -> 6.042152189 | L79: ='Shock Analysis - RW Multiplier'!N56 -> 5.945557453 | M79: ='Shock Analysis - RW Multiplier'!O56 -> 5.848838688 | N79: ='Shock Analysis - RW Multiplier'!P56 -> 5.75200041 | O79: ='Shock Analysis - RW Multiplier'!Q56 -> 5.655046973 | P79: ='Shock Analysis - RW Multiplier'!R56 -> 5.557982571 | Q79: ='Shock Analysis - RW Multiplier'!S56 -> 5.460811247 | R79: ='Shock Analysis - RW Multiplier'!T56 -> 5.363536893 | S79: ='Shock Analysis - RW Multiplier'!U56 -> 5.266163264 | T79: ='Shock Analysis - RW Multiplier'!V56 -> 5.168693975 | U79: ='Shock Analysis - RW Multiplier'!W56 -> 5.071132509 | V79: ='Shock Analysis - RW Multiplier'!X56 -> 4.973482226 | W79: ='Shock Analysis - RW Multiplier'!Y56 -> 4.875746358 | X79: ='Shock Analysis - RW Multiplier'!Z56 -> 4.777928025 | Y79: ='Shock Analysis - RW Multiplier'!AA56 -> 4.680030228 | Z79: ='Shock Analysis - RW Multiplier'!AB56 -> 4.582055863 | AA79: ='Shock Analysis - RW Multiplier'!AC56 -> 4.484007719 | AB79: ='Shock Analysis - RW Multiplier'!AD56 -> 4.385888483 | AC79: ='Shock Analysis - RW Multiplier'!AE56 -> 4.287700743
C80: 0.12 | D80: ='Shock Analysis - RW Multiplier'!F57 -> 5.656417286 | E80: ='Shock Analysis - RW Multiplier'!G57 -> 5.574539163 | F80: ='Shock Analysis - RW Multiplier'!H57 -> 5.492608037 | G80: ='Shock Analysis - RW Multiplier'!I57 -> 5.410625839 | H80: ='Shock Analysis - RW Multiplier'!J57 -> 5.328594429 | I80: ='Shock Analysis - RW Multiplier'!K57 -> 5.246515598 | J80: ='Shock Analysis - RW Multiplier'!L57 -> 5.164391075 | K80: ='Shock Analysis - RW Multiplier'!M57 -> 5.082222524 | L80: ='Shock Analysis - RW Multiplier'!N57 -> 5.000011548 | M80: ='Shock Analysis - RW Multiplier'!O57 -> 4.917759692 | N80: ='Shock Analysis - RW Multiplier'!P57 -> 4.835468446 | O80: ='Shock Analysis - RW Multiplier'!Q57 -> 4.753139244 | P80: ='Shock Analysis - RW Multiplier'!R57 -> 4.670773468 | Q80: ='Shock Analysis - RW Multiplier'!S57 -> 4.588372451 | R80: ='Shock Analysis - RW Multiplier'!T57 -> 4.505937477 | S80: ='Shock Analysis - RW Multiplier'!U57 -> 4.423469782 | T80: ='Shock Analysis - RW Multiplier'!V57 -> 4.340970557 | U80: ='Shock Analysis - RW Multiplier'!W57 -> 4.258440952 | V80: ='Shock Analysis - RW Multiplier'!X57 -> 4.175882073 | W80: ='Shock Analysis - RW Multiplier'!Y57 -> 4.093294986 | X80: ='Shock Analysis - RW Multiplier'!Z57 -> 4.010680718 | Y80: ='Shock Analysis - RW Multiplier'!AA57 -> 3.92804026 | Z80: ='Shock Analysis - RW Multiplier'!AB57 -> 3.845374566 | AA80: ='Shock Analysis - RW Multiplier'!AC57 -> 3.762684554 | AB80: ='Shock Analysis - RW Multiplier'!AD57 -> 3.67997111 | AC80: ='Shock Analysis - RW Multiplier'!AE57 -> 3.597235088
C81: 0.14 | D81: ='Shock Analysis - RW Multiplier'!F58 -> 4.869058647 | E81: ='Shock Analysis - RW Multiplier'!G58 -> 4.798123409 | F81: ='Shock Analysis - RW Multiplier'!H58 -> 4.727170203 | G81: ='Shock Analysis - RW Multiplier'!I58 -> 4.656199682 | H81: ='Shock Analysis - RW Multiplier'!J58 -> 4.585212478 | I81: ='Shock Analysis - RW Multiplier'!K58 -> 4.514209197 | J81: ='Shock Analysis - RW Multiplier'!L58 -> 4.443190427 | K81: ='Shock Analysis - RW Multiplier'!M58 -> 4.37215673 | L81: ='Shock Analysis - RW Multiplier'!N58 -> 4.301108651 | M81: ='Shock Analysis - RW Multiplier'!O58 -> 4.230046713 | N81: ='Shock Analysis - RW Multiplier'!P58 -> 4.158971422 | O81: ='Shock Analysis - RW Multiplier'!Q58 -> 4.087883262 | P81: ='Shock Analysis - RW Multiplier'!R58 -> 4.016782704 | Q81: ='Shock Analysis - RW Multiplier'!S58 -> 3.945670199 | R81: ='Shock Analysis - RW Multiplier'!T58 -> 3.874546182 | S81: ='Shock Analysis - RW Multiplier'!U58 -> 3.803411072 | T81: ='Shock Analysis - RW Multiplier'!V58 -> 3.732265273 | U81: ='Shock Analysis - RW Multiplier'!W58 -> 3.661109175 | V81: ='Shock Analysis - RW Multiplier'!X58 -> 3.589943153 | W81: ='Shock Analysis - RW Multiplier'!Y58 -> 3.518767568 | X81: ='Shock Analysis - RW Multiplier'!Z58 -> 3.447582768 | Y81: ='Shock Analysis - RW Multiplier'!AA58 -> 3.376389089 | Z81: ='Shock Analysis - RW Multiplier'!AB58 -> 3.305186855 | AA81: ='Shock Analysis - RW Multiplier'!AC58 -> 3.233976377 | AB81: ='Shock Analysis - RW Multiplier'!AD58 -> 3.162757956 | AC81: ='Shock Analysis - RW Multiplier'!AE58 -> 3.09153188
C82: 0.16 | D82: ='Shock Analysis - RW Multiplier'!F59 -> 4.267590395 | E82: ='Shock Analysis - RW Multiplier'!G59 -> 4.205261125 | F82: ='Shock Analysis - RW Multiplier'!H59 -> 4.142925637 | G82: ='Shock Analysis - RW Multiplier'!I59 -> 4.080584157 | H82: ='Shock Analysis - RW Multiplier'!J59 -> 4.018236902 | I82: ='Shock Analysis - RW Multiplier'!K59 -> 3.955884085 | J82: ='Shock Analysis - RW Multiplier'!L59 -> 3.893525907 | K82: ='Shock Analysis - RW Multiplier'!M59 -> 3.831162563 | L82: ='Shock Analysis - RW Multiplier'!N59 -> 3.768794241 | M82: ='Shock Analysis - RW Multiplier'!O59 -> 3.706421124 | N82: ='Shock Analysis - RW Multiplier'!P59 -> 3.644043385 | O82: ='Shock Analysis - RW Multiplier'!Q59 -> 3.581661193 | P82: ='Shock Analysis - RW Multiplier'!R59 -> 3.51927471 | Q82: ='Shock Analysis - RW Multiplier'!S59 -> 3.456884093 | R82: ='Shock Analysis - RW Multiplier'!T59 -> 3.394489491 | S82: ='Shock Analysis - RW Multiplier'!U59 -> 3.33209105 | T82: ='Shock Analysis - RW Multiplier'!V59 -> 3.269688911 | U82: ='Shock Analysis - RW Multiplier'!W59 -> 3.207283207 | V82: ='Shock Analysis - RW Multiplier'!X59 -> 3.144874068 | W82: ='Shock Analysis - RW Multiplier'!Y59 -> 3.082461621 | X82: ='Shock Analysis - RW Multiplier'!Z59 -> 3.020045984 | Y82: ='Shock Analysis - RW Multiplier'!AA59 -> 2.957627274 | Z82: ='Shock Analysis - RW Multiplier'!AB59 -> 2.895205604 | AA82: ='Shock Analysis - RW Multiplier'!AC59 -> 2.83278108 | AB82: ='Shock Analysis - RW Multiplier'!AD59 -> 2.770353808 | AC82: ='Shock Analysis - RW Multiplier'!AE59 -> 2.707923886
C83: 0.2 | D83: ='Shock Analysis - RW Multiplier'!F60 -> 3.417235657 | E83: ='Shock Analysis - RW Multiplier'!G60 -> 3.367257023 | F83: ='Shock Analysis - RW Multiplier'!H60 -> 3.317277611 | G83: ='Shock Analysis - RW Multiplier'!I60 -> 3.267297449 | H83: ='Shock Analysis - RW Multiplier'!J60 -> 3.217316564 | I83: ='Shock Analysis - RW Multiplier'!K60 -> 3.167334983 | J83: ='Shock Analysis - RW Multiplier'!L60 -> 3.117352731 | K83: ='Shock Analysis - RW Multiplier'!M60 -> 3.067369833 | L83: ='Shock Analysis - RW Multiplier'!N60 -> 3.017386312 | M83: ='Shock Analysis - RW Multiplier'!O60 -> 2.967402191 | N83: ='Shock Analysis - RW Multiplier'!P60 -> 2.917417491 | O83: ='Shock Analysis - RW Multiplier'!Q60 -> 2.867432234 | P83: ='Shock Analysis - RW Multiplier'!R60 -> 2.81744644 | Q83: ='Shock Analysis - RW Multiplier'!S60 -> 2.767460129 | R83: ='Shock Analysis - RW Multiplier'!T60 -> 2.717473319 | S83: ='Shock Analysis - RW Multiplier'!U60 -> 2.667486029 | T83: ='Shock Analysis - RW Multiplier'!V60 -> 2.617498275 | U83: ='Shock Analysis - RW Multiplier'!W60 -> 2.567510076 | V83: ='Shock Analysis - RW Multiplier'!X60 -> 2.517521447 | W83: ='Shock Analysis - RW Multiplier'!Y60 -> 2.467532404 | X83: ='Shock Analysis - RW Multiplier'!Z60 -> 2.417542961 | Y83: ='Shock Analysis - RW Multiplier'!AA60 -> 2.367553134 | Z83: ='Shock Analysis - RW Multiplier'!AB60 -> 2.317562937 | AA83: ='Shock Analysis - RW Multiplier'!AC60 -> 2.267572382 | AB83: ='Shock Analysis - RW Multiplier'!AD60 -> 2.217581484 | AC83: ='Shock Analysis - RW Multiplier'!AE60 -> 2.167590254
C84: 0.24 | D84: ='Shock Analysis - RW Multiplier'!F61 -> 2.848108751 | E84: ='Shock Analysis - RW Multiplier'!G61 -> 2.80644487 | F84: ='Shock Analysis - RW Multiplier'!H61 -> 2.764780887 | G84: ='Shock Analysis - RW Multiplier'!I61 -> 2.723116807 | H84: ='Shock Analysis - RW Multiplier'!J61 -> 2.681452632 | I84: ='Shock Analysis - RW Multiplier'!K61 -> 2.639788366 | J84: ='Shock Analysis - RW Multiplier'!L61 -> 2.598124013 | K84: ='Shock Analysis - RW Multiplier'!M61 -> 2.556459576 | L84: ='Shock Analysis - RW Multiplier'!N61 -> 2.514795057 | M84: ='Shock Analysis - RW Multiplier'!O61 -> 2.473130461 | N84: ='Shock Analysis - RW Multiplier'!P61 -> 2.431465789 | O84: ='Shock Analysis - RW Multiplier'!Q61 -> 2.389801044 | P84: ='Shock Analysis - RW Multiplier'!R61 -> 2.348136229 | Q84: ='Shock Analysis - RW Multiplier'!S61 -> 2.306471347 | R84: ='Shock Analysis - RW Multiplier'!T61 -> 2.2648064 | S84: ='Shock Analysis - RW Multiplier'!U61 -> 2.22314139 | T84: ='Shock Analysis - RW Multiplier'!V61 -> 2.18147632 | U84: ='Shock Analysis - RW Multiplier'!W61 -> 2.139811191 | V84: ='Shock Analysis - RW Multiplier'!X61 -> 2.098146007 | W84: ='Shock Analysis - RW Multiplier'!Y61 -> 2.056480768 | X84: ='Shock Analysis - RW Multiplier'!Z61 -> 2.014815478 | Y84: ='Shock Analysis - RW Multiplier'!AA61 -> 1.973150138 | Z84: ='Shock Analysis - RW Multiplier'!AB61 -> 1.931484749 | AA84: ='Shock Analysis - RW Multiplier'!AC61 -> 1.889819313 | AB84: ='Shock Analysis - RW Multiplier'!AD61 -> 1.848153833 | AC84: ='Shock Analysis - RW Multiplier'!AE61 -> 1.80648831
C85: 0.28 | D85: ='Shock Analysis - RW Multiplier'!F62 -> 2.441291365 | E85: ='Shock Analysis - RW Multiplier'!G62 -> 2.405577453 | F85: ='Shock Analysis - RW Multiplier'!H62 -> 2.369863527 | G85: ='Shock Analysis - RW Multiplier'!I62 -> 2.334149588 | H85: ='Shock Analysis - RW Multiplier'!J62 -> 2.298435636 | I85: ='Shock Analysis - RW Multiplier'!K62 -> 2.262721672 | J85: ='Shock Analysis - RW Multiplier'!L62 -> 2.227007697 | K85: ='Shock Analysis - RW Multiplier'!M62 -> 2.19129371 | L85: ='Shock Analysis - RW Multiplier'!N62 -> 2.155579713 | M85: ='Shock Analysis - RW Multiplier'!O62 -> 2.119865704 | N85: ='Shock Analysis - RW Multiplier'!P62 -> 2.084151686 | O85: ='Shock Analysis - RW Multiplier'!Q62 -> 2.048437658 | P85: ='Shock Analysis - RW Multiplier'!R62 -> 2.012723621 | Q85: ='Shock Analysis - RW Multiplier'!S62 -> 1.977009574 | R85: ='Shock Analysis - RW Multiplier'!T62 -> 1.941295519 | S85: ='Shock Analysis - RW Multiplier'!U62 -> 1.905581455 | T85: ='Shock Analysis - RW Multiplier'!V62 -> 1.869867384 | U85: ='Shock Analysis - RW Multiplier'!W62 -> 1.834153304 | V85: ='Shock Analysis - RW Multiplier'!X62 -> 1.798439217 | W85: ='Shock Analysis - RW Multiplier'!Y62 -> 1.762725123 | X85: ='Shock Analysis - RW Multiplier'!Z62 -> 1.727011022 | Y85: ='Shock Analysis - RW Multiplier'!AA62 -> 1.691296914 | Z85: ='Shock Analysis - RW Multiplier'!AB62 -> 1.6555828 | AA85: ='Shock Analysis - RW Multiplier'!AC62 -> 1.619868679 | AB85: ='Shock Analysis - RW Multiplier'!AD62 -> 1.584154553 | AC85: ='Shock Analysis - RW Multiplier'!AE62 -> 1.54844042
C86: 0.32 | D86: ='Shock Analysis - RW Multiplier'!F63 -> 2.136137513 | E86: ='Shock Analysis - RW Multiplier'!G63 -> 2.104887564 | F86: ='Shock Analysis - RW Multiplier'!H63 -> 2.073637613 | G86: ='Shock Analysis - RW Multiplier'!I63 -> 2.04238766 | H86: ='Shock Analysis - RW Multiplier'!J63 -> 2.011137706 | I86: ='Shock Analysis - RW Multiplier'!K63 -> 1.97988775 | J86: ='Shock Analysis - RW Multiplier'!L63 -> 1.948637793 | K86: ='Shock Analysis - RW Multiplier'!M63 -> 1.917387834 | L86: ='Shock Analysis - RW Multiplier'!N63 -> 1.886137873 | M86: ='Shock Analysis - RW Multiplier'!O63 -> 1.854887911 | N86: ='Shock Analysis - RW Multiplier'!P63 -> 1.823637948 | O86: ='Shock Analysis - RW Multiplier'!Q63 -> 1.792387983 | P86: ='Shock Analysis - RW Multiplier'!R63 -> 1.761138017 | Q86: ='Shock Analysis - RW Multiplier'!S63 -> 1.72988805 | R86: ='Shock Analysis - RW Multiplier'!T63 -> 1.698638081 | S86: ='Shock Analysis - RW Multiplier'!U63 -> 1.667388112 | T86: ='Shock Analysis - RW Multiplier'!V63 -> 1.636138141 | U86: ='Shock Analysis - RW Multiplier'!W63 -> 1.604888169 | V86: ='Shock Analysis - RW Multiplier'!X63 -> 1.573638196 | W86: ='Shock Analysis - RW Multiplier'!Y63 -> 1.542388223 | X86: ='Shock Analysis - RW Multiplier'!Z63 -> 1.511138248 | Y86: ='Shock Analysis - RW Multiplier'!AA63 -> 1.479888272 | Z86: ='Shock Analysis - RW Multiplier'!AB63 -> 1.448638296 | AA86: ='Shock Analysis - RW Multiplier'!AC63 -> 1.417388318 | AB86: ='Shock Analysis - RW Multiplier'!AD63 -> 1.38613834 | AC86: ='Shock Analysis - RW Multiplier'!AE63 -> 1.354888361
C87: 0.36 | D87: ='Shock Analysis - RW Multiplier'!F64 -> 1.898789952 | E87: ='Shock Analysis - RW Multiplier'!G64 -> 1.871012182 | F87: ='Shock Analysis - RW Multiplier'!H64 -> 1.843234411 | G87: ='Shock Analysis - RW Multiplier'!I64 -> 1.81545664 | H87: ='Shock Analysis - RW Multiplier'!J64 -> 1.787678868 | I87: ='Shock Analysis - RW Multiplier'!K64 -> 1.759901097 | J87: ='Shock Analysis - RW Multiplier'!L64 -> 1.732123325 | K87: ='Shock Analysis - RW Multiplier'!M64 -> 1.704345553 | L87: ='Shock Analysis - RW Multiplier'!N64 -> 1.67656778 | M87: ='Shock Analysis - RW Multiplier'!O64 -> 1.648790008 | N87: ='Shock Analysis - RW Multiplier'!P64 -> 1.621012235 | O87: ='Shock Analysis - RW Multiplier'!Q64 -> 1.593234462 | P87: ='Shock Analysis - RW Multiplier'!R64 -> 1.565456689 | Q87: ='Shock Analysis - RW Multiplier'!S64 -> 1.537678916 | R87: ='Shock Analysis - RW Multiplier'!T64 -> 1.509901143 | S87: ='Shock Analysis - RW Multiplier'!U64 -> 1.482123369 | T87: ='Shock Analysis - RW Multiplier'!V64 -> 1.454345595 | U87: ='Shock Analysis - RW Multiplier'!W64 -> 1.426567821 | V87: ='Shock Analysis - RW Multiplier'!X64 -> 1.398790047 | W87: ='Shock Analysis - RW Multiplier'!Y64 -> 1.371012273 | X87: ='Shock Analysis - RW Multiplier'!Z64 -> 1.343234499 | Y87: ='Shock Analysis - RW Multiplier'!AA64 -> 1.315456725 | Z87: ='Shock Analysis - RW Multiplier'!AB64 -> 1.28767895 | AA87: ='Shock Analysis - RW Multiplier'!AC64 -> 1.259901176 | AB87: ='Shock Analysis - RW Multiplier'!AD64 -> 1.232123401 | AC87: ='Shock Analysis - RW Multiplier'!AE64 -> 1.204345626
C88: 0.4 | D88: ='Shock Analysis - RW Multiplier'!F65 -> 1.708911105 | E88: ='Shock Analysis - RW Multiplier'!G65 -> 1.683911106 | F88: ='Shock Analysis - RW Multiplier'!H65 -> 1.658911107 | G88: ='Shock Analysis - RW Multiplier'!I65 -> 1.633911108 | H88: ='Shock Analysis - RW Multiplier'!J65 -> 1.608911109 | I88: ='Shock Analysis - RW Multiplier'!K65 -> 1.58391111 | J88: ='Shock Analysis - RW Multiplier'!L65 -> 1.558911111 | K88: ='Shock Analysis - RW Multiplier'!M65 -> 1.533911112 | L88: ='Shock Analysis - RW Multiplier'!N65 -> 1.508911112 | M88: ='Shock Analysis - RW Multiplier'!O65 -> 1.483911113 | N88: ='Shock Analysis - RW Multiplier'!P65 -> 1.458911114 | O88: ='Shock Analysis - RW Multiplier'!Q65 -> 1.433911115 | P88: ='Shock Analysis - RW Multiplier'!R65 -> 1.408911115 | Q88: ='Shock Analysis - RW Multiplier'!S65 -> 1.383911116 | R88: ='Shock Analysis - RW Multiplier'!T65 -> 1.358911116 | S88: ='Shock Analysis - RW Multiplier'!U65 -> 1.333911117 | T88: ='Shock Analysis - RW Multiplier'!V65 -> 1.308911118 | U88: ='Shock Analysis - RW Multiplier'!W65 -> 1.283911118 | V88: ='Shock Analysis - RW Multiplier'!X65 -> 1.258911119 | W88: ='Shock Analysis - RW Multiplier'!Y65 -> 1.233911119 | X88: ='Shock Analysis - RW Multiplier'!Z65 -> 1.20891112 | Y88: ='Shock Analysis - RW Multiplier'!AA65 -> 1.18391112 | Z88: ='Shock Analysis - RW Multiplier'!AB65 -> 1.158911121 | AA88: ='Shock Analysis - RW Multiplier'!AC65 -> 1.133911121 | AB88: ='Shock Analysis - RW Multiplier'!AD65 -> 1.108911122 | AC88: ='Shock Analysis - RW Multiplier'!AE65 -> 1.083911122
B90: Shock Analysis - Risk Weight %
B91: MPF - Original
D92: First Loss Account
D93: 0 | E93: 0.0006 | F93: 0.0012 | G93: 0.0018 | H93: 0.0024 | I93: 0.003 | J93: 0.0036 | K93: 0.0042 | L93: 0.0048 | M93: 0.0054 | N93: 0.006 | O93: 0.0066 | P93: 0.0072 | Q93: 0.0078 | R93: 0.0084 | S93: 0.009 | T93: 0.0096 | U93: 0.0102 | V93: 0.0108 | W93: 0.0114 | X93: 0.012 | Y93: 0.0126 | Z93: 0.0132 | AA93: 0.0138 | AB93: 0.0144 | AC93: 0.015
B94: Credit Enhancement Obligation | C94: 0.02 | D94: ='Shock Analysis - RW %'!F21 -> 0.25 | E94: ='Shock Analysis - RW %'!G21 -> 0.25 | F94: ='Shock Analysis - RW %'!H21 -> 0.25 | G94: ='Shock Analysis - RW %'!I21 -> 0.25 | H94: ='Shock Analysis - RW %'!J21 -> 0.25 | I94: ='Shock Analysis - RW %'!K21 -> 0.25 | J94: ='Shock Analysis - RW %'!L21 -> 0.25 | K94: ='Shock Analysis - RW %'!M21 -> 0.25 | L94: ='Shock Analysis - RW %'!N21 -> 0.25 | M94: ='Shock Analysis - RW %'!O21 -> 0.25 | N94: ='Shock Analysis - RW %'!P21 -> 0.25 | O94: ='Shock Analysis - RW %'!Q21 -> 0.25 | P94: ='Shock Analysis - RW %'!R21 -> 0.25 | Q94: ='Shock Analysis - RW %'!S21 -> 0.25 | R94: ='Shock Analysis - RW %'!T21 -> 0.25 | S94: ='Shock Analysis - RW %'!U21 -> 0.25 | T94: ='Shock Analysis - RW %'!V21 -> 0.25 | U94: ='Shock Analysis - RW %'!W21 -> 0.25 | V94: ='Shock Analysis - RW %'!X21 -> 0.25 | W94: ='Shock Analysis - RW %'!Y21 -> 0.25 | X94: ='Shock Analysis - RW %'!Z21 -> 0.25 | Y94: ='Shock Analysis - RW %'!AA21 -> 0.25 | Z94: ='Shock Analysis - RW %'!AB21 -> 0.25 | AA94: ='Shock Analysis - RW %'!AC21 -> 0.25 | AB94: ='Shock Analysis - RW %'!AD21 -> 0.25 | AC94: ='Shock Analysis - RW %'!AE21 -> 0.25
C95: 0.025 | D95: ='Shock Analysis - RW %'!F22 -> 0.3125 | E95: ='Shock Analysis - RW %'!G22 -> 0.3125 | F95: ='Shock Analysis - RW %'!H22 -> 0.3125 | G95: ='Shock Analysis - RW %'!I22 -> 0.3125 | H95: ='Shock Analysis - RW %'!J22 -> 0.3125 | I95: ='Shock Analysis - RW %'!K22 -> 0.3125 | J95: ='Shock Analysis - RW %'!L22 -> 0.3125 | K95: ='Shock Analysis - RW %'!M22 -> 0.3125 | L95: ='Shock Analysis - RW %'!N22 -> 0.3125 | M95: ='Shock Analysis - RW %'!O22 -> 0.3125 | N95: ='Shock Analysis - RW %'!P22 -> 0.3125 | O95: ='Shock Analysis - RW %'!Q22 -> 0.3125 | P95: ='Shock Analysis - RW %'!R22 -> 0.3125 | Q95: ='Shock Analysis - RW %'!S22 -> 0.3125 | R95: ='Shock Analysis - RW %'!T22 -> 0.3125 | S95: ='Shock Analysis - RW %'!U22 -> 0.3125 | T95: ='Shock Analysis - RW %'!V22 -> 0.3125 | U95: ='Shock Analysis - RW %'!W22 -> 0.3125 | V95: ='Shock Analysis - RW %'!X22 -> 0.3125 | W95: ='Shock Analysis - RW %'!Y22 -> 0.3125 | X95: ='Shock Analysis - RW %'!Z22 -> 0.3125 | Y95: ='Shock Analysis - RW %'!AA22 -> 0.3125 | Z95: ='Shock Analysis - RW %'!AB22 -> 0.3125 | AA95: ='Shock Analysis - RW %'!AC22 -> 0.3125 | AB95: ='Shock Analysis - RW %'!AD22 -> 0.3125 | AC95: ='Shock Analysis - RW %'!AE22 -> 0.3125
C96: 0.03 | D96: ='Shock Analysis - RW %'!F23 -> 0.375 | E96: ='Shock Analysis - RW %'!G23 -> 0.375 | F96: ='Shock Analysis - RW %'!H23 -> 0.375 | G96: ='Shock Analysis - RW %'!I23 -> 0.375 | H96: ='Shock Analysis - RW %'!J23 -> 0.375 | I96: ='Shock Analysis - RW %'!K23 -> 0.375 | J96: ='Shock Analysis - RW %'!L23 -> 0.375 | K96: ='Shock Analysis - RW %'!M23 -> 0.375 | L96: ='Shock Analysis - RW %'!N23 -> 0.375 | M96: ='Shock Analysis - RW %'!O23 -> 0.375 | N96: ='Shock Analysis - RW %'!P23 -> 0.375 | O96: ='Shock Analysis - RW %'!Q23 -> 0.375 | P96: ='Shock Analysis - RW %'!R23 -> 0.375 | Q96: ='Shock Analysis - RW %'!S23 -> 0.375 | R96: ='Shock Analysis - RW %'!T23 -> 0.375 | S96: ='Shock Analysis - RW %'!U23 -> 0.375 | T96: ='Shock Analysis - RW %'!V23 -> 0.375 | U96: ='Shock Analysis - RW %'!W23 -> 0.375 | V96: ='Shock Analysis - RW %'!X23 -> 0.375 | W96: ='Shock Analysis - RW %'!Y23 -> 0.375 | X96: ='Shock Analysis - RW %'!Z23 -> 0.375 | Y96: ='Shock Analysis - RW %'!AA23 -> 0.375 | Z96: ='Shock Analysis - RW %'!AB23 -> 0.3749983029 | AA96: ='Shock Analysis - RW %'!AC23 -> 0.3748686948 | AB96: ='Shock Analysis - RW %'!AD23 -> 0.3745368175 | AC96: ='Shock Analysis - RW %'!AE23 -> 0.3740082218
C97: 0.035 | D97: ='Shock Analysis - RW %'!F24 -> 0.4375 | E97: ='Shock Analysis - RW %'!G24 -> 0.4375 | F97: ='Shock Analysis - RW %'!H24 -> 0.4375 | G97: ='Shock Analysis - RW %'!I24 -> 0.4375 | H97: ='Shock Analysis - RW %'!J24 -> 0.4375 | I97: ='Shock Analysis - RW %'!K24 -> 0.4375 | J97: ='Shock Analysis - RW %'!L24 -> 0.4375 | K97: ='Shock Analysis - RW %'!M24 -> 0.4375 | L97: ='Shock Analysis - RW %'!N24 -> 0.4375 | M97: ='Shock Analysis - RW %'!O24 -> 0.4375 | N97: ='Shock Analysis - RW %'!P24 -> 0.4375 | O97: ='Shock Analysis - RW %'!Q24 -> 0.4375 | P97: ='Shock Analysis - RW %'!R24 -> 0.4375 | Q97: ='Shock Analysis - RW %'!S24 -> 0.4375 | R97: ='Shock Analysis - RW %'!T24 -> 0.4374779236 | S97: ='Shock Analysis - RW %'!U24 -> 0.4372802661 | T97: ='Shock Analysis - RW %'!V24 -> 0.4368822068 | U97: ='Shock Analysis - RW %'!W24 -> 0.4362892455 | V97: ='Shock Analysis - RW %'!X24 -> 0.435506731 | W97: ='Shock Analysis - RW %'!Y24 -> 0.4345398653 | X97: ='Shock Analysis - RW %'!Z24 -> 0.4333937075 | Y97: ='Shock Analysis - RW %'!AA24 -> 0.4320731782 | Z97: ='Shock Analysis - RW %'!AB24 -> 0.4305830626 | AA97: ='Shock Analysis - RW %'!AC24 -> 0.4289280149 | AB97: ='Shock Analysis - RW %'!AD24 -> 0.4271125612 | AC97: ='Shock Analysis - RW %'!AE24 -> 0.4251411038
C98: 0.04 | D98: ='Shock Analysis - RW %'!F25 -> 0.5 | E98: ='Shock Analysis - RW %'!G25 -> 0.5 | F98: ='Shock Analysis - RW %'!H25 -> 0.5 | G98: ='Shock Analysis - RW %'!I25 -> 0.5 | H98: ='Shock Analysis - RW %'!J25 -> 0.5 | I98: ='Shock Analysis - RW %'!K25 -> 0.5 | J98: ='Shock Analysis - RW %'!L25 -> 0.4999346504 | K98: ='Shock Analysis - RW %'!M25 -> 0.4996695718 | L98: ='Shock Analysis - RW %'!N25 -> 0.4992059416 | M98: ='Shock Analysis - RW %'!O25 -> 0.498549209 | N98: ='Shock Analysis - RW %'!P25 -> 0.4977046732 | O98: ='Shock Analysis - RW %'!Q25 -> 0.4966774882 | P98: ='Shock Analysis - RW %'!R25 -> 0.4954726666 | Q98: ='Shock Analysis - RW %'!S25 -> 0.4940950834 | R98: ='Shock Analysis - RW %'!T25 -> 0.4925494797 | S98: ='Shock Analysis - RW %'!U25 -> 0.4908404666 | T98: ='Shock Analysis - RW %'!V25 -> 0.4889725286 | U98: ='Shock Analysis - RW %'!W25 -> 0.4869500272 | V98: ='Shock Analysis - RW %'!X25 -> 0.4847772041 | W98: ='Shock Analysis - RW %'!Y25 -> 0.4824581848 | X98: ='Shock Analysis - RW %'!Z25 -> 0.4799969812 | Y98: ='Shock Analysis - RW %'!AA25 -> 0.4773974955 | Z98: ='Shock Analysis - RW %'!AB25 -> 0.4746635225 | AA98: ='Shock Analysis - RW %'!AC25 -> 0.4717987532 | AB98: ='Shock Analysis - RW %'!AD25 -> 0.468806777 | AC98: ='Shock Analysis - RW %'!AE25 -> 0.4656910848
C99: 0.045 | D99: ='Shock Analysis - RW %'!F26 -> 0.5615082218 | E99: ='Shock Analysis - RW %'!G26 -> 0.5607883066 | F99: ='Shock Analysis - RW %'!H26 -> 0.5598823221 | G99: ='Shock Analysis - RW %'!I26 -> 0.5587953749 | H99: ='Shock Analysis - RW %'!J26 -> 0.5575324311 | I99: ='Shock Analysis - RW %'!K26 -> 0.5560983208 | J99: ='Shock Analysis - RW %'!L26 -> 0.5544977413 | K99: ='Shock Analysis - RW %'!M26 -> 0.5527352611 | L99: ='Shock Analysis - RW %'!N26 -> 0.5508153233 | M99: ='Shock Analysis - RW %'!O26 -> 0.5487422492 | N99: ='Shock Analysis - RW %'!P26 -> 0.5465202413 | O99: ='Shock Analysis - RW %'!Q26 -> 0.5441533869 | P99: ='Shock Analysis - RW %'!R26 -> 0.541645661 | Q99: ='Shock Analysis - RW %'!S26 -> 0.5390009298 | R99: ='Shock Analysis - RW %'!T26 -> 0.536222953 | S99: ='Shock Analysis - RW %'!U26 -> 0.5333153875 | T99: ='Shock Analysis - RW %'!V26 -> 0.5302817895 | U99: ='Shock Analysis - RW %'!W26 -> 0.5271256179 | V99: ='Shock Analysis - RW %'!X26 -> 0.5238502365 | W99: ='Shock Analysis - RW %'!Y26 -> 0.5204589168 | X99: ='Shock Analysis - RW %'!Z26 -> 0.5169548406 | Y99: ='Shock Analysis - RW %'!AA26 -> 0.5133411023 | Z99: ='Shock Analysis - RW %'!AB26 -> 0.5096207114 | AA99: ='Shock Analysis - RW %'!AC26 -> 0.5057965949 | AB99: ='Shock Analysis - RW %'!AD26 -> 0.5018715993 | AC99: ='Shock Analysis - RW %'!AE26 -> 0.4978484931
C100: 0.05 | D100: ='Shock Analysis - RW %'!F27 -> 0.6126411038 | E100: ='Shock Analysis - RW %'!G27 -> 0.6105179239 | F100: ='Shock Analysis - RW %'!H27 -> 0.6082471853 | G100: ='Shock Analysis - RW %'!I27 -> 0.6058329375 | H100: ='Shock Analysis - RW %'!J27 -> 0.603279119 | I100: ='Shock Analysis - RW %'!K27 -> 0.6005895599 | J100: ='Shock Analysis - RW %'!L27 -> 0.5977679856 | K100: ='Shock Analysis - RW %'!M27 -> 0.594818019 | L100: ='Shock Analysis - RW %'!N27 -> 0.5917431836 | M100: ='Shock Analysis - RW %'!O27 -> 0.5885469062 | N100: ='Shock Analysis - RW %'!P27 -> 0.5852325197 | O100: ='Shock Analysis - RW %'!Q27 -> 0.5818032653 | P100: ='Shock Analysis - RW %'!R27 -> 0.5782622955 | Q100: ='Shock Analysis - RW %'!S27 -> 0.5746126761 | R100: ='Shock Analysis - RW %'!T27 -> 0.5708573888 | S100: ='Shock Analysis - RW %'!U27 -> 0.5669993335 | T100: ='Shock Analysis - RW %'!V27 -> 0.5630413306 | U100: ='Shock Analysis - RW %'!W27 -> 0.5589861229 | V100: ='Shock Analysis - RW %'!X27 -> 0.5548363781 | W100: ='Shock Analysis - RW %'!Y27 -> 0.5505946906 | X100: ='Shock Analysis - RW %'!Z27 -> 0.5462635836 | Y100: ='Shock Analysis - RW %'!AA27 -> 0.5418455112 | Z100: ='Shock Analysis - RW %'!AB27 -> 0.5373428599 | AA100: ='Shock Analysis - RW %'!AC27 -> 0.532757951 | AB100: ='Shock Analysis - RW %'!AD27 -> 0.5280930417 | AC100: ='Shock Analysis - RW %'!AE27 -> 0.5233503277
C101: 0.055 | D101: ='Shock Analysis - RW %'!F28 -> 0.6531910848 | E101: ='Shock Analysis - RW %'!G28 -> 0.649955072 | F101: ='Shock Analysis - RW %'!H28 -> 0.6466020405 | G101: ='Shock Analysis - RW %'!I28 -> 0.6431352017 | H101: ='Shock Analysis - RW %'!J28 -> 0.6395576789 | I101: ='Shock Analysis - RW %'!K28 -> 0.6358725097 | J101: ='Shock Analysis - RW %'!L28 -> 0.6320826481 | K101: ='Shock Analysis - RW %'!M28 -> 0.6281909675 | L101: ='Shock Analysis - RW %'!N28 -> 0.624200262 | M101: ='Shock Analysis - RW %'!O28 -> 0.6201132492 | N101: ='Shock Analysis - RW %'!P28 -> 0.6159325721 | O101: ='Shock Analysis - RW %'!Q28 -> 0.6116608012 | P101: ='Shock Analysis - RW %'!R28 -> 0.6073004364 | Q101: ='Shock Analysis - RW %'!S28 -> 0.6028539092 | R101: ='Shock Analysis - RW %'!T28 -> 0.5983235839 | S101: ='Shock Analysis - RW %'!U28 -> 0.5937117605 | T101: ='Shock Analysis - RW %'!V28 -> 0.5890206754 | U101: ='Shock Analysis - RW %'!W28 -> 0.5842525038 | V101: ='Shock Analysis - RW %'!X28 -> 0.5794093614 | W101: ='Shock Analysis - RW %'!Y28 -> 0.5744933055 | X101: ='Shock Analysis - RW %'!Z28 -> 0.5695063372 | Y101: ='Shock Analysis - RW %'!AA28 -> 0.5644504026 | Z101: ='Shock Analysis - RW %'!AB28 -> 0.5593273942 | AA101: ='Shock Analysis - RW %'!AC28 -> 0.5541391529 | AB101: ='Shock Analysis - RW %'!AD28 -> 0.5488874689 | AC101: ='Shock Analysis - RW %'!AE28 -> 0.5435740833
C102: 0.06 | D102: ='Shock Analysis - RW %'!F29 -> 0.6853484931 | E102: ='Shock Analysis - RW %'!G29 -> 0.6812299689 | F102: ='Shock Analysis - RW %'!H29 -> 0.6770186451 | G102: ='Shock Analysis - RW %'!I29 -> 0.6727170686 | H102: ='Shock Analysis - RW %'!J29 -> 0.6683277162 | I102: ='Shock Analysis - RW %'!K29 -> 0.6638529967 | J102: ='Shock Analysis - RW %'!L29 -> 0.6592952531 | K102: ='Shock Analysis - RW %'!M29 -> 0.6546567636 | L102: ='Shock Analysis - RW %'!N29 -> 0.6499397443 | M102: ='Shock Analysis - RW %'!O29 -> 0.6451463503 | N102: ='Shock Analysis - RW %'!P29 -> 0.6402786776 | O102: ='Shock Analysis - RW %'!Q29 -> 0.6353387647 | P102: ='Shock Analysis - RW %'!R29 -> 0.630328594 | Q102: ='Shock Analysis - RW %'!S29 -> 0.6252500938 | R102: ='Shock Analysis - RW %'!T29 -> 0.6201051391 | S102: ='Shock Analysis - RW %'!U29 -> 0.6148955538 | T102: ='Shock Analysis - RW %'!V29 -> 0.6096231115 | U102: ='Shock Analysis - RW %'!W29 -> 0.6042895373 | V102: ='Shock Analysis - RW %'!X29 -> 0.5988965088 | W102: ='Shock Analysis - RW %'!Y29 -> 0.5934456576 | X102: ='Shock Analysis - RW %'!Z29 -> 0.5879385707 | Y102: ='Shock Analysis - RW %'!AA29 -> 0.5823767912 | Z102: ='Shock Analysis - RW %'!AB29 -> 0.5767618203 | AA102: ='Shock Analysis - RW %'!AC29 -> 0.5710951175 | AB102: ='Shock Analysis - RW %'!AD29 -> 0.5653781027 | AC102: ='Shock Analysis - RW %'!AE29 -> 0.5596121565
C103: 0.08 | D103: ='Shock Analysis - RW %'!F30 -> 0.7598308522 | E103: ='Shock Analysis - RW %'!G30 -> 0.7536682722 | F103: ='Shock Analysis - RW %'!H30 -> 0.7474689888 | G103: ='Shock Analysis - RW %'!I30 -> 0.7412340091 | H103: ='Shock Analysis - RW %'!J30 -> 0.7349643128 | I103: ='Shock Analysis - RW %'!K30 -> 0.7286608528 | J103: ='Shock Analysis - RW %'!L30 -> 0.7223245555 | K103: ='Shock Analysis - RW %'!M30 -> 0.7159563221 | L103: ='Shock Analysis - RW %'!N30 -> 0.7095570291 | M103: ='Shock Analysis - RW %'!O30 -> 0.7031275289 | N103: ='Shock Analysis - RW %'!P30 -> 0.6966686504 | O103: ='Shock Analysis - RW %'!Q30 -> 0.6901811999 | P103: ='Shock Analysis - RW %'!R30 -> 0.6836659616 | Q103: ='Shock Analysis - RW %'!S30 -> 0.6771236979 | R103: ='Shock Analysis - RW %'!T30 -> 0.6705551506 | S103: ='Shock Analysis - RW %'!U30 -> 0.663961041 | T103: ='Shock Analysis - RW %'!V30 -> 0.6573420706 | U103: ='Shock Analysis - RW %'!W30 -> 0.6506989217 | V103: ='Shock Analysis - RW %'!X30 -> 0.6440322578 | W103: ='Shock Analysis - RW %'!Y30 -> 0.6373427242 | X103: ='Shock Analysis - RW %'!Z30 -> 0.6306309487 | Y103: ='Shock Analysis - RW %'!AA30 -> 0.6238975415 | Z103: ='Shock Analysis - RW %'!AB30 -> 0.6171430963 | AA103: ='Shock Analysis - RW %'!AC30 -> 0.6103681905 | AB103: ='Shock Analysis - RW %'!AD30 -> 0.6035733855 | AC103: ='Shock Analysis - RW %'!AE30 -> 0.5967592276
C104: 0.1 | D104: ='Shock Analysis - RW %'!F31 -> 0.7892896461 | E104: ='Shock Analysis - RW %'!G31 -> 0.782318614 | F104: ='Shock Analysis - RW %'!H31 -> 0.7753330652 | G104: ='Shock Analysis - RW %'!I31 -> 0.7683333981 | H104: ='Shock Analysis - RW %'!J31 -> 0.7613200001 | I104: ='Shock Analysis - RW %'!K31 -> 0.754293248 | J104: ='Shock Analysis - RW %'!L31 -> 0.7472535084 | K104: ='Shock Analysis - RW %'!M31 -> 0.7402011376 | L104: ='Shock Analysis - RW %'!N31 -> 0.7331364823 | M104: ='Shock Analysis - RW %'!O31 -> 0.7260598797 | N104: ='Shock Analysis - RW %'!P31 -> 0.7189716575 | O104: ='Shock Analysis - RW %'!Q31 -> 0.7118721347 | P104: ='Shock Analysis - RW %'!R31 -> 0.7047616214 | Q104: ='Shock Analysis - RW %'!S31 -> 0.6976404193 | R104: ='Shock Analysis - RW %'!T31 -> 0.6905088216 | S104: ='Shock Analysis - RW %'!U31 -> 0.6833671137 | T104: ='Shock Analysis - RW %'!V31 -> 0.6762155729 | U104: ='Shock Analysis - RW %'!W31 -> 0.6690544693 | V104: ='Shock Analysis - RW %'!X31 -> 0.6618840651 | W104: ='Shock Analysis - RW %'!Y31 -> 0.6547046157 | X104: ='Shock Analysis - RW %'!Z31 -> 0.6475163693 | Y104: ='Shock Analysis - RW %'!AA31 -> 0.6403195672 | Z104: ='Shock Analysis - RW %'!AB31 -> 0.6331144444 | AA104: ='Shock Analysis - RW %'!AC31 -> 0.6259012291 | AB104: ='Shock Analysis - RW %'!AD31 -> 0.6186801434 | AC104: ='Shock Analysis - RW %'!AE31 -> 0.6114514033
C105: 0.12 | D105: ='Shock Analysis - RW %'!F32 -> 0.8009410028 | E105: ='Shock Analysis - RW %'!G32 -> 0.7936502168 | F105: ='Shock Analysis - RW %'!H32 -> 0.7863536893 | G105: ='Shock Analysis - RW %'!I32 -> 0.7790515779 | H105: ='Shock Analysis - RW %'!J32 -> 0.7717440356 | I105: ='Shock Analysis - RW %'!K32 -> 0.7644312117 | J105: ='Shock Analysis - RW %'!L32 -> 0.7571132509 | K105: ='Shock Analysis - RW %'!M32 -> 0.7497902944 | L105: ='Shock Analysis - RW %'!N32 -> 0.7424624792 | M105: ='Shock Analysis - RW %'!O32 -> 0.7351299387 | N105: ='Shock Analysis - RW %'!P32 -> 0.7277928025 | O105: ='Shock Analysis - RW %'!Q32 -> 0.7204511967 | P105: ='Shock Analysis - RW %'!R32 -> 0.713105244 | Q105: ='Shock Analysis - RW %'!S32 -> 0.7057550638 | R105: ='Shock Analysis - RW %'!T32 -> 0.6984007719 | S105: ='Shock Analysis - RW %'!U32 -> 0.6910424813 | T105: ='Shock Analysis - RW %'!V32 -> 0.6836803018 | U105: ='Shock Analysis - RW %'!W32 -> 0.6763143399 | V105: ='Shock Analysis - RW %'!X32 -> 0.6689446996 | W105: ='Shock Analysis - RW %'!Y32 -> 0.6615714817 | X105: ='Shock Analysis - RW %'!Z32 -> 0.6541947845 | Y105: ='Shock Analysis - RW %'!AA32 -> 0.6468147035 | Z105: ='Shock Analysis - RW %'!AB32 -> 0.6394313314 | AA105: ='Shock Analysis - RW %'!AC32 -> 0.6320447587 | AB105: ='Shock Analysis - RW %'!AD32 -> 0.6246550732 | AC105: ='Shock Analysis - RW %'!AE32 -> 0.6172623602
C106: 0.14 | D106: ='Shock Analysis - RW %'!F33 -> 0.805549274 | E106: ='Shock Analysis - RW %'!G33 -> 0.7981320211 | F106: ='Shock Analysis - RW %'!H33 -> 0.7907124972 | G106: ='Shock Analysis - RW %'!I33 -> 0.7832907648 | H106: ='Shock Analysis - RW %'!J33 -> 0.7758668845 | I106: ='Shock Analysis - RW %'!K33 -> 0.7684409152 | J106: ='Shock Analysis - RW %'!L33 -> 0.7610129142 | K106: ='Shock Analysis - RW %'!M33 -> 0.7535829374 | L106: ='Shock Analysis - RW %'!N33 -> 0.7461510388 | M106: ='Shock Analysis - RW %'!O33 -> 0.7387172713 | N106: ='Shock Analysis - RW %'!P33 -> 0.7312816862 | O106: ='Shock Analysis - RW %'!Q33 -> 0.7238443333 | P106: ='Shock Analysis - RW %'!R33 -> 0.7164052611 | Q106: ='Shock Analysis - RW %'!S33 -> 0.7089645169 | R106: ='Shock Analysis - RW %'!T33 -> 0.7015221464 | S106: ='Shock Analysis - RW %'!U33 -> 0.6940781945 | T106: ='Shock Analysis - RW %'!V33 -> 0.6866327043 | U106: ='Shock Analysis - RW %'!W33 -> 0.6791857182 | V106: ='Shock Analysis - RW %'!X33 -> 0.6717372773 | W106: ='Shock Analysis - RW %'!Y33 -> 0.6642874214 | X106: ='Shock Analysis - RW %'!Z33 -> 0.6568361893 | Y106: ='Shock Analysis - RW %'!AA33 -> 0.6493836189 | Z106: ='Shock Analysis - RW %'!AB33 -> 0.6419297469 | AA106: ='Shock Analysis - RW %'!AC33 -> 0.6344746089 | AB106: ='Shock Analysis - RW %'!AD33 -> 0.6270182398 | AC106: ='Shock Analysis - RW %'!AE33 -> 0.6195606733
C107: 0.16 | D107: ='Shock Analysis - RW %'!F34 -> 0.8073719085 | E107: ='Shock Analysis - RW %'!G34 -> 0.7999046361 | F107: ='Shock Analysis - RW %'!H34 -> 0.7924364655 | G107: ='Shock Analysis - RW %'!I34 -> 0.7849674214 | H107: ='Shock Analysis - RW %'!J34 -> 0.7774975278 | I107: ='Shock Analysis - RW %'!K34 -> 0.7700268079 | J107: ='Shock Analysis - RW %'!L34 -> 0.7625552845 | K107: ='Shock Analysis - RW %'!M34 -> 0.7550829796 | L107: ='Shock Analysis - RW %'!N34 -> 0.7476099147 | M107: ='Shock Analysis - RW %'!O34 -> 0.7401361106 | N107: ='Shock Analysis - RW %'!P34 -> 0.7326615875 | O107: ='Shock Analysis - RW %'!Q34 -> 0.7251863653 | P107: ='Shock Analysis - RW %'!R34 -> 0.7177104631 | Q107: ='Shock Analysis - RW %'!S34 -> 0.7102338996 | R107: ='Shock Analysis - RW %'!T34 -> 0.7027566928 | S107: ='Shock Analysis - RW %'!U34 -> 0.6952788606 | T107: ='Shock Analysis - RW %'!V34 -> 0.68780042 | U107: ='Shock Analysis - RW %'!W34 -> 0.6803213877 | V107: ='Shock Analysis - RW %'!X34 -> 0.67284178 | W107: ='Shock Analysis - RW %'!Y34 -> 0.6653616127 | X107: ='Shock Analysis - RW %'!Z34 -> 0.6578809011 | Y107: ='Shock Analysis - RW %'!AA34 -> 0.6503996602 | Z107: ='Shock Analysis - RW %'!AB34 -> 0.6429179044 | AA107: ='Shock Analysis - RW %'!AC34 -> 0.6354356479 | AB107: ='Shock Analysis - RW %'!AD34 -> 0.6279529046 | AC107: ='Shock Analysis - RW %'!AE34 -> 0.6204696876
C108: 0.2 | D108: ='Shock Analysis - RW %'!F35 -> 0.8083779021 | E108: ='Shock Analysis - RW %'!G35 -> 0.8008830217 | F108: ='Shock Analysis - RW %'!H35 -> 0.7933880008 | G108: ='Shock Analysis - RW %'!I35 -> 0.7858928433 | H108: ='Shock Analysis - RW %'!J35 -> 0.7783975528 | I108: ='Shock Analysis - RW %'!K35 -> 0.7709021332 | J108: ='Shock Analysis - RW %'!L35 -> 0.7634065878 | K108: ='Shock Analysis - RW %'!M35 -> 0.7559109202 | L108: ='Shock Analysis - RW %'!N35 -> 0.7484151336 | M108: ='Shock Analysis - RW %'!O35 -> 0.7409192315 | N108: ='Shock Analysis - RW %'!P35 -> 0.7334232169 | O108: ='Shock Analysis - RW %'!Q35 -> 0.7259270929 | P108: ='Shock Analysis - RW %'!R35 -> 0.7184308625 | Q108: ='Shock Analysis - RW %'!S35 -> 0.7109345287 | R108: ='Shock Analysis - RW %'!T35 -> 0.7034380943 | S108: ='Shock Analysis - RW %'!U35 -> 0.695941562 | T108: ='Shock Analysis - RW %'!V35 -> 0.6884449346 | U108: ='Shock Analysis - RW %'!W35 -> 0.6809482146 | V108: ='Shock Analysis - RW %'!X35 -> 0.6734514046 | W108: ='Shock Analysis - RW %'!Y35 -> 0.665954507 | X108: ='Shock Analysis - RW %'!Z35 -> 0.6584575243 | Y108: ='Shock Analysis - RW %'!AA35 -> 0.6509604588 | Z108: ='Shock Analysis - RW %'!AB35 -> 0.6434633128 | AA108: ='Shock Analysis - RW %'!AC35 -> 0.6359660884 | AB108: ='Shock Analysis - RW %'!AD35 -> 0.6284687879 | AC108: ='Shock Analysis - RW %'!AE35 -> 0.6209714133
C109: 0.24 | D109: ='Shock Analysis - RW %'!F36 -> 0.8085352707 | E109: ='Shock Analysis - RW %'!G36 -> 0.8010360716 | F109: ='Shock Analysis - RW %'!H36 -> 0.7935368505 | G109: ='Shock Analysis - RW %'!I36 -> 0.786037608 | H109: ='Shock Analysis - RW %'!J36 -> 0.7785383447 | I109: ='Shock Analysis - RW %'!K36 -> 0.7710390612 | J109: ='Shock Analysis - RW %'!L36 -> 0.7635397581 | K109: ='Shock Analysis - RW %'!M36 -> 0.7560404358 | L109: ='Shock Analysis - RW %'!N36 -> 0.7485410949 | M109: ='Shock Analysis - RW %'!O36 -> 0.7410417359 | N109: ='Shock Analysis - RW %'!P36 -> 0.7335423594 | O109: ='Shock Analysis - RW %'!Q36 -> 0.7260429657 | P109: ='Shock Analysis - RW %'!R36 -> 0.7185435554 | Q109: ='Shock Analysis - RW %'!S36 -> 0.7110441289 | R109: ='Shock Analysis - RW %'!T36 -> 0.7035446867 | S109: ='Shock Analysis - RW %'!U36 -> 0.6960452291 | T109: ='Shock Analysis - RW %'!V36 -> 0.6885457567 | U109: ='Shock Analysis - RW %'!W36 -> 0.6810462698 | V109: ='Shock Analysis - RW %'!X36 -> 0.6735467688 | W109: ='Shock Analysis - RW %'!Y36 -> 0.6660472541 | X109: ='Shock Analysis - RW %'!Z36 -> 0.6585477261 | Y109: ='Shock Analysis - RW %'!AA36 -> 0.6510481852 | Z109: ='Shock Analysis - RW %'!AB36 -> 0.6435486316 | AA109: ='Shock Analysis - RW %'!AC36 -> 0.6360490658 | AB109: ='Shock Analysis - RW %'!AD36 -> 0.6285494881 | AC109: ='Shock Analysis - RW %'!AE36 -> 0.6210498988
C110: 0.28 | D110: ='Shock Analysis - RW %'!F37 -> 0.8085598881 | E110: ='Shock Analysis - RW %'!G37 -> 0.8010600134 | F110: ='Shock Analysis - RW %'!H37 -> 0.7935601352 | G110: ='Shock Analysis - RW %'!I37 -> 0.7860602537 | H110: ='Shock Analysis - RW %'!J37 -> 0.778560369 | I110: ='Shock Analysis - RW %'!K37 -> 0.771060481 | J110: ='Shock Analysis - RW %'!L37 -> 0.7635605901 | K110: ='Shock Analysis - RW %'!M37 -> 0.7560606961 | L110: ='Shock Analysis - RW %'!N37 -> 0.7485607992 | M110: ='Shock Analysis - RW %'!O37 -> 0.7410608995 | N110: ='Shock Analysis - RW %'!P37 -> 0.733560997 | O110: ='Shock Analysis - RW %'!Q37 -> 0.7260610918 | P110: ='Shock Analysis - RW %'!R37 -> 0.7185611841 | Q110: ='Shock Analysis - RW %'!S37 -> 0.7110612738 | R110: ='Shock Analysis - RW %'!T37 -> 0.703561361 | S110: ='Shock Analysis - RW %'!U37 -> 0.6960614459 | T110: ='Shock Analysis - RW %'!V37 -> 0.6885615284 | U110: ='Shock Analysis - RW %'!W37 -> 0.6810616087 | V110: ='Shock Analysis - RW %'!X37 -> 0.6735616867 | W110: ='Shock Analysis - RW %'!Y37 -> 0.6660617627 | X110: ='Shock Analysis - RW %'!Z37 -> 0.6585618365 | Y110: ='Shock Analysis - RW %'!AA37 -> 0.6510619083 | Z110: ='Shock Analysis - RW %'!AB37 -> 0.6435619782 | AA110: ='Shock Analysis - RW %'!AC37 -> 0.6360620461 | AB110: ='Shock Analysis - RW %'!AD37 -> 0.6285621121 | AC110: ='Shock Analysis - RW %'!AE37 -> 0.6210621764
C111: 0.32 | D111: ='Shock Analysis - RW %'!F38 -> 0.808563739 | E111: ='Shock Analysis - RW %'!G38 -> 0.8010637586 | F111: ='Shock Analysis - RW %'!H38 -> 0.7935637777 | G111: ='Shock Analysis - RW %'!I38 -> 0.7860637962 | H111: ='Shock Analysis - RW %'!J38 -> 0.7785638142 | I111: ='Shock Analysis - RW %'!K38 -> 0.7710638318 | J111: ='Shock Analysis - RW %'!L38 -> 0.7635638488 | K111: ='Shock Analysis - RW %'!M38 -> 0.7560638654 | L111: ='Shock Analysis - RW %'!N38 -> 0.7485638815 | M111: ='Shock Analysis - RW %'!O38 -> 0.7410638972 | N111: ='Shock Analysis - RW %'!P38 -> 0.7335639125 | O111: ='Shock Analysis - RW %'!Q38 -> 0.7260639273 | P111: ='Shock Analysis - RW %'!R38 -> 0.7185639417 | Q111: ='Shock Analysis - RW %'!S38 -> 0.7110639558 | R111: ='Shock Analysis - RW %'!T38 -> 0.7035639694 | S111: ='Shock Analysis - RW %'!U38 -> 0.6960639827 | T111: ='Shock Analysis - RW %'!V38 -> 0.6885639956 | U111: ='Shock Analysis - RW %'!W38 -> 0.6810640082 | V111: ='Shock Analysis - RW %'!X38 -> 0.6735640204 | W111: ='Shock Analysis - RW %'!Y38 -> 0.6660640323 | X111: ='Shock Analysis - RW %'!Z38 -> 0.6585640438 | Y111: ='Shock Analysis - RW %'!AA38 -> 0.651064055 | Z111: ='Shock Analysis - RW %'!AB38 -> 0.643564066 | AA111: ='Shock Analysis - RW %'!AC38 -> 0.6360640766 | AB111: ='Shock Analysis - RW %'!AD38 -> 0.6285640869 | AC111: ='Shock Analysis - RW %'!AE38 -> 0.621064097
C112: 0.36 | D112: ='Shock Analysis - RW %'!F39 -> 0.8085643414 | E112: ='Shock Analysis - RW %'!G39 -> 0.8010643445 | F112: ='Shock Analysis - RW %'!H39 -> 0.7935643475 | G112: ='Shock Analysis - RW %'!I39 -> 0.7860643504 | H112: ='Shock Analysis - RW %'!J39 -> 0.7785643532 | I112: ='Shock Analysis - RW %'!K39 -> 0.7710643559 | J112: ='Shock Analysis - RW %'!L39 -> 0.7635643586 | K112: ='Shock Analysis - RW %'!M39 -> 0.7560643612 | L112: ='Shock Analysis - RW %'!N39 -> 0.7485643637 | M112: ='Shock Analysis - RW %'!O39 -> 0.7410643662 | N112: ='Shock Analysis - RW %'!P39 -> 0.7335643686 | O112: ='Shock Analysis - RW %'!Q39 -> 0.7260643709 | P112: ='Shock Analysis - RW %'!R39 -> 0.7185643731 | Q112: ='Shock Analysis - RW %'!S39 -> 0.7110643753 | R112: ='Shock Analysis - RW %'!T39 -> 0.7035643775 | S112: ='Shock Analysis - RW %'!U39 -> 0.6960643795 | T112: ='Shock Analysis - RW %'!V39 -> 0.6885643816 | U112: ='Shock Analysis - RW %'!W39 -> 0.6810643835 | V112: ='Shock Analysis - RW %'!X39 -> 0.6735643854 | W112: ='Shock Analysis - RW %'!Y39 -> 0.6660643873 | X112: ='Shock Analysis - RW %'!Z39 -> 0.6585643891 | Y112: ='Shock Analysis - RW %'!AA39 -> 0.6510643909 | Z112: ='Shock Analysis - RW %'!AB39 -> 0.6435643926 | AA112: ='Shock Analysis - RW %'!AC39 -> 0.6360643942 | AB112: ='Shock Analysis - RW %'!AD39 -> 0.6285643958 | AC112: ='Shock Analysis - RW %'!AE39 -> 0.6210643974
C113: 0.4 | D113: ='Shock Analysis - RW %'!F40 -> 0.8085644357 | E113: ='Shock Analysis - RW %'!G40 -> 0.8010644361 | F113: ='Shock Analysis - RW %'!H40 -> 0.7935644366 | G113: ='Shock Analysis - RW %'!I40 -> 0.786064437 | H113: ='Shock Analysis - RW %'!J40 -> 0.7785644375 | I113: ='Shock Analysis - RW %'!K40 -> 0.7710644379 | J113: ='Shock Analysis - RW %'!L40 -> 0.7635644383 | K113: ='Shock Analysis - RW %'!M40 -> 0.7560644387 | L113: ='Shock Analysis - RW %'!N40 -> 0.7485644391 | M113: ='Shock Analysis - RW %'!O40 -> 0.7410644395 | N113: ='Shock Analysis - RW %'!P40 -> 0.7335644399 | O113: ='Shock Analysis - RW %'!Q40 -> 0.7260644403 | P113: ='Shock Analysis - RW %'!R40 -> 0.7185644406 | Q113: ='Shock Analysis - RW %'!S40 -> 0.711064441 | R113: ='Shock Analysis - RW %'!T40 -> 0.7035644413 | S113: ='Shock Analysis - RW %'!U40 -> 0.6960644416 | T113: ='Shock Analysis - RW %'!V40 -> 0.6885644419 | U113: ='Shock Analysis - RW %'!W40 -> 0.6810644422 | V113: ='Shock Analysis - RW %'!X40 -> 0.6735644425 | W113: ='Shock Analysis - RW %'!Y40 -> 0.6660644428 | X113: ='Shock Analysis - RW %'!Z40 -> 0.6585644431 | Y113: ='Shock Analysis - RW %'!AA40 -> 0.6510644434 | Z113: ='Shock Analysis - RW %'!AB40 -> 0.6435644437 | AA113: ='Shock Analysis - RW %'!AC40 -> 0.6360644439 | AB113: ='Shock Analysis - RW %'!AD40 -> 0.6285644442 | AC113: ='Shock Analysis - RW %'!AE40 -> 0.6210644444
B115: MPF - 100/125/35
D116: First Loss Account
D117: 0.01 | E117: 0.0108 | F117: 0.0116 | G117: 0.0124 | H117: 0.0132 | I117: 0.014 | J117: 0.0148 | K117: 0.0156 | L117: 0.0164 | M117: 0.0172 | N117: 0.018 | O117: 0.0188 | P117: 0.0196 | Q117: 0.0204 | R117: 0.0212 | S117: 0.022 | T117: 0.0228 | U117: 0.0236 | V117: 0.0244 | W117: 0.0252 | X117: 0.026 | Y117: 0.0268 | Z117: 0.0276 | AA117: 0.0284 | AB117: 0.0292 | AC117: 0.03
B118: Credit Enhancement Obligation | C118: 0.02 | D118: ='Shock Analysis - RW %'!F46 -> 0.25 | E118: ='Shock Analysis - RW %'!G46 -> 0.25 | F118: ='Shock Analysis - RW %'!H46 -> 0.25 | G118: ='Shock Analysis - RW %'!I46 -> 0.25 | H118: ='Shock Analysis - RW %'!J46 -> 0.25 | I118: ='Shock Analysis - RW %'!K46 -> 0.25 | J118: ='Shock Analysis - RW %'!L46 -> 0.25 | K118: ='Shock Analysis - RW %'!M46 -> 0.25 | L118: ='Shock Analysis - RW %'!N46 -> 0.25 | M118: ='Shock Analysis - RW %'!O46 -> 0.25 | N118: ='Shock Analysis - RW %'!P46 -> 0.25 | O118: ='Shock Analysis - RW %'!Q46 -> 0.25 | P118: ='Shock Analysis - RW %'!R46 -> 0.25 | Q118: ='Shock Analysis - RW %'!S46 -> 0.25 | R118: ='Shock Analysis - RW %'!T46 -> 0.25 | S118: ='Shock Analysis - RW %'!U46 -> 0.25 | T118: ='Shock Analysis - RW %'!V46 -> 0.25 | U118: ='Shock Analysis - RW %'!W46 -> 0.2499346504 | V118: ='Shock Analysis - RW %'!X46 -> 0.2495368175 | W118: ='Shock Analysis - RW %'!Y46 -> 0.2487892455 | X118: ='Shock Analysis - RW %'!Z46 -> 0.2477046732 | Y118: ='Shock Analysis - RW %'!AA46 -> 0.2462953749 | Z118: ='Shock Analysis - RW %'!AB46 -> 0.2445731782 | AA118: ='Shock Analysis - RW %'!AC46 -> 0.2425494797 | AB118: ='Shock Analysis - RW %'!AD46 -> 0.2402352611 | AC118: ='Shock Analysis - RW %'!AE46 -> 0.2376411038
C119: 0.025 | D119: ='Shock Analysis - RW %'!F47 -> 0.3125 | E119: ='Shock Analysis - RW %'!G47 -> 0.3125 | F119: ='Shock Analysis - RW %'!H47 -> 0.3125 | G119: ='Shock Analysis - RW %'!I47 -> 0.3125 | H119: ='Shock Analysis - RW %'!J47 -> 0.3125 | I119: ='Shock Analysis - RW %'!K47 -> 0.3125 | J119: ='Shock Analysis - RW %'!L47 -> 0.3125 | K119: ='Shock Analysis - RW %'!M47 -> 0.3125 | L119: ='Shock Analysis - RW %'!N47 -> 0.3125 | M119: ='Shock Analysis - RW %'!O47 -> 0.3125 | N119: ='Shock Analysis - RW %'!P47 -> 0.3125 | O119: ='Shock Analysis - RW %'!Q47 -> 0.3123686948 | P119: ='Shock Analysis - RW %'!R47 -> 0.3118822068 | Q119: ='Shock Analysis - RW %'!S47 -> 0.311049209 | R119: ='Shock Analysis - RW %'!T47 -> 0.3098823221 | S119: ='Shock Analysis - RW %'!U47 -> 0.3083937075 | T119: ='Shock Analysis - RW %'!V47 -> 0.3065950834 | U119: ='Shock Analysis - RW %'!W47 -> 0.3044977413 | V119: ='Shock Analysis - RW %'!X47 -> 0.3021125612 | W119: ='Shock Analysis - RW %'!Y47 -> 0.2994500272 | X119: ='Shock Analysis - RW %'!Z47 -> 0.2965202413 | Y119: ='Shock Analysis - RW %'!AA47 -> 0.2933329375 | Z119: ='Shock Analysis - RW %'!AB47 -> 0.2898974955 | AA119: ='Shock Analysis - RW %'!AC47 -> 0.286222953 | AB119: ='Shock Analysis - RW %'!AD47 -> 0.282318019 | AC119: ='Shock Analysis - RW %'!AE47 -> 0.2781910848
C120: 0.03 | D120: ='Shock Analysis - RW %'!F48 -> 0.375 | E120: ='Shock Analysis - RW %'!G48 -> 0.375 | F120: ='Shock Analysis - RW %'!H48 -> 0.375 | G120: ='Shock Analysis - RW %'!I48 -> 0.375 | H120: ='Shock Analysis - RW %'!J48 -> 0.3749983029 | I120: ='Shock Analysis - RW %'!K48 -> 0.3747802661 | J120: ='Shock Analysis - RW %'!L48 -> 0.3742059416 | K120: ='Shock Analysis - RW %'!M48 -> 0.3732883066 | L120: ='Shock Analysis - RW %'!N48 -> 0.3720398653 | M120: ='Shock Analysis - RW %'!O48 -> 0.3704726666 | N120: ='Shock Analysis - RW %'!P48 -> 0.3685983208 | O120: ='Shock Analysis - RW %'!Q48 -> 0.3664280149 | P120: ='Shock Analysis - RW %'!R48 -> 0.3639725286 | Q120: ='Shock Analysis - RW %'!S48 -> 0.3612422492 | R120: ='Shock Analysis - RW %'!T48 -> 0.3582471853 | S120: ='Shock Analysis - RW %'!U48 -> 0.3549969812 | T120: ='Shock Analysis - RW %'!V48 -> 0.3515009298 | U120: ='Shock Analysis - RW %'!W48 -> 0.3477679856 | V120: ='Shock Analysis - RW %'!X48 -> 0.343806777 | W120: ='Shock Analysis - RW %'!Y48 -> 0.3396256179 | X120: ='Shock Analysis - RW %'!Z48 -> 0.3352325197 | Y120: ='Shock Analysis - RW %'!AA48 -> 0.3306352017 | Z120: ='Shock Analysis - RW %'!AB48 -> 0.3258411023 | AA120: ='Shock Analysis - RW %'!AC48 -> 0.3208573888 | AB120: ='Shock Analysis - RW %'!AD48 -> 0.3156909675 | AC120: ='Shock Analysis - RW %'!AE48 -> 0.3103484931
C121: 0.035 | D121: ='Shock Analysis - RW %'!F49 -> 0.4365082218 | E121: ='Shock Analysis - RW %'!G49 -> 0.435506731 | F121: ='Shock Analysis - RW %'!H49 -> 0.4341774882 | G121: ='Shock Analysis - RW %'!I49 -> 0.4325324311 | H121: ='Shock Analysis - RW %'!J49 -> 0.4305830626 | I121: ='Shock Analysis - RW %'!K49 -> 0.4283404666 | J121: ='Shock Analysis - RW %'!L49 -> 0.4258153233 | K121: ='Shock Analysis - RW %'!M49 -> 0.4230179239 | L121: ='Shock Analysis - RW %'!N49 -> 0.4199581848 | M121: ='Shock Analysis - RW %'!O49 -> 0.416645661 | N121: ='Shock Analysis - RW %'!P49 -> 0.4130895599 | O121: ='Shock Analysis - RW %'!Q49 -> 0.4092987532 | P121: ='Shock Analysis - RW %'!R49 -> 0.4052817895 | Q121: ='Shock Analysis - RW %'!S49 -> 0.4010469062 | R121: ='Shock Analysis - RW %'!T49 -> 0.3966020405 | S121: ='Shock Analysis - RW %'!U49 -> 0.3919548406 | T121: ='Shock Analysis - RW %'!V49 -> 0.3871126761 | U121: ='Shock Analysis - RW %'!W49 -> 0.3820826481 | V121: ='Shock Analysis - RW %'!X49 -> 0.3768715993 | W121: ='Shock Analysis - RW %'!Y49 -> 0.3714861229 | X121: ='Shock Analysis - RW %'!Z49 -> 0.3659325721 | Y121: ='Shock Analysis - RW %'!AA49 -> 0.3602170686 | Z121: ='Shock Analysis - RW %'!AB49 -> 0.3543455112 | AA121: ='Shock Analysis - RW %'!AC49 -> 0.3483235839 | AB121: ='Shock Analysis - RW %'!AD49 -> 0.3421567636 | AC121: ='Shock Analysis - RW %'!AE49 -> 0.3358503277
C122: 0.04 | D122: ='Shock Analysis - RW %'!F50 -> 0.4876411038 | E122: ='Shock Analysis - RW %'!G50 -> 0.4847772041 | F122: ='Shock Analysis - RW %'!H50 -> 0.4816533869 | G122: ='Shock Analysis - RW %'!I50 -> 0.478279119 | H122: ='Shock Analysis - RW %'!J50 -> 0.4746635225 | I122: ='Shock Analysis - RW %'!K50 -> 0.4708153875 | J122: ='Shock Analysis - RW %'!L50 -> 0.4667431836 | K122: ='Shock Analysis - RW %'!M50 -> 0.462455072 | L122: ='Shock Analysis - RW %'!N50 -> 0.4579589168 | M122: ='Shock Analysis - RW %'!O50 -> 0.4532622955 | N122: ='Shock Analysis - RW %'!P50 -> 0.4483725097 | O122: ='Shock Analysis - RW %'!Q50 -> 0.4432965949 | P122: ='Shock Analysis - RW %'!R50 -> 0.4380413306 | Q122: ='Shock Analysis - RW %'!S50 -> 0.4326132492 | R122: ='Shock Analysis - RW %'!T50 -> 0.4270186451 | S122: ='Shock Analysis - RW %'!U50 -> 0.4212635836 | T122: ='Shock Analysis - RW %'!V50 -> 0.4153539092 | U122: ='Shock Analysis - RW %'!W50 -> 0.4092952531 | V122: ='Shock Analysis - RW %'!X50 -> 0.4030930417 | W122: ='Shock Analysis - RW %'!Y50 -> 0.3967525038 | X122: ='Shock Analysis - RW %'!Z50 -> 0.3902786776 | Y122: ='Shock Analysis - RW %'!AA50 -> 0.3836764179 | Z122: ='Shock Analysis - RW %'!AB50 -> 0.3769504026 | AA122: ='Shock Analysis - RW %'!AC50 -> 0.3701051391 | AB122: ='Shock Analysis - RW %'!AD50 -> 0.363144971 | AC122: ='Shock Analysis - RW %'!AE50 -> 0.3560740833
C123: 0.045 | D123: ='Shock Analysis - RW %'!F51 -> 0.5281910848 | E123: ='Shock Analysis - RW %'!G51 -> 0.5238502365 | F123: ='Shock Analysis - RW %'!H51 -> 0.5193032653 | G123: ='Shock Analysis - RW %'!I51 -> 0.5145576789 | H123: ='Shock Analysis - RW %'!J51 -> 0.5096207114 | I123: ='Shock Analysis - RW %'!K51 -> 0.5044993335 | J123: ='Shock Analysis - RW %'!L51 -> 0.499200262 | K123: ='Shock Analysis - RW %'!M51 -> 0.4937299689 | L123: ='Shock Analysis - RW %'!N51 -> 0.4880946906 | M123: ='Shock Analysis - RW %'!O51 -> 0.4823004364 | N123: ='Shock Analysis - RW %'!P51 -> 0.4763529967 | O123: ='Shock Analysis - RW %'!Q51 -> 0.470257951 | P123: ='Shock Analysis - RW %'!R51 -> 0.4640206754 | Q123: ='Shock Analysis - RW %'!S51 -> 0.4576463503 | R123: ='Shock Analysis - RW %'!T51 -> 0.4511399677 | S123: ='Shock Analysis - RW %'!U51 -> 0.4445063372 | T123: ='Shock Analysis - RW %'!V51 -> 0.4377500938 | U123: ='Shock Analysis - RW %'!W51 -> 0.4308757033 | V123: ='Shock Analysis - RW %'!X51 -> 0.4238874689 | W123: ='Shock Analysis - RW %'!Y51 -> 0.4167895373 | X123: ='Shock Analysis - RW %'!Z51 -> 0.4095859039 | Y123: ='Shock Analysis - RW %'!AA51 -> 0.4022804186 | Z123: ='Shock Analysis - RW %'!AB51 -> 0.3948767912 | AA123: ='Shock Analysis - RW %'!AC51 -> 0.3873785964 | AB123: ='Shock Analysis - RW %'!AD51 -> 0.3797892785 | AC123: ='Shock Analysis - RW %'!AE51 -> 0.3721121565
C124: 0.05 | D124: ='Shock Analysis - RW %'!F52 -> 0.5603484931 | E124: ='Shock Analysis - RW %'!G52 -> 0.5548363781 | F124: ='Shock Analysis - RW %'!H52 -> 0.5491608012 | G124: ='Shock Analysis - RW %'!I52 -> 0.5433277162 | H124: ='Shock Analysis - RW %'!J52 -> 0.5373428599 | I124: ='Shock Analysis - RW %'!K52 -> 0.5312117605 | J124: ='Shock Analysis - RW %'!L52 -> 0.5249397443 | K124: ='Shock Analysis - RW %'!M52 -> 0.5185319441 | L124: ='Shock Analysis - RW %'!N52 -> 0.5119933055 | M124: ='Shock Analysis - RW %'!O52 -> 0.505328594 | N124: ='Shock Analysis - RW %'!P52 -> 0.4985424016 | O124: ='Shock Analysis - RW %'!Q52 -> 0.4916391529 | P124: ='Shock Analysis - RW %'!R52 -> 0.4846231115 | Q124: ='Shock Analysis - RW %'!S52 -> 0.4774983856 | R124: ='Shock Analysis - RW %'!T52 -> 0.4702689339 | S124: ='Shock Analysis - RW %'!U52 -> 0.4629385707 | T124: ='Shock Analysis - RW %'!V52 -> 0.4555109715 | U124: ='Shock Analysis - RW %'!W52 -> 0.4479896779 | V124: ='Shock Analysis - RW %'!X52 -> 0.4403781027 | W124: ='Shock Analysis - RW %'!Y52 -> 0.432679534 | X124: ='Shock Analysis - RW %'!Z52 -> 0.4248971405 | Y124: ='Shock Analysis - RW %'!AA52 -> 0.4170339753 | Z124: ='Shock Analysis - RW %'!AB52 -> 0.4090929803 | AA124: ='Shock Analysis - RW %'!AC52 -> 0.4010769904 | AB124: ='Shock Analysis - RW %'!AD52 -> 0.392988737 | AC124: ='Shock Analysis - RW %'!AE52 -> 0.3848308522
C125: 0.055 | D125: ='Shock Analysis - RW %'!F53 -> 0.5858503277 | E125: ='Shock Analysis - RW %'!G53 -> 0.5794093614 | F125: ='Shock Analysis - RW %'!H53 -> 0.5728387647 | G125: ='Shock Analysis - RW %'!I53 -> 0.5661432591 | H125: ='Shock Analysis - RW %'!J53 -> 0.5593273942 | I125: ='Shock Analysis - RW %'!K53 -> 0.5523955538 | J125: ='Shock Analysis - RW %'!L53 -> 0.5453519621 | K125: ='Shock Analysis - RW %'!M53 -> 0.5382006893 | L125: ='Shock Analysis - RW %'!N53 -> 0.5309456576 | M125: ='Shock Analysis - RW %'!O53 -> 0.5235906461 | N125: ='Shock Analysis - RW %'!P53 -> 0.5161392965 | O125: ='Shock Analysis - RW %'!Q53 -> 0.5085951175 | P125: ='Shock Analysis - RW %'!R53 -> 0.5009614904 | Q125: ='Shock Analysis - RW %'!S53 -> 0.493241673 | R125: ='Shock Analysis - RW %'!T53 -> 0.4854388048 | S125: ='Shock Analysis - RW %'!U53 -> 0.4775559106 | T125: ='Shock Analysis - RW %'!V53 -> 0.4695959052 | U125: ='Shock Analysis - RW %'!W53 -> 0.4615615973 | V125: ='Shock Analysis - RW %'!X53 -> 0.4534556931 | W125: ='Shock Analysis - RW %'!Y53 -> 0.4452808004 | X125: ='Shock Analysis - RW %'!Z53 -> 0.437039432 | Y125: ='Shock Analysis - RW %'!AA53 -> 0.4287340091 | Z125: ='Shock Analysis - RW %'!AB53 -> 0.4203668647 | AA125: ='Shock Analysis - RW %'!AC53 -> 0.411940247 | AB125: ='Shock Analysis - RW %'!AD53 -> 0.4034563221 | AC125: ='Shock Analysis - RW %'!AE53 -> 0.3949171773
C126: 0.06 | D126: ='Shock Analysis - RW %'!F54 -> 0.6060740833 | E126: ='Shock Analysis - RW %'!G54 -> 0.5988965088 | F126: ='Shock Analysis - RW %'!H54 -> 0.5916161333 | G126: ='Shock Analysis - RW %'!I54 -> 0.5842367011 | H126: ='Shock Analysis - RW %'!J54 -> 0.5767618203 | I126: ='Shock Analysis - RW %'!K54 -> 0.5691949672 | J126: ='Shock Analysis - RW %'!L54 -> 0.5615394917 | K126: ='Shock Analysis - RW %'!M54 -> 0.5537986219 | L126: ='Shock Analysis - RW %'!N54 -> 0.545975468 | M126: ='Shock Analysis - RW %'!O54 -> 0.5380730269 | N126: ='Shock Analysis - RW %'!P54 -> 0.5300941867 | O126: ='Shock Analysis - RW %'!Q54 -> 0.5220417299 | P126: ='Shock Analysis - RW %'!R54 -> 0.5139183378 | Q126: ='Shock Analysis - RW %'!S54 -> 0.5057265943 | R126: ='Shock Analysis - RW %'!T54 -> 0.4974689888 | S126: ='Shock Analysis - RW %'!U54 -> 0.4891479201 | T126: ='Shock Analysis - RW %'!V54 -> 0.4807656999 | U126: ='Shock Analysis - RW %'!W54 -> 0.4723245555 | V126: ='Shock Analysis - RW %'!X54 -> 0.4638266329 | W126: ='Shock Analysis - RW %'!Y54 -> 0.4552740003 | X126: ='Shock Analysis - RW %'!Z54 -> 0.4466686504 | Y126: ='Shock Analysis - RW %'!AA54 -> 0.4380125033 | Z126: ='Shock Analysis - RW %'!AB54 -> 0.4293074091 | AA126: ='Shock Analysis - RW %'!AC54 -> 0.4205551506 | AB126: ='Shock Analysis - RW %'!AD54 -> 0.4117574458 | AC126: ='Shock Analysis - RW %'!AE54 -> 0.4029159498
C127: 0.08 | D127: ='Shock Analysis - RW %'!F55 -> 0.6529159498 | E127: ='Shock Analysis - RW %'!G55 -> 0.6440322578 | F127: ='Shock Analysis - RW %'!H55 -> 0.6351079066 | G127: ='Shock Analysis - RW %'!I55 -> 0.6261443771 | H127: ='Shock Analysis - RW %'!J55 -> 0.6171430963 | I127: ='Shock Analysis - RW %'!K55 -> 0.6081054392 | J127: ='Shock Analysis - RW %'!L55 -> 0.5990327308 | K127: ='Shock Analysis - RW %'!M55 -> 0.5899262478 | L127: ='Shock Analysis - RW %'!N55 -> 0.5807872202 | M127: ='Shock Analysis - RW %'!O55 -> 0.5716168335 | N127: ='Shock Analysis - RW %'!P55 -> 0.5624162299 | O127: ='Shock Analysis - RW %'!Q55 -> 0.5531865099 | P127: ='Shock Analysis - RW %'!R55 -> 0.5439287341 | Q127: ='Shock Analysis - RW %'!S55 -> 0.5346439243 | R127: ='Shock Analysis - RW %'!T55 -> 0.5253330652 | S127: ='Shock Analysis - RW %'!U55 -> 0.5159971056 | T127: ='Shock Analysis - RW %'!V55 -> 0.5066369597 | U127: ='Shock Analysis - RW %'!W55 -> 0.4972535084 | V127: ='Shock Analysis - RW %'!X55 -> 0.4878476006 | W127: ='Shock Analysis - RW %'!Y55 -> 0.4784200543 | X127: ='Shock Analysis - RW %'!Z55 -> 0.4689716575 | Y127: ='Shock Analysis - RW %'!AA55 -> 0.4595031697 | Z127: ='Shock Analysis - RW %'!AB55 -> 0.4500153227 | AA127: ='Shock Analysis - RW %'!AC55 -> 0.4405088216 | AB127: ='Shock Analysis - RW %'!AD55 -> 0.4309843458 | AC127: ='Shock Analysis - RW %'!AE55 -> 0.42144255
C128: 0.1 | D128: ='Shock Analysis - RW %'!F56 -> 0.67144255 | E128: ='Shock Analysis - RW %'!G56 -> 0.6618840651 | F128: ='Shock Analysis - RW %'!H56 -> 0.652309499 | G128: ='Shock Analysis - RW %'!I56 -> 0.6427194372 | H128: ='Shock Analysis - RW %'!J56 -> 0.6331144444 | I128: ='Shock Analysis - RW %'!K56 -> 0.6234950642 | J128: ='Shock Analysis - RW %'!L56 -> 0.6138618207 | K128: ='Shock Analysis - RW %'!M56 -> 0.6042152189 | L128: ='Shock Analysis - RW %'!N56 -> 0.5945557453 | M128: ='Shock Analysis - RW %'!O56 -> 0.5848838688 | N128: ='Shock Analysis - RW %'!P56 -> 0.575200041 | O128: ='Shock Analysis - RW %'!Q56 -> 0.5655046973 | P128: ='Shock Analysis - RW %'!R56 -> 0.5557982571 | Q128: ='Shock Analysis - RW %'!S56 -> 0.5460811247 | R128: ='Shock Analysis - RW %'!T56 -> 0.5363536893 | S128: ='Shock Analysis - RW %'!U56 -> 0.5266163264 | T128: ='Shock Analysis - RW %'!V56 -> 0.5168693975 | U128: ='Shock Analysis - RW %'!W56 -> 0.5071132509 | V128: ='Shock Analysis - RW %'!X56 -> 0.4973482226 | W128: ='Shock Analysis - RW %'!Y56 -> 0.4875746358 | X128: ='Shock Analysis - RW %'!Z56 -> 0.4777928025 | Y128: ='Shock Analysis - RW %'!AA56 -> 0.4680030228 | Z128: ='Shock Analysis - RW %'!AB56 -> 0.4582055863 | AA128: ='Shock Analysis - RW %'!AC56 -> 0.4484007719 | AB128: ='Shock Analysis - RW %'!AD56 -> 0.4385888483 | AC128: ='Shock Analysis - RW %'!AE56 -> 0.4287700743
C129: 0.12 | D129: ='Shock Analysis - RW %'!F57 -> 0.6787700743 | E129: ='Shock Analysis - RW %'!G57 -> 0.6689446996 | F129: ='Shock Analysis - RW %'!H57 -> 0.6591129645 | G129: ='Shock Analysis - RW %'!I57 -> 0.6492751007 | H129: ='Shock Analysis - RW %'!J57 -> 0.6394313314 | I129: ='Shock Analysis - RW %'!K57 -> 0.6295818718 | J129: ='Shock Analysis - RW %'!L57 -> 0.619726929 | K129: ='Shock Analysis - RW %'!M57 -> 0.6098667029 | L129: ='Shock Analysis - RW %'!N57 -> 0.6000013857 | M129: ='Shock Analysis - RW %'!O57 -> 0.590131163 | N129: ='Shock Analysis - RW %'!P57 -> 0.5802562135 | O129: ='Shock Analysis - RW %'!Q57 -> 0.5703767092 | P129: ='Shock Analysis - RW %'!R57 -> 0.5604928162 | Q129: ='Shock Analysis - RW %'!S57 -> 0.5506046942 | R129: ='Shock Analysis - RW %'!T57 -> 0.5407124972 | S129: ='Shock Analysis - RW %'!U57 -> 0.5308163738 | T129: ='Shock Analysis - RW %'!V57 -> 0.5209164669 | U129: ='Shock Analysis - RW %'!W57 -> 0.5110129142 | V129: ='Shock Analysis - RW %'!X57 -> 0.5011058487 | W129: ='Shock Analysis - RW %'!Y57 -> 0.4911953983 | X129: ='Shock Analysis - RW %'!Z57 -> 0.4812816862 | Y129: ='Shock Analysis - RW %'!AA57 -> 0.4713648312 | Z129: ='Shock Analysis - RW %'!AB57 -> 0.4614449479 | AA129: ='Shock Analysis - RW %'!AC57 -> 0.4515221464 | AB129: ='Shock Analysis - RW %'!AD57 -> 0.4415965332 | AC129: ='Shock Analysis - RW %'!AE57 -> 0.4316682106
C130: 0.14 | D130: ='Shock Analysis - RW %'!F58 -> 0.6816682106 | E130: ='Shock Analysis - RW %'!G58 -> 0.6717372773 | F130: ='Shock Analysis - RW %'!H58 -> 0.6618038284 | G130: ='Shock Analysis - RW %'!I58 -> 0.6518679555 | H130: ='Shock Analysis - RW %'!J58 -> 0.6419297469 | I130: ='Shock Analysis - RW %'!K58 -> 0.6319892876 | J130: ='Shock Analysis - RW %'!L58 -> 0.6220466598 | K130: ='Shock Analysis - RW %'!M58 -> 0.6121019422 | L130: ='Shock Analysis - RW %'!N58 -> 0.6021552111 | M130: ='Shock Analysis - RW %'!O58 -> 0.5922065398 | N130: ='Shock Analysis - RW %'!P58 -> 0.582255999 | O130: ='Shock Analysis - RW %'!Q58 -> 0.5723036567 | P130: ='Shock Analysis - RW %'!R58 -> 0.5623495786 | Q130: ='Shock Analysis - RW %'!S58 -> 0.5523938279 | R130: ='Shock Analysis - RW %'!T58 -> 0.5424364655 | S130: ='Shock Analysis - RW %'!U58 -> 0.5324775501 | T130: ='Shock Analysis - RW %'!V58 -> 0.5225171383 | U130: ='Shock Analysis - RW %'!W58 -> 0.5125552845 | V130: ='Shock Analysis - RW %'!X58 -> 0.5025920414 | W130: ='Shock Analysis - RW %'!Y58 -> 0.4926274595 | X130: ='Shock Analysis - RW %'!Z58 -> 0.4826615875 | Y130: ='Shock Analysis - RW %'!AA58 -> 0.4726944725 | Z130: ='Shock Analysis - RW %'!AB58 -> 0.4627261597 | AA130: ='Shock Analysis - RW %'!AC58 -> 0.4527566928 | AB130: ='Shock Analysis - RW %'!AD58 -> 0.4427861138 | AC130: ='Shock Analysis - RW %'!AE58 -> 0.4328144632
C131: 0.16 | D131: ='Shock Analysis - RW %'!F59 -> 0.6828144632 | E131: ='Shock Analysis - RW %'!G59 -> 0.67284178 | F131: ='Shock Analysis - RW %'!H59 -> 0.6628681019 | G131: ='Shock Analysis - RW %'!I59 -> 0.652893465 | H131: ='Shock Analysis - RW %'!J59 -> 0.6429179044 | I131: ='Shock Analysis - RW %'!K59 -> 0.6329414536 | J131: ='Shock Analysis - RW %'!L59 -> 0.622964145 | K131: ='Shock Analysis - RW %'!M59 -> 0.61298601 | L131: ='Shock Analysis - RW %'!N59 -> 0.6030070786 | M131: ='Shock Analysis - RW %'!O59 -> 0.5930273798 | N131: ='Shock Analysis - RW %'!P59 -> 0.5830469416 | O131: ='Shock Analysis - RW %'!Q59 -> 0.5730657909 | P131: ='Shock Analysis - RW %'!R59 -> 0.5630839536 | Q131: ='Shock Analysis - RW %'!S59 -> 0.5531014548 | R131: ='Shock Analysis - RW %'!T59 -> 0.5431183186 | S131: ='Shock Analysis - RW %'!U59 -> 0.5331345681 | T131: ='Shock Analysis - RW %'!V59 -> 0.5231502257 | U131: ='Shock Analysis - RW %'!W59 -> 0.5131653131 | V131: ='Shock Analysis - RW %'!X59 -> 0.503179851 | W131: ='Shock Analysis - RW %'!Y59 -> 0.4931938593 | X131: ='Shock Analysis - RW %'!Z59 -> 0.4832073574 | Y131: ='Shock Analysis - RW %'!AA59 -> 0.4732203639 | Z131: ='Shock Analysis - RW %'!AB59 -> 0.4632328966 | AA131: ='Shock Analysis - RW %'!AC59 -> 0.4532449729 | AB131: ='Shock Analysis - RW %'!AD59 -> 0.4432566093 | AC131: ='Shock Analysis - RW %'!AE59 -> 0.4332678218
C132: 0.2 | D132: ='Shock Analysis - RW %'!F60 -> 0.6834471314 | E132: ='Shock Analysis - RW %'!G60 -> 0.6734514046 | F132: ='Shock Analysis - RW %'!H60 -> 0.6634555221 | G132: ='Shock Analysis - RW %'!I60 -> 0.6534594897 | H132: ='Shock Analysis - RW %'!J60 -> 0.6434633128 | I132: ='Shock Analysis - RW %'!K60 -> 0.6334669966 | J132: ='Shock Analysis - RW %'!L60 -> 0.6234705463 | K132: ='Shock Analysis - RW %'!M60 -> 0.6134739666 | L132: ='Shock Analysis - RW %'!N60 -> 0.6034772624 | M132: ='Shock Analysis - RW %'!O60 -> 0.5934804382 | N132: ='Shock Analysis - RW %'!P60 -> 0.5834834982 | O132: ='Shock Analysis - RW %'!Q60 -> 0.5734864468 | P132: ='Shock Analysis - RW %'!R60 -> 0.5634892881 | Q132: ='Shock Analysis - RW %'!S60 -> 0.5534920258 | R132: ='Shock Analysis - RW %'!T60 -> 0.5434946638 | S132: ='Shock Analysis - RW %'!U60 -> 0.5334972057 | T132: ='Shock Analysis - RW %'!V60 -> 0.5234996551 | U132: ='Shock Analysis - RW %'!W60 -> 0.5135020152 | V132: ='Shock Analysis - RW %'!X60 -> 0.5035042894 | W132: ='Shock Analysis - RW %'!Y60 -> 0.4935064807 | X132: ='Shock Analysis - RW %'!Z60 -> 0.4835085923 | Y132: ='Shock Analysis - RW %'!AA60 -> 0.4735106269 | Z132: ='Shock Analysis - RW %'!AB60 -> 0.4635125874 | AA132: ='Shock Analysis - RW %'!AC60 -> 0.4535144765 | AB132: ='Shock Analysis - RW %'!AD60 -> 0.4435162968 | AC132: ='Shock Analysis - RW %'!AE60 -> 0.4335180508
C133: 0.24 | D133: ='Shock Analysis - RW %'!F61 -> 0.6835461004 | E133: ='Shock Analysis - RW %'!G61 -> 0.6735467688 | F133: ='Shock Analysis - RW %'!H61 -> 0.6635474129 | G133: ='Shock Analysis - RW %'!I61 -> 0.6535480336 | H133: ='Shock Analysis - RW %'!J61 -> 0.6435486316 | I133: ='Shock Analysis - RW %'!K61 -> 0.6335492079 | J133: ='Shock Analysis - RW %'!L61 -> 0.6235497632 | K133: ='Shock Analysis - RW %'!M61 -> 0.6135502982 | L133: ='Shock Analysis - RW %'!N61 -> 0.6035508138 | M133: ='Shock Analysis - RW %'!O61 -> 0.5935513106 | N133: ='Shock Analysis - RW %'!P61 -> 0.5835517893 | O133: ='Shock Analysis - RW %'!Q61 -> 0.5735522505 | P133: ='Shock Analysis - RW %'!R61 -> 0.563552695 | Q133: ='Shock Analysis - RW %'!S61 -> 0.5535531232 | R133: ='Shock Analysis - RW %'!T61 -> 0.5435535359 | S133: ='Shock Analysis - RW %'!U61 -> 0.5335539335 | T133: ='Shock Analysis - RW %'!V61 -> 0.5235543167 | U133: ='Shock Analysis - RW %'!W61 -> 0.5135546859 | V133: ='Shock Analysis - RW %'!X61 -> 0.5035550416 | W133: ='Shock Analysis - RW %'!Y61 -> 0.4935553844 | X133: ='Shock Analysis - RW %'!Z61 -> 0.4835557147 | Y133: ='Shock Analysis - RW %'!AA61 -> 0.473556033 | Z133: ='Shock Analysis - RW %'!AB61 -> 0.4635563397 | AA133: ='Shock Analysis - RW %'!AC61 -> 0.4535566352 | AB133: ='Shock Analysis - RW %'!AD61 -> 0.44355692 | AC133: ='Shock Analysis - RW %'!AE61 -> 0.4335571944
C134: 0.28 | D134: ='Shock Analysis - RW %'!F62 -> 0.6835615822 | E134: ='Shock Analysis - RW %'!G62 -> 0.6735616867 | F134: ='Shock Analysis - RW %'!H62 -> 0.6635617875 | G134: ='Shock Analysis - RW %'!I62 -> 0.6535618846 | H134: ='Shock Analysis - RW %'!J62 -> 0.6435619782 | I134: ='Shock Analysis - RW %'!K62 -> 0.6335620683 | J134: ='Shock Analysis - RW %'!L62 -> 0.6235621552 | K134: ='Shock Analysis - RW %'!M62 -> 0.6135622389 | L134: ='Shock Analysis - RW %'!N62 -> 0.6035623195 | M134: ='Shock Analysis - RW %'!O62 -> 0.5935623972 | N134: ='Shock Analysis - RW %'!P62 -> 0.5835624721 | O134: ='Shock Analysis - RW %'!Q62 -> 0.5735625443 | P134: ='Shock Analysis - RW %'!R62 -> 0.5635626138 | Q134: ='Shock Analysis - RW %'!S62 -> 0.5535626808 | R134: ='Shock Analysis - RW %'!T62 -> 0.5435627453 | S134: ='Shock Analysis - RW %'!U62 -> 0.5335628075 | T134: ='Shock Analysis - RW %'!V62 -> 0.5235628675 | U134: ='Shock Analysis - RW %'!W62 -> 0.5135629252 | V134: ='Shock Analysis - RW %'!X62 -> 0.5035629809 | W134: ='Shock Analysis - RW %'!Y62 -> 0.4935630345 | X134: ='Shock Analysis - RW %'!Z62 -> 0.4835630862 | Y134: ='Shock Analysis - RW %'!AA62 -> 0.473563136 | Z134: ='Shock Analysis - RW %'!AB62 -> 0.4635631839 | AA134: ='Shock Analysis - RW %'!AC62 -> 0.4535632302 | AB134: ='Shock Analysis - RW %'!AD62 -> 0.4435632747 | AC134: ='Shock Analysis - RW %'!AE62 -> 0.4335633176
C135: 0.32 | D135: ='Shock Analysis - RW %'!F63 -> 0.683564004 | E135: ='Shock Analysis - RW %'!G63 -> 0.6735640204 | F135: ='Shock Analysis - RW %'!H63 -> 0.6635640361 | G135: ='Shock Analysis - RW %'!I63 -> 0.6535640513 | H135: ='Shock Analysis - RW %'!J63 -> 0.643564066 | I135: ='Shock Analysis - RW %'!K63 -> 0.6335640801 | J135: ='Shock Analysis - RW %'!L63 -> 0.6235640937 | K135: ='Shock Analysis - RW %'!M63 -> 0.6135641067 | L135: ='Shock Analysis - RW %'!N63 -> 0.6035641194 | M135: ='Shock Analysis - RW %'!O63 -> 0.5935641315 | N135: ='Shock Analysis - RW %'!P63 -> 0.5835641432 | O135: ='Shock Analysis - RW %'!Q63 -> 0.5735641545 | P135: ='Shock Analysis - RW %'!R63 -> 0.5635641654 | Q135: ='Shock Analysis - RW %'!S63 -> 0.5535641759 | R135: ='Shock Analysis - RW %'!T63 -> 0.543564186 | S135: ='Shock Analysis - RW %'!U63 -> 0.5335641957 | T135: ='Shock Analysis - RW %'!V63 -> 0.5235642051 | U135: ='Shock Analysis - RW %'!W63 -> 0.5135642141 | V135: ='Shock Analysis - RW %'!X63 -> 0.5035642228 | W135: ='Shock Analysis - RW %'!Y63 -> 0.4935642312 | X135: ='Shock Analysis - RW %'!Z63 -> 0.4835642393 | Y135: ='Shock Analysis - RW %'!AA63 -> 0.4735642471 | Z135: ='Shock Analysis - RW %'!AB63 -> 0.4635642546 | AA135: ='Shock Analysis - RW %'!AC63 -> 0.4535642618 | AB135: ='Shock Analysis - RW %'!AD63 -> 0.4435642688 | AC135: ='Shock Analysis - RW %'!AE63 -> 0.4335642755
C136: 0.36 | D136: ='Shock Analysis - RW %'!F64 -> 0.6835643829 | E136: ='Shock Analysis - RW %'!G64 -> 0.6735643854 | F136: ='Shock Analysis - RW %'!H64 -> 0.6635643879 | G136: ='Shock Analysis - RW %'!I64 -> 0.6535643903 | H136: ='Shock Analysis - RW %'!J64 -> 0.6435643926 | I136: ='Shock Analysis - RW %'!K64 -> 0.6335643948 | J136: ='Shock Analysis - RW %'!L64 -> 0.6235643969 | K136: ='Shock Analysis - RW %'!M64 -> 0.6135643989 | L136: ='Shock Analysis - RW %'!N64 -> 0.6035644009 | M136: ='Shock Analysis - RW %'!O64 -> 0.5935644028 | N136: ='Shock Analysis - RW %'!P64 -> 0.5835644046 | O136: ='Shock Analysis - RW %'!Q64 -> 0.5735644064 | P136: ='Shock Analysis - RW %'!R64 -> 0.5635644081 | Q136: ='Shock Analysis - RW %'!S64 -> 0.5535644098 | R136: ='Shock Analysis - RW %'!T64 -> 0.5435644113 | S136: ='Shock Analysis - RW %'!U64 -> 0.5335644129 | T136: ='Shock Analysis - RW %'!V64 -> 0.5235644143 | U136: ='Shock Analysis - RW %'!W64 -> 0.5135644157 | V136: ='Shock Analysis - RW %'!X64 -> 0.5035644171 | W136: ='Shock Analysis - RW %'!Y64 -> 0.4935644184 | X136: ='Shock Analysis - RW %'!Z64 -> 0.4835644197 | Y136: ='Shock Analysis - RW %'!AA64 -> 0.4735644209 | Z136: ='Shock Analysis - RW %'!AB64 -> 0.4635644221 | AA136: ='Shock Analysis - RW %'!AC64 -> 0.4535644232 | AB136: ='Shock Analysis - RW %'!AD64 -> 0.4435644243 | AC136: ='Shock Analysis - RW %'!AE64 -> 0.4335644253
C137: 0.4 | D137: ='Shock Analysis - RW %'!F65 -> 0.6835644421 | E137: ='Shock Analysis - RW %'!G65 -> 0.6735644425 | F137: ='Shock Analysis - RW %'!H65 -> 0.6635644429 | G137: ='Shock Analysis - RW %'!I65 -> 0.6535644433 | H137: ='Shock Analysis - RW %'!J65 -> 0.6435644437 | I137: ='Shock Analysis - RW %'!K65 -> 0.633564444 | J137: ='Shock Analysis - RW %'!L65 -> 0.6235644443 | K137: ='Shock Analysis - RW %'!M65 -> 0.6135644446 | L137: ='Shock Analysis - RW %'!N65 -> 0.603564445 | M137: ='Shock Analysis - RW %'!O65 -> 0.5935644453 | N137: ='Shock Analysis - RW %'!P65 -> 0.5835644455 | O137: ='Shock Analysis - RW %'!Q65 -> 0.5735644458 | P137: ='Shock Analysis - RW %'!R65 -> 0.5635644461 | Q137: ='Shock Analysis - RW %'!S65 -> 0.5535644463 | R137: ='Shock Analysis - RW %'!T65 -> 0.5435644466 | S137: ='Shock Analysis - RW %'!U65 -> 0.5335644468 | T137: ='Shock Analysis - RW %'!V65 -> 0.5235644471 | U137: ='Shock Analysis - RW %'!W65 -> 0.5135644473 | V137: ='Shock Analysis - RW %'!X65 -> 0.5035644475 | W137: ='Shock Analysis - RW %'!Y65 -> 0.4935644477 | X137: ='Shock Analysis - RW %'!Z65 -> 0.4835644479 | Y137: ='Shock Analysis - RW %'!AA65 -> 0.4735644481 | Z137: ='Shock Analysis - RW %'!AB65 -> 0.4635644483 | AA137: ='Shock Analysis - RW %'!AC65 -> 0.4535644484 | AB137: ='Shock Analysis - RW %'!AD65 -> 0.4435644486 | AC137: ='Shock Analysis - RW %'!AE65 -> 0.4335644488
B146: mailto:info@wilwinn.com?subject=SSFA Calculator
B147: mailto:info@wilwinn.com?subject=SSFA Calculator

Sheet Calculator Instructions
B6: SSFA Calculator Instructions
B8: 1) Enable Macros before using the Calculator
B10: 2) Input the following information for each master commitment in the base case inputs section on the Calculator tab:
B12: MPF Program (select MPF Original or MPF 125)
B14: Dollar Amount of Sold and Outstanding
B16: Dollar Amount of CE Obligation
B18: Dollar Amount of First Loss Account
B20: Dollar Amount of Loans Greater than 90 days Past Due
B22: See Definitions Tab for more information. For a complete description of the MPF Program and required reporting, see Wilary Winn's
B23: Accounting and Regulatory Guidance for the Mortgage Partnership Finance Program, December 2013, Version 4
B26: 3) The following information is calculated based on your inputs in the section above:
B28: Base Case
B30: Weighted Average Capital Requirement (KG) (%):
B32: Ratio of Delinquent Loans (90+ days) to Total Balance (%):
B34: Credit Enhancement Obligation (%):
B36: First Loss Account (%):
B38: Risk Weight
B39: Total Increase to Risk-Weighted Assets $ Amt
B40: Total Increase to Risk-Weighted Assets %
B42: 4) You may click the View All Inputs button to show all BASEL III SSFA calculations based on your inputs (for informational purposes):
B46: 5) The shock analysis section illustrates the Risk Weight Multipliers and Percentages under different levels of the
B47: Credit Enhancement Obligation and First Loss Account
B64: The table above shows the risk weight multipliers under different credit enhancement obligation levels (left axis) and first loss account
B65: levels (right axis).

Sheet Shock Analysis - RW Multiplier
C6: BASEL III Risk Weight Multiplier Shock Analysis
M9: =Output!I13 -> 0.04025
M10: =Output!I15 -> 0.00625
A16: 1
C17: MPF - Original
F18: First Loss Account
F19: 0 | G19: 0.0006 | H19: 0.0012 | I19: 0.0018 | J19: 0.0024 | K19: 0.003 | L19: 0.0036 | M19: 0.0042 | N19: 0.0048 | O19: 0.0054 | P19: 0.006 | Q19: 0.0066 | R19: 0.0072 | S19: 0.0078 | T19: 0.0084 | U19: 0.009 | V19: 0.0096 | W19: 0.0102 | X19: 0.0108 | Y19: 0.0114 | Z19: 0.012 | AA19: 0.0126 | AB19: 0.0132 | AC19: 0.0138 | AD19: 0.0144 | AE19: 0.015
E20: =A16 -> 1 | F20: ='Shock Analysis Support 2'!P46 -> 12.5 | G20: ='Shock Analysis Support 2'!Q46 -> 12.5 | H20: ='Shock Analysis Support 2'!R46 -> 12.5 | I20: ='Shock Analysis Support 2'!S46 -> 12.5 | J20: ='Shock Analysis Support 2'!T46 -> 12.5 | K20: ='Shock Analysis Support 2'!U46 -> 12.5 | L20: ='Shock Analysis Support 2'!V46 -> 12.5 | M20: ='Shock Analysis Support 2'!W46 -> 12.5 | N20: ='Shock Analysis Support 2'!X46 -> 12.5 | O20: ='Shock Analysis Support 2'!Y46 -> 12.5 | P20: ='Shock Analysis Support 2'!Z46 -> 12.5 | Q20: ='Shock Analysis Support 2'!AA46 -> 12.5 | R20: ='Shock Analysis Support 2'!AB46 -> 12.5 | S20: ='Shock Analysis Support 2'!AC46 -> 12.5 | T20: ='Shock Analysis Support 2'!AD46 -> 12.5 | U20: ='Shock Analysis Support 2'!AE46 -> 12.5 | V20: ='Shock Analysis Support 2'!AF46 -> 12.5 | W20: ='Shock Analysis Support 2'!AG46 -> 12.5 | X20: ='Shock Analysis Support 2'!AH46 -> 12.5 | Y20: ='Shock Analysis Support 2'!AI46 -> 12.5 | Z20: ='Shock Analysis Support 2'!AJ46 -> 12.5 | AA20: ='Shock Analysis Support 2'!AK46 -> 12.5 | AB20: ='Shock Analysis Support 2'!AL46 -> 12.5 | AC20: ='Shock Analysis Support 2'!AM46 -> 12.5 | AD20: ='Shock Analysis Support 2'!AN46 -> 12.5 | AE20: ='Shock Analysis Support 2'!AO46 -> 12.5
A21: 1 | C21: Credit Enhancement Obligation | D21: 0.02 | E21: =A21 -> 1 | F21: 12.5 | G21: 12.5 | H21: 12.5 | I21: 12.5 | J21: 12.5 | K21: 12.5 | L21: 12.5 | M21: 12.5 | N21: 12.5 | O21: 12.5 | P21: 12.5 | Q21: 12.5 | R21: 12.5 | S21: 12.5 | T21: 12.5 | U21: 12.5 | V21: 12.5 | W21: 12.5 | X21: 12.5 | Y21: 12.5 | Z21: 12.5 | AA21: 12.5 | AB21: 12.5 | AC21: 12.5 | AD21: 12.5 | AE21: 12.5
A22: 2 | D22: 0.025 | E22: =A22 -> 2 | F22: 12.5 | G22: 12.5 | H22: 12.5 | I22: 12.5 | J22: 12.5 | K22: 12.5 | L22: 12.5 | M22: 12.5 | N22: 12.5 | O22: 12.5 | P22: 12.5 | Q22: 12.5 | R22: 12.5 | S22: 12.5 | T22: 12.5 | U22: 12.5 | V22: 12.5 | W22: 12.5 | X22: 12.5 | Y22: 12.5 | Z22: 12.5 | AA22: 12.5 | AB22: 12.5 | AC22: 12.5 | AD22: 12.5 | AE22: 12.5
A23: 3 | D23: 0.03 | E23: 3 | F23: 12.5 | G23: 12.5 | H23: 12.5 | I23: 12.5 | J23: 12.5 | K23: 12.5 | L23: 12.5 | M23: 12.5 | N23: 12.5 | O23: 12.5 | P23: 12.5 | Q23: 12.5 | R23: 12.5 | S23: 12.5 | T23: 12.5 | U23: 12.5 | V23: 12.5 | W23: 12.5 | X23: 12.5 | Y23: 12.5 | Z23: 12.5 | AA23: 12.5 | AB23: 12.49994343 | AC23: 12.49562316 | AD23: 12.48456058 | AE23: 12.46694073
A24: 4 | D24: 0.035 | E24: 4 | F24: 12.5 | G24: 12.5 | H24: 12.5 | I24: 12.5 | J24: 12.5 | K24: 12.5 | L24: 12.5 | M24: 12.5 | N24: 12.5 | O24: 12.5 | P24: 12.5 | Q24: 12.5 | R24: 12.5 | S24: 12.5 | T24: 12.49936925 | U24: 12.49372189 | V24: 12.48234877 | W24: 12.46540702 | X24: 12.44304946 | Y24: 12.41542472 | Z24: 12.38267736 | AA24: 12.34494795 | AB24: 12.30237322 | AC24: 12.25508614 | AD24: 12.20321603 | AE24: 12.14688868
A25: 5 | D25: 0.04 | E25: 5 | F25: 12.5 | G25: 12.5 | H25: 12.5 | I25: 12.5 | J25: 12.5 | K25: 12.5 | L25: 12.49836626 | M25: 12.49173929 | N25: 12.48014854 | O25: 12.46373022 | P25: 12.44261683 | Q25: 12.41693721 | R25: 12.38681667 | S25: 12.35237709 | T25: 12.31373699 | U25: 12.27101167 | V25: 12.22431322 | W25: 12.17375068 | X25: 12.1194301 | Y25: 12.06145462 | Z25: 11.99992453 | AA25: 11.93493739 | AB25: 11.86658806 | AC25: 11.79496883 | AD25: 11.72016942 | AE25: 11.64227712
A26: 6 | D26: 0.045 | E26: 6 | F26: 12.47796049 | G26: 12.46196237 | H26: 12.44182938 | I26: 12.417675 | J26: 12.38960958 | K26: 12.35774046 | L26: 12.32217203 | M26: 12.2830058 | N26: 12.24034052 | O26: 12.1942722 | P26: 12.14489425 | Q26: 12.09229749 | R26: 12.03657025 | S26: 11.97779844 | T26: 11.91606562 | U26: 11.85145306 | V26: 11.78403977 | W26: 11.71390262 | X26: 11.64111637 | Y26: 11.56575371 | Z26: 11.48788535 | AA26: 11.40758005 | AB26: 11.3249047 | AC26: 11.23992433 | AD26: 11.15270221 | AE26: 11.06329985
A27: 7 | D27: 0.05 | E27: 7 | F27: 12.25282208 | G27: 12.21035848 | H27: 12.16494371 | I27: 12.11665875 | J27: 12.06558238 | K27: 12.0117912 | L27: 11.95535971 | M27: 11.89636038 | N27: 11.83486367 | O27: 11.77093812 | P27: 11.70465039 | Q27: 11.63606531 | R27: 11.56524591 | S27: 11.49225352 | T27: 11.41714778 | U27: 11.33998667 | V27: 11.26082661 | W27: 11.17972246 | X27: 11.09672756 | Y27: 11.01189381 | Z27: 10.92527167 | AA27: 10.83691022 | AB27: 10.7468572 | AC27: 10.65515902 | AD27: 10.56186083 | AE27: 10.46700655
A28: 8 | D28: 0.055 | E28: 8 | F28: 11.87620154 | G28: 11.81736495 | H28: 11.75640074 | I28: 11.6933673 | J28: 11.62832143 | K28: 11.56131836 | L28: 11.49241178 | M28: 11.42165395 | N28: 11.34909567 | O28: 11.27478635 | P28: 11.19877404 | Q28: 11.12110548 | R28: 11.04182612 | S28: 10.96098017 | T28: 10.87861062 | U28: 10.79475928 | V28: 10.70946682 | W28: 10.6227728 | X28: 10.53471566 | Y28: 10.44533283 | Z28: 10.35466068 | AA28: 10.26273459 | AB28: 10.16958899 | AC28: 10.07525733 | AD28: 9.979772162 | AE28: 9.883165151
A29: 9 | D29: 0.06 | E29: 9 | F29: 11.42247489 | G29: 11.35383281 | H29: 11.28364408 | I29: 11.21195114 | J29: 11.13879527 | K29: 11.06421661 | L29: 10.98825422 | M29: 10.91094606 | N29: 10.83232907 | O29: 10.75243917 | P29: 10.67131129 | Q29: 10.58897941 | R29: 10.50547657 | S29: 10.4208349 | T29: 10.33508565 | U29: 10.24825923 | V29: 10.16038519 | W29: 10.07149229 | X29: 9.98160848 | Y29: 9.89076096 | Z29: 9.798976178 | AA29: 9.706279854 | AB29: 9.612697004 | AC29: 9.518251958 | AD29: 9.422968378 | AE29: 9.326869276
A30: 10 | D30: 0.08 | E30: 10 | F30: 9.497885653 | G30: 9.420853403 | H30: 9.34336236 | I30: 9.265425114 | J30: 9.187053911 | K30: 9.10826066 | L30: 9.029056943 | M30: 8.949454026 | N30: 8.869462864 | O30: 8.789094111 | P30: 8.70835813 | Q30: 8.627264999 | R30: 8.54582452 | S30: 8.464046224 | T30: 8.381939383 | U30: 8.299513013 | V30: 8.216775883 | W30: 8.133736521 | X30: 8.050403222 | Y30: 7.966784053 | Z30: 7.882886858 | AA30: 7.798719268 | AB30: 7.714288703 | AC30: 7.629602381 | AD30: 7.544667319 | AE30: 7.459490345
A31: 11 | D31: 0.1 | E31: 11 | F31: 7.892896461 | G31: 7.82318614 | H31: 7.753330652 | I31: 7.683333981 | J31: 7.613200001 | K31: 7.54293248 | L31: 7.472535084 | M31: 7.402011376 | N31: 7.331364823 | O31: 7.260598797 | P31: 7.189716575 | Q31: 7.118721347 | R31: 7.047616214 | S31: 6.976404193 | T31: 6.905088216 | U31: 6.833671137 | V31: 6.762155729 | W31: 6.690544693 | X31: 6.618840651 | Y31: 6.547046157 | Z31: 6.475163693 | AA31: 6.403195672 | AB31: 6.331144444 | AC31: 6.259012291 | AD31: 6.186801434 | AE31: 6.114514033
A32: 12 | D32: 0.12 | E32: 12 | F32: 6.674508356 | G32: 6.613751807 | H32: 6.552947411 | I32: 6.492096482 | J32: 6.431200297 | K32: 6.370260097 | L32: 6.309277091 | M32: 6.248252454 | N32: 6.187187327 | O32: 6.126082822 | P32: 6.06494002 | Q32: 6.003759972 | R32: 5.9425437 | S32: 5.881292198 | T32: 5.820006433 | U32: 5.758687345 | V32: 5.697335848 | W32: 5.635952833 | X32: 5.574539163 | Y32: 5.513095681 | Z32: 5.451623205 | AA32: 5.390122529 | AB32: 5.328594429 | AC32: 5.267039656 | AD32: 5.205458943 | AE32: 5.143853002
A33: 13 | D33: 0.14 | E33: 13 | F33: 5.753923386 | G33: 5.700943008 | H33: 5.647946409 | I33: 5.594934035 | J33: 5.541906318 | K33: 5.48886368 | L33: 5.43580653 | M33: 5.382735267 | N33: 5.329650277 | O33: 5.276551938 | P33: 5.223440616 | Q33: 5.170316666 | R33: 5.117180436 | S33: 5.064032263 | T33: 5.010872475 | U33: 4.957701389 | V33: 4.904519317 | W33: 4.851326559 | X33: 4.798123409 | Y33: 4.744910153 | Z33: 4.691687067 | AA33: 4.638454421 | AB33: 4.585212478 | AC33: 4.531961492 | AD33: 4.478701713 | AE33: 4.42543338
A34: 14 | D34: 0.16 | E34: 14 | F34: 5.046074428 | G34: 4.999403975 | H34: 4.952727909 | I34: 4.906046384 | J34: 4.859359549 | K34: 4.81266755 | L34: 4.765970528 | M34: 4.719268623 | N34: 4.672561967 | O34: 4.625850691 | P34: 4.579134922 | Q34: 4.532414783 | R34: 4.485690394 | S34: 4.438961872 | T34: 4.39222933 | U34: 4.345492879 | V34: 4.298752625 | W34: 4.252008673 | X34: 4.205261125 | Y34: 4.158510079 | Z34: 4.111755632 | AA34: 4.064997876 | AB34: 4.018236902 | AC34: 3.9714728 | AD34: 3.924705653 | AE34: 3.877935547
A35: 15 | D35: 0.2 | E35: 15 | F35: 4.04188951 | G35: 4.004415108 | H35: 3.966940004 | I35: 3.929464216 | J35: 3.891987764 | K35: 3.854510666 | L35: 3.817032939 | M35: 3.779554601 | N35: 3.742075668 | O35: 3.704596157 | P35: 3.667116084 | Q35: 3.629635464 | R35: 3.592154313 | S35: 3.554672644 | T35: 3.517190472 | U35: 3.47970781 | V35: 3.442224673 | W35: 3.404741073 | X35: 3.367257023 | Y35: 3.329772535 | Z35: 3.292287622 | AA35: 3.254802294 | AB35: 3.217316564 | AC35: 3.179830442 | AD35: 3.14234394 | AE35: 3.104857067
A36: 16 | D36: 0.24 | E36: 16 | F36: 3.368896961 | G36: 3.337650298 | H36: 3.306403544 | I36: 3.2751567 | J36: 3.24390977 | K36: 3.212662755 | L36: 3.181415659 | M36: 3.150168482 | N36: 3.118921229 | O36: 3.0876739 | P36: 3.056426497 | Q36: 3.025179024 | R36: 2.993931481 | S36: 2.96268387 | T36: 2.931436194 | U36: 2.900188455 | V36: 2.868940653 | W36: 2.837692791 | X36: 2.80644487 | Y36: 2.775196892 | Z36: 2.743948859 | AA36: 2.712700772 | AB36: 2.681452632 | AC36: 2.650204441 | AD36: 2.6189562 | AE36: 2.587707912
A37: 17 | D37: 0.28 | E37: 17 | F37: 2.887713886 | G37: 2.860928619 | H37: 2.83414334 | I37: 2.807358049 | J37: 2.780572746 | K37: 2.753787432 | L37: 2.727002107 | M37: 2.700216772 | N37: 2.673431426 | O37: 2.646646069 | P37: 2.619860703 | Q37: 2.593075328 | R37: 2.566289943 | S37: 2.539504549 | T37: 2.512719147 | U37: 2.485933735 | V37: 2.459148316 | W37: 2.432362888 | X37: 2.405577453 | Y37: 2.37879201 | Z37: 2.352006559 | AA37: 2.325221101 | AB37: 2.298435636 | AC37: 2.271650165 | AD37: 2.244864686 | AE37: 2.218079201
A38: 18 | D38: 0.32 | E38: 18 | F38: 2.526761684 | G38: 2.503324246 | H38: 2.479886805 | I38: 2.456449363 | J38: 2.433011919 | K38: 2.409574474 | L38: 2.386137028 | M38: 2.362699579 | N38: 2.33926213 | O38: 2.315824679 | P38: 2.292387226 | Q38: 2.268949773 | R38: 2.245512318 | S38: 2.222074862 | T38: 2.198637404 | U38: 2.175199946 | V38: 2.151762486 | W38: 2.128325026 | X38: 2.104887564 | Y38: 2.081450101 | Z38: 2.058012637 | AA38: 2.034575172 | AB38: 2.011137706 | AC38: 1.987700239 | AD38: 1.964262772 | AE38: 1.940825303
A39: 19 | D39: 0.36 | E39: 19 | F39: 2.246012059 | G39: 2.225178735 | H39: 2.20434541 | I39: 2.183512084 | J39: 2.162678759 | K39: 2.141845433 | L39: 2.121012107 | M39: 2.100178781 | N39: 2.079345455 | O39: 2.058512128 | P39: 2.037678802 | Q39: 2.016845475 | R39: 1.996012148 | S39: 1.97517882 | T39: 1.954345493 | U39: 1.933512165 | V39: 1.912678838 | W39: 1.89184551 | X39: 1.871012182 | Y39: 1.850178854 | Z39: 1.829345525 | AA39: 1.808512197 | AB39: 1.787678868 | AC39: 1.76684554 | AD39: 1.746012211 | AE39: 1.725178882
A40: 20 | D40: 0.4 | E40: 20 | F40: 2.021411089 | G40: 2.00266109 | H40: 1.983911091 | I40: 1.965161093 | J40: 1.946411094 | K40: 1.927661095 | L40: 1.908911096 | M40: 1.890161097 | N40: 1.871411098 | O40: 1.852661099 | P40: 1.8339111 | Q40: 1.815161101 | R40: 1.796411102 | S40: 1.777661102 | T40: 1.758911103 | U40: 1.740161104 | V40: 1.721411105 | W40: 1.702661106 | X40: 1.683911106 | Y40: 1.665161107 | Z40: 1.646411108 | AA40: 1.627661108 | AB40: 1.608911109 | AC40: 1.59016111 | AD40: 1.57141111 | AE40: 1.552661111
C42: MPF - 125
F43: First Loss Account
F44: 0.01 | G44: 0.0108 | H44: 0.0116 | I44: 0.0124 | J44: 0.0132 | K44: 0.014 | L44: 0.0148 | M44: 0.0156 | N44: 0.0164 | O44: 0.0172 | P44: 0.018 | Q44: 0.0188 | R44: 0.0196 | S44: 0.0204 | T44: 0.0212 | U44: 0.022 | V44: 0.0228 | W44: 0.0236 | X44: 0.0244 | Y44: 0.0252 | Z44: 0.026 | AA44: 0.0268 | AB44: 0.0276 | AC44: 0.0284 | AD44: 0.0292 | AE44: 0.03
E45: =A16 -> 1 | F45: ='Shock Analysis Support'!P46 -> 12.5 | G45: ='Shock Analysis Support'!Q46 -> 12.5 | H45: ='Shock Analysis Support'!R46 -> 12.5 | I45: ='Shock Analysis Support'!S46 -> 12.5 | J45: ='Shock Analysis Support'!T46 -> 12.5 | K45: ='Shock Analysis Support'!U46 -> 12.5 | L45: ='Shock Analysis Support'!V46 -> 12.5 | M45: ='Shock Analysis Support'!W46 -> 12.5 | N45: ='Shock Analysis Support'!X46 -> 12.5 | O45: ='Shock Analysis Support'!Y46 -> 12.5 | P45: ='Shock Analysis Support'!Z46 -> 12.5 | Q45: ='Shock Analysis Support'!AA46 -> 12.5 | R45: ='Shock Analysis Support'!AB46 -> 12.5 | S45: ='Shock Analysis Support'!AC46 -> 12.5 | T45: ='Shock Analysis Support'!AD46 -> 12.5 | U45: ='Shock Analysis Support'!AE46 -> 12.5 | V45: ='Shock Analysis Support'!AF46 -> 12.5 | W45: ='Shock Analysis Support'!AG46 -> 12.49673252 | X45: ='Shock Analysis Support'!AH46 -> 12.47684087 | Y45: ='Shock Analysis Support'!AI46 -> 12.43946228 | Z45: ='Shock Analysis Support'!AJ46 -> 12.38523366 | AA45: ='Shock Analysis Support'!AK46 -> 12.31476874 | AB45: ='Shock Analysis Support'!AL46 -> 12.22865891 | AC45: ='Shock Analysis Support'!AM46 -> 12.12747399 | AD45: ='Shock Analysis Support'!AN46 -> 12.01176305 | AE45: ='Shock Analysis Support'!AO46 -> 11.88205519
A46: 1 | C46: Credit Enhancement Obligation | D46: 0.02 | E46: =A46 -> 1 | F46: 12.5 | G46: 12.5 | H46: 12.5 | I46: 12.5 | J46: 12.5 | K46: 12.5 | L46: 12.5 | M46: 12.5 | N46: 12.5 | O46: 12.5 | P46: 12.5 | Q46: 12.5 | R46: 12.5 | S46: 12.5 | T46: 12.5 | U46: 12.5 | V46: 12.5 | W46: 12.49673252 | X46: 12.47684087 | Y46: 12.43946228 | Z46: 12.38523366 | AA46: 12.31476874 | AB46: 12.22865891 | AC46: 12.12747399 | AD46: 12.01176305 | AE46: 11.88205519
A47: 2 | D47: 0.025 | E47: =A47 -> 2 | F47: 12.5 | G47: 12.5 | H47: 12.5 | I47: 12.5 | J47: 12.5 | K47: 12.5 | L47: 12.5 | M47: 12.5 | N47: 12.5 | O47: 12.5 | P47: 12.5 | Q47: 12.49474779 | R47: 12.47528827 | S47: 12.44196836 | T47: 12.39529289 | U47: 12.3357483 | V47: 12.26380334 | W47: 12.17990965 | X47: 12.08450245 | Y47: 11.97800109 | Z47: 11.86080965 | AA47: 11.7333175 | AB47: 11.59589982 | AC47: 11.44891812 | AD47: 11.29272076 | AE47: 11.12764339
A48: 3 | D48: 0.03 | E48: 3 | F48: 12.5 | G48: 12.5 | H48: 12.5 | I48: 12.5 | J48: 12.49994343 | K48: 12.49267554 | L48: 12.47353139 | M48: 12.44294355 | N48: 12.40132884 | O48: 12.34908889 | P48: 12.28661069 | Q48: 12.21426716 | R48: 12.13241762 | S48: 12.04140831 | T48: 11.94157284 | U48: 11.83323271 | V48: 11.71669766 | W48: 11.59226619 | X48: 11.4602259 | Y48: 11.32085393 | Z48: 11.17441732 | AA48: 11.02117339 | AB48: 10.86137008 | AC48: 10.69524629 | AD48: 10.52303225 | AE48: 10.34494977
A49: 4 | D49: 0.035 | E49: 4 | F49: 12.47166348 | G49: 12.44304946 | H49: 12.40507109 | I49: 12.35806946 | J49: 12.30237322 | K49: 12.23829905 | L49: 12.16615209 | M49: 12.0862264 | N49: 11.99880528 | O49: 11.90416174 | P49: 11.80255886 | Q49: 11.69425009 | R49: 11.5794797 | S49: 11.45848303 | T49: 11.33148687 | U49: 11.19870973 | V49: 11.06036217 | W49: 10.91664709 | X49: 10.76775998 | Y49: 10.61388923 | Z49: 10.45521634 | AA49: 10.29191625 | AB49: 10.12415746 | AC49: 9.952102398 | AD49: 9.775907532 | AE49: 9.595723648
A50: 5 | D50: 0.04 | E50: 5 | F50: 12.1910276 | G50: 12.1194301 | H50: 12.04133467 | I50: 11.95697797 | J50: 11.86658806 | K50: 11.77038469 | L50: 11.66857959 | M50: 11.5613768 | N50: 11.44897292 | O50: 11.33155739 | P50: 11.20931274 | Q50: 11.08241487 | R50: 10.95103326 | S50: 10.81533123 | T50: 10.67546613 | U50: 10.53158959 | V50: 10.38384773 | W50: 10.23238133 | X50: 10.07732604 | Y50: 9.918812596 | Z50: 9.756966941 | AA50: 9.591910448 | AB50: 9.423760064 | AC50: 9.252628478 | AD50: 9.078624275 | AE50: 8.901852082
A51: 6 | D51: 0.045 | E51: 6 | F51: 11.73757966 | G51: 11.64111637 | H51: 11.54007256 | I51: 11.43461509 | J51: 11.3249047 | K51: 11.2110963 | L51: 11.09333915 | M51: 10.97177709 | N51: 10.84654868 | O51: 10.71778748 | P51: 10.58562215 | Q51: 10.45017669 | R51: 10.31157056 | S51: 10.1699189 | T51: 10.02533261 | U51: 9.877918605 | V51: 9.727779862 | W51: 9.575015628 | X51: 9.419721532 | Y51: 9.261989718 | Z51: 9.101908975 | AA51: 8.939564858 | AB51: 8.775039805 | AC51: 8.608413253 | AD51: 8.439761745 | AE51: 8.269159034
A52: 7 | D52: 0.05 | E52: 7 | F52: 11.20696986 | G52: 11.09672756 | H52: 10.98321602 | I52: 10.86655432 | J52: 10.7468572 | K52: 10.62423521 | L52: 10.49879489 | M52: 10.37063888 | N52: 10.23986611 | O52: 10.10657188 | P52: 9.970848032 | Q52: 9.832783059 | R52: 9.692462231 | S52: 9.549967713 | T52: 9.405378678 | U52: 9.258771413 | V52: 9.11021943 | W52: 8.959793559 | X52: 8.807562054 | Y52: 8.653590681 | Z52: 8.497942811 | AA52: 8.340679506 | AB52: 8.181859607 | AC52: 8.021539808 | AD52: 7.85977474 | AE52: 7.696617045
A53: 8 | D53: 0.055 | E53: 8 | F53: 10.65182414 | G53: 10.53471566 | H53: 10.41525027 | I53: 10.2935138 | J53: 10.16958899 | K53: 10.04355552 | L53: 9.91549022 | M53: 9.785467079 | N53: 9.653557411 | O53: 9.51982993 | P53: 9.384350845 | Q53: 9.247183955 | R53: 9.108390734 | S53: 8.968030419 | T53: 8.826160087 | U53: 8.682834738 | V53: 8.538107367 | W53: 8.392029041 | X53: 8.244648965 | Y53: 8.096014553 | Z53: 7.946171491 | AA53: 7.795163802 | AB53: 7.643033904 | AC53: 7.489822673 | AD53: 7.335569493 | AE53: 7.180312315
A54: 9 | D54: 0.06 | E54: 9 | F54: 10.10123472 | G54: 9.98160848 | H54: 9.860268888 | I54: 9.737278352 | J54: 9.612697004 | K54: 9.486582786 | L54: 9.358991529 | M54: 9.229977032 | N54: 9.099591133 | O54: 8.967883782 | P54: 8.834903111 | Q54: 8.700695498 | R54: 8.565305631 | S54: 8.428776572 | T54: 8.291149813 | U54: 8.152465336 | V54: 8.012761666 | W54: 7.872075924 | X54: 7.730443882 | Y54: 7.587900006 | Z54: 7.444477507 | AA54: 7.300208388 | AB54: 7.155123484 | AC54: 7.00925251 | AD54: 6.862624096 | AE54: 6.715265831
A55: 10 | D55: 0.08 | E55: 10 | F55: 8.161449373 | G55: 8.050403222 | H55: 7.938848832 | I55: 7.826804713 | J55: 7.714288703 | K55: 7.60131799 | L55: 7.487909135 | M55: 7.374078097 | N55: 7.259840253 | O55: 7.145210419 | P55: 7.030202874 | Q55: 6.914831374 | R55: 6.799109176 | S55: 6.683049054 | T55: 6.566663315 | U55: 6.44996382 | V55: 6.332961996 | W55: 6.215668855 | X55: 6.098095008 | Y55: 5.980250678 | Z55: 5.862145719 | AA55: 5.743789621 | AB55: 5.625191534 | AC55: 5.50636027 | AD55: 5.387304322 | AE55: 5.268031875
A56: 11 | D56: 0.1 | E56: 11 | F56: 6.7144255 | G56: 6.618840651 | H56: 6.52309499 | I56: 6.427194372 | J56: 6.331144444 | K56: 6.234950642 | L56: 6.138618207 | M56: 6.042152189 | N56: 5.945557453 | O56: 5.848838688 | P56: 5.75200041 | Q56: 5.655046973 | R56: 5.557982571 | S56: 5.460811247 | T56: 5.363536893 | U56: 5.266163264 | V56: 5.168693975 | W56: 5.071132509 | X56: 4.973482226 | Y56: 4.875746358 | Z56: 4.777928025 | AA56: 4.680030228 | AB56: 4.582055863 | AC56: 4.484007719 | AD56: 4.385888483 | AE56: 4.287700743
A57: 12 | D57: 0.12 | E57: 12 | F57: 5.656417286 | G57: 5.574539163 | H57: 5.492608037 | I57: 5.410625839 | J57: 5.328594429 | K57: 5.246515598 | L57: 5.164391075 | M57: 5.082222524 | N57: 5.000011548 | O57: 4.917759692 | P57: 4.835468446 | Q57: 4.753139244 | R57: 4.670773468 | S57: 4.588372451 | T57: 4.505937477 | U57: 4.423469782 | V57: 4.340970557 | W57: 4.258440952 | X57: 4.175882073 | Y57: 4.093294986 | Z57: 4.010680718 | AA57: 3.92804026 | AB57: 3.845374566 | AC57: 3.762684554 | AD57: 3.67997111 | AE57: 3.597235088
A58: 13 | D58: 0.14 | E58: 13 | F58: 4.869058647 | G58: 4.798123409 | H58: 4.727170203 | I58: 4.656199682 | J58: 4.585212478 | K58: 4.514209197 | L58: 4.443190427 | M58: 4.37215673 | N58: 4.301108651 | O58: 4.230046713 | P58: 4.158971422 | Q58: 4.087883262 | R58: 4.016782704 | S58: 3.945670199 | T58: 3.874546182 | U58: 3.803411072 | V58: 3.732265273 | W58: 3.661109175 | X58: 3.589943153 | Y58: 3.518767568 | Z58: 3.447582768 | AA58: 3.376389089 | AB58: 3.305186855 | AC58: 3.233976377 | AD58: 3.162757956 | AE58: 3.09153188
A59: 14 | D59: 0.16 | E59: 14 | F59: 4.267590395 | G59: 4.205261125 | H59: 4.142925637 | I59: 4.080584157 | J59: 4.018236902 | K59: 3.955884085 | L59: 3.893525907 | M59: 3.831162563 | N59: 3.768794241 | O59: 3.706421124 | P59: 3.644043385 | Q59: 3.581661193 | R59: 3.51927471 | S59: 3.456884093 | T59: 3.394489491 | U59: 3.33209105 | V59: 3.269688911 | W59: 3.207283207 | X59: 3.144874068 | Y59: 3.082461621 | Z59: 3.020045984 | AA59: 2.957627274 | AB59: 2.895205604 | AC59: 2.83278108 | AD59: 2.770353808 | AE59: 2.707923886
A60: 15 | D60: 0.2 | E60: 15 | F60: 3.417235657 | G60: 3.367257023 | H60: 3.317277611 | I60: 3.267297449 | J60: 3.217316564 | K60: 3.167334983 | L60: 3.117352731 | M60: 3.067369833 | N60: 3.017386312 | O60: 2.967402191 | P60: 2.917417491 | Q60: 2.867432234 | R60: 2.81744644 | S60: 2.767460129 | T60: 2.717473319 | U60: 2.667486029 | V60: 2.617498275 | W60: 2.567510076 | X60: 2.517521447 | Y60: 2.467532404 | Z60: 2.417542961 | AA60: 2.367553134 | AB60: 2.317562937 | AC60: 2.267572382 | AD60: 2.217581484 | AE60: 2.167590254
A61: 16 | D61: 0.24 | E61: 16 | F61: 2.848108751 | G61: 2.80644487 | H61: 2.764780887 | I61: 2.723116807 | J61: 2.681452632 | K61: 2.639788366 | L61: 2.598124013 | M61: 2.556459576 | N61: 2.514795057 | O61: 2.473130461 | P61: 2.431465789 | Q61: 2.389801044 | R61: 2.348136229 | S61: 2.306471347 | T61: 2.2648064 | U61: 2.22314139 | V61: 2.18147632 | W61: 2.139811191 | X61: 2.098146007 | Y61: 2.056480768 | Z61: 2.014815478 | AA61: 1.973150138 | AB61: 1.931484749 | AC61: 1.889819313 | AD61: 1.848153833 | AE61: 1.80648831
A62: 17 | D62: 0.28 | E62: 17 | F62: 2.441291365 | G62: 2.405577453 | H62: 2.369863527 | I62: 2.334149588 | J62: 2.298435636 | K62: 2.262721672 | L62: 2.227007697 | M62: 2.19129371 | N62: 2.155579713 | O62: 2.119865704 | P62: 2.084151686 | Q62: 2.048437658 | R62: 2.012723621 | S62: 1.977009574 | T62: 1.941295519 | U62: 1.905581455 | V62: 1.869867384 | W62: 1.834153304 | X62: 1.798439217 | Y62: 1.762725123 | Z62: 1.727011022 | AA62: 1.691296914 | AB62: 1.6555828 | AC62: 1.619868679 | AD62: 1.584154553 | AE62: 1.54844042
A63: 18 | D63: 0.32 | E63: 18 | F63: 2.136137513 | G63: 2.104887564 | H63: 2.073637613 | I63: 2.04238766 | J63: 2.011137706 | K63: 1.97988775 | L63: 1.948637793 | M63: 1.917387834 | N63: 1.886137873 | O63: 1.854887911 | P63: 1.823637948 | Q63: 1.792387983 | R63: 1.761138017 | S63: 1.72988805 | T63: 1.698638081 | U63: 1.667388112 | V63: 1.636138141 | W63: 1.604888169 | X63: 1.573638196 | Y63: 1.542388223 | Z63: 1.511138248 | AA63: 1.479888272 | AB63: 1.448638296 | AC63: 1.417388318 | AD63: 1.38613834 | AE63: 1.354888361
A64: 19 | D64: 0.36 | E64: 19 | F64: 1.898789952 | G64: 1.871012182 | H64: 1.843234411 | I64: 1.81545664 | J64: 1.787678868 | K64: 1.759901097 | L64: 1.732123325 | M64: 1.704345553 | N64: 1.67656778 | O64: 1.648790008 | P64: 1.621012235 | Q64: 1.593234462 | R64: 1.565456689 | S64: 1.537678916 | T64: 1.509901143 | U64: 1.482123369 | V64: 1.454345595 | W64: 1.426567821 | X64: 1.398790047 | Y64: 1.371012273 | Z64: 1.343234499 | AA64: 1.315456725 | AB64: 1.28767895 | AC64: 1.259901176 | AD64: 1.232123401 | AE64: 1.204345626
A65: 20 | D65: 0.4 | E65: 20 | F65: 1.708911105 | G65: 1.683911106 | H65: 1.658911107 | I65: 1.633911108 | J65: 1.608911109 | K65: 1.58391111 | L65: 1.558911111 | M65: 1.533911112 | N65: 1.508911112 | O65: 1.483911113 | P65: 1.458911114 | Q65: 1.433911115 | R65: 1.408911115 | S65: 1.383911116 | T65: 1.358911116 | U65: 1.333911117 | V65: 1.308911118 | W65: 1.283911118 | X65: 1.258911119 | Y65: 1.233911119 | Z65: 1.20891112 | AA65: 1.18391112 | AB65: 1.158911121 | AC65: 1.133911121 | AD65: 1.108911122 | AE65: 1.083911122
C74: mailto:info@wilwinn.com?subject=SSFA Calculator

Sheet Shock Analysis Support (hidden)
A1: ='Shock Analysis - RW Multiplier'!$A$16 -> 1
B3: MPF Product | P3: Original | Q3: Original | R3: Original | S3: Original | T3: Original | U3: Original | V3: Original | W3: Original | X3: Original | Y3: Original | Z3: Original | AA3: Original | AB3: Original | AC3: Original | AD3: Original | AE3: Original | AF3: Original | AG3: Original | AH3: Original | AI3: Original | AJ3: Original | AK3: Original | AL3: Original | AM3: Original | AN3: Original | AO3: Original
P4: day 1 | Q4: day 1 | R4: day 1 | S4: day 1 | T4: day 1 | U4: day 1 | V4: day 1 | W4: day 1 | X4: day 1 | Y4: day 1 | Z4: day 1 | AA4: day 1 | AB4: day 1 | AC4: day 1 | AD4: day 1 | AE4: day 1 | AF4: day 1 | AG4: day 1 | AH4: day 1 | AI4: day 1 | AJ4: day 1 | AK4: day 1 | AL4: day 1 | AM4: day 1 | AN4: day 1 | AO4: day 1
B5: KG | E5: weighted average capital requirement | N5: inpt | O5: KG | P5: ='Shock Analysis - RW Multiplier'!$M$9 -> 0.04025 | Q5: ='Shock Analysis - RW Multiplier'!$M$9 -> 0.04025 | R5: ='Shock Analysis - RW Multiplier'!$M$9 -> 0.04025 | S5: ='Shock Analysis - RW Multiplier'!$M$9 -> 0.04025 | T5: ='Shock Analysis - RW Multiplier'!$M$9 -> 0.04025 | U5: ='Shock Analysis - RW Multiplier'!$M$9 -> 0.04025 | V5: ='Shock Analysis - RW Multiplier'!$M$9 -> 0.04025 | W5: ='Shock Analysis - RW Multiplier'!$M$9 -> 0.04025 | X5: ='Shock Analysis - RW Multiplier'!$M$9 -> 0.04025 | Y5: ='Shock Analysis - RW Multiplier'!$M$9 -> 0.04025 | Z5: ='Shock Analysis - RW Multiplier'!$M$9 -> 0.04025 | AA5: ='Shock Analysis - RW Multiplier'!$M$9 -> 0.04025 | AB5: ='Shock Analysis - RW Multiplier'!$M$9 -> 0.04025 | AC5: ='Shock Analysis - RW Multiplier'!$M$9 -> 0.04025 | AD5: ='Shock Analysis - RW Multiplier'!$M$9 -> 0.04025 | AE5: ='Shock Analysis - RW Multiplier'!$M$9 -> 0.04025 | AF5: ='Shock Analysis - RW Multiplier'!$M$9 -> 0.04025 | AG5: ='Shock Analysis - RW Multiplier'!$M$9 -> 0.04025 | AH5: ='Shock Analysis - RW Multiplier'!$M$9 -> 0.04025 | AI5: ='Shock Analysis - RW Multiplier'!$M$9 -> 0.04025 | AJ5: ='Shock Analysis - RW Multiplier'!$M$9 -> 0.04025 | AK5: ='Shock Analysis - RW Multiplier'!$M$9 -> 0.04025 | AL5: ='Shock Analysis - RW Multiplier'!$M$9 -> 0.04025 | AM5: ='Shock Analysis - RW Multiplier'!$M$9 -> 0.04025 | AN5: ='Shock Analysis - RW Multiplier'!$M$9 -> 0.04025 | AO5: ='Shock Analysis - RW Multiplier'!$M$9 -> 0.04025
B7: KA = (1 - W) * KG + (0.5 * W) | E7: W is ratio of delinquent to total balance (90 days or more past due) | N7: inpt | O7: W | P7: ='Shock Analysis - RW Multiplier'!$M$10 -> 0.00625 | Q7: ='Shock Analysis - RW Multiplier'!$M$10 -> 0.00625 | R7: ='Shock Analysis - RW Multiplier'!$M$10 -> 0.00625 | S7: ='Shock Analysis - RW Multiplier'!$M$10 -> 0.00625 | T7: ='Shock Analysis - RW Multiplier'!$M$10 -> 0.00625 | U7: ='Shock Analysis - RW Multiplier'!$M$10 -> 0.00625 | V7: ='Shock Analysis - RW Multiplier'!$M$10 -> 0.00625 | W7: ='Shock Analysis - RW Multiplier'!$M$10 -> 0.00625 | X7: ='Shock Analysis - RW Multiplier'!$M$10 -> 0.00625 | Y7: ='Shock Analysis - RW Multiplier'!$M$10 -> 0.00625 | Z7: ='Shock Analysis - RW Multiplier'!$M$10 -> 0.00625 | AA7: ='Shock Analysis - RW Multiplier'!$M$10 -> 0.00625 | AB7: ='Shock Analysis - RW Multiplier'!$M$10 -> 0.00625 | AC7: ='Shock Analysis - RW Multiplier'!$M$10 -> 0.00625 | AD7: ='Shock Analysis - RW Multiplier'!$M$10 -> 0.00625 | AE7: ='Shock Analysis - RW Multiplier'!$M$10 -> 0.00625 | AF7: ='Shock Analysis - RW Multiplier'!$M$10 -> 0.00625 | AG7: ='Shock Analysis - RW Multiplier'!$M$10 -> 0.00625 | AH7: ='Shock Analysis - RW Multiplier'!$M$10 -> 0.00625 | AI7: ='Shock Analysis - RW Multiplier'!$M$10 -> 0.00625 | AJ7: ='Shock Analysis - RW Multiplier'!$M$10 -> 0.00625 | AK7: ='Shock Analysis - RW Multiplier'!$M$10 -> 0.00625 | AL7: ='Shock Analysis - RW Multiplier'!$M$10 -> 0.00625 | AM7: ='Shock Analysis - RW Multiplier'!$M$10 -> 0.00625 | AN7: ='Shock Analysis - RW Multiplier'!$M$10 -> 0.00625 | AO7: ='Shock Analysis - RW Multiplier'!$M$10 -> 0.00625
F8: is 0 at start and might grow over time | O8: KA | P8: =(1-P7)*P5+(0.5*P7) -> 0.0431234375 | Q8: =(1-Q7)*Q5+(0.5*Q7) -> 0.0431234375 | R8: =(1-R7)*R5+(0.5*R7) -> 0.0431234375 | S8: 0.0431234375 | T8: 0.0431234375 | U8: 0.0431234375 | V8: 0.0431234375 | W8: 0.0431234375 | X8: 0.0431234375 | Y8: 0.0431234375 | Z8: 0.0431234375 | AA8: 0.0431234375 | AB8: 0.0431234375 | AC8: 0.0431234375 | AD8: 0.0431234375 | AE8: 0.0431234375 | AF8: 0.0431234375 | AG8: 0.0431234375 | AH8: 0.0431234375 | AI8: 0.0431234375 | AJ8: 0.0431234375 | AK8: =(1-AK7)*AK5+(0.5*AK7) -> 0.0431234375 | AL8: =(1-AL7)*AL5+(0.5*AL7) -> 0.0431234375 | AM8: =(1-AM7)*AM5+(0.5*AM7) -> 0.0431234375 | AN8: =(1-AN7)*AN5+(0.5*AN7) -> 0.0431234375 | AO8: =(1-AO7)*AO5+(0.5*AO7) -> 0.0431234375
F9: KA = KG on day 1
B10: CE Obligation Amount | P10: =VLOOKUP($A$1,'Shock Analysis - RW Multiplier'!$A$46:$D$65,4,FALSE) -> 0.02 | Q10: =VLOOKUP($A$1,'Shock Analysis - RW Multiplier'!$A$46:$D$65,4,FALSE) -> 0.02 | R10: =VLOOKUP($A$1,'Shock Analysis - RW Multiplier'!$A$46:$D$65,4,FALSE) -> 0.02 | S10: =VLOOKUP($A$1,'Shock Analysis - RW Multiplier'!$A$46:$D$65,4,FALSE) -> 0.02 | T10: =VLOOKUP($A$1,'Shock Analysis - RW Multiplier'!$A$46:$D$65,4,FALSE) -> 0.02 | U10: =VLOOKUP($A$1,'Shock Analysis - RW Multiplier'!$A$46:$D$65,4,FALSE) -> 0.02 | V10: =VLOOKUP($A$1,'Shock Analysis - RW Multiplier'!$A$46:$D$65,4,FALSE) -> 0.02 | W10: =VLOOKUP($A$1,'Shock Analysis - RW Multiplier'!$A$46:$D$65,4,FALSE) -> 0.02 | X10: =VLOOKUP($A$1,'Shock Analysis - RW Multiplier'!$A$46:$D$65,4,FALSE) -> 0.02 | Y10: =VLOOKUP($A$1,'Shock Analysis - RW Multiplier'!$A$46:$D$65,4,FALSE) -> 0.02 | Z10: =VLOOKUP($A$1,'Shock Analysis - RW Multiplier'!$A$46:$D$65,4,FALSE) -> 0.02 | AA10: =VLOOKUP($A$1,'Shock Analysis - RW Multiplier'!$A$46:$D$65,4,FALSE) -> 0.02 | AB10: =VLOOKUP($A$1,'Shock Analysis - RW Multiplier'!$A$46:$D$65,4,FALSE) -> 0.02 | AC10: =VLOOKUP($A$1,'Shock Analysis - RW Multiplier'!$A$46:$D$65,4,FALSE) -> 0.02 | AD10: =VLOOKUP($A$1,'Shock Analysis - RW Multiplier'!$A$46:$D$65,4,FALSE) -> 0.02 | AE10: =VLOOKUP($A$1,'Shock Analysis - RW Multiplier'!$A$46:$D$65,4,FALSE) -> 0.02 | AF10: =VLOOKUP($A$1,'Shock Analysis - RW Multiplier'!$A$46:$D$65,4,FALSE) -> 0.02 | AG10: =VLOOKUP($A$1,'Shock Analysis - RW Multiplier'!$A$46:$D$65,4,FALSE) -> 0.02 | AH10: =VLOOKUP($A$1,'Shock Analysis - RW Multiplier'!$A$46:$D$65,4,FALSE) -> 0.02 | AI10: =VLOOKUP($A$1,'Shock Analysis - RW Multiplier'!$A$46:$D$65,4,FALSE) -> 0.02 | AJ10: =VLOOKUP($A$1,'Shock Analysis - RW Multiplier'!$A$46:$D$65,4,FALSE) -> 0.02 | AK10: =VLOOKUP($A$1,'Shock Analysis - RW Multiplier'!$A$46:$D$65,4,FALSE) -> 0.02 | AL10: =VLOOKUP($A$1,'Shock Analysis - RW Multiplier'!$A$46:$D$65,4,FALSE) -> 0.02 | AM10: =VLOOKUP($A$1,'Shock Analysis - RW Multiplier'!$A$46:$D$65,4,FALSE) -> 0.02 | AN10: =VLOOKUP($A$1,'Shock Analysis - RW Multiplier'!$A$46:$D$65,4,FALSE) -> 0.02 | AO10: =VLOOKUP($A$1,'Shock Analysis - RW Multiplier'!$A$46:$D$65,4,FALSE) -> 0.02
B12: A | E12: attachment point for the position | N12: inpt | O12: A | P12: ='Shock Analysis - RW Multiplier'!F44 -> 0.01 | Q12: ='Shock Analysis - RW Multiplier'!G44 -> 0.0108 | R12: ='Shock Analysis - RW Multiplier'!H44 -> 0.0116 | S12: ='Shock Analysis - RW Multiplier'!I44 -> 0.0124 | T12: ='Shock Analysis - RW Multiplier'!J44 -> 0.0132 | U12: ='Shock Analysis - RW Multiplier'!K44 -> 0.014 | V12: ='Shock Analysis - RW Multiplier'!L44 -> 0.0148 | W12: ='Shock Analysis - RW Multiplier'!M44 -> 0.0156 | X12: ='Shock Analysis - RW Multiplier'!N44 -> 0.0164 | Y12: ='Shock Analysis - RW Multiplier'!O44 -> 0.0172 | Z12: ='Shock Analysis - RW Multiplier'!P44 -> 0.018 | AA12: ='Shock Analysis - RW Multiplier'!Q44 -> 0.0188 | AB12: ='Shock Analysis - RW Multiplier'!R44 -> 0.0196 | AC12: ='Shock Analysis - RW Multiplier'!S44 -> 0.0204 | AD12: ='Shock Analysis - RW Multiplier'!T44 -> 0.0212 | AE12: ='Shock Analysis - RW Multiplier'!U44 -> 0.022 | AF12: ='Shock Analysis - RW Multiplier'!V44 -> 0.0228 | AG12: ='Shock Analysis - RW Multiplier'!W44 -> 0.0236 | AH12: ='Shock Analysis - RW Multiplier'!X44 -> 0.0244 | AI12: ='Shock Analysis - RW Multiplier'!Y44 -> 0.0252 | AJ12: ='Shock Analysis - RW Multiplier'!Z44 -> 0.026 | AK12: ='Shock Analysis - RW Multiplier'!AA44 -> 0.0268 | AL12: ='Shock Analysis - RW Multiplier'!AB44 -> 0.0276 | AM12: ='Shock Analysis - RW Multiplier'!AC44 -> 0.0284 | AN12: ='Shock Analysis - RW Multiplier'!AD44 -> 0.0292 | AO12: ='Shock Analysis - RW Multiplier'!AE44 -> 0.03
F13: ratio of current dollar amount of underlying exposures that are subordinated to the position to the current dollar amount of underlying exposures
F15: decimal between 0 and 1
F16: likely at or near 0 at start of pool and might grow to be something material over time with no losses (FLA)
B19: D | E19: detachment point for the position | N19: inpt | O19: D | P19: =P10+P12 -> 0.03 | Q19: =Q10+Q12 -> 0.0308 | R19: =R10+R12 -> 0.0316 | S19: 0.0324 | T19: 0.0332 | U19: 0.034 | V19: 0.0348 | W19: 0.0356 | X19: 0.0364 | Y19: 0.0372 | Z19: 0.038 | AA19: 0.0388 | AB19: 0.0396 | AC19: 0.0404 | AD19: 0.0412 | AE19: 0.042 | AF19: 0.0428 | AG19: 0.0436 | AH19: 0.0444 | AI19: 0.0452 | AJ19: 0.046 | AK19: =AK10+AK12 -> 0.0468 | AL19: 0.0476 | AM19: 0.0484 | AN19: 0.0492 | AO19: 0.05
F20: represents the threshold at which credit losses of principal allocated to the position would result in total loss of principal
F22: decimal between 0 and 1
F23: equals A plus ratio of positions pari passu to total current amount of underlying exposures
B26: P | E26: callibration parmeter | O26: P | P26: 0.5 | Q26: 0.5 | R26: 0.5 | S26: 0.5 | T26: 0.5 | U26: 0.5 | V26: 0.5 | W26: 0.5 | X26: 0.5 | Y26: 0.5 | Z26: 0.5 | AA26: 0.5 | AB26: 0.5 | AC26: 0.5 | AD26: 0.5 | AE26: 0.5 | AF26: 0.5 | AG26: 0.5 | AH26: 0.5 | AI26: 0.5 | AJ26: 0.5 | AK26: 0.5 | AL26: 0.5 | AM26: 0.5 | AN26: 0.5 | AO26: 0.5
F27: .5 for securitizations that are not re-securitizations
B29: alpha | E29: -1 | O29: alpha | P29: =-1/(P26*P8) -> -46.37849197 | Q29: =-1/(Q26*Q8) -> -46.37849197 | R29: =-1/(R26*R8) -> -46.37849197 | S29: -46.37849197 | T29: -46.37849197 | U29: -46.37849197 | V29: -46.37849197 | W29: -46.37849197 | X29: -46.37849197 | Y29: -46.37849197 | Z29: -46.37849197 | AA29: -46.37849197 | AB29: -46.37849197 | AC29: -46.37849197 | AD29: -46.37849197 | AE29: -46.37849197 | AF29: -46.37849197 | AG29: -46.37849197 | AH29: -46.37849197 | AI29: -46.37849197 | AJ29: -46.37849197 | AK29: =-1/(AK26*AK8) -> -46.37849197 | AL29: -46.37849197 | AM29: -46.37849197 | AN29: -46.37849197 | AO29: -46.37849197
E30: P * KA
B33: u | E33: D - KA | O33: u | P33: =P19-P8 -> -0.0131234375 | Q33: =Q19-Q8 -> -0.0123234375 | R33: =R19-R8 -> -0.0115234375 | S33: -0.0107234375 | T33: -0.0099234375 | U33: -0.0091234375 | V33: -0.0083234375 | W33: -0.0075234375 | X33: -0.0067234375 | Y33: -0.0059234375 | Z33: -0.0051234375 | AA33: -0.0043234375 | AB33: -0.0035234375 | AC33: -0.0027234375 | AD33: -0.0019234375 | AE33: -0.0011234375 | AF33: -0.0003234375 | AG33: 0.0004765625 | AH33: 0.0012765625 | AI33: 0.0020765625 | AJ33: 0.0028765625 | AK33: =AK19-AK8 -> 0.0036765625 | AL33: 0.0044765625 | AM33: 0.0052765625 | AN33: 0.0060765625 | AO33: 0.0068765625
B35: L | E35: A - KA | O35: L | P35: =MAX(P12-P8,0) -> 0 | Q35: =MAX(Q12-Q8,0) -> 0 | R35: =MAX(R12-R8,0) -> 0 | S35: 0 | T35: 0 | U35: 0 | V35: 0 | W35: 0 | X35: 0 | Y35: 0 | Z35: 0 | AA35: 0 | AB35: 0 | AC35: 0 | AD35: 0 | AE35: 0 | AF35: 0 | AG35: 0 | AH35: 0 | AI35: 0 | AJ35: 0 | AK35: =MAX(AK12-AK8,0) -> 0 | AL35: 0 | AM35: 0 | AN35: 0 | AO35: 0
B38: KSSFA | E38: e^(alpha*u) - e^(alpha*L) | L38: e= | M38: 2.71828 | O38: KSSFA | P38: =IFERROR((EXP(P29*P33)-EXP(P29*P35))/(P29*(P33-P35)),0) -> 1.376729315 | Q38: =IFERROR((EXP(Q29*Q33)-EXP(Q29*Q35))/(Q29*(Q33-Q35)),0) -> 1.348975248 | R38: =IFERROR((EXP(R29*R33)-EXP(R29*R35))/(R29*(R33-R35)),0) -> 1.321929881 | S38: 1.295573259 | T38: 1.26988602 | U38: 1.244849378 | V38: 1.220445102 | W38: 1.196655505 | X38: 1.173463421 | Y38: 1.150852192 | Z38: 1.128805653 | AA38: 1.107308114 | AB38: 1.08634435 | AC38: 1.065899583 | AD38: 1.045959468 | AE38: 1.026510084 | AF38: 1.007537916 | AG38: 0.9890298453 | AH38: 0.9709731388 | AI38: 0.9533554338 | AJ38: 0.9361647289 | AK38: =IFERROR((EXP(AK29*AK33)-EXP(AK29*AK35))/(AK29*(AK33-AK35)),0) -> 0.9193893729 | AL38: 0.9030180534 | AM38: 0.8870397872 | AN38: 0.87144391 | AO38: 0.856220067
E39: alpha (u-L)
B42: Risk Weight (RW) if D < KA | E42: 12.5 | P42: =IF(P19<=P8,1250%,0) -> 12.5 | Q42: =IF(Q19<=Q8,1250%,0) -> 12.5 | R42: =IF(R19<=R8,1250%,0) -> 12.5 | S42: 12.5 | T42: 12.5 | U42: 12.5 | V42: 12.5 | W42: 12.5 | X42: 12.5 | Y42: 12.5 | Z42: 12.5 | AA42: 12.5 | AB42: 12.5 | AC42: 12.5 | AD42: 12.5 | AE42: 12.5 | AF42: 12.5 | AG42: 0 | AH42: 0 | AI42: 0 | AJ42: 0 | AK42: =IF(AK19<=AK8,1250%,0) -> 0 | AL42: 0 | AM42: 0 | AN42: 0 | AO42: 0
B43: Risk Weight (RW) if A >= KA | E43: KSSFA*1250 | P43: =IF(P12>=P8,P38*12.5,0) -> 0 | Q43: =IF(Q12>=Q8,Q38*12.5,0) -> 0 | R43: =IF(R12>=R8,R38*12.5,0) -> 0 | S43: 0 | T43: 0 | U43: 0 | V43: 0 | W43: 0 | X43: 0 | Y43: 0 | Z43: 0 | AA43: 0 | AB43: 0 | AC43: 0 | AD43: 0 | AE43: 0 | AF43: 0 | AG43: 0 | AH43: 0 | AI43: 0 | AJ43: 0 | AK43: =IF(AK12>=AK8,AK38*12.5,0) -> 0 | AL43: 0 | AM43: 0 | AN43: 0 | AO43: 0
B44: Risk Weight (RW) = | E44: [(KA-A)/(D-A)*1250%]+[(D-KA)/(D-A)*1250%*KSSFA] | P44: =IF(P42>0,P42,IF(P43>0,P43,(((P8-P12)/(P19-P12))*1250%)+(((P19-P8)/(P19-P12))*1250%*P38))) -> 12.5 | Q44: =IF(Q42>0,Q42,IF(Q43>0,Q43,(((Q8-Q12)/(Q19-Q12))*1250%)+(((Q19-Q8)/(Q19-Q12))*1250%*Q38))) -> 12.5 | R44: =IF(R42>0,R42,IF(R43>0,R43,(((R8-R12)/(R19-R12))*1250%)+(((R19-R8)/(R19-R12))*1250%*R38))) -> 12.5 | S44: 12.5 | T44: 12.5 | U44: 12.5 | V44: 12.5 | W44: 12.5 | X44: 12.5 | Y44: 12.5 | Z44: 12.5 | AA44: 12.5 | AB44: 12.5 | AC44: 12.5 | AD44: 12.5 | AE44: 12.5 | AF44: 12.5 | AG44: 12.49673252 | AH44: 12.47684087 | AI44: 12.43946228 | AJ44: 12.38523366 | AK44: =IF(AK42>0,AK42,IF(AK43>0,AK43,(((AK8-AK12)/(AK19-AK12))*1250%)+(((AK19-AK8)/(AK19-AK12))*1250%*AK38))) -> 12.31476874 | AL44: =IF(AL42>0,AL42,IF(AL43>0,AL43,(((AL8-AL12)/(AL19-AL12))*1250%)+(((AL19-AL8)/(AL19-AL12))*1250%*AL38))) -> 12.22865891 | AM44: =IF(AM42>0,AM42,IF(AM43>0,AM43,(((AM8-AM12)/(AM19-AM12))*1250%)+(((AM19-AM8)/(AM19-AM12))*1250%*AM38))) -> 12.12747399 | AN44: =IF(AN42>0,AN42,IF(AN43>0,AN43,(((AN8-AN12)/(AN19-AN12))*1250%)+(((AN19-AN8)/(AN19-AN12))*1250%*AN38))) -> 12.01176305 | AO44: =IF(AO42>0,AO42,IF(AO43>0,AO43,(((AO8-AO12)/(AO19-AO12))*1250%)+(((AO19-AO8)/(AO19-AO12))*1250%*AO38))) -> 11.88205519
B46: Final Risk Weight (with 20% minimum) | P46: =IF(P44*P10<0.2,0.2/P10,P44) -> 12.5 | Q46: =IF(Q44*Q10<0.2,0.2/Q10,Q44) -> 12.5 | R46: 12.5 | S46: 12.5 | T46: 12.5 | U46: 12.5 | V46: 12.5 | W46: 12.5 | X46: 12.5 | Y46: 12.5 | Z46: 12.5 | AA46: 12.5 | AB46: 12.5 | AC46: 12.5 | AD46: 12.5 | AE46: 12.5 | AF46: 12.5 | AG46: 12.49673252 | AH46: 12.47684087 | AI46: 12.43946228 | AJ46: 12.38523366 | AK46: 12.31476874 | AL46: 12.22865891 | AM46: 12.12747399 | AN46: 12.01176305 | AO46: 11.88205519

Sheet Shock Analysis Support 2 (hidden)
A1: ='Shock Analysis - RW Multiplier'!$A$16 -> 1
B3: MPF Product | P3: Original | Q3: Original | R3: Original | S3: Original | T3: Original | U3: Original | V3: Original | W3: Original | X3: Original | Y3: Original | Z3: Original | AA3: Original | AB3: Original | AC3: Original | AD3: Original | AE3: Original | AF3: Original | AG3: Original | AH3: Original | AI3: Original | AJ3: Original | AK3: Original | AL3: Original | AM3: Original | AN3: Original | AO3: Original
P4: day 1 | Q4: day 1 | R4: day 1 | S4: day 1 | T4: day 1 | U4: day 1 | V4: day 1 | W4: day 1 | X4: day 1 | Y4: day 1 | Z4: day 1 | AA4: day 1 | AB4: day 1 | AC4: day 1 | AD4: day 1 | AE4: day 1 | AF4: day 1 | AG4: day 1 | AH4: day 1 | AI4: day 1 | AJ4: day 1 | AK4: day 1 | AL4: day 1 | AM4: day 1 | AN4: day 1 | AO4: day 1
B5: KG | E5: weighted average capital requirement | N5: inpt | O5: KG | P5: ='Shock Analysis - RW Multiplier'!$M$9 -> 0.04025 | Q5: ='Shock Analysis - RW Multiplier'!$M$9 -> 0.04025 | R5: ='Shock Analysis - RW Multiplier'!$M$9 -> 0.04025 | S5: ='Shock Analysis - RW Multiplier'!$M$9 -> 0.04025 | T5: ='Shock Analysis - RW Multiplier'!$M$9 -> 0.04025 | U5: ='Shock Analysis - RW Multiplier'!$M$9 -> 0.04025 | V5: ='Shock Analysis - RW Multiplier'!$M$9 -> 0.04025 | W5: ='Shock Analysis - RW Multiplier'!$M$9 -> 0.04025 | X5: ='Shock Analysis - RW Multiplier'!$M$9 -> 0.04025 | Y5: ='Shock Analysis - RW Multiplier'!$M$9 -> 0.04025 | Z5: ='Shock Analysis - RW Multiplier'!$M$9 -> 0.04025 | AA5: ='Shock Analysis - RW Multiplier'!$M$9 -> 0.04025 | AB5: ='Shock Analysis - RW Multiplier'!$M$9 -> 0.04025 | AC5: ='Shock Analysis - RW Multiplier'!$M$9 -> 0.04025 | AD5: ='Shock Analysis - RW Multiplier'!$M$9 -> 0.04025 | AE5: ='Shock Analysis - RW Multiplier'!$M$9 -> 0.04025 | AF5: ='Shock Analysis - RW Multiplier'!$M$9 -> 0.04025 | AG5: ='Shock Analysis - RW Multiplier'!$M$9 -> 0.04025 | AH5: ='Shock Analysis - RW Multiplier'!$M$9 -> 0.04025 | AI5: ='Shock Analysis - RW Multiplier'!$M$9 -> 0.04025 | AJ5: ='Shock Analysis - RW Multiplier'!$M$9 -> 0.04025 | AK5: ='Shock Analysis - RW Multiplier'!$M$9 -> 0.04025 | AL5: ='Shock Analysis - RW Multiplier'!$M$9 -> 0.04025 | AM5: ='Shock Analysis - RW Multiplier'!$M$9 -> 0.04025 | AN5: ='Shock Analysis - RW Multiplier'!$M$9 -> 0.04025 | AO5: ='Shock Analysis - RW Multiplier'!$M$9 -> 0.04025
B7: KA = (1 - W) * KG + (0.5 * W) | E7: W is ratio of delinquent to total balance (90 days or more past due) | N7: inpt | O7: W | P7: ='Shock Analysis - RW Multiplier'!$M$10 -> 0.00625 | Q7: ='Shock Analysis - RW Multiplier'!$M$10 -> 0.00625 | R7: ='Shock Analysis - RW Multiplier'!$M$10 -> 0.00625 | S7: ='Shock Analysis - RW Multiplier'!$M$10 -> 0.00625 | T7: ='Shock Analysis - RW Multiplier'!$M$10 -> 0.00625 | U7: ='Shock Analysis - RW Multiplier'!$M$10 -> 0.00625 | V7: ='Shock Analysis - RW Multiplier'!$M$10 -> 0.00625 | W7: ='Shock Analysis - RW Multiplier'!$M$10 -> 0.00625 | X7: ='Shock Analysis - RW Multiplier'!$M$10 -> 0.00625 | Y7: ='Shock Analysis - RW Multiplier'!$M$10 -> 0.00625 | Z7: ='Shock Analysis - RW Multiplier'!$M$10 -> 0.00625 | AA7: ='Shock Analysis - RW Multiplier'!$M$10 -> 0.00625 | AB7: ='Shock Analysis - RW Multiplier'!$M$10 -> 0.00625 | AC7: ='Shock Analysis - RW Multiplier'!$M$10 -> 0.00625 | AD7: ='Shock Analysis - RW Multiplier'!$M$10 -> 0.00625 | AE7: ='Shock Analysis - RW Multiplier'!$M$10 -> 0.00625 | AF7: ='Shock Analysis - RW Multiplier'!$M$10 -> 0.00625 | AG7: ='Shock Analysis - RW Multiplier'!$M$10 -> 0.00625 | AH7: ='Shock Analysis - RW Multiplier'!$M$10 -> 0.00625 | AI7: ='Shock Analysis - RW Multiplier'!$M$10 -> 0.00625 | AJ7: ='Shock Analysis - RW Multiplier'!$M$10 -> 0.00625 | AK7: ='Shock Analysis - RW Multiplier'!$M$10 -> 0.00625 | AL7: ='Shock Analysis - RW Multiplier'!$M$10 -> 0.00625 | AM7: ='Shock Analysis - RW Multiplier'!$M$10 -> 0.00625 | AN7: ='Shock Analysis - RW Multiplier'!$M$10 -> 0.00625 | AO7: ='Shock Analysis - RW Multiplier'!$M$10 -> 0.00625
F8: is 0 at start and might grow over time | O8: KA | P8: =(1-P7)*P5+(0.5*P7) -> 0.0431234375 | Q8: =(1-Q7)*Q5+(0.5*Q7) -> 0.0431234375 | R8: =(1-R7)*R5+(0.5*R7) -> 0.0431234375 | S8: 0.0431234375 | T8: 0.0431234375 | U8: 0.0431234375 | V8: 0.0431234375 | W8: 0.0431234375 | X8: 0.0431234375 | Y8: 0.0431234375 | Z8: 0.0431234375 | AA8: 0.0431234375 | AB8: 0.0431234375 | AC8: 0.0431234375 | AD8: 0.0431234375 | AE8: 0.0431234375 | AF8: 0.0431234375 | AG8: 0.0431234375 | AH8: 0.0431234375 | AI8: 0.0431234375 | AJ8: 0.0431234375 | AK8: 0.0431234375 | AL8: 0.0431234375 | AM8: 0.0431234375 | AN8: 0.0431234375 | AO8: 0.0431234375
F9: KA = KG on day 1
B10: CE Obligation Amount | P10: =VLOOKUP($A$1,'Shock Analysis - RW Multiplier'!$A$46:$D$65,4,FALSE) -> 0.02 | Q10: =VLOOKUP($A$1,'Shock Analysis - RW Multiplier'!$A$46:$D$65,4,FALSE) -> 0.02 | R10: =VLOOKUP($A$1,'Shock Analysis - RW Multiplier'!$A$46:$D$65,4,FALSE) -> 0.02 | S10: =VLOOKUP($A$1,'Shock Analysis - RW Multiplier'!$A$46:$D$65,4,FALSE) -> 0.02 | T10: =VLOOKUP($A$1,'Shock Analysis - RW Multiplier'!$A$46:$D$65,4,FALSE) -> 0.02 | U10: =VLOOKUP($A$1,'Shock Analysis - RW Multiplier'!$A$46:$D$65,4,FALSE) -> 0.02 | V10: =VLOOKUP($A$1,'Shock Analysis - RW Multiplier'!$A$46:$D$65,4,FALSE) -> 0.02 | W10: =VLOOKUP($A$1,'Shock Analysis - RW Multiplier'!$A$46:$D$65,4,FALSE) -> 0.02 | X10: =VLOOKUP($A$1,'Shock Analysis - RW Multiplier'!$A$46:$D$65,4,FALSE) -> 0.02 | Y10: =VLOOKUP($A$1,'Shock Analysis - RW Multiplier'!$A$46:$D$65,4,FALSE) -> 0.02 | Z10: =VLOOKUP($A$1,'Shock Analysis - RW Multiplier'!$A$46:$D$65,4,FALSE) -> 0.02 | AA10: =VLOOKUP($A$1,'Shock Analysis - RW Multiplier'!$A$46:$D$65,4,FALSE) -> 0.02 | AB10: =VLOOKUP($A$1,'Shock Analysis - RW Multiplier'!$A$46:$D$65,4,FALSE) -> 0.02 | AC10: =VLOOKUP($A$1,'Shock Analysis - RW Multiplier'!$A$46:$D$65,4,FALSE) -> 0.02 | AD10: =VLOOKUP($A$1,'Shock Analysis - RW Multiplier'!$A$46:$D$65,4,FALSE) -> 0.02 | AE10: =VLOOKUP($A$1,'Shock Analysis - RW Multiplier'!$A$46:$D$65,4,FALSE) -> 0.02 | AF10: =VLOOKUP($A$1,'Shock Analysis - RW Multiplier'!$A$46:$D$65,4,FALSE) -> 0.02 | AG10: =VLOOKUP($A$1,'Shock Analysis - RW Multiplier'!$A$46:$D$65,4,FALSE) -> 0.02 | AH10: =VLOOKUP($A$1,'Shock Analysis - RW Multiplier'!$A$46:$D$65,4,FALSE) -> 0.02 | AI10: =VLOOKUP($A$1,'Shock Analysis - RW Multiplier'!$A$46:$D$65,4,FALSE) -> 0.02 | AJ10: =VLOOKUP($A$1,'Shock Analysis - RW Multiplier'!$A$46:$D$65,4,FALSE) -> 0.02 | AK10: =VLOOKUP($A$1,'Shock Analysis - RW Multiplier'!$A$46:$D$65,4,FALSE) -> 0.02 | AL10: =VLOOKUP($A$1,'Shock Analysis - RW Multiplier'!$A$46:$D$65,4,FALSE) -> 0.02 | AM10: =VLOOKUP($A$1,'Shock Analysis - RW Multiplier'!$A$46:$D$65,4,FALSE) -> 0.02 | AN10: =VLOOKUP($A$1,'Shock Analysis - RW Multiplier'!$A$46:$D$65,4,FALSE) -> 0.02 | AO10: =VLOOKUP($A$1,'Shock Analysis - RW Multiplier'!$A$46:$D$65,4,FALSE) -> 0.02
B12: A | E12: attachment point for the position | N12: inpt | O12: A | P12: ='Shock Analysis - RW Multiplier'!F19 -> 0 | Q12: ='Shock Analysis - RW Multiplier'!G19 -> 0.0006 | R12: ='Shock Analysis - RW Multiplier'!H19 -> 0.0012 | S12: ='Shock Analysis - RW Multiplier'!I19 -> 0.0018 | T12: ='Shock Analysis - RW Multiplier'!J19 -> 0.0024 | U12: ='Shock Analysis - RW Multiplier'!K19 -> 0.003 | V12: ='Shock Analysis - RW Multiplier'!L19 -> 0.0036 | W12: ='Shock Analysis - RW Multiplier'!M19 -> 0.0042 | X12: ='Shock Analysis - RW Multiplier'!N19 -> 0.0048 | Y12: ='Shock Analysis - RW Multiplier'!O19 -> 0.0054 | Z12: ='Shock Analysis - RW Multiplier'!P19 -> 0.006 | AA12: ='Shock Analysis - RW Multiplier'!Q19 -> 0.0066 | AB12: ='Shock Analysis - RW Multiplier'!R19 -> 0.0072 | AC12: ='Shock Analysis - RW Multiplier'!S19 -> 0.0078 | AD12: ='Shock Analysis - RW Multiplier'!T19 -> 0.0084 | AE12: ='Shock Analysis - RW Multiplier'!U19 -> 0.009 | AF12: ='Shock Analysis - RW Multiplier'!V19 -> 0.0096 | AG12: ='Shock Analysis - RW Multiplier'!W19 -> 0.0102 | AH12: ='Shock Analysis - RW Multiplier'!X19 -> 0.0108 | AI12: ='Shock Analysis - RW Multiplier'!Y19 -> 0.0114 | AJ12: ='Shock Analysis - RW Multiplier'!Z19 -> 0.012 | AK12: ='Shock Analysis - RW Multiplier'!AA19 -> 0.0126 | AL12: ='Shock Analysis - RW Multiplier'!AB19 -> 0.0132 | AM12: ='Shock Analysis - RW Multiplier'!AC19 -> 0.0138 | AN12: ='Shock Analysis - RW Multiplier'!AD19 -> 0.0144 | AO12: ='Shock Analysis - RW Multiplier'!AE19 -> 0.015
F13: ratio of current dollar amount of underlying exposures that are subordinated to the position to the current dollar amount of underlying exposures
F15: decimal between 0 and 1
F16: likely at or near 0 at start of pool and might grow to be something material over time with no losses (FLA)
B19: D | E19: detachment point for the position | N19: inpt | O19: D | P19: =P10+P12 -> 0.02 | Q19: =Q10+Q12 -> 0.0206 | R19: =R10+R12 -> 0.0212 | S19: 0.0218 | T19: 0.0224 | U19: 0.023 | V19: 0.0236 | W19: 0.0242 | X19: 0.0248 | Y19: 0.0254 | Z19: 0.026 | AA19: 0.0266 | AB19: 0.0272 | AC19: 0.0278 | AD19: 0.0284 | AE19: 0.029 | AF19: 0.0296 | AG19: 0.0302 | AH19: 0.0308 | AI19: 0.0314 | AJ19: 0.032 | AK19: 0.0326 | AL19: 0.0332 | AM19: 0.0338 | AN19: 0.0344 | AO19: 0.035
F20: represents the threshold at which credit losses of principal allocated to the position would result in total loss of principal
F22: decimal between 0 and 1
F23: equals A plus ratio of positions pari passu to total current amount of underlying exposures
B26: P | E26: callibration parmeter | O26: P | P26: 0.5 | Q26: 0.5 | R26: 0.5 | S26: 0.5 | T26: 0.5 | U26: 0.5 | V26: 0.5 | W26: 0.5 | X26: 0.5 | Y26: 0.5 | Z26: 0.5 | AA26: 0.5 | AB26: 0.5 | AC26: 0.5 | AD26: 0.5 | AE26: 0.5 | AF26: 0.5 | AG26: 0.5 | AH26: 0.5 | AI26: 0.5 | AJ26: 0.5 | AK26: 0.5 | AL26: 0.5 | AM26: 0.5 | AN26: 0.5 | AO26: 0.5
F27: .5 for securitizations that are not re-securitizations
B29: alpha | E29: -1 | O29: alpha | P29: =-1/(P26*P8) -> -46.37849197 | Q29: =-1/(Q26*Q8) -> -46.37849197 | R29: =-1/(R26*R8) -> -46.37849197 | S29: -46.37849197 | T29: -46.37849197 | U29: -46.37849197 | V29: -46.37849197 | W29: -46.37849197 | X29: -46.37849197 | Y29: -46.37849197 | Z29: -46.37849197 | AA29: -46.37849197 | AB29: -46.37849197 | AC29: -46.37849197 | AD29: -46.37849197 | AE29: -46.37849197 | AF29: -46.37849197 | AG29: -46.37849197 | AH29: -46.37849197 | AI29: -46.37849197 | AJ29: -46.37849197 | AK29: -46.37849197 | AL29: -46.37849197 | AM29: -46.37849197 | AN29: -46.37849197 | AO29: -46.37849197
E30: P * KA
B33: u | E33: D - KA | O33: u | P33: =P19-P8 -> -0.0231234375 | Q33: =Q19-Q8 -> -0.0225234375 | R33: =R19-R8 -> -0.0219234375 | S33: -0.0213234375 | T33: -0.0207234375 | U33: -0.0201234375 | V33: -0.0195234375 | W33: -0.0189234375 | X33: -0.0183234375 | Y33: -0.0177234375 | Z33: -0.0171234375 | AA33: -0.0165234375 | AB33: -0.0159234375 | AC33: -0.0153234375 | AD33: -0.0147234375 | AE33: -0.0141234375 | AF33: -0.0135234375 | AG33: -0.0129234375 | AH33: -0.0123234375 | AI33: -0.0117234375 | AJ33: -0.0111234375 | AK33: -0.0105234375 | AL33: -0.0099234375 | AM33: -0.0093234375 | AN33: -0.0087234375 | AO33: -0.0081234375
B35: L | E35: A - KA | O35: L | P35: =MAX(P12-P8,0) -> 0 | Q35: =MAX(Q12-Q8,0) -> 0 | R35: =MAX(R12-R8,0) -> 0 | S35: 0 | T35: 0 | U35: 0 | V35: 0 | W35: 0 | X35: 0 | Y35: 0 | Z35: 0 | AA35: 0 | AB35: 0 | AC35: 0 | AD35: 0 | AE35: 0 | AF35: 0 | AG35: 0 | AH35: 0 | AI35: 0 | AJ35: 0 | AK35: 0 | AL35: 0 | AM35: 0 | AN35: 0 | AO35: 0
B38: KSSFA | E38: e^(alpha*u) - e^(alpha*L) | L38: e= | M38: 2.71828 | O38: KSSFA | P38: =IFERROR((EXP(P29*P33)-EXP(P29*P35))/(P29*(P33-P35)),0) -> 1.79263231 | Q38: =IFERROR((EXP(Q29*Q33)-EXP(Q29*Q35))/(Q29*(Q33-Q35)),0) -> 1.763607791 | R38: =IFERROR((EXP(R29*R33)-EXP(R29*R35))/(R29*(R33-R35)),0) -> 1.735159318 | S38: 1.707274438 | T38: 1.679940981 | U38: 1.653147053 | V38: 1.626881028 | W38: 1.601131545 | X38: 1.575887499 | Y38: 1.551138037 | Z38: 1.526872551 | AA38: 1.50308067 | AB38: 1.479752261 | AC38: 1.456877415 | AD38: 1.434446451 | AE38: 1.412449902 | AF38: 1.390878514 | AG38: 1.369723244 | AH38: 1.348975248 | AI38: 1.328625884 | AJ38: 1.308666701 | AK38: 1.289089438 | AL38: 1.26988602 | AM38: 1.251048551 | AN38: 1.232569312 | AO38: 1.214440756
E39: alpha (u-L)
B42: Risk Weight (RW) if D < KA | E42: 12.5 | P42: =IF(P19<=P8,1250%,0) -> 12.5 | Q42: =IF(Q19<=Q8,1250%,0) -> 12.5 | R42: =IF(R19<=R8,1250%,0) -> 12.5 | S42: 12.5 | T42: 12.5 | U42: 12.5 | V42: 12.5 | W42: 12.5 | X42: 12.5 | Y42: 12.5 | Z42: 12.5 | AA42: 12.5 | AB42: 12.5 | AC42: 12.5 | AD42: 12.5 | AE42: 12.5 | AF42: 12.5 | AG42: 12.5 | AH42: 12.5 | AI42: 12.5 | AJ42: 12.5 | AK42: 12.5 | AL42: 12.5 | AM42: 12.5 | AN42: 12.5 | AO42: 12.5
B43: Risk Weight (RW) if A >= KA | E43: KSSFA*1250 | P43: =IF(P12>=P8,P38*12.5,0) -> 0 | Q43: =IF(Q12>=Q8,Q38*12.5,0) -> 0 | R43: =IF(R12>=R8,R38*12.5,0) -> 0 | S43: 0 | T43: 0 | U43: 0 | V43: 0 | W43: 0 | X43: 0 | Y43: 0 | Z43: 0 | AA43: 0 | AB43: 0 | AC43: 0 | AD43: 0 | AE43: 0 | AF43: 0 | AG43: 0 | AH43: 0 | AI43: 0 | AJ43: 0 | AK43: 0 | AL43: 0 | AM43: 0 | AN43: 0 | AO43: 0
B44: Risk Weight (RW) = | E44: [(KA-A)/(D-A)*1250%]+[(D-KA)/(D-A)*1250%*KSSFA] | P44: =IF(P42>0,P42,IF(P43>0,P43,(((P8-P12)/(P19-P12))*1250%)+(((P19-P8)/(P19-P12))*1250%*P38))) -> 12.5 | Q44: =IF(Q42>0,Q42,IF(Q43>0,Q43,(((Q8-Q12)/(Q19-Q12))*1250%)+(((Q19-Q8)/(Q19-Q12))*1250%*Q38))) -> 12.5 | R44: =IF(R42>0,R42,IF(R43>0,R43,(((R8-R12)/(R19-R12))*1250%)+(((R19-R8)/(R19-R12))*1250%*R38))) -> 12.5 | S44: 12.5 | T44: 12.5 | U44: 12.5 | V44: 12.5 | W44: 12.5 | X44: 12.5 | Y44: 12.5 | Z44: 12.5 | AA44: 12.5 | AB44: 12.5 | AC44: 12.5 | AD44: 12.5 | AE44: 12.5 | AF44: 12.5 | AG44: 12.5 | AH44: 12.5 | AI44: 12.5 | AJ44: 12.5 | AK44: 12.5 | AL44: 12.5 | AM44: 12.5 | AN44: 12.5 | AO44: 12.5
B46: Final Risk Weight (with 20% minimum) | P46: =IF(P44*P10<0.2,0.2/P10,P44) -> 12.5 | Q46: =IF(Q44*Q10<0.2,0.2/Q10,Q44) -> 12.5 | R46: 12.5 | S46: 12.5 | T46: 12.5 | U46: 12.5 | V46: 12.5 | W46: 12.5 | X46: 12.5 | Y46: 12.5 | Z46: 12.5 | AA46: 12.5 | AB46: 12.5 | AC46: 12.5 | AD46: 12.5 | AE46: 12.5 | AF46: 12.5 | AG46: 12.5 | AH46: 12.5 | AI46: 12.5 | AJ46: 12.5 | AK46: 12.5 | AL46: 12.5 | AM46: 12.5 | AN46: 12.5 | AO46: 12.5

Sheet Shock Analysis - RW %
C6: BASEL III Risk Weight % Shock Analysis
M9: ='Shock Analysis - RW Multiplier'!$M$9 -> 0.04025
M10: ='Shock Analysis - RW Multiplier'!$M$10 -> 0.00625
A16: 1
C17: MPF - Original
F18: First Loss Account
F19: 0 | G19: 0.0006 | H19: 0.0012 | I19: 0.0018 | J19: 0.0024 | K19: 0.003 | L19: 0.0036 | M19: 0.0042 | N19: 0.0048 | O19: 0.0054 | P19: 0.006 | Q19: 0.0066 | R19: 0.0072 | S19: 0.0078 | T19: 0.0084 | U19: 0.009 | V19: 0.0096 | W19: 0.0102 | X19: 0.0108 | Y19: 0.0114 | Z19: 0.012 | AA19: 0.0126 | AB19: 0.0132 | AC19: 0.0138 | AD19: 0.0144 | AE19: 0.015
E20: =A16 -> 1
A21: 1 | C21: Credit Enhancement Obligation | D21: 0.02 | E21: =A21 -> 1 | F21: =MAX('Shock Analysis - RW Multiplier'!$D21*'Shock Analysis - RW Multiplier'!F21,20%) -> 0.25 | G21: =MAX('Shock Analysis - RW Multiplier'!$D21*'Shock Analysis - RW Multiplier'!G21,20%) -> 0.25 | H21: =MAX('Shock Analysis - RW Multiplier'!$D21*'Shock Analysis - RW Multiplier'!H21,20%) -> 0.25 | I21: =MAX('Shock Analysis - RW Multiplier'!$D21*'Shock Analysis - RW Multiplier'!I21,20%) -> 0.25 | J21: =MAX('Shock Analysis - RW Multiplier'!$D21*'Shock Analysis - RW Multiplier'!J21,20%) -> 0.25 | K21: =MAX('Shock Analysis - RW Multiplier'!$D21*'Shock Analysis - RW Multiplier'!K21,20%) -> 0.25 | L21: =MAX('Shock Analysis - RW Multiplier'!$D21*'Shock Analysis - RW Multiplier'!L21,20%) -> 0.25 | M21: =MAX('Shock Analysis - RW Multiplier'!$D21*'Shock Analysis - RW Multiplier'!M21,20%) -> 0.25 | N21: =MAX('Shock Analysis - RW Multiplier'!$D21*'Shock Analysis - RW Multiplier'!N21,20%) -> 0.25 | O21: =MAX('Shock Analysis - RW Multiplier'!$D21*'Shock Analysis - RW Multiplier'!O21,20%) -> 0.25 | P21: =MAX('Shock Analysis - RW Multiplier'!$D21*'Shock Analysis - RW Multiplier'!P21,20%) -> 0.25 | Q21: =MAX('Shock Analysis - RW Multiplier'!$D21*'Shock Analysis - RW Multiplier'!Q21,20%) -> 0.25 | R21: =MAX('Shock Analysis - RW Multiplier'!$D21*'Shock Analysis - RW Multiplier'!R21,20%) -> 0.25 | S21: =MAX('Shock Analysis - RW Multiplier'!$D21*'Shock Analysis - RW Multiplier'!S21,20%) -> 0.25 | T21: =MAX('Shock Analysis - RW Multiplier'!$D21*'Shock Analysis - RW Multiplier'!T21,20%) -> 0.25 | U21: =MAX('Shock Analysis - RW Multiplier'!$D21*'Shock Analysis - RW Multiplier'!U21,20%) -> 0.25 | V21: =MAX('Shock Analysis - RW Multiplier'!$D21*'Shock Analysis - RW Multiplier'!V21,20%) -> 0.25 | W21: =MAX('Shock Analysis - RW Multiplier'!$D21*'Shock Analysis - RW Multiplier'!W21,20%) -> 0.25 | X21: =MAX('Shock Analysis - RW Multiplier'!$D21*'Shock Analysis - RW Multiplier'!X21,20%) -> 0.25 | Y21: =MAX('Shock Analysis - RW Multiplier'!$D21*'Shock Analysis - RW Multiplier'!Y21,20%) -> 0.25 | Z21: =MAX('Shock Analysis - RW Multiplier'!$D21*'Shock Analysis - RW Multiplier'!Z21,20%) -> 0.25 | AA21: =MAX('Shock Analysis - RW Multiplier'!$D21*'Shock Analysis - RW Multiplier'!AA21,20%) -> 0.25 | AB21: =MAX('Shock Analysis - RW Multiplier'!$D21*'Shock Analysis - RW Multiplier'!AB21,20%) -> 0.25 | AC21: =MAX('Shock Analysis - RW Multiplier'!$D21*'Shock Analysis - RW Multiplier'!AC21,20%) -> 0.25 | AD21: =MAX('Shock Analysis - RW Multiplier'!$D21*'Shock Analysis - RW Multiplier'!AD21,20%) -> 0.25 | AE21: =MAX('Shock Analysis - RW Multiplier'!$D21*'Shock Analysis - RW Multiplier'!AE21,20%) -> 0.25
A22: 2 | D22: 0.025 | E22: =A22 -> 2 | F22: =MAX('Shock Analysis - RW Multiplier'!$D22*'Shock Analysis - RW Multiplier'!F22,20%) -> 0.3125 | G22: =MAX('Shock Analysis - RW Multiplier'!$D22*'Shock Analysis - RW Multiplier'!G22,20%) -> 0.3125 | H22: =MAX('Shock Analysis - RW Multiplier'!$D22*'Shock Analysis - RW Multiplier'!H22,20%) -> 0.3125 | I22: =MAX('Shock Analysis - RW Multiplier'!$D22*'Shock Analysis - RW Multiplier'!I22,20%) -> 0.3125 | J22: =MAX('Shock Analysis - RW Multiplier'!$D22*'Shock Analysis - RW Multiplier'!J22,20%) -> 0.3125 | K22: =MAX('Shock Analysis - RW Multiplier'!$D22*'Shock Analysis - RW Multiplier'!K22,20%) -> 0.3125 | L22: =MAX('Shock Analysis - RW Multiplier'!$D22*'Shock Analysis - RW Multiplier'!L22,20%) -> 0.3125 | M22: =MAX('Shock Analysis - RW Multiplier'!$D22*'Shock Analysis - RW Multiplier'!M22,20%) -> 0.3125 | N22: =MAX('Shock Analysis - RW Multiplier'!$D22*'Shock Analysis - RW Multiplier'!N22,20%) -> 0.3125 | O22: =MAX('Shock Analysis - RW Multiplier'!$D22*'Shock Analysis - RW Multiplier'!O22,20%) -> 0.3125 | P22: =MAX('Shock Analysis - RW Multiplier'!$D22*'Shock Analysis - RW Multiplier'!P22,20%) -> 0.3125 | Q22: =MAX('Shock Analysis - RW Multiplier'!$D22*'Shock Analysis - RW Multiplier'!Q22,20%) -> 0.3125 | R22: =MAX('Shock Analysis - RW Multiplier'!$D22*'Shock Analysis - RW Multiplier'!R22,20%) -> 0.3125 | S22: =MAX('Shock Analysis - RW Multiplier'!$D22*'Shock Analysis - RW Multiplier'!S22,20%) -> 0.3125 | T22: =MAX('Shock Analysis - RW Multiplier'!$D22*'Shock Analysis - RW Multiplier'!T22,20%) -> 0.3125 | U22: =MAX('Shock Analysis - RW Multiplier'!$D22*'Shock Analysis - RW Multiplier'!U22,20%) -> 0.3125 | V22: =MAX('Shock Analysis - RW Multiplier'!$D22*'Shock Analysis - RW Multiplier'!V22,20%) -> 0.3125 | W22: =MAX('Shock Analysis - RW Multiplier'!$D22*'Shock Analysis - RW Multiplier'!W22,20%) -> 0.3125 | X22: =MAX('Shock Analysis - RW Multiplier'!$D22*'Shock Analysis - RW Multiplier'!X22,20%) -> 0.3125 | Y22: =MAX('Shock Analysis - RW Multiplier'!$D22*'Shock Analysis - RW Multiplier'!Y22,20%) -> 0.3125 | Z22: =MAX('Shock Analysis - RW Multiplier'!$D22*'Shock Analysis - RW Multiplier'!Z22,20%) -> 0.3125 | AA22: =MAX('Shock Analysis - RW Multiplier'!$D22*'Shock Analysis - RW Multiplier'!AA22,20%) -> 0.3125 | AB22: =MAX('Shock Analysis - RW Multiplier'!$D22*'Shock Analysis - RW Multiplier'!AB22,20%) -> 0.3125 | AC22: =MAX('Shock Analysis - RW Multiplier'!$D22*'Shock Analysis - RW Multiplier'!AC22,20%) -> 0.3125 | AD22: =MAX('Shock Analysis - RW Multiplier'!$D22*'Shock Analysis - RW Multiplier'!AD22,20%) -> 0.3125 | AE22: =MAX('Shock Analysis - RW Multiplier'!$D22*'Shock Analysis - RW Multiplier'!AE22,20%) -> 0.3125
A23: 3 | D23: 0.03 | E23: 3 | F23: =MAX('Shock Analysis - RW Multiplier'!$D23*'Shock Analysis - RW Multiplier'!F23,20%) -> 0.375 | G23: =MAX('Shock Analysis - RW Multiplier'!$D23*'Shock Analysis - RW Multiplier'!G23,20%) -> 0.375 | H23: =MAX('Shock Analysis - RW Multiplier'!$D23*'Shock Analysis - RW Multiplier'!H23,20%) -> 0.375 | I23: =MAX('Shock Analysis - RW Multiplier'!$D23*'Shock Analysis - RW Multiplier'!I23,20%) -> 0.375 | J23: =MAX('Shock Analysis - RW Multiplier'!$D23*'Shock Analysis - RW Multiplier'!J23,20%) -> 0.375 | K23: =MAX('Shock Analysis - RW Multiplier'!$D23*'Shock Analysis - RW Multiplier'!K23,20%) -> 0.375 | L23: =MAX('Shock Analysis - RW Multiplier'!$D23*'Shock Analysis - RW Multiplier'!L23,20%) -> 0.375 | M23: =MAX('Shock Analysis - RW Multiplier'!$D23*'Shock Analysis - RW Multiplier'!M23,20%) -> 0.375 | N23: =MAX('Shock Analysis - RW Multiplier'!$D23*'Shock Analysis - RW Multiplier'!N23,20%) -> 0.375 | O23: =MAX('Shock Analysis - RW Multiplier'!$D23*'Shock Analysis - RW Multiplier'!O23,20%) -> 0.375 | P23: =MAX('Shock Analysis - RW Multiplier'!$D23*'Shock Analysis - RW Multiplier'!P23,20%) -> 0.375 | Q23: =MAX('Shock Analysis - RW Multiplier'!$D23*'Shock Analysis - RW Multiplier'!Q23,20%) -> 0.375 | R23: =MAX('Shock Analysis - RW Multiplier'!$D23*'Shock Analysis - RW Multiplier'!R23,20%) -> 0.375 | S23: =MAX('Shock Analysis - RW Multiplier'!$D23*'Shock Analysis - RW Multiplier'!S23,20%) -> 0.375 | T23: =MAX('Shock Analysis - RW Multiplier'!$D23*'Shock Analysis - RW Multiplier'!T23,20%) -> 0.375 | U23: =MAX('Shock Analysis - RW Multiplier'!$D23*'Shock Analysis - RW Multiplier'!U23,20%) -> 0.375 | V23: =MAX('Shock Analysis - RW Multiplier'!$D23*'Shock Analysis - RW Multiplier'!V23,20%) -> 0.375 | W23: =MAX('Shock Analysis - RW Multiplier'!$D23*'Shock Analysis - RW Multiplier'!W23,20%) -> 0.375 | X23: =MAX('Shock Analysis - RW Multiplier'!$D23*'Shock Analysis - RW Multiplier'!X23,20%) -> 0.375 | Y23: =MAX('Shock Analysis - RW Multiplier'!$D23*'Shock Analysis - RW Multiplier'!Y23,20%) -> 0.375 | Z23: =MAX('Shock Analysis - RW Multiplier'!$D23*'Shock Analysis - RW Multiplier'!Z23,20%) -> 0.375 | AA23: =MAX('Shock Analysis - RW Multiplier'!$D23*'Shock Analysis - RW Multiplier'!AA23,20%) -> 0.375 | AB23: =MAX('Shock Analysis - RW Multiplier'!$D23*'Shock Analysis - RW Multiplier'!AB23,20%) -> 0.3749983029 | AC23: =MAX('Shock Analysis - RW Multiplier'!$D23*'Shock Analysis - RW Multiplier'!AC23,20%) -> 0.3748686948 | AD23: =MAX('Shock Analysis - RW Multiplier'!$D23*'Shock Analysis - RW Multiplier'!AD23,20%) -> 0.3745368175 | AE23: =MAX('Shock Analysis - RW Multiplier'!$D23*'Shock Analysis - RW Multiplier'!AE23,20%) -> 0.3740082218
A24: 4 | D24: 0.035 | E24: 4 | F24: =MAX('Shock Analysis - RW Multiplier'!$D24*'Shock Analysis - RW Multiplier'!F24,20%) -> 0.4375 | G24: =MAX('Shock Analysis - RW Multiplier'!$D24*'Shock Analysis - RW Multiplier'!G24,20%) -> 0.4375 | H24: =MAX('Shock Analysis - RW Multiplier'!$D24*'Shock Analysis - RW Multiplier'!H24,20%) -> 0.4375 | I24: =MAX('Shock Analysis - RW Multiplier'!$D24*'Shock Analysis - RW Multiplier'!I24,20%) -> 0.4375 | J24: =MAX('Shock Analysis - RW Multiplier'!$D24*'Shock Analysis - RW Multiplier'!J24,20%) -> 0.4375 | K24: =MAX('Shock Analysis - RW Multiplier'!$D24*'Shock Analysis - RW Multiplier'!K24,20%) -> 0.4375 | L24: =MAX('Shock Analysis - RW Multiplier'!$D24*'Shock Analysis - RW Multiplier'!L24,20%) -> 0.4375 | M24: =MAX('Shock Analysis - RW Multiplier'!$D24*'Shock Analysis - RW Multiplier'!M24,20%) -> 0.4375 | N24: =MAX('Shock Analysis - RW Multiplier'!$D24*'Shock Analysis - RW Multiplier'!N24,20%) -> 0.4375 | O24: =MAX('Shock Analysis - RW Multiplier'!$D24*'Shock Analysis - RW Multiplier'!O24,20%) -> 0.4375 | P24: =MAX('Shock Analysis - RW Multiplier'!$D24*'Shock Analysis - RW Multiplier'!P24,20%) -> 0.4375 | Q24: =MAX('Shock Analysis - RW Multiplier'!$D24*'Shock Analysis - RW Multiplier'!Q24,20%) -> 0.4375 | R24: =MAX('Shock Analysis - RW Multiplier'!$D24*'Shock Analysis - RW Multiplier'!R24,20%) -> 0.4375 | S24: =MAX('Shock Analysis - RW Multiplier'!$D24*'Shock Analysis - RW Multiplier'!S24,20%) -> 0.4375 | T24: =MAX('Shock Analysis - RW Multiplier'!$D24*'Shock Analysis - RW Multiplier'!T24,20%) -> 0.4374779236 | U24: =MAX('Shock Analysis - RW Multiplier'!$D24*'Shock Analysis - RW Multiplier'!U24,20%) -> 0.4372802661 | V24: =MAX('Shock Analysis - RW Multiplier'!$D24*'Shock Analysis - RW Multiplier'!V24,20%) -> 0.4368822068 | W24: =MAX('Shock Analysis - RW Multiplier'!$D24*'Shock Analysis - RW Multiplier'!W24,20%) -> 0.4362892455 | X24: =MAX('Shock Analysis - RW Multiplier'!$D24*'Shock Analysis - RW Multiplier'!X24,20%) -> 0.435506731 | Y24: =MAX('Shock Analysis - RW Multiplier'!$D24*'Shock Analysis - RW Multiplier'!Y24,20%) -> 0.4345398653 | Z24: =MAX('Shock Analysis - RW Multiplier'!$D24*'Shock Analysis - RW Multiplier'!Z24,20%) -> 0.4333937075 | AA24: =MAX('Shock Analysis - RW Multiplier'!$D24*'Shock Analysis - RW Multiplier'!AA24,20%) -> 0.4320731782 | AB24: =MAX('Shock Analysis - RW Multiplier'!$D24*'Shock Analysis - RW Multiplier'!AB24,20%) -> 0.4305830626 | AC24: =MAX('Shock Analysis - RW Multiplier'!$D24*'Shock Analysis - RW Multiplier'!AC24,20%) -> 0.4289280149 | AD24: =MAX('Shock Analysis - RW Multiplier'!$D24*'Shock Analysis - RW Multiplier'!AD24,20%) -> 0.4271125612 | AE24: =MAX('Shock Analysis - RW Multiplier'!$D24*'Shock Analysis - RW Multiplier'!AE24,20%) -> 0.4251411038
A25: 5 | D25: 0.04 | E25: 5 | F25: =MAX('Shock Analysis - RW Multiplier'!$D25*'Shock Analysis - RW Multiplier'!F25,20%) -> 0.5 | G25: =MAX('Shock Analysis - RW Multiplier'!$D25*'Shock Analysis - RW Multiplier'!G25,20%) -> 0.5 | H25: =MAX('Shock Analysis - RW Multiplier'!$D25*'Shock Analysis - RW Multiplier'!H25,20%) -> 0.5 | I25: =MAX('Shock Analysis - RW Multiplier'!$D25*'Shock Analysis - RW Multiplier'!I25,20%) -> 0.5 | J25: =MAX('Shock Analysis - RW Multiplier'!$D25*'Shock Analysis - RW Multiplier'!J25,20%) -> 0.5 | K25: =MAX('Shock Analysis - RW Multiplier'!$D25*'Shock Analysis - RW Multiplier'!K25,20%) -> 0.5 | L25: =MAX('Shock Analysis - RW Multiplier'!$D25*'Shock Analysis - RW Multiplier'!L25,20%) -> 0.4999346504 | M25: =MAX('Shock Analysis - RW Multiplier'!$D25*'Shock Analysis - RW Multiplier'!M25,20%) -> 0.4996695718 | N25: =MAX('Shock Analysis - RW Multiplier'!$D25*'Shock Analysis - RW Multiplier'!N25,20%) -> 0.4992059416 | O25: =MAX('Shock Analysis - RW Multiplier'!$D25*'Shock Analysis - RW Multiplier'!O25,20%) -> 0.498549209 | P25: =MAX('Shock Analysis - RW Multiplier'!$D25*'Shock Analysis - RW Multiplier'!P25,20%) -> 0.4977046732 | Q25: =MAX('Shock Analysis - RW Multiplier'!$D25*'Shock Analysis - RW Multiplier'!Q25,20%) -> 0.4966774882 | R25: =MAX('Shock Analysis - RW Multiplier'!$D25*'Shock Analysis - RW Multiplier'!R25,20%) -> 0.4954726666 | S25: =MAX('Shock Analysis - RW Multiplier'!$D25*'Shock Analysis - RW Multiplier'!S25,20%) -> 0.4940950834 | T25: =MAX('Shock Analysis - RW Multiplier'!$D25*'Shock Analysis - RW Multiplier'!T25,20%) -> 0.4925494797 | U25: =MAX('Shock Analysis - RW Multiplier'!$D25*'Shock Analysis - RW Multiplier'!U25,20%) -> 0.4908404666 | V25: =MAX('Shock Analysis - RW Multiplier'!$D25*'Shock Analysis - RW Multiplier'!V25,20%) -> 0.4889725286 | W25: =MAX('Shock Analysis - RW Multiplier'!$D25*'Shock Analysis - RW Multiplier'!W25,20%) -> 0.4869500272 | X25: =MAX('Shock Analysis - RW Multiplier'!$D25*'Shock Analysis - RW Multiplier'!X25,20%) -> 0.4847772041 | Y25: =MAX('Shock Analysis - RW Multiplier'!$D25*'Shock Analysis - RW Multiplier'!Y25,20%) -> 0.4824581848 | Z25: =MAX('Shock Analysis - RW Multiplier'!$D25*'Shock Analysis - RW Multiplier'!Z25,20%) -> 0.4799969812 | AA25: =MAX('Shock Analysis - RW Multiplier'!$D25*'Shock Analysis - RW Multiplier'!AA25,20%) -> 0.4773974955 | AB25: =MAX('Shock Analysis - RW Multiplier'!$D25*'Shock Analysis - RW Multiplier'!AB25,20%) -> 0.4746635225 | AC25: =MAX('Shock Analysis - RW Multiplier'!$D25*'Shock Analysis - RW Multiplier'!AC25,20%) -> 0.4717987532 | AD25: =MAX('Shock Analysis - RW Multiplier'!$D25*'Shock Analysis - RW Multiplier'!AD25,20%) -> 0.468806777 | AE25: =MAX('Shock Analysis - RW Multiplier'!$D25*'Shock Analysis - RW Multiplier'!AE25,20%) -> 0.4656910848
A26: 6 | D26: 0.045 | E26: 6 | F26: =MAX('Shock Analysis - RW Multiplier'!$D26*'Shock Analysis - RW Multiplier'!F26,20%) -> 0.5615082218 | G26: =MAX('Shock Analysis - RW Multiplier'!$D26*'Shock Analysis - RW Multiplier'!G26,20%) -> 0.5607883066 | H26: =MAX('Shock Analysis - RW Multiplier'!$D26*'Shock Analysis - RW Multiplier'!H26,20%) -> 0.5598823221 | I26: =MAX('Shock Analysis - RW Multiplier'!$D26*'Shock Analysis - RW Multiplier'!I26,20%) -> 0.5587953749 | J26: =MAX('Shock Analysis - RW Multiplier'!$D26*'Shock Analysis - RW Multiplier'!J26,20%) -> 0.5575324311 | K26: =MAX('Shock Analysis - RW Multiplier'!$D26*'Shock Analysis - RW Multiplier'!K26,20%) -> 0.5560983208 | L26: =MAX('Shock Analysis - RW Multiplier'!$D26*'Shock Analysis - RW Multiplier'!L26,20%) -> 0.5544977413 | M26: =MAX('Shock Analysis - RW Multiplier'!$D26*'Shock Analysis - RW Multiplier'!M26,20%) -> 0.5527352611 | N26: =MAX('Shock Analysis - RW Multiplier'!$D26*'Shock Analysis - RW Multiplier'!N26,20%) -> 0.5508153233 | O26: =MAX('Shock Analysis - RW Multiplier'!$D26*'Shock Analysis - RW Multiplier'!O26,20%) -> 0.5487422492 | P26: =MAX('Shock Analysis - RW Multiplier'!$D26*'Shock Analysis - RW Multiplier'!P26,20%) -> 0.5465202413 | Q26: =MAX('Shock Analysis - RW Multiplier'!$D26*'Shock Analysis - RW Multiplier'!Q26,20%) -> 0.5441533869 | R26: =MAX('Shock Analysis - RW Multiplier'!$D26*'Shock Analysis - RW Multiplier'!R26,20%) -> 0.541645661 | S26: =MAX('Shock Analysis - RW Multiplier'!$D26*'Shock Analysis - RW Multiplier'!S26,20%) -> 0.5390009298 | T26: =MAX('Shock Analysis - RW Multiplier'!$D26*'Shock Analysis - RW Multiplier'!T26,20%) -> 0.536222953 | U26: =MAX('Shock Analysis - RW Multiplier'!$D26*'Shock Analysis - RW Multiplier'!U26,20%) -> 0.5333153875 | V26: =MAX('Shock Analysis - RW Multiplier'!$D26*'Shock Analysis - RW Multiplier'!V26,20%) -> 0.5302817895 | W26: =MAX('Shock Analysis - RW Multiplier'!$D26*'Shock Analysis - RW Multiplier'!W26,20%) -> 0.5271256179 | X26: =MAX('Shock Analysis - RW Multiplier'!$D26*'Shock Analysis - RW Multiplier'!X26,20%) -> 0.5238502365 | Y26: =MAX('Shock Analysis - RW Multiplier'!$D26*'Shock Analysis - RW Multiplier'!Y26,20%) -> 0.5204589168 | Z26: =MAX('Shock Analysis - RW Multiplier'!$D26*'Shock Analysis - RW Multiplier'!Z26,20%) -> 0.5169548406 | AA26: =MAX('Shock Analysis - RW Multiplier'!$D26*'Shock Analysis - RW Multiplier'!AA26,20%) -> 0.5133411023 | AB26: =MAX('Shock Analysis - RW Multiplier'!$D26*'Shock Analysis - RW Multiplier'!AB26,20%) -> 0.5096207114 | AC26: =MAX('Shock Analysis - RW Multiplier'!$D26*'Shock Analysis - RW Multiplier'!AC26,20%) -> 0.5057965949 | AD26: =MAX('Shock Analysis - RW Multiplier'!$D26*'Shock Analysis - RW Multiplier'!AD26,20%) -> 0.5018715993 | AE26: =MAX('Shock Analysis - RW Multiplier'!$D26*'Shock Analysis - RW Multiplier'!AE26,20%) -> 0.4978484931
A27: 7 | D27: 0.05 | E27: 7 | F27: =MAX('Shock Analysis - RW Multiplier'!$D27*'Shock Analysis - RW Multiplier'!F27,20%) -> 0.6126411038 | G27: =MAX('Shock Analysis - RW Multiplier'!$D27*'Shock Analysis - RW Multiplier'!G27,20%) -> 0.6105179239 | H27: =MAX('Shock Analysis - RW Multiplier'!$D27*'Shock Analysis - RW Multiplier'!H27,20%) -> 0.6082471853 | I27: =MAX('Shock Analysis - RW Multiplier'!$D27*'Shock Analysis - RW Multiplier'!I27,20%) -> 0.6058329375 | J27: =MAX('Shock Analysis - RW Multiplier'!$D27*'Shock Analysis - RW Multiplier'!J27,20%) -> 0.603279119 | K27: =MAX('Shock Analysis - RW Multiplier'!$D27*'Shock Analysis - RW Multiplier'!K27,20%) -> 0.6005895599 | L27: =MAX('Shock Analysis - RW Multiplier'!$D27*'Shock Analysis - RW Multiplier'!L27,20%) -> 0.5977679856 | M27: =MAX('Shock Analysis - RW Multiplier'!$D27*'Shock Analysis - RW Multiplier'!M27,20%) -> 0.594818019 | N27: =MAX('Shock Analysis - RW Multiplier'!$D27*'Shock Analysis - RW Multiplier'!N27,20%) -> 0.5917431836 | O27: =MAX('Shock Analysis - RW Multiplier'!$D27*'Shock Analysis - RW Multiplier'!O27,20%) -> 0.5885469062 | P27: =MAX('Shock Analysis - RW Multiplier'!$D27*'Shock Analysis - RW Multiplier'!P27,20%) -> 0.5852325197 | Q27: =MAX('Shock Analysis - RW Multiplier'!$D27*'Shock Analysis - RW Multiplier'!Q27,20%) -> 0.5818032653 | R27: =MAX('Shock Analysis - RW Multiplier'!$D27*'Shock Analysis - RW Multiplier'!R27,20%) -> 0.5782622955 | S27: =MAX('Shock Analysis - RW Multiplier'!$D27*'Shock Analysis - RW Multiplier'!S27,20%) -> 0.5746126761 | T27: =MAX('Shock Analysis - RW Multiplier'!$D27*'Shock Analysis - RW Multiplier'!T27,20%) -> 0.5708573888 | U27: =MAX('Shock Analysis - RW Multiplier'!$D27*'Shock Analysis - RW Multiplier'!U27,20%) -> 0.5669993335 | V27: =MAX('Shock Analysis - RW Multiplier'!$D27*'Shock Analysis - RW Multiplier'!V27,20%) -> 0.5630413306 | W27: =MAX('Shock Analysis - RW Multiplier'!$D27*'Shock Analysis - RW Multiplier'!W27,20%) -> 0.5589861229 | X27: =MAX('Shock Analysis - RW Multiplier'!$D27*'Shock Analysis - RW Multiplier'!X27,20%) -> 0.5548363781 | Y27: =MAX('Shock Analysis - RW Multiplier'!$D27*'Shock Analysis - RW Multiplier'!Y27,20%) -> 0.5505946906 | Z27: =MAX('Shock Analysis - RW Multiplier'!$D27*'Shock Analysis - RW Multiplier'!Z27,20%) -> 0.5462635836 | AA27: =MAX('Shock Analysis - RW Multiplier'!$D27*'Shock Analysis - RW Multiplier'!AA27,20%) -> 0.5418455112 | AB27: =MAX('Shock Analysis - RW Multiplier'!$D27*'Shock Analysis - RW Multiplier'!AB27,20%) -> 0.5373428599 | AC27: =MAX('Shock Analysis - RW Multiplier'!$D27*'Shock Analysis - RW Multiplier'!AC27,20%) -> 0.532757951 | AD27: =MAX('Shock Analysis - RW Multiplier'!$D27*'Shock Analysis - RW Multiplier'!AD27,20%) -> 0.5280930417 | AE27: =MAX('Shock Analysis - RW Multiplier'!$D27*'Shock Analysis - RW Multiplier'!AE27,20%) -> 0.5233503277
A28: 8 | D28: 0.055 | E28: 8 | F28: =MAX('Shock Analysis - RW Multiplier'!$D28*'Shock Analysis - RW Multiplier'!F28,20%) -> 0.6531910848 | G28: =MAX('Shock Analysis - RW Multiplier'!$D28*'Shock Analysis - RW Multiplier'!G28,20%) -> 0.649955072 | H28: =MAX('Shock Analysis - RW Multiplier'!$D28*'Shock Analysis - RW Multiplier'!H28,20%) -> 0.6466020405 | I28: =MAX('Shock Analysis - RW Multiplier'!$D28*'Shock Analysis - RW Multiplier'!I28,20%) -> 0.6431352017 | J28: =MAX('Shock Analysis - RW Multiplier'!$D28*'Shock Analysis - RW Multiplier'!J28,20%) -> 0.6395576789 | K28: =MAX('Shock Analysis - RW Multiplier'!$D28*'Shock Analysis - RW Multiplier'!K28,20%) -> 0.6358725097 | L28: =MAX('Shock Analysis - RW Multiplier'!$D28*'Shock Analysis - RW Multiplier'!L28,20%) -> 0.6320826481 | M28: =MAX('Shock Analysis - RW Multiplier'!$D28*'Shock Analysis - RW Multiplier'!M28,20%) -> 0.6281909675 | N28: =MAX('Shock Analysis - RW Multiplier'!$D28*'Shock Analysis - RW Multiplier'!N28,20%) -> 0.624200262 | O28: =MAX('Shock Analysis - RW Multiplier'!$D28*'Shock Analysis - RW Multiplier'!O28,20%) -> 0.6201132492 | P28: =MAX('Shock Analysis - RW Multiplier'!$D28*'Shock Analysis - RW Multiplier'!P28,20%) -> 0.6159325721 | Q28: =MAX('Shock Analysis - RW Multiplier'!$D28*'Shock Analysis - RW Multiplier'!Q28,20%) -> 0.6116608012 | R28: =MAX('Shock Analysis - RW Multiplier'!$D28*'Shock Analysis - RW Multiplier'!R28,20%) -> 0.6073004364 | S28: =MAX('Shock Analysis - RW Multiplier'!$D28*'Shock Analysis - RW Multiplier'!S28,20%) -> 0.6028539092 | T28: =MAX('Shock Analysis - RW Multiplier'!$D28*'Shock Analysis - RW Multiplier'!T28,20%) -> 0.5983235839 | U28: =MAX('Shock Analysis - RW Multiplier'!$D28*'Shock Analysis - RW Multiplier'!U28,20%) -> 0.5937117605 | V28: =MAX('Shock Analysis - RW Multiplier'!$D28*'Shock Analysis - RW Multiplier'!V28,20%) -> 0.5890206754 | W28: =MAX('Shock Analysis - RW Multiplier'!$D28*'Shock Analysis - RW Multiplier'!W28,20%) -> 0.5842525038 | X28: =MAX('Shock Analysis - RW Multiplier'!$D28*'Shock Analysis - RW Multiplier'!X28,20%) -> 0.5794093614 | Y28: =MAX('Shock Analysis - RW Multiplier'!$D28*'Shock Analysis - RW Multiplier'!Y28,20%) -> 0.5744933055 | Z28: =MAX('Shock Analysis - RW Multiplier'!$D28*'Shock Analysis - RW Multiplier'!Z28,20%) -> 0.5695063372 | AA28: =MAX('Shock Analysis - RW Multiplier'!$D28*'Shock Analysis - RW Multiplier'!AA28,20%) -> 0.5644504026 | AB28: =MAX('Shock Analysis - RW Multiplier'!$D28*'Shock Analysis - RW Multiplier'!AB28,20%) -> 0.5593273942 | AC28: =MAX('Shock Analysis - RW Multiplier'!$D28*'Shock Analysis - RW Multiplier'!AC28,20%) -> 0.5541391529 | AD28: =MAX('Shock Analysis - RW Multiplier'!$D28*'Shock Analysis - RW Multiplier'!AD28,20%) -> 0.5488874689 | AE28: =MAX('Shock Analysis - RW Multiplier'!$D28*'Shock Analysis - RW Multiplier'!AE28,20%) -> 0.5435740833
A29: 9 | D29: 0.06 | E29: 9 | F29: =MAX('Shock Analysis - RW Multiplier'!$D29*'Shock Analysis - RW Multiplier'!F29,20%) -> 0.6853484931 | G29: =MAX('Shock Analysis - RW Multiplier'!$D29*'Shock Analysis - RW Multiplier'!G29,20%) -> 0.6812299689 | H29: =MAX('Shock Analysis - RW Multiplier'!$D29*'Shock Analysis - RW Multiplier'!H29,20%) -> 0.6770186451 | I29: =MAX('Shock Analysis - RW Multiplier'!$D29*'Shock Analysis - RW Multiplier'!I29,20%) -> 0.6727170686 | J29: =MAX('Shock Analysis - RW Multiplier'!$D29*'Shock Analysis - RW Multiplier'!J29,20%) -> 0.6683277162 | K29: =MAX('Shock Analysis - RW Multiplier'!$D29*'Shock Analysis - RW Multiplier'!K29,20%) -> 0.6638529967 | L29: =MAX('Shock Analysis - RW Multiplier'!$D29*'Shock Analysis - RW Multiplier'!L29,20%) -> 0.6592952531 | M29: =MAX('Shock Analysis - RW Multiplier'!$D29*'Shock Analysis - RW Multiplier'!M29,20%) -> 0.6546567636 | N29: =MAX('Shock Analysis - RW Multiplier'!$D29*'Shock Analysis - RW Multiplier'!N29,20%) -> 0.6499397443 | O29: =MAX('Shock Analysis - RW Multiplier'!$D29*'Shock Analysis - RW Multiplier'!O29,20%) -> 0.6451463503 | P29: =MAX('Shock Analysis - RW Multiplier'!$D29*'Shock Analysis - RW Multiplier'!P29,20%) -> 0.6402786776 | Q29: =MAX('Shock Analysis - RW Multiplier'!$D29*'Shock Analysis - RW Multiplier'!Q29,20%) -> 0.6353387647 | R29: =MAX('Shock Analysis - RW Multiplier'!$D29*'Shock Analysis - RW Multiplier'!R29,20%) -> 0.630328594 | S29: =MAX('Shock Analysis - RW Multiplier'!$D29*'Shock Analysis - RW Multiplier'!S29,20%) -> 0.6252500938 | T29: =MAX('Shock Analysis - RW Multiplier'!$D29*'Shock Analysis - RW Multiplier'!T29,20%) -> 0.6201051391 | U29: =MAX('Shock Analysis - RW Multiplier'!$D29*'Shock Analysis - RW Multiplier'!U29,20%) -> 0.6148955538 | V29: =MAX('Shock Analysis - RW Multiplier'!$D29*'Shock Analysis - RW Multiplier'!V29,20%) -> 0.6096231115 | W29: =MAX('Shock Analysis - RW Multiplier'!$D29*'Shock Analysis - RW Multiplier'!W29,20%) -> 0.6042895373 | X29: =MAX('Shock Analysis - RW Multiplier'!$D29*'Shock Analysis - RW Multiplier'!X29,20%) -> 0.5988965088 | Y29: =MAX('Shock Analysis - RW Multiplier'!$D29*'Shock Analysis - RW Multiplier'!Y29,20%) -> 0.5934456576 | Z29: =MAX('Shock Analysis - RW Multiplier'!$D29*'Shock Analysis - RW Multiplier'!Z29,20%) -> 0.5879385707 | AA29: =MAX('Shock Analysis - RW Multiplier'!$D29*'Shock Analysis - RW Multiplier'!AA29,20%) -> 0.5823767912 | AB29: =MAX('Shock Analysis - RW Multiplier'!$D29*'Shock Analysis - RW Multiplier'!AB29,20%) -> 0.5767618203 | AC29: =MAX('Shock Analysis - RW Multiplier'!$D29*'Shock Analysis - RW Multiplier'!AC29,20%) -> 0.5710951175 | AD29: =MAX('Shock Analysis - RW Multiplier'!$D29*'Shock Analysis - RW Multiplier'!AD29,20%) -> 0.5653781027 | AE29: =MAX('Shock Analysis - RW Multiplier'!$D29*'Shock Analysis - RW Multiplier'!AE29,20%) -> 0.5596121565
A30: 10 | D30: 0.08 | E30: 10 | F30: =MAX('Shock Analysis - RW Multiplier'!$D30*'Shock Analysis - RW Multiplier'!F30,20%) -> 0.7598308522 | G30: =MAX('Shock Analysis - RW Multiplier'!$D30*'Shock Analysis - RW Multiplier'!G30,20%) -> 0.7536682722 | H30: =MAX('Shock Analysis - RW Multiplier'!$D30*'Shock Analysis - RW Multiplier'!H30,20%) -> 0.7474689888 | I30: =MAX('Shock Analysis - RW Multiplier'!$D30*'Shock Analysis - RW Multiplier'!I30,20%) -> 0.7412340091 | J30: =MAX('Shock Analysis - RW Multiplier'!$D30*'Shock Analysis - RW Multiplier'!J30,20%) -> 0.7349643128 | K30: =MAX('Shock Analysis - RW Multiplier'!$D30*'Shock Analysis - RW Multiplier'!K30,20%) -> 0.7286608528 | L30: =MAX('Shock Analysis - RW Multiplier'!$D30*'Shock Analysis - RW Multiplier'!L30,20%) -> 0.7223245555 | M30: =MAX('Shock Analysis - RW Multiplier'!$D30*'Shock Analysis - RW Multiplier'!M30,20%) -> 0.7159563221 | N30: =MAX('Shock Analysis - RW Multiplier'!$D30*'Shock Analysis - RW Multiplier'!N30,20%) -> 0.7095570291 | O30: =MAX('Shock Analysis - RW Multiplier'!$D30*'Shock Analysis - RW Multiplier'!O30,20%) -> 0.7031275289 | P30: =MAX('Shock Analysis - RW Multiplier'!$D30*'Shock Analysis - RW Multiplier'!P30,20%) -> 0.6966686504 | Q30: =MAX('Shock Analysis - RW Multiplier'!$D30*'Shock Analysis - RW Multiplier'!Q30,20%) -> 0.6901811999 | R30: =MAX('Shock Analysis - RW Multiplier'!$D30*'Shock Analysis - RW Multiplier'!R30,20%) -> 0.6836659616 | S30: =MAX('Shock Analysis - RW Multiplier'!$D30*'Shock Analysis - RW Multiplier'!S30,20%) -> 0.6771236979 | T30: =MAX('Shock Analysis - RW Multiplier'!$D30*'Shock Analysis - RW Multiplier'!T30,20%) -> 0.6705551506 | U30: =MAX('Shock Analysis - RW Multiplier'!$D30*'Shock Analysis - RW Multiplier'!U30,20%) -> 0.663961041 | V30: =MAX('Shock Analysis - RW Multiplier'!$D30*'Shock Analysis - RW Multiplier'!V30,20%) -> 0.6573420706 | W30: =MAX('Shock Analysis - RW Multiplier'!$D30*'Shock Analysis - RW Multiplier'!W30,20%) -> 0.6506989217 | X30: =MAX('Shock Analysis - RW Multiplier'!$D30*'Shock Analysis - RW Multiplier'!X30,20%) -> 0.6440322578 | Y30: =MAX('Shock Analysis - RW Multiplier'!$D30*'Shock Analysis - RW Multiplier'!Y30,20%) -> 0.6373427242 | Z30: =MAX('Shock Analysis - RW Multiplier'!$D30*'Shock Analysis - RW Multiplier'!Z30,20%) -> 0.6306309487 | AA30: =MAX('Shock Analysis - RW Multiplier'!$D30*'Shock Analysis - RW Multiplier'!AA30,20%) -> 0.6238975415 | AB30: =MAX('Shock Analysis - RW Multiplier'!$D30*'Shock Analysis - RW Multiplier'!AB30,20%) -> 0.6171430963 | AC30: =MAX('Shock Analysis - RW Multiplier'!$D30*'Shock Analysis - RW Multiplier'!AC30,20%) -> 0.6103681905 | AD30: =MAX('Shock Analysis - RW Multiplier'!$D30*'Shock Analysis - RW Multiplier'!AD30,20%) -> 0.6035733855 | AE30: =MAX('Shock Analysis - RW Multiplier'!$D30*'Shock Analysis - RW Multiplier'!AE30,20%) -> 0.5967592276
A31: 11 | D31: 0.1 | E31: 11 | F31: =MAX('Shock Analysis - RW Multiplier'!$D31*'Shock Analysis - RW Multiplier'!F31,20%) -> 0.7892896461 | G31: =MAX('Shock Analysis - RW Multiplier'!$D31*'Shock Analysis - RW Multiplier'!G31,20%) -> 0.782318614 | H31: =MAX('Shock Analysis - RW Multiplier'!$D31*'Shock Analysis - RW Multiplier'!H31,20%) -> 0.7753330652 | I31: =MAX('Shock Analysis - RW Multiplier'!$D31*'Shock Analysis - RW Multiplier'!I31,20%) -> 0.7683333981 | J31: =MAX('Shock Analysis - RW Multiplier'!$D31*'Shock Analysis - RW Multiplier'!J31,20%) -> 0.7613200001 | K31: =MAX('Shock Analysis - RW Multiplier'!$D31*'Shock Analysis - RW Multiplier'!K31,20%) -> 0.754293248 | L31: =MAX('Shock Analysis - RW Multiplier'!$D31*'Shock Analysis - RW Multiplier'!L31,20%) -> 0.7472535084 | M31: =MAX('Shock Analysis - RW Multiplier'!$D31*'Shock Analysis - RW Multiplier'!M31,20%) -> 0.7402011376 | N31: =MAX('Shock Analysis - RW Multiplier'!$D31*'Shock Analysis - RW Multiplier'!N31,20%) -> 0.7331364823 | O31: =MAX('Shock Analysis - RW Multiplier'!$D31*'Shock Analysis - RW Multiplier'!O31,20%) -> 0.7260598797 | P31: =MAX('Shock Analysis - RW Multiplier'!$D31*'Shock Analysis - RW Multiplier'!P31,20%) -> 0.7189716575 | Q31: =MAX('Shock Analysis - RW Multiplier'!$D31*'Shock Analysis - RW Multiplier'!Q31,20%) -> 0.7118721347 | R31: =MAX('Shock Analysis - RW Multiplier'!$D31*'Shock Analysis - RW Multiplier'!R31,20%) -> 0.7047616214 | S31: =MAX('Shock Analysis - RW Multiplier'!$D31*'Shock Analysis - RW Multiplier'!S31,20%) -> 0.6976404193 | T31: =MAX('Shock Analysis - RW Multiplier'!$D31*'Shock Analysis - RW Multiplier'!T31,20%) -> 0.6905088216 | U31: =MAX('Shock Analysis - RW Multiplier'!$D31*'Shock Analysis - RW Multiplier'!U31,20%) -> 0.6833671137 | V31: =MAX('Shock Analysis - RW Multiplier'!$D31*'Shock Analysis - RW Multiplier'!V31,20%) -> 0.6762155729 | W31: =MAX('Shock Analysis - RW Multiplier'!$D31*'Shock Analysis - RW Multiplier'!W31,20%) -> 0.6690544693 | X31: =MAX('Shock Analysis - RW Multiplier'!$D31*'Shock Analysis - RW Multiplier'!X31,20%) -> 0.6618840651 | Y31: =MAX('Shock Analysis - RW Multiplier'!$D31*'Shock Analysis - RW Multiplier'!Y31,20%) -> 0.6547046157 | Z31: =MAX('Shock Analysis - RW Multiplier'!$D31*'Shock Analysis - RW Multiplier'!Z31,20%) -> 0.6475163693 | AA31: =MAX('Shock Analysis - RW Multiplier'!$D31*'Shock Analysis - RW Multiplier'!AA31,20%) -> 0.6403195672 | AB31: =MAX('Shock Analysis - RW Multiplier'!$D31*'Shock Analysis - RW Multiplier'!AB31,20%) -> 0.6331144444 | AC31: =MAX('Shock Analysis - RW Multiplier'!$D31*'Shock Analysis - RW Multiplier'!AC31,20%) -> 0.6259012291 | AD31: =MAX('Shock Analysis - RW Multiplier'!$D31*'Shock Analysis - RW Multiplier'!AD31,20%) -> 0.6186801434 | AE31: =MAX('Shock Analysis - RW Multiplier'!$D31*'Shock Analysis - RW Multiplier'!AE31,20%) -> 0.6114514033
A32: 12 | D32: 0.12 | E32: 12 | F32: =MAX('Shock Analysis - RW Multiplier'!$D32*'Shock Analysis - RW Multiplier'!F32,20%) -> 0.8009410028 | G32: =MAX('Shock Analysis - RW Multiplier'!$D32*'Shock Analysis - RW Multiplier'!G32,20%) -> 0.7936502168 | H32: =MAX('Shock Analysis - RW Multiplier'!$D32*'Shock Analysis - RW Multiplier'!H32,20%) -> 0.7863536893 | I32: =MAX('Shock Analysis - RW Multiplier'!$D32*'Shock Analysis - RW Multiplier'!I32,20%) -> 0.7790515779 | J32: =MAX('Shock Analysis - RW Multiplier'!$D32*'Shock Analysis - RW Multiplier'!J32,20%) -> 0.7717440356 | K32: =MAX('Shock Analysis - RW Multiplier'!$D32*'Shock Analysis - RW Multiplier'!K32,20%) -> 0.7644312117 | L32: =MAX('Shock Analysis - RW Multiplier'!$D32*'Shock Analysis - RW Multiplier'!L32,20%) -> 0.7571132509 | M32: =MAX('Shock Analysis - RW Multiplier'!$D32*'Shock Analysis - RW Multiplier'!M32,20%) -> 0.7497902944 | N32: =MAX('Shock Analysis - RW Multiplier'!$D32*'Shock Analysis - RW Multiplier'!N32,20%) -> 0.7424624792 | O32: =MAX('Shock Analysis - RW Multiplier'!$D32*'Shock Analysis - RW Multiplier'!O32,20%) -> 0.7351299387 | P32: =MAX('Shock Analysis - RW Multiplier'!$D32*'Shock Analysis - RW Multiplier'!P32,20%) -> 0.7277928025 | Q32: =MAX('Shock Analysis - RW Multiplier'!$D32*'Shock Analysis - RW Multiplier'!Q32,20%) -> 0.7204511967 | R32: =MAX('Shock Analysis - RW Multiplier'!$D32*'Shock Analysis - RW Multiplier'!R32,20%) -> 0.713105244 | S32: =MAX('Shock Analysis - RW Multiplier'!$D32*'Shock Analysis - RW Multiplier'!S32,20%) -> 0.7057550638 | T32: =MAX('Shock Analysis - RW Multiplier'!$D32*'Shock Analysis - RW Multiplier'!T32,20%) -> 0.6984007719 | U32: =MAX('Shock Analysis - RW Multiplier'!$D32*'Shock Analysis - RW Multiplier'!U32,20%) -> 0.6910424813 | V32: =MAX('Shock Analysis - RW Multiplier'!$D32*'Shock Analysis - RW Multiplier'!V32,20%) -> 0.6836803018 | W32: =MAX('Shock Analysis - RW Multiplier'!$D32*'Shock Analysis - RW Multiplier'!W32,20%) -> 0.6763143399 | X32: =MAX('Shock Analysis - RW Multiplier'!$D32*'Shock Analysis - RW Multiplier'!X32,20%) -> 0.6689446996 | Y32: =MAX('Shock Analysis - RW Multiplier'!$D32*'Shock Analysis - RW Multiplier'!Y32,20%) -> 0.6615714817 | Z32: =MAX('Shock Analysis - RW Multiplier'!$D32*'Shock Analysis - RW Multiplier'!Z32,20%) -> 0.6541947845 | AA32: =MAX('Shock Analysis - RW Multiplier'!$D32*'Shock Analysis - RW Multiplier'!AA32,20%) -> 0.6468147035 | AB32: =MAX('Shock Analysis - RW Multiplier'!$D32*'Shock Analysis - RW Multiplier'!AB32,20%) -> 0.6394313314 | AC32: =MAX('Shock Analysis - RW Multiplier'!$D32*'Shock Analysis - RW Multiplier'!AC32,20%) -> 0.6320447587 | AD32: =MAX('Shock Analysis - RW Multiplier'!$D32*'Shock Analysis - RW Multiplier'!AD32,20%) -> 0.6246550732 | AE32: =MAX('Shock Analysis - RW Multiplier'!$D32*'Shock Analysis - RW Multiplier'!AE32,20%) -> 0.6172623602
A33: 13 | D33: 0.14 | E33: 13 | F33: =MAX('Shock Analysis - RW Multiplier'!$D33*'Shock Analysis - RW Multiplier'!F33,20%) -> 0.805549274 | G33: =MAX('Shock Analysis - RW Multiplier'!$D33*'Shock Analysis - RW Multiplier'!G33,20%) -> 0.7981320211 | H33: =MAX('Shock Analysis - RW Multiplier'!$D33*'Shock Analysis - RW Multiplier'!H33,20%) -> 0.7907124972 | I33: =MAX('Shock Analysis - RW Multiplier'!$D33*'Shock Analysis - RW Multiplier'!I33,20%) -> 0.7832907648 | J33: =MAX('Shock Analysis - RW Multiplier'!$D33*'Shock Analysis - RW Multiplier'!J33,20%) -> 0.7758668845 | K33: =MAX('Shock Analysis - RW Multiplier'!$D33*'Shock Analysis - RW Multiplier'!K33,20%) -> 0.7684409152 | L33: =MAX('Shock Analysis - RW Multiplier'!$D33*'Shock Analysis - RW Multiplier'!L33,20%) -> 0.7610129142 | M33: =MAX('Shock Analysis - RW Multiplier'!$D33*'Shock Analysis - RW Multiplier'!M33,20%) -> 0.7535829374 | N33: =MAX('Shock Analysis - RW Multiplier'!$D33*'Shock Analysis - RW Multiplier'!N33,20%) -> 0.7461510388 | O33: =MAX('Shock Analysis - RW Multiplier'!$D33*'Shock Analysis - RW Multiplier'!O33,20%) -> 0.7387172713 | P33: =MAX('Shock Analysis - RW Multiplier'!$D33*'Shock Analysis - RW Multiplier'!P33,20%) -> 0.7312816862 | Q33: =MAX('Shock Analysis - RW Multiplier'!$D33*'Shock Analysis - RW Multiplier'!Q33,20%) -> 0.7238443333 | R33: =MAX('Shock Analysis - RW Multiplier'!$D33*'Shock Analysis - RW Multiplier'!R33,20%) -> 0.7164052611 | S33: =MAX('Shock Analysis - RW Multiplier'!$D33*'Shock Analysis - RW Multiplier'!S33,20%) -> 0.7089645169 | T33: =MAX('Shock Analysis - RW Multiplier'!$D33*'Shock Analysis - RW Multiplier'!T33,20%) -> 0.7015221464 | U33: =MAX('Shock Analysis - RW Multiplier'!$D33*'Shock Analysis - RW Multiplier'!U33,20%) -> 0.6940781945 | V33: =MAX('Shock Analysis - RW Multiplier'!$D33*'Shock Analysis - RW Multiplier'!V33,20%) -> 0.6866327043 | W33: =MAX('Shock Analysis - RW Multiplier'!$D33*'Shock Analysis - RW Multiplier'!W33,20%) -> 0.6791857182 | X33: =MAX('Shock Analysis - RW Multiplier'!$D33*'Shock Analysis - RW Multiplier'!X33,20%) -> 0.6717372773 | Y33: =MAX('Shock Analysis - RW Multiplier'!$D33*'Shock Analysis - RW Multiplier'!Y33,20%) -> 0.6642874214 | Z33: =MAX('Shock Analysis - RW Multiplier'!$D33*'Shock Analysis - RW Multiplier'!Z33,20%) -> 0.6568361893 | AA33: =MAX('Shock Analysis - RW Multiplier'!$D33*'Shock Analysis - RW Multiplier'!AA33,20%) -> 0.6493836189 | AB33: =MAX('Shock Analysis - RW Multiplier'!$D33*'Shock Analysis - RW Multiplier'!AB33,20%) -> 0.6419297469 | AC33: =MAX('Shock Analysis - RW Multiplier'!$D33*'Shock Analysis - RW Multiplier'!AC33,20%) -> 0.6344746089 | AD33: =MAX('Shock Analysis - RW Multiplier'!$D33*'Shock Analysis - RW Multiplier'!AD33,20%) -> 0.6270182398 | AE33: =MAX('Shock Analysis - RW Multiplier'!$D33*'Shock Analysis - RW Multiplier'!AE33,20%) -> 0.6195606733
A34: 14 | D34: 0.16 | E34: 14 | F34: =MAX('Shock Analysis - RW Multiplier'!$D34*'Shock Analysis - RW Multiplier'!F34,20%) -> 0.8073719085 | G34: =MAX('Shock Analysis - RW Multiplier'!$D34*'Shock Analysis - RW Multiplier'!G34,20%) -> 0.7999046361 | H34: =MAX('Shock Analysis - RW Multiplier'!$D34*'Shock Analysis - RW Multiplier'!H34,20%) -> 0.7924364655 | I34: =MAX('Shock Analysis - RW Multiplier'!$D34*'Shock Analysis - RW Multiplier'!I34,20%) -> 0.7849674214 | J34: =MAX('Shock Analysis - RW Multiplier'!$D34*'Shock Analysis - RW Multiplier'!J34,20%) -> 0.7774975278 | K34: =MAX('Shock Analysis - RW Multiplier'!$D34*'Shock Analysis - RW Multiplier'!K34,20%) -> 0.7700268079 | L34: =MAX('Shock Analysis - RW Multiplier'!$D34*'Shock Analysis - RW Multiplier'!L34,20%) -> 0.7625552845 | M34: =MAX('Shock Analysis - RW Multiplier'!$D34*'Shock Analysis - RW Multiplier'!M34,20%) -> 0.7550829796 | N34: =MAX('Shock Analysis - RW Multiplier'!$D34*'Shock Analysis - RW Multiplier'!N34,20%) -> 0.7476099147 | O34: =MAX('Shock Analysis - RW Multiplier'!$D34*'Shock Analysis - RW Multiplier'!O34,20%) -> 0.7401361106 | P34: =MAX('Shock Analysis - RW Multiplier'!$D34*'Shock Analysis - RW Multiplier'!P34,20%) -> 0.7326615875 | Q34: =MAX('Shock Analysis - RW Multiplier'!$D34*'Shock Analysis - RW Multiplier'!Q34,20%) -> 0.7251863653 | R34: =MAX('Shock Analysis - RW Multiplier'!$D34*'Shock Analysis - RW Multiplier'!R34,20%) -> 0.7177104631 | S34: =MAX('Shock Analysis - RW Multiplier'!$D34*'Shock Analysis - RW Multiplier'!S34,20%) -> 0.7102338996 | T34: =MAX('Shock Analysis - RW Multiplier'!$D34*'Shock Analysis - RW Multiplier'!T34,20%) -> 0.7027566928 | U34: =MAX('Shock Analysis - RW Multiplier'!$D34*'Shock Analysis - RW Multiplier'!U34,20%) -> 0.6952788606 | V34: =MAX('Shock Analysis - RW Multiplier'!$D34*'Shock Analysis - RW Multiplier'!V34,20%) -> 0.68780042 | W34: =MAX('Shock Analysis - RW Multiplier'!$D34*'Shock Analysis - RW Multiplier'!W34,20%) -> 0.6803213877 | X34: =MAX('Shock Analysis - RW Multiplier'!$D34*'Shock Analysis - RW Multiplier'!X34,20%) -> 0.67284178 | Y34: =MAX('Shock Analysis - RW Multiplier'!$D34*'Shock Analysis - RW Multiplier'!Y34,20%) -> 0.6653616127 | Z34: =MAX('Shock Analysis - RW Multiplier'!$D34*'Shock Analysis - RW Multiplier'!Z34,20%) -> 0.6578809011 | AA34: =MAX('Shock Analysis - RW Multiplier'!$D34*'Shock Analysis - RW Multiplier'!AA34,20%) -> 0.6503996602 | AB34: =MAX('Shock Analysis - RW Multiplier'!$D34*'Shock Analysis - RW Multiplier'!AB34,20%) -> 0.6429179044 | AC34: =MAX('Shock Analysis - RW Multiplier'!$D34*'Shock Analysis - RW Multiplier'!AC34,20%) -> 0.6354356479 | AD34: =MAX('Shock Analysis - RW Multiplier'!$D34*'Shock Analysis - RW Multiplier'!AD34,20%) -> 0.6279529046 | AE34: =MAX('Shock Analysis - RW Multiplier'!$D34*'Shock Analysis - RW Multiplier'!AE34,20%) -> 0.6204696876
A35: 15 | D35: 0.2 | E35: 15 | F35: =MAX('Shock Analysis - RW Multiplier'!$D35*'Shock Analysis - RW Multiplier'!F35,20%) -> 0.8083779021 | G35: =MAX('Shock Analysis - RW Multiplier'!$D35*'Shock Analysis - RW Multiplier'!G35,20%) -> 0.8008830217 | H35: =MAX('Shock Analysis - RW Multiplier'!$D35*'Shock Analysis - RW Multiplier'!H35,20%) -> 0.7933880008 | I35: =MAX('Shock Analysis - RW Multiplier'!$D35*'Shock Analysis - RW Multiplier'!I35,20%) -> 0.7858928433 | J35: =MAX('Shock Analysis - RW Multiplier'!$D35*'Shock Analysis - RW Multiplier'!J35,20%) -> 0.7783975528 | K35: =MAX('Shock Analysis - RW Multiplier'!$D35*'Shock Analysis - RW Multiplier'!K35,20%) -> 0.7709021332 | L35: =MAX('Shock Analysis - RW Multiplier'!$D35*'Shock Analysis - RW Multiplier'!L35,20%) -> 0.7634065878 | M35: =MAX('Shock Analysis - RW Multiplier'!$D35*'Shock Analysis - RW Multiplier'!M35,20%) -> 0.7559109202 | N35: =MAX('Shock Analysis - RW Multiplier'!$D35*'Shock Analysis - RW Multiplier'!N35,20%) -> 0.7484151336 | O35: =MAX('Shock Analysis - RW Multiplier'!$D35*'Shock Analysis - RW Multiplier'!O35,20%) -> 0.7409192315 | P35: =MAX('Shock Analysis - RW Multiplier'!$D35*'Shock Analysis - RW Multiplier'!P35,20%) -> 0.7334232169 | Q35: =MAX('Shock Analysis - RW Multiplier'!$D35*'Shock Analysis - RW Multiplier'!Q35,20%) -> 0.7259270929 | R35: =MAX('Shock Analysis - RW Multiplier'!$D35*'Shock Analysis - RW Multiplier'!R35,20%) -> 0.7184308625 | S35: =MAX('Shock Analysis - RW Multiplier'!$D35*'Shock Analysis - RW Multiplier'!S35,20%) -> 0.7109345287 | T35: =MAX('Shock Analysis - RW Multiplier'!$D35*'Shock Analysis - RW Multiplier'!T35,20%) -> 0.7034380943 | U35: =MAX('Shock Analysis - RW Multiplier'!$D35*'Shock Analysis - RW Multiplier'!U35,20%) -> 0.695941562 | V35: =MAX('Shock Analysis - RW Multiplier'!$D35*'Shock Analysis - RW Multiplier'!V35,20%) -> 0.6884449346 | W35: =MAX('Shock Analysis - RW Multiplier'!$D35*'Shock Analysis - RW Multiplier'!W35,20%) -> 0.6809482146 | X35: =MAX('Shock Analysis - RW Multiplier'!$D35*'Shock Analysis - RW Multiplier'!X35,20%) -> 0.6734514046 | Y35: =MAX('Shock Analysis - RW Multiplier'!$D35*'Shock Analysis - RW Multiplier'!Y35,20%) -> 0.665954507 | Z35: =MAX('Shock Analysis - RW Multiplier'!$D35*'Shock Analysis - RW Multiplier'!Z35,20%) -> 0.6584575243 | AA35: =MAX('Shock Analysis - RW Multiplier'!$D35*'Shock Analysis - RW Multiplier'!AA35,20%) -> 0.6509604588 | AB35: =MAX('Shock Analysis - RW Multiplier'!$D35*'Shock Analysis - RW Multiplier'!AB35,20%) -> 0.6434633128 | AC35: =MAX('Shock Analysis - RW Multiplier'!$D35*'Shock Analysis - RW Multiplier'!AC35,20%) -> 0.6359660884 | AD35: =MAX('Shock Analysis - RW Multiplier'!$D35*'Shock Analysis - RW Multiplier'!AD35,20%) -> 0.6284687879 | AE35: =MAX('Shock Analysis - RW Multiplier'!$D35*'Shock Analysis - RW Multiplier'!AE35,20%) -> 0.6209714133
A36: 16 | D36: 0.24 | E36: 16 | F36: =MAX('Shock Analysis - RW Multiplier'!$D36*'Shock Analysis - RW Multiplier'!F36,20%) -> 0.8085352707 | G36: =MAX('Shock Analysis - RW Multiplier'!$D36*'Shock Analysis - RW Multiplier'!G36,20%) -> 0.8010360716 | H36: =MAX('Shock Analysis - RW Multiplier'!$D36*'Shock Analysis - RW Multiplier'!H36,20%) -> 0.7935368505 | I36: =MAX('Shock Analysis - RW Multiplier'!$D36*'Shock Analysis - RW Multiplier'!I36,20%) -> 0.786037608 | J36: =MAX('Shock Analysis - RW Multiplier'!$D36*'Shock Analysis - RW Multiplier'!J36,20%) -> 0.7785383447 | K36: =MAX('Shock Analysis - RW Multiplier'!$D36*'Shock Analysis - RW Multiplier'!K36,20%) -> 0.7710390612 | L36: =MAX('Shock Analysis - RW Multiplier'!$D36*'Shock Analysis - RW Multiplier'!L36,20%) -> 0.7635397581 | M36: =MAX('Shock Analysis - RW Multiplier'!$D36*'Shock Analysis - RW Multiplier'!M36,20%) -> 0.7560404358 | N36: =MAX('Shock Analysis - RW Multiplier'!$D36*'Shock Analysis - RW Multiplier'!N36,20%) -> 0.7485410949 | O36: =MAX('Shock Analysis - RW Multiplier'!$D36*'Shock Analysis - RW Multiplier'!O36,20%) -> 0.7410417359 | P36: =MAX('Shock Analysis - RW Multiplier'!$D36*'Shock Analysis - RW Multiplier'!P36,20%) -> 0.7335423594 | Q36: =MAX('Shock Analysis - RW Multiplier'!$D36*'Shock Analysis - RW Multiplier'!Q36,20%) -> 0.7260429657 | R36: =MAX('Shock Analysis - RW Multiplier'!$D36*'Shock Analysis - RW Multiplier'!R36,20%) -> 0.7185435554 | S36: =MAX('Shock Analysis - RW Multiplier'!$D36*'Shock Analysis - RW Multiplier'!S36,20%) -> 0.7110441289 | T36: =MAX('Shock Analysis - RW Multiplier'!$D36*'Shock Analysis - RW Multiplier'!T36,20%) -> 0.7035446867 | U36: =MAX('Shock Analysis - RW Multiplier'!$D36*'Shock Analysis - RW Multiplier'!U36,20%) -> 0.6960452291 | V36: =MAX('Shock Analysis - RW Multiplier'!$D36*'Shock Analysis - RW Multiplier'!V36,20%) -> 0.6885457567 | W36: =MAX('Shock Analysis - RW Multiplier'!$D36*'Shock Analysis - RW Multiplier'!W36,20%) -> 0.6810462698 | X36: =MAX('Shock Analysis - RW Multiplier'!$D36*'Shock Analysis - RW Multiplier'!X36,20%) -> 0.6735467688 | Y36: =MAX('Shock Analysis - RW Multiplier'!$D36*'Shock Analysis - RW Multiplier'!Y36,20%) -> 0.6660472541 | Z36: =MAX('Shock Analysis - RW Multiplier'!$D36*'Shock Analysis - RW Multiplier'!Z36,20%) -> 0.6585477261 | AA36: =MAX('Shock Analysis - RW Multiplier'!$D36*'Shock Analysis - RW Multiplier'!AA36,20%) -> 0.6510481852 | AB36: =MAX('Shock Analysis - RW Multiplier'!$D36*'Shock Analysis - RW Multiplier'!AB36,20%) -> 0.6435486316 | AC36: =MAX('Shock Analysis - RW Multiplier'!$D36*'Shock Analysis - RW Multiplier'!AC36,20%) -> 0.6360490658 | AD36: =MAX('Shock Analysis - RW Multiplier'!$D36*'Shock Analysis - RW Multiplier'!AD36,20%) -> 0.6285494881 | AE36: =MAX('Shock Analysis - RW Multiplier'!$D36*'Shock Analysis - RW Multiplier'!AE36,20%) -> 0.6210498988
A37: 17 | D37: 0.28 | E37: 17 | F37: =MAX('Shock Analysis - RW Multiplier'!$D37*'Shock Analysis - RW Multiplier'!F37,20%) -> 0.8085598881 | G37: =MAX('Shock Analysis - RW Multiplier'!$D37*'Shock Analysis - RW Multiplier'!G37,20%) -> 0.8010600134 | H37: =MAX('Shock Analysis - RW Multiplier'!$D37*'Shock Analysis - RW Multiplier'!H37,20%) -> 0.7935601352 | I37: =MAX('Shock Analysis - RW Multiplier'!$D37*'Shock Analysis - RW Multiplier'!I37,20%) -> 0.7860602537 | J37: =MAX('Shock Analysis - RW Multiplier'!$D37*'Shock Analysis - RW Multiplier'!J37,20%) -> 0.778560369 | K37: =MAX('Shock Analysis - RW Multiplier'!$D37*'Shock Analysis - RW Multiplier'!K37,20%) -> 0.771060481 | L37: =MAX('Shock Analysis - RW Multiplier'!$D37*'Shock Analysis - RW Multiplier'!L37,20%) -> 0.7635605901 | M37: =MAX('Shock Analysis - RW Multiplier'!$D37*'Shock Analysis - RW Multiplier'!M37,20%) -> 0.7560606961 | N37: =MAX('Shock Analysis - RW Multiplier'!$D37*'Shock Analysis - RW Multiplier'!N37,20%) -> 0.7485607992 | O37: =MAX('Shock Analysis - RW Multiplier'!$D37*'Shock Analysis - RW Multiplier'!O37,20%) -> 0.7410608995 | P37: =MAX('Shock Analysis - RW Multiplier'!$D37*'Shock Analysis - RW Multiplier'!P37,20%) -> 0.733560997 | Q37: =MAX('Shock Analysis - RW Multiplier'!$D37*'Shock Analysis - RW Multiplier'!Q37,20%) -> 0.7260610918 | R37: =MAX('Shock Analysis - RW Multiplier'!$D37*'Shock Analysis - RW Multiplier'!R37,20%) -> 0.7185611841 | S37: =MAX('Shock Analysis - RW Multiplier'!$D37*'Shock Analysis - RW Multiplier'!S37,20%) -> 0.7110612738 | T37: =MAX('Shock Analysis - RW Multiplier'!$D37*'Shock Analysis - RW Multiplier'!T37,20%) -> 0.703561361 | U37: =MAX('Shock Analysis - RW Multiplier'!$D37*'Shock Analysis - RW Multiplier'!U37,20%) -> 0.6960614459 | V37: =MAX('Shock Analysis - RW Multiplier'!$D37*'Shock Analysis - RW Multiplier'!V37,20%) -> 0.6885615284 | W37: =MAX('Shock Analysis - RW Multiplier'!$D37*'Shock Analysis - RW Multiplier'!W37,20%) -> 0.6810616087 | X37: =MAX('Shock Analysis - RW Multiplier'!$D37*'Shock Analysis - RW Multiplier'!X37,20%) -> 0.6735616867 | Y37: =MAX('Shock Analysis - RW Multiplier'!$D37*'Shock Analysis - RW Multiplier'!Y37,20%) -> 0.6660617627 | Z37: =MAX('Shock Analysis - RW Multiplier'!$D37*'Shock Analysis - RW Multiplier'!Z37,20%) -> 0.6585618365 | AA37: =MAX('Shock Analysis - RW Multiplier'!$D37*'Shock Analysis - RW Multiplier'!AA37,20%) -> 0.6510619083 | AB37: =MAX('Shock Analysis - RW Multiplier'!$D37*'Shock Analysis - RW Multiplier'!AB37,20%) -> 0.6435619782 | AC37: =MAX('Shock Analysis - RW Multiplier'!$D37*'Shock Analysis - RW Multiplier'!AC37,20%) -> 0.6360620461 | AD37: =MAX('Shock Analysis - RW Multiplier'!$D37*'Shock Analysis - RW Multiplier'!AD37,20%) -> 0.6285621121 | AE37: =MAX('Shock Analysis - RW Multiplier'!$D37*'Shock Analysis - RW Multiplier'!AE37,20%) -> 0.6210621764
A38: 18 | D38: 0.32 | E38: 18 | F38: =MAX('Shock Analysis - RW Multiplier'!$D38*'Shock Analysis - RW Multiplier'!F38,20%) -> 0.808563739 | G38: =MAX('Shock Analysis - RW Multiplier'!$D38*'Shock Analysis - RW Multiplier'!G38,20%) -> 0.8010637586 | H38: =MAX('Shock Analysis - RW Multiplier'!$D38*'Shock Analysis - RW Multiplier'!H38,20%) -> 0.7935637777 | I38: =MAX('Shock Analysis - RW Multiplier'!$D38*'Shock Analysis - RW Multiplier'!I38,20%) -> 0.7860637962 | J38: =MAX('Shock Analysis - RW Multiplier'!$D38*'Shock Analysis - RW Multiplier'!J38,20%) -> 0.7785638142 | K38: =MAX('Shock Analysis - RW Multiplier'!$D38*'Shock Analysis - RW Multiplier'!K38,20%) -> 0.7710638318 | L38: =MAX('Shock Analysis - RW Multiplier'!$D38*'Shock Analysis - RW Multiplier'!L38,20%) -> 0.7635638488 | M38: =MAX('Shock Analysis - RW Multiplier'!$D38*'Shock Analysis - RW Multiplier'!M38,20%) -> 0.7560638654 | N38: =MAX('Shock Analysis - RW Multiplier'!$D38*'Shock Analysis - RW Multiplier'!N38,20%) -> 0.7485638815 | O38: =MAX('Shock Analysis - RW Multiplier'!$D38*'Shock Analysis - RW Multiplier'!O38,20%) -> 0.7410638972 | P38: =MAX('Shock Analysis - RW Multiplier'!$D38*'Shock Analysis - RW Multiplier'!P38,20%) -> 0.7335639125 | Q38: =MAX('Shock Analysis - RW Multiplier'!$D38*'Shock Analysis - RW Multiplier'!Q38,20%) -> 0.7260639273 | R38: =MAX('Shock Analysis - RW Multiplier'!$D38*'Shock Analysis - RW Multiplier'!R38,20%) -> 0.7185639417 | S38: =MAX('Shock Analysis - RW Multiplier'!$D38*'Shock Analysis - RW Multiplier'!S38,20%) -> 0.7110639558 | T38: =MAX('Shock Analysis - RW Multiplier'!$D38*'Shock Analysis - RW Multiplier'!T38,20%) -> 0.7035639694 | U38: =MAX('Shock Analysis - RW Multiplier'!$D38*'Shock Analysis - RW Multiplier'!U38,20%) -> 0.6960639827 | V38: =MAX('Shock Analysis - RW Multiplier'!$D38*'Shock Analysis - RW Multiplier'!V38,20%) -> 0.6885639956 | W38: =MAX('Shock Analysis - RW Multiplier'!$D38*'Shock Analysis - RW Multiplier'!W38,20%) -> 0.6810640082 | X38: =MAX('Shock Analysis - RW Multiplier'!$D38*'Shock Analysis - RW Multiplier'!X38,20%) -> 0.6735640204 | Y38: =MAX('Shock Analysis - RW Multiplier'!$D38*'Shock Analysis - RW Multiplier'!Y38,20%) -> 0.6660640323 | Z38: =MAX('Shock Analysis - RW Multiplier'!$D38*'Shock Analysis - RW Multiplier'!Z38,20%) -> 0.6585640438 | AA38: =MAX('Shock Analysis - RW Multiplier'!$D38*'Shock Analysis - RW Multiplier'!AA38,20%) -> 0.651064055 | AB38: =MAX('Shock Analysis - RW Multiplier'!$D38*'Shock Analysis - RW Multiplier'!AB38,20%) -> 0.643564066 | AC38: =MAX('Shock Analysis - RW Multiplier'!$D38*'Shock Analysis - RW Multiplier'!AC38,20%) -> 0.6360640766 | AD38: =MAX('Shock Analysis - RW Multiplier'!$D38*'Shock Analysis - RW Multiplier'!AD38,20%) -> 0.6285640869 | AE38: =MAX('Shock Analysis - RW Multiplier'!$D38*'Shock Analysis - RW Multiplier'!AE38,20%) -> 0.621064097
A39: 19 | D39: 0.36 | E39: 19 | F39: =MAX('Shock Analysis - RW Multiplier'!$D39*'Shock Analysis - RW Multiplier'!F39,20%) -> 0.8085643414 | G39: =MAX('Shock Analysis - RW Multiplier'!$D39*'Shock Analysis - RW Multiplier'!G39,20%) -> 0.8010643445 | H39: =MAX('Shock Analysis - RW Multiplier'!$D39*'Shock Analysis - RW Multiplier'!H39,20%) -> 0.7935643475 | I39: =MAX('Shock Analysis - RW Multiplier'!$D39*'Shock Analysis - RW Multiplier'!I39,20%) -> 0.7860643504 | J39: =MAX('Shock Analysis - RW Multiplier'!$D39*'Shock Analysis - RW Multiplier'!J39,20%) -> 0.7785643532 | K39: =MAX('Shock Analysis - RW Multiplier'!$D39*'Shock Analysis - RW Multiplier'!K39,20%) -> 0.7710643559 | L39: =MAX('Shock Analysis - RW Multiplier'!$D39*'Shock Analysis - RW Multiplier'!L39,20%) -> 0.7635643586 | M39: =MAX('Shock Analysis - RW Multiplier'!$D39*'Shock Analysis - RW Multiplier'!M39,20%) -> 0.7560643612 | N39: =MAX('Shock Analysis - RW Multiplier'!$D39*'Shock Analysis - RW Multiplier'!N39,20%) -> 0.7485643637 | O39: =MAX('Shock Analysis - RW Multiplier'!$D39*'Shock Analysis - RW Multiplier'!O39,20%) -> 0.7410643662 | P39: =MAX('Shock Analysis - RW Multiplier'!$D39*'Shock Analysis - RW Multiplier'!P39,20%) -> 0.7335643686 | Q39: =MAX('Shock Analysis - RW Multiplier'!$D39*'Shock Analysis - RW Multiplier'!Q39,20%) -> 0.7260643709 | R39: =MAX('Shock Analysis - RW Multiplier'!$D39*'Shock Analysis - RW Multiplier'!R39,20%) -> 0.7185643731 | S39: =MAX('Shock Analysis - RW Multiplier'!$D39*'Shock Analysis - RW Multiplier'!S39,20%) -> 0.7110643753 | T39: =MAX('Shock Analysis - RW Multiplier'!$D39*'Shock Analysis - RW Multiplier'!T39,20%) -> 0.7035643775 | U39: =MAX('Shock Analysis - RW Multiplier'!$D39*'Shock Analysis - RW Multiplier'!U39,20%) -> 0.6960643795 | V39: =MAX('Shock Analysis - RW Multiplier'!$D39*'Shock Analysis - RW Multiplier'!V39,20%) -> 0.6885643816 | W39: =MAX('Shock Analysis - RW Multiplier'!$D39*'Shock Analysis - RW Multiplier'!W39,20%) -> 0.6810643835 | X39: =MAX('Shock Analysis - RW Multiplier'!$D39*'Shock Analysis - RW Multiplier'!X39,20%) -> 0.6735643854 | Y39: =MAX('Shock Analysis - RW Multiplier'!$D39*'Shock Analysis - RW Multiplier'!Y39,20%) -> 0.6660643873 | Z39: =MAX('Shock Analysis - RW Multiplier'!$D39*'Shock Analysis - RW Multiplier'!Z39,20%) -> 0.6585643891 | AA39: =MAX('Shock Analysis - RW Multiplier'!$D39*'Shock Analysis - RW Multiplier'!AA39,20%) -> 0.6510643909 | AB39: =MAX('Shock Analysis - RW Multiplier'!$D39*'Shock Analysis - RW Multiplier'!AB39,20%) -> 0.6435643926 | AC39: =MAX('Shock Analysis - RW Multiplier'!$D39*'Shock Analysis - RW Multiplier'!AC39,20%) -> 0.6360643942 | AD39: =MAX('Shock Analysis - RW Multiplier'!$D39*'Shock Analysis - RW Multiplier'!AD39,20%) -> 0.6285643958 | AE39: =MAX('Shock Analysis - RW Multiplier'!$D39*'Shock Analysis - RW Multiplier'!AE39,20%) -> 0.6210643974
A40: 20 | D40: 0.4 | E40: 20 | F40: =MAX('Shock Analysis - RW Multiplier'!$D40*'Shock Analysis - RW Multiplier'!F40,20%) -> 0.8085644357 | G40: =MAX('Shock Analysis - RW Multiplier'!$D40*'Shock Analysis - RW Multiplier'!G40,20%) -> 0.8010644361 | H40: =MAX('Shock Analysis - RW Multiplier'!$D40*'Shock Analysis - RW Multiplier'!H40,20%) -> 0.7935644366 | I40: =MAX('Shock Analysis - RW Multiplier'!$D40*'Shock Analysis - RW Multiplier'!I40,20%) -> 0.786064437 | J40: =MAX('Shock Analysis - RW Multiplier'!$D40*'Shock Analysis - RW Multiplier'!J40,20%) -> 0.7785644375 | K40: =MAX('Shock Analysis - RW Multiplier'!$D40*'Shock Analysis - RW Multiplier'!K40,20%) -> 0.7710644379 | L40: =MAX('Shock Analysis - RW Multiplier'!$D40*'Shock Analysis - RW Multiplier'!L40,20%) -> 0.7635644383 | M40: =MAX('Shock Analysis - RW Multiplier'!$D40*'Shock Analysis - RW Multiplier'!M40,20%) -> 0.7560644387 | N40: =MAX('Shock Analysis - RW Multiplier'!$D40*'Shock Analysis - RW Multiplier'!N40,20%) -> 0.7485644391 | O40: =MAX('Shock Analysis - RW Multiplier'!$D40*'Shock Analysis - RW Multiplier'!O40,20%) -> 0.7410644395 | P40: =MAX('Shock Analysis - RW Multiplier'!$D40*'Shock Analysis - RW Multiplier'!P40,20%) -> 0.7335644399 | Q40: =MAX('Shock Analysis - RW Multiplier'!$D40*'Shock Analysis - RW Multiplier'!Q40,20%) -> 0.7260644403 | R40: =MAX('Shock Analysis - RW Multiplier'!$D40*'Shock Analysis - RW Multiplier'!R40,20%) -> 0.7185644406 | S40: =MAX('Shock Analysis - RW Multiplier'!$D40*'Shock Analysis - RW Multiplier'!S40,20%) -> 0.711064441 | T40: =MAX('Shock Analysis - RW Multiplier'!$D40*'Shock Analysis - RW Multiplier'!T40,20%) -> 0.7035644413 | U40: =MAX('Shock Analysis - RW Multiplier'!$D40*'Shock Analysis - RW Multiplier'!U40,20%) -> 0.6960644416 | V40: =MAX('Shock Analysis - RW Multiplier'!$D40*'Shock Analysis - RW Multiplier'!V40,20%) -> 0.6885644419 | W40: =MAX('Shock Analysis - RW Multiplier'!$D40*'Shock Analysis - RW Multiplier'!W40,20%) -> 0.6810644422 | X40: =MAX('Shock Analysis - RW Multiplier'!$D40*'Shock Analysis - RW Multiplier'!X40,20%) -> 0.6735644425 | Y40: =MAX('Shock Analysis - RW Multiplier'!$D40*'Shock Analysis - RW Multiplier'!Y40,20%) -> 0.6660644428 | Z40: =MAX('Shock Analysis - RW Multiplier'!$D40*'Shock Analysis - RW Multiplier'!Z40,20%) -> 0.6585644431 | AA40: =MAX('Shock Analysis - RW Multiplier'!$D40*'Shock Analysis - RW Multiplier'!AA40,20%) -> 0.6510644434 | AB40: =MAX('Shock Analysis - RW Multiplier'!$D40*'Shock Analysis - RW Multiplier'!AB40,20%) -> 0.6435644437 | AC40: =MAX('Shock Analysis - RW Multiplier'!$D40*'Shock Analysis - RW Multiplier'!AC40,20%) -> 0.6360644439 | AD40: =MAX('Shock Analysis - RW Multiplier'!$D40*'Shock Analysis - RW Multiplier'!AD40,20%) -> 0.6285644442 | AE40: =MAX('Shock Analysis - RW Multiplier'!$D40*'Shock Analysis - RW Multiplier'!AE40,20%) -> 0.6210644444
C42: MPF - 125
F43: First Loss Account
F44: 0.01 | G44: 0.0108 | H44: 0.0116 | I44: 0.0124 | J44: 0.0132 | K44: 0.014 | L44: 0.0148 | M44: 0.0156 | N44: 0.0164 | O44: 0.0172 | P44: 0.018 | Q44: 0.0188 | R44: 0.0196 | S44: 0.0204 | T44: 0.0212 | U44: 0.022 | V44: 0.0228 | W44: 0.0236 | X44: 0.0244 | Y44: 0.0252 | Z44: 0.026 | AA44: 0.0268 | AB44: 0.0276 | AC44: 0.0284 | AD44: 0.0292 | AE44: 0.03
E45: =A16 -> 1
A46: 1 | C46: Credit Enhancement Obligation | D46: 0.02 | E46: =A46 -> 1 | F46: =MAX('Shock Analysis - RW Multiplier'!$D46*'Shock Analysis - RW Multiplier'!F46,20%) -> 0.25 | G46: =MAX('Shock Analysis - RW Multiplier'!$D46*'Shock Analysis - RW Multiplier'!G46,20%) -> 0.25 | H46: =MAX('Shock Analysis - RW Multiplier'!$D46*'Shock Analysis - RW Multiplier'!H46,20%) -> 0.25 | I46: =MAX('Shock Analysis - RW Multiplier'!$D46*'Shock Analysis - RW Multiplier'!I46,20%) -> 0.25 | J46: =MAX('Shock Analysis - RW Multiplier'!$D46*'Shock Analysis - RW Multiplier'!J46,20%) -> 0.25 | K46: =MAX('Shock Analysis - RW Multiplier'!$D46*'Shock Analysis - RW Multiplier'!K46,20%) -> 0.25 | L46: =MAX('Shock Analysis - RW Multiplier'!$D46*'Shock Analysis - RW Multiplier'!L46,20%) -> 0.25 | M46: =MAX('Shock Analysis - RW Multiplier'!$D46*'Shock Analysis - RW Multiplier'!M46,20%) -> 0.25 | N46: =MAX('Shock Analysis - RW Multiplier'!$D46*'Shock Analysis - RW Multiplier'!N46,20%) -> 0.25 | O46: =MAX('Shock Analysis - RW Multiplier'!$D46*'Shock Analysis - RW Multiplier'!O46,20%) -> 0.25 | P46: =MAX('Shock Analysis - RW Multiplier'!$D46*'Shock Analysis - RW Multiplier'!P46,20%) -> 0.25 | Q46: =MAX('Shock Analysis - RW Multiplier'!$D46*'Shock Analysis - RW Multiplier'!Q46,20%) -> 0.25 | R46: =MAX('Shock Analysis - RW Multiplier'!$D46*'Shock Analysis - RW Multiplier'!R46,20%) -> 0.25 | S46: =MAX('Shock Analysis - RW Multiplier'!$D46*'Shock Analysis - RW Multiplier'!S46,20%) -> 0.25 | T46: =MAX('Shock Analysis - RW Multiplier'!$D46*'Shock Analysis - RW Multiplier'!T46,20%) -> 0.25 | U46: =MAX('Shock Analysis - RW Multiplier'!$D46*'Shock Analysis - RW Multiplier'!U46,20%) -> 0.25 | V46: =MAX('Shock Analysis - RW Multiplier'!$D46*'Shock Analysis - RW Multiplier'!V46,20%) -> 0.25 | W46: =MAX('Shock Analysis - RW Multiplier'!$D46*'Shock Analysis - RW Multiplier'!W46,20%) -> 0.2499346504 | X46: =MAX('Shock Analysis - RW Multiplier'!$D46*'Shock Analysis - RW Multiplier'!X46,20%) -> 0.2495368175 | Y46: =MAX('Shock Analysis - RW Multiplier'!$D46*'Shock Analysis - RW Multiplier'!Y46,20%) -> 0.2487892455 | Z46: =MAX('Shock Analysis - RW Multiplier'!$D46*'Shock Analysis - RW Multiplier'!Z46,20%) -> 0.2477046732 | AA46: =MAX('Shock Analysis - RW Multiplier'!$D46*'Shock Analysis - RW Multiplier'!AA46,20%) -> 0.2462953749 | AB46: =MAX('Shock Analysis - RW Multiplier'!$D46*'Shock Analysis - RW Multiplier'!AB46,20%) -> 0.2445731782 | AC46: =MAX('Shock Analysis - RW Multiplier'!$D46*'Shock Analysis - RW Multiplier'!AC46,20%) -> 0.2425494797 | AD46: =MAX('Shock Analysis - RW Multiplier'!$D46*'Shock Analysis - RW Multiplier'!AD46,20%) -> 0.2402352611 | AE46: =MAX('Shock Analysis - RW Multiplier'!$D46*'Shock Analysis - RW Multiplier'!AE46,20%) -> 0.2376411038
A47: 2 | D47: 0.025 | E47: =A47 -> 2 | F47: =MAX('Shock Analysis - RW Multiplier'!$D47*'Shock Analysis - RW Multiplier'!F47,20%) -> 0.3125 | G47: =MAX('Shock Analysis - RW Multiplier'!$D47*'Shock Analysis - RW Multiplier'!G47,20%) -> 0.3125 | H47: =MAX('Shock Analysis - RW Multiplier'!$D47*'Shock Analysis - RW Multiplier'!H47,20%) -> 0.3125 | I47: =MAX('Shock Analysis - RW Multiplier'!$D47*'Shock Analysis - RW Multiplier'!I47,20%) -> 0.3125 | J47: =MAX('Shock Analysis - RW Multiplier'!$D47*'Shock Analysis - RW Multiplier'!J47,20%) -> 0.3125 | K47: =MAX('Shock Analysis - RW Multiplier'!$D47*'Shock Analysis - RW Multiplier'!K47,20%) -> 0.3125 | L47: =MAX('Shock Analysis - RW Multiplier'!$D47*'Shock Analysis - RW Multiplier'!L47,20%) -> 0.3125 | M47: =MAX('Shock Analysis - RW Multiplier'!$D47*'Shock Analysis - RW Multiplier'!M47,20%) -> 0.3125 | N47: =MAX('Shock Analysis - RW Multiplier'!$D47*'Shock Analysis - RW Multiplier'!N47,20%) -> 0.3125 | O47: =MAX('Shock Analysis - RW Multiplier'!$D47*'Shock Analysis - RW Multiplier'!O47,20%) -> 0.3125 | P47: =MAX('Shock Analysis - RW Multiplier'!$D47*'Shock Analysis - RW Multiplier'!P47,20%) -> 0.3125 | Q47: =MAX('Shock Analysis - RW Multiplier'!$D47*'Shock Analysis - RW Multiplier'!Q47,20%) -> 0.3123686948 | R47: =MAX('Shock Analysis - RW Multiplier'!$D47*'Shock Analysis - RW Multiplier'!R47,20%) -> 0.3118822068 | S47: =MAX('Shock Analysis - RW Multiplier'!$D47*'Shock Analysis - RW Multiplier'!S47,20%) -> 0.311049209 | T47: =MAX('Shock Analysis - RW Multiplier'!$D47*'Shock Analysis - RW Multiplier'!T47,20%) -> 0.3098823221 | U47: =MAX('Shock Analysis - RW Multiplier'!$D47*'Shock Analysis - RW Multiplier'!U47,20%) -> 0.3083937075 | V47: =MAX('Shock Analysis - RW Multiplier'!$D47*'Shock Analysis - RW Multiplier'!V47,20%) -> 0.3065950834 | W47: =MAX('Shock Analysis - RW Multiplier'!$D47*'Shock Analysis - RW Multiplier'!W47,20%) -> 0.3044977413 | X47: =MAX('Shock Analysis - RW Multiplier'!$D47*'Shock Analysis - RW Multiplier'!X47,20%) -> 0.3021125612 | Y47: =MAX('Shock Analysis - RW Multiplier'!$D47*'Shock Analysis - RW Multiplier'!Y47,20%) -> 0.2994500272 | Z47: =MAX('Shock Analysis - RW Multiplier'!$D47*'Shock Analysis - RW Multiplier'!Z47,20%) -> 0.2965202413 | AA47: =MAX('Shock Analysis - RW Multiplier'!$D47*'Shock Analysis - RW Multiplier'!AA47,20%) -> 0.2933329375 | AB47: =MAX('Shock Analysis - RW Multiplier'!$D47*'Shock Analysis - RW Multiplier'!AB47,20%) -> 0.2898974955 | AC47: =MAX('Shock Analysis - RW Multiplier'!$D47*'Shock Analysis - RW Multiplier'!AC47,20%) -> 0.286222953 | AD47: =MAX('Shock Analysis - RW Multiplier'!$D47*'Shock Analysis - RW Multiplier'!AD47,20%) -> 0.282318019 | AE47: =MAX('Shock Analysis - RW Multiplier'!$D47*'Shock Analysis - RW Multiplier'!AE47,20%) -> 0.2781910848
A48: 3 | D48: 0.03 | E48: 3 | F48: =MAX('Shock Analysis - RW Multiplier'!$D48*'Shock Analysis - RW Multiplier'!F48,20%) -> 0.375 | G48: =MAX('Shock Analysis - RW Multiplier'!$D48*'Shock Analysis - RW Multiplier'!G48,20%) -> 0.375 | H48: =MAX('Shock Analysis - RW Multiplier'!$D48*'Shock Analysis - RW Multiplier'!H48,20%) -> 0.375 | I48: =MAX('Shock Analysis - RW Multiplier'!$D48*'Shock Analysis - RW Multiplier'!I48,20%) -> 0.375 | J48: =MAX('Shock Analysis - RW Multiplier'!$D48*'Shock Analysis - RW Multiplier'!J48,20%) -> 0.3749983029 | K48: =MAX('Shock Analysis - RW Multiplier'!$D48*'Shock Analysis - RW Multiplier'!K48,20%) -> 0.3747802661 | L48: =MAX('Shock Analysis - RW Multiplier'!$D48*'Shock Analysis - RW Multiplier'!L48,20%) -> 0.3742059416 | M48: =MAX('Shock Analysis - RW Multiplier'!$D48*'Shock Analysis - RW Multiplier'!M48,20%) -> 0.3732883066 | N48: =MAX('Shock Analysis - RW Multiplier'!$D48*'Shock Analysis - RW Multiplier'!N48,20%) -> 0.3720398653 | O48: =MAX('Shock Analysis - RW Multiplier'!$D48*'Shock Analysis - RW Multiplier'!O48,20%) -> 0.3704726666 | P48: =MAX('Shock Analysis - RW Multiplier'!$D48*'Shock Analysis - RW Multiplier'!P48,20%) -> 0.3685983208 | Q48: =MAX('Shock Analysis - RW Multiplier'!$D48*'Shock Analysis - RW Multiplier'!Q48,20%) -> 0.3664280149 | R48: =MAX('Shock Analysis - RW Multiplier'!$D48*'Shock Analysis - RW Multiplier'!R48,20%) -> 0.3639725286 | S48: =MAX('Shock Analysis - RW Multiplier'!$D48*'Shock Analysis - RW Multiplier'!S48,20%) -> 0.3612422492 | T48: =MAX('Shock Analysis - RW Multiplier'!$D48*'Shock Analysis - RW Multiplier'!T48,20%) -> 0.3582471853 | U48: =MAX('Shock Analysis - RW Multiplier'!$D48*'Shock Analysis - RW Multiplier'!U48,20%) -> 0.3549969812 | V48: =MAX('Shock Analysis - RW Multiplier'!$D48*'Shock Analysis - RW Multiplier'!V48,20%) -> 0.3515009298 | W48: =MAX('Shock Analysis - RW Multiplier'!$D48*'Shock Analysis - RW Multiplier'!W48,20%) -> 0.3477679856 | X48: =MAX('Shock Analysis - RW Multiplier'!$D48*'Shock Analysis - RW Multiplier'!X48,20%) -> 0.343806777 | Y48: =MAX('Shock Analysis - RW Multiplier'!$D48*'Shock Analysis - RW Multiplier'!Y48,20%) -> 0.3396256179 | Z48: =MAX('Shock Analysis - RW Multiplier'!$D48*'Shock Analysis - RW Multiplier'!Z48,20%) -> 0.3352325197 | AA48: =MAX('Shock Analysis - RW Multiplier'!$D48*'Shock Analysis - RW Multiplier'!AA48,20%) -> 0.3306352017 | AB48: =MAX('Shock Analysis - RW Multiplier'!$D48*'Shock Analysis - RW Multiplier'!AB48,20%) -> 0.3258411023 | AC48: =MAX('Shock Analysis - RW Multiplier'!$D48*'Shock Analysis - RW Multiplier'!AC48,20%) -> 0.3208573888 | AD48: =MAX('Shock Analysis - RW Multiplier'!$D48*'Shock Analysis - RW Multiplier'!AD48,20%) -> 0.3156909675 | AE48: =MAX('Shock Analysis - RW Multiplier'!$D48*'Shock Analysis - RW Multiplier'!AE48,20%) -> 0.3103484931
A49: 4 | D49: 0.035 | E49: 4 | F49: =MAX('Shock Analysis - RW Multiplier'!$D49*'Shock Analysis - RW Multiplier'!F49,20%) -> 0.4365082218 | G49: =MAX('Shock Analysis - RW Multiplier'!$D49*'Shock Analysis - RW Multiplier'!G49,20%) -> 0.435506731 | H49: =MAX('Shock Analysis - RW Multiplier'!$D49*'Shock Analysis - RW Multiplier'!H49,20%) -> 0.4341774882 | I49: =MAX('Shock Analysis - RW Multiplier'!$D49*'Shock Analysis - RW Multiplier'!I49,20%) -> 0.4325324311 | J49: =MAX('Shock Analysis - RW Multiplier'!$D49*'Shock Analysis - RW Multiplier'!J49,20%) -> 0.4305830626 | K49: =MAX('Shock Analysis - RW Multiplier'!$D49*'Shock Analysis - RW Multiplier'!K49,20%) -> 0.4283404666 | L49: =MAX('Shock Analysis - RW Multiplier'!$D49*'Shock Analysis - RW Multiplier'!L49,20%) -> 0.4258153233 | M49: =MAX('Shock Analysis - RW Multiplier'!$D49*'Shock Analysis - RW Multiplier'!M49,20%) -> 0.4230179239 | N49: =MAX('Shock Analysis - RW Multiplier'!$D49*'Shock Analysis - RW Multiplier'!N49,20%) -> 0.4199581848 | O49: =MAX('Shock Analysis - RW Multiplier'!$D49*'Shock Analysis - RW Multiplier'!O49,20%) -> 0.416645661 | P49: =MAX('Shock Analysis - RW Multiplier'!$D49*'Shock Analysis - RW Multiplier'!P49,20%) -> 0.4130895599 | Q49: =MAX('Shock Analysis - RW Multiplier'!$D49*'Shock Analysis - RW Multiplier'!Q49,20%) -> 0.4092987532 | R49: =MAX('Shock Analysis - RW Multiplier'!$D49*'Shock Analysis - RW Multiplier'!R49,20%) -> 0.4052817895 | S49: =MAX('Shock Analysis - RW Multiplier'!$D49*'Shock Analysis - RW Multiplier'!S49,20%) -> 0.4010469062 | T49: =MAX('Shock Analysis - RW Multiplier'!$D49*'Shock Analysis - RW Multiplier'!T49,20%) -> 0.3966020405 | U49: =MAX('Shock Analysis - RW Multiplier'!$D49*'Shock Analysis - RW Multiplier'!U49,20%) -> 0.3919548406 | V49: =MAX('Shock Analysis - RW Multiplier'!$D49*'Shock Analysis - RW Multiplier'!V49,20%) -> 0.3871126761 | W49: =MAX('Shock Analysis - RW Multiplier'!$D49*'Shock Analysis - RW Multiplier'!W49,20%) -> 0.3820826481 | X49: =MAX('Shock Analysis - RW Multiplier'!$D49*'Shock Analysis - RW Multiplier'!X49,20%) -> 0.3768715993 | Y49: =MAX('Shock Analysis - RW Multiplier'!$D49*'Shock Analysis - RW Multiplier'!Y49,20%) -> 0.3714861229 | Z49: =MAX('Shock Analysis - RW Multiplier'!$D49*'Shock Analysis - RW Multiplier'!Z49,20%) -> 0.3659325721 | AA49: =MAX('Shock Analysis - RW Multiplier'!$D49*'Shock Analysis - RW Multiplier'!AA49,20%) -> 0.3602170686 | AB49: =MAX('Shock Analysis - RW Multiplier'!$D49*'Shock Analysis - RW Multiplier'!AB49,20%) -> 0.3543455112 | AC49: =MAX('Shock Analysis - RW Multiplier'!$D49*'Shock Analysis - RW Multiplier'!AC49,20%) -> 0.3483235839 | AD49: =MAX('Shock Analysis - RW Multiplier'!$D49*'Shock Analysis - RW Multiplier'!AD49,20%) -> 0.3421567636 | AE49: =MAX('Shock Analysis - RW Multiplier'!$D49*'Shock Analysis - RW Multiplier'!AE49,20%) -> 0.3358503277
A50: 5 | D50: 0.04 | E50: 5 | F50: =MAX('Shock Analysis - RW Multiplier'!$D50*'Shock Analysis - RW Multiplier'!F50,20%) -> 0.4876411038 | G50: =MAX('Shock Analysis - RW Multiplier'!$D50*'Shock Analysis - RW Multiplier'!G50,20%) -> 0.4847772041 | H50: =MAX('Shock Analysis - RW Multiplier'!$D50*'Shock Analysis - RW Multiplier'!H50,20%) -> 0.4816533869 | I50: =MAX('Shock Analysis - RW Multiplier'!$D50*'Shock Analysis - RW Multiplier'!I50,20%) -> 0.478279119 | J50: =MAX('Shock Analysis - RW Multiplier'!$D50*'Shock Analysis - RW Multiplier'!J50,20%) -> 0.4746635225 | K50: =MAX('Shock Analysis - RW Multiplier'!$D50*'Shock Analysis - RW Multiplier'!K50,20%) -> 0.4708153875 | L50: =MAX('Shock Analysis - RW Multiplier'!$D50*'Shock Analysis - RW Multiplier'!L50,20%) -> 0.4667431836 | M50: =MAX('Shock Analysis - RW Multiplier'!$D50*'Shock Analysis - RW Multiplier'!M50,20%) -> 0.462455072 | N50: =MAX('Shock Analysis - RW Multiplier'!$D50*'Shock Analysis - RW Multiplier'!N50,20%) -> 0.4579589168 | O50: =MAX('Shock Analysis - RW Multiplier'!$D50*'Shock Analysis - RW Multiplier'!O50,20%) -> 0.4532622955 | P50: =MAX('Shock Analysis - RW Multiplier'!$D50*'Shock Analysis - RW Multiplier'!P50,20%) -> 0.4483725097 | Q50: =MAX('Shock Analysis - RW Multiplier'!$D50*'Shock Analysis - RW Multiplier'!Q50,20%) -> 0.4432965949 | R50: =MAX('Shock Analysis - RW Multiplier'!$D50*'Shock Analysis - RW Multiplier'!R50,20%) -> 0.4380413306 | S50: =MAX('Shock Analysis - RW Multiplier'!$D50*'Shock Analysis - RW Multiplier'!S50,20%) -> 0.4326132492 | T50: =MAX('Shock Analysis - RW Multiplier'!$D50*'Shock Analysis - RW Multiplier'!T50,20%) -> 0.4270186451 | U50: =MAX('Shock Analysis - RW Multiplier'!$D50*'Shock Analysis - RW Multiplier'!U50,20%) -> 0.4212635836 | V50: =MAX('Shock Analysis - RW Multiplier'!$D50*'Shock Analysis - RW Multiplier'!V50,20%) -> 0.4153539092 | W50: =MAX('Shock Analysis - RW Multiplier'!$D50*'Shock Analysis - RW Multiplier'!W50,20%) -> 0.4092952531 | X50: =MAX('Shock Analysis - RW Multiplier'!$D50*'Shock Analysis - RW Multiplier'!X50,20%) -> 0.4030930417 | Y50: =MAX('Shock Analysis - RW Multiplier'!$D50*'Shock Analysis - RW Multiplier'!Y50,20%) -> 0.3967525038 | Z50: =MAX('Shock Analysis - RW Multiplier'!$D50*'Shock Analysis - RW Multiplier'!Z50,20%) -> 0.3902786776 | AA50: =MAX('Shock Analysis - RW Multiplier'!$D50*'Shock Analysis - RW Multiplier'!AA50,20%) -> 0.3836764179 | AB50: =MAX('Shock Analysis - RW Multiplier'!$D50*'Shock Analysis - RW Multiplier'!AB50,20%) -> 0.3769504026 | AC50: =MAX('Shock Analysis - RW Multiplier'!$D50*'Shock Analysis - RW Multiplier'!AC50,20%) -> 0.3701051391 | AD50: =MAX('Shock Analysis - RW Multiplier'!$D50*'Shock Analysis - RW Multiplier'!AD50,20%) -> 0.363144971 | AE50: =MAX('Shock Analysis - RW Multiplier'!$D50*'Shock Analysis - RW Multiplier'!AE50,20%) -> 0.3560740833
A51: 6 | D51: 0.045 | E51: 6 | F51: =MAX('Shock Analysis - RW Multiplier'!$D51*'Shock Analysis - RW Multiplier'!F51,20%) -> 0.5281910848 | G51: =MAX('Shock Analysis - RW Multiplier'!$D51*'Shock Analysis - RW Multiplier'!G51,20%) -> 0.5238502365 | H51: =MAX('Shock Analysis - RW Multiplier'!$D51*'Shock Analysis - RW Multiplier'!H51,20%) -> 0.5193032653 | I51: =MAX('Shock Analysis - RW Multiplier'!$D51*'Shock Analysis - RW Multiplier'!I51,20%) -> 0.5145576789 | J51: =MAX('Shock Analysis - RW Multiplier'!$D51*'Shock Analysis - RW Multiplier'!J51,20%) -> 0.5096207114 | K51: =MAX('Shock Analysis - RW Multiplier'!$D51*'Shock Analysis - RW Multiplier'!K51,20%) -> 0.5044993335 | L51: =MAX('Shock Analysis - RW Multiplier'!$D51*'Shock Analysis - RW Multiplier'!L51,20%) -> 0.499200262 | M51: =MAX('Shock Analysis - RW Multiplier'!$D51*'Shock Analysis - RW Multiplier'!M51,20%) -> 0.4937299689 | N51: =MAX('Shock Analysis - RW Multiplier'!$D51*'Shock Analysis - RW Multiplier'!N51,20%) -> 0.4880946906 | O51: =MAX('Shock Analysis - RW Multiplier'!$D51*'Shock Analysis - RW Multiplier'!O51,20%) -> 0.4823004364 | P51: =MAX('Shock Analysis - RW Multiplier'!$D51*'Shock Analysis - RW Multiplier'!P51,20%) -> 0.4763529967 | Q51: =MAX('Shock Analysis - RW Multiplier'!$D51*'Shock Analysis - RW Multiplier'!Q51,20%) -> 0.470257951 | R51: =MAX('Shock Analysis - RW Multiplier'!$D51*'Shock Analysis - RW Multiplier'!R51,20%) -> 0.4640206754 | S51: =MAX('Shock Analysis - RW Multiplier'!$D51*'Shock Analysis - RW Multiplier'!S51,20%) -> 0.4576463503 | T51: =MAX('Shock Analysis - RW Multiplier'!$D51*'Shock Analysis - RW Multiplier'!T51,20%) -> 0.4511399677 | U51: =MAX('Shock Analysis - RW Multiplier'!$D51*'Shock Analysis - RW Multiplier'!U51,20%) -> 0.4445063372 | V51: =MAX('Shock Analysis - RW Multiplier'!$D51*'Shock Analysis - RW Multiplier'!V51,20%) -> 0.4377500938 | W51: =MAX('Shock Analysis - RW Multiplier'!$D51*'Shock Analysis - RW Multiplier'!W51,20%) -> 0.4308757033 | X51: =MAX('Shock Analysis - RW Multiplier'!$D51*'Shock Analysis - RW Multiplier'!X51,20%) -> 0.4238874689 | Y51: =MAX('Shock Analysis - RW Multiplier'!$D51*'Shock Analysis - RW Multiplier'!Y51,20%) -> 0.4167895373 | Z51: =MAX('Shock Analysis - RW Multiplier'!$D51*'Shock Analysis - RW Multiplier'!Z51,20%) -> 0.4095859039 | AA51: =MAX('Shock Analysis - RW Multiplier'!$D51*'Shock Analysis - RW Multiplier'!AA51,20%) -> 0.4022804186 | AB51: =MAX('Shock Analysis - RW Multiplier'!$D51*'Shock Analysis - RW Multiplier'!AB51,20%) -> 0.3948767912 | AC51: =MAX('Shock Analysis - RW Multiplier'!$D51*'Shock Analysis - RW Multiplier'!AC51,20%) -> 0.3873785964 | AD51: =MAX('Shock Analysis - RW Multiplier'!$D51*'Shock Analysis - RW Multiplier'!AD51,20%) -> 0.3797892785 | AE51: =MAX('Shock Analysis - RW Multiplier'!$D51*'Shock Analysis - RW Multiplier'!AE51,20%) -> 0.3721121565
A52: 7 | D52: 0.05 | E52: 7 | F52: =MAX('Shock Analysis - RW Multiplier'!$D52*'Shock Analysis - RW Multiplier'!F52,20%) -> 0.5603484931 | G52: =MAX('Shock Analysis - RW Multiplier'!$D52*'Shock Analysis - RW Multiplier'!G52,20%) -> 0.5548363781 | H52: =MAX('Shock Analysis - RW Multiplier'!$D52*'Shock Analysis - RW Multiplier'!H52,20%) -> 0.5491608012 | I52: =MAX('Shock Analysis - RW Multiplier'!$D52*'Shock Analysis - RW Multiplier'!I52,20%) -> 0.5433277162 | J52: =MAX('Shock Analysis - RW Multiplier'!$D52*'Shock Analysis - RW Multiplier'!J52,20%) -> 0.5373428599 | K52: =MAX('Shock Analysis - RW Multiplier'!$D52*'Shock Analysis - RW Multiplier'!K52,20%) -> 0.5312117605 | L52: =MAX('Shock Analysis - RW Multiplier'!$D52*'Shock Analysis - RW Multiplier'!L52,20%) -> 0.5249397443 | M52: =MAX('Shock Analysis - RW Multiplier'!$D52*'Shock Analysis - RW Multiplier'!M52,20%) -> 0.5185319441 | N52: =MAX('Shock Analysis - RW Multiplier'!$D52*'Shock Analysis - RW Multiplier'!N52,20%) -> 0.5119933055 | O52: =MAX('Shock Analysis - RW Multiplier'!$D52*'Shock Analysis - RW Multiplier'!O52,20%) -> 0.505328594 | P52: =MAX('Shock Analysis - RW Multiplier'!$D52*'Shock Analysis - RW Multiplier'!P52,20%) -> 0.4985424016 | Q52: =MAX('Shock Analysis - RW Multiplier'!$D52*'Shock Analysis - RW Multiplier'!Q52,20%) -> 0.4916391529 | R52: =MAX('Shock Analysis - RW Multiplier'!$D52*'Shock Analysis - RW Multiplier'!R52,20%) -> 0.4846231115 | S52: =MAX('Shock Analysis - RW Multiplier'!$D52*'Shock Analysis - RW Multiplier'!S52,20%) -> 0.4774983856 | T52: =MAX('Shock Analysis - RW Multiplier'!$D52*'Shock Analysis - RW Multiplier'!T52,20%) -> 0.4702689339 | U52: =MAX('Shock Analysis - RW Multiplier'!$D52*'Shock Analysis - RW Multiplier'!U52,20%) -> 0.4629385707 | V52: =MAX('Shock Analysis - RW Multiplier'!$D52*'Shock Analysis - RW Multiplier'!V52,20%) -> 0.4555109715 | W52: =MAX('Shock Analysis - RW Multiplier'!$D52*'Shock Analysis - RW Multiplier'!W52,20%) -> 0.4479896779 | X52: =MAX('Shock Analysis - RW Multiplier'!$D52*'Shock Analysis - RW Multiplier'!X52,20%) -> 0.4403781027 | Y52: =MAX('Shock Analysis - RW Multiplier'!$D52*'Shock Analysis - RW Multiplier'!Y52,20%) -> 0.432679534 | Z52: =MAX('Shock Analysis - RW Multiplier'!$D52*'Shock Analysis - RW Multiplier'!Z52,20%) -> 0.4248971405 | AA52: =MAX('Shock Analysis - RW Multiplier'!$D52*'Shock Analysis - RW Multiplier'!AA52,20%) -> 0.4170339753 | AB52: =MAX('Shock Analysis - RW Multiplier'!$D52*'Shock Analysis - RW Multiplier'!AB52,20%) -> 0.4090929803 | AC52: =MAX('Shock Analysis - RW Multiplier'!$D52*'Shock Analysis - RW Multiplier'!AC52,20%) -> 0.4010769904 | AD52: =MAX('Shock Analysis - RW Multiplier'!$D52*'Shock Analysis - RW Multiplier'!AD52,20%) -> 0.392988737 | AE52: =MAX('Shock Analysis - RW Multiplier'!$D52*'Shock Analysis - RW Multiplier'!AE52,20%) -> 0.3848308522
A53: 8 | D53: 0.055 | E53: 8 | F53: =MAX('Shock Analysis - RW Multiplier'!$D53*'Shock Analysis - RW Multiplier'!F53,20%) -> 0.5858503277 | G53: =MAX('Shock Analysis - RW Multiplier'!$D53*'Shock Analysis - RW Multiplier'!G53,20%) -> 0.5794093614 | H53: =MAX('Shock Analysis - RW Multiplier'!$D53*'Shock Analysis - RW Multiplier'!H53,20%) -> 0.5728387647 | I53: =MAX('Shock Analysis - RW Multiplier'!$D53*'Shock Analysis - RW Multiplier'!I53,20%) -> 0.5661432591 | J53: =MAX('Shock Analysis - RW Multiplier'!$D53*'Shock Analysis - RW Multiplier'!J53,20%) -> 0.5593273942 | K53: =MAX('Shock Analysis - RW Multiplier'!$D53*'Shock Analysis - RW Multiplier'!K53,20%) -> 0.5523955538 | L53: =MAX('Shock Analysis - RW Multiplier'!$D53*'Shock Analysis - RW Multiplier'!L53,20%) -> 0.5453519621 | M53: =MAX('Shock Analysis - RW Multiplier'!$D53*'Shock Analysis - RW Multiplier'!M53,20%) -> 0.5382006893 | N53: =MAX('Shock Analysis - RW Multiplier'!$D53*'Shock Analysis - RW Multiplier'!N53,20%) -> 0.5309456576 | O53: =MAX('Shock Analysis - RW Multiplier'!$D53*'Shock Analysis - RW Multiplier'!O53,20%) -> 0.5235906461 | P53: =MAX('Shock Analysis - RW Multiplier'!$D53*'Shock Analysis - RW Multiplier'!P53,20%) -> 0.5161392965 | Q53: =MAX('Shock Analysis - RW Multiplier'!$D53*'Shock Analysis - RW Multiplier'!Q53,20%) -> 0.5085951175 | R53: =MAX('Shock Analysis - RW Multiplier'!$D53*'Shock Analysis - RW Multiplier'!R53,20%) -> 0.5009614904 | S53: =MAX('Shock Analysis - RW Multiplier'!$D53*'Shock Analysis - RW Multiplier'!S53,20%) -> 0.493241673 | T53: =MAX('Shock Analysis - RW Multiplier'!$D53*'Shock Analysis - RW Multiplier'!T53,20%) -> 0.4854388048 | U53: =MAX('Shock Analysis - RW Multiplier'!$D53*'Shock Analysis - RW Multiplier'!U53,20%) -> 0.4775559106 | V53: =MAX('Shock Analysis - RW Multiplier'!$D53*'Shock Analysis - RW Multiplier'!V53,20%) -> 0.4695959052 | W53: =MAX('Shock Analysis - RW Multiplier'!$D53*'Shock Analysis - RW Multiplier'!W53,20%) -> 0.4615615973 | X53: =MAX('Shock Analysis - RW Multiplier'!$D53*'Shock Analysis - RW Multiplier'!X53,20%) -> 0.4534556931 | Y53: =MAX('Shock Analysis - RW Multiplier'!$D53*'Shock Analysis - RW Multiplier'!Y53,20%) -> 0.4452808004 | Z53: =MAX('Shock Analysis - RW Multiplier'!$D53*'Shock Analysis - RW Multiplier'!Z53,20%) -> 0.437039432 | AA53: =MAX('Shock Analysis - RW Multiplier'!$D53*'Shock Analysis - RW Multiplier'!AA53,20%) -> 0.4287340091 | AB53: =MAX('Shock Analysis - RW Multiplier'!$D53*'Shock Analysis - RW Multiplier'!AB53,20%) -> 0.4203668647 | AC53: =MAX('Shock Analysis - RW Multiplier'!$D53*'Shock Analysis - RW Multiplier'!AC53,20%) -> 0.411940247 | AD53: =MAX('Shock Analysis - RW Multiplier'!$D53*'Shock Analysis - RW Multiplier'!AD53,20%) -> 0.4034563221 | AE53: =MAX('Shock Analysis - RW Multiplier'!$D53*'Shock Analysis - RW Multiplier'!AE53,20%) -> 0.3949171773
A54: 9 | D54: 0.06 | E54: 9 | F54: =MAX('Shock Analysis - RW Multiplier'!$D54*'Shock Analysis - RW Multiplier'!F54,20%) -> 0.6060740833 | G54: =MAX('Shock Analysis - RW Multiplier'!$D54*'Shock Analysis - RW Multiplier'!G54,20%) -> 0.5988965088 | H54: =MAX('Shock Analysis - RW Multiplier'!$D54*'Shock Analysis - RW Multiplier'!H54,20%) -> 0.5916161333 | I54: =MAX('Shock Analysis - RW Multiplier'!$D54*'Shock Analysis - RW Multiplier'!I54,20%) -> 0.5842367011 | J54: =MAX('Shock Analysis - RW Multiplier'!$D54*'Shock Analysis - RW Multiplier'!J54,20%) -> 0.5767618203 | K54: =MAX('Shock Analysis - RW Multiplier'!$D54*'Shock Analysis - RW Multiplier'!K54,20%) -> 0.5691949672 | L54: =MAX('Shock Analysis - RW Multiplier'!$D54*'Shock Analysis - RW Multiplier'!L54,20%) -> 0.5615394917 | M54: =MAX('Shock Analysis - RW Multiplier'!$D54*'Shock Analysis - RW Multiplier'!M54,20%) -> 0.5537986219 | N54: =MAX('Shock Analysis - RW Multiplier'!$D54*'Shock Analysis - RW Multiplier'!N54,20%) -> 0.545975468 | O54: =MAX('Shock Analysis - RW Multiplier'!$D54*'Shock Analysis - RW Multiplier'!O54,20%) -> 0.5380730269 | P54: =MAX('Shock Analysis - RW Multiplier'!$D54*'Shock Analysis - RW Multiplier'!P54,20%) -> 0.5300941867 | Q54: =MAX('Shock Analysis - RW Multiplier'!$D54*'Shock Analysis - RW Multiplier'!Q54,20%) -> 0.5220417299 | R54: =MAX('Shock Analysis - RW Multiplier'!$D54*'Shock Analysis - RW Multiplier'!R54,20%) -> 0.5139183378 | S54: =MAX('Shock Analysis - RW Multiplier'!$D54*'Shock Analysis - RW Multiplier'!S54,20%) -> 0.5057265943 | T54: =MAX('Shock Analysis - RW Multiplier'!$D54*'Shock Analysis - RW Multiplier'!T54,20%) -> 0.4974689888 | U54: =MAX('Shock Analysis - RW Multiplier'!$D54*'Shock Analysis - RW Multiplier'!U54,20%) -> 0.4891479201 | V54: =MAX('Shock Analysis - RW Multiplier'!$D54*'Shock Analysis - RW Multiplier'!V54,20%) -> 0.4807656999 | W54: =MAX('Shock Analysis - RW Multiplier'!$D54*'Shock Analysis - RW Multiplier'!W54,20%) -> 0.4723245555 | X54: =MAX('Shock Analysis - RW Multiplier'!$D54*'Shock Analysis - RW Multiplier'!X54,20%) -> 0.4638266329 | Y54: =MAX('Shock Analysis - RW Multiplier'!$D54*'Shock Analysis - RW Multiplier'!Y54,20%) -> 0.4552740003 | Z54: =MAX('Shock Analysis - RW Multiplier'!$D54*'Shock Analysis - RW Multiplier'!Z54,20%) -> 0.4466686504 | AA54: =MAX('Shock Analysis - RW Multiplier'!$D54*'Shock Analysis - RW Multiplier'!AA54,20%) -> 0.4380125033 | AB54: =MAX('Shock Analysis - RW Multiplier'!$D54*'Shock Analysis - RW Multiplier'!AB54,20%) -> 0.4293074091 | AC54: =MAX('Shock Analysis - RW Multiplier'!$D54*'Shock Analysis - RW Multiplier'!AC54,20%) -> 0.4205551506 | AD54: =MAX('Shock Analysis - RW Multiplier'!$D54*'Shock Analysis - RW Multiplier'!AD54,20%) -> 0.4117574458 | AE54: =MAX('Shock Analysis - RW Multiplier'!$D54*'Shock Analysis - RW Multiplier'!AE54,20%) -> 0.4029159498
A55: 10 | D55: 0.08 | E55: 10 | F55: =MAX('Shock Analysis - RW Multiplier'!$D55*'Shock Analysis - RW Multiplier'!F55,20%) -> 0.6529159498 | G55: =MAX('Shock Analysis - RW Multiplier'!$D55*'Shock Analysis - RW Multiplier'!G55,20%) -> 0.6440322578 | H55: =MAX('Shock Analysis - RW Multiplier'!$D55*'Shock Analysis - RW Multiplier'!H55,20%) -> 0.6351079066 | I55: =MAX('Shock Analysis - RW Multiplier'!$D55*'Shock Analysis - RW Multiplier'!I55,20%) -> 0.6261443771 | J55: =MAX('Shock Analysis - RW Multiplier'!$D55*'Shock Analysis - RW Multiplier'!J55,20%) -> 0.6171430963 | K55: =MAX('Shock Analysis - RW Multiplier'!$D55*'Shock Analysis - RW Multiplier'!K55,20%) -> 0.6081054392 | L55: =MAX('Shock Analysis - RW Multiplier'!$D55*'Shock Analysis - RW Multiplier'!L55,20%) -> 0.5990327308 | M55: =MAX('Shock Analysis - RW Multiplier'!$D55*'Shock Analysis - RW Multiplier'!M55,20%) -> 0.5899262478 | N55: =MAX('Shock Analysis - RW Multiplier'!$D55*'Shock Analysis - RW Multiplier'!N55,20%) -> 0.5807872202 | O55: =MAX('Shock Analysis - RW Multiplier'!$D55*'Shock Analysis - RW Multiplier'!O55,20%) -> 0.5716168335 | P55: =MAX('Shock Analysis - RW Multiplier'!$D55*'Shock Analysis - RW Multiplier'!P55,20%) -> 0.5624162299 | Q55: =MAX('Shock Analysis - RW Multiplier'!$D55*'Shock Analysis - RW Multiplier'!Q55,20%) -> 0.5531865099 | R55: =MAX('Shock Analysis - RW Multiplier'!$D55*'Shock Analysis - RW Multiplier'!R55,20%) -> 0.5439287341 | S55: =MAX('Shock Analysis - RW Multiplier'!$D55*'Shock Analysis - RW Multiplier'!S55,20%) -> 0.5346439243 | T55: =MAX('Shock Analysis - RW Multiplier'!$D55*'Shock Analysis - RW Multiplier'!T55,20%) -> 0.5253330652 | U55: =MAX('Shock Analysis - RW Multiplier'!$D55*'Shock Analysis - RW Multiplier'!U55,20%) -> 0.5159971056 | V55: =MAX('Shock Analysis - RW Multiplier'!$D55*'Shock Analysis - RW Multiplier'!V55,20%) -> 0.5066369597 | W55: =MAX('Shock Analysis - RW Multiplier'!$D55*'Shock Analysis - RW Multiplier'!W55,20%) -> 0.4972535084 | X55: =MAX('Shock Analysis - RW Multiplier'!$D55*'Shock Analysis - RW Multiplier'!X55,20%) -> 0.4878476006 | Y55: =MAX('Shock Analysis - RW Multiplier'!$D55*'Shock Analysis - RW Multiplier'!Y55,20%) -> 0.4784200543 | Z55: =MAX('Shock Analysis - RW Multiplier'!$D55*'Shock Analysis - RW Multiplier'!Z55,20%) -> 0.4689716575 | AA55: =MAX('Shock Analysis - RW Multiplier'!$D55*'Shock Analysis - RW Multiplier'!AA55,20%) -> 0.4595031697 | AB55: =MAX('Shock Analysis - RW Multiplier'!$D55*'Shock Analysis - RW Multiplier'!AB55,20%) -> 0.4500153227 | AC55: =MAX('Shock Analysis - RW Multiplier'!$D55*'Shock Analysis - RW Multiplier'!AC55,20%) -> 0.4405088216 | AD55: =MAX('Shock Analysis - RW Multiplier'!$D55*'Shock Analysis - RW Multiplier'!AD55,20%) -> 0.4309843458 | AE55: =MAX('Shock Analysis - RW Multiplier'!$D55*'Shock Analysis - RW Multiplier'!AE55,20%) -> 0.42144255
A56: 11 | D56: 0.1 | E56: 11 | F56: =MAX('Shock Analysis - RW Multiplier'!$D56*'Shock Analysis - RW Multiplier'!F56,20%) -> 0.67144255 | G56: =MAX('Shock Analysis - RW Multiplier'!$D56*'Shock Analysis - RW Multiplier'!G56,20%) -> 0.6618840651 | H56: =MAX('Shock Analysis - RW Multiplier'!$D56*'Shock Analysis - RW Multiplier'!H56,20%) -> 0.652309499 | I56: =MAX('Shock Analysis - RW Multiplier'!$D56*'Shock Analysis - RW Multiplier'!I56,20%) -> 0.6427194372 | J56: =MAX('Shock Analysis - RW Multiplier'!$D56*'Shock Analysis - RW Multiplier'!J56,20%) -> 0.6331144444 | K56: =MAX('Shock Analysis - RW Multiplier'!$D56*'Shock Analysis - RW Multiplier'!K56,20%) -> 0.6234950642 | L56: =MAX('Shock Analysis - RW Multiplier'!$D56*'Shock Analysis - RW Multiplier'!L56,20%) -> 0.6138618207 | M56: =MAX('Shock Analysis - RW Multiplier'!$D56*'Shock Analysis - RW Multiplier'!M56,20%) -> 0.6042152189 | N56: =MAX('Shock Analysis - RW Multiplier'!$D56*'Shock Analysis - RW Multiplier'!N56,20%) -> 0.5945557453 | O56: =MAX('Shock Analysis - RW Multiplier'!$D56*'Shock Analysis - RW Multiplier'!O56,20%) -> 0.5848838688 | P56: =MAX('Shock Analysis - RW Multiplier'!$D56*'Shock Analysis - RW Multiplier'!P56,20%) -> 0.575200041 | Q56: =MAX('Shock Analysis - RW Multiplier'!$D56*'Shock Analysis - RW Multiplier'!Q56,20%) -> 0.5655046973 | R56: =MAX('Shock Analysis - RW Multiplier'!$D56*'Shock Analysis - RW Multiplier'!R56,20%) -> 0.5557982571 | S56: =MAX('Shock Analysis - RW Multiplier'!$D56*'Shock Analysis - RW Multiplier'!S56,20%) -> 0.5460811247 | T56: =MAX('Shock Analysis - RW Multiplier'!$D56*'Shock Analysis - RW Multiplier'!T56,20%) -> 0.5363536893 | U56: =MAX('Shock Analysis - RW Multiplier'!$D56*'Shock Analysis - RW Multiplier'!U56,20%) -> 0.5266163264 | V56: =MAX('Shock Analysis - RW Multiplier'!$D56*'Shock Analysis - RW Multiplier'!V56,20%) -> 0.5168693975 | W56: =MAX('Shock Analysis - RW Multiplier'!$D56*'Shock Analysis - RW Multiplier'!W56,20%) -> 0.5071132509 | X56: =MAX('Shock Analysis - RW Multiplier'!$D56*'Shock Analysis - RW Multiplier'!X56,20%) -> 0.4973482226 | Y56: =MAX('Shock Analysis - RW Multiplier'!$D56*'Shock Analysis - RW Multiplier'!Y56,20%) -> 0.4875746358 | Z56: =MAX('Shock Analysis - RW Multiplier'!$D56*'Shock Analysis - RW Multiplier'!Z56,20%) -> 0.4777928025 | AA56: =MAX('Shock Analysis - RW Multiplier'!$D56*'Shock Analysis - RW Multiplier'!AA56,20%) -> 0.4680030228 | AB56: =MAX('Shock Analysis - RW Multiplier'!$D56*'Shock Analysis - RW Multiplier'!AB56,20%) -> 0.4582055863 | AC56: =MAX('Shock Analysis - RW Multiplier'!$D56*'Shock Analysis - RW Multiplier'!AC56,20%) -> 0.4484007719 | AD56: =MAX('Shock Analysis - RW Multiplier'!$D56*'Shock Analysis - RW Multiplier'!AD56,20%) -> 0.4385888483 | AE56: =MAX('Shock Analysis - RW Multiplier'!$D56*'Shock Analysis - RW Multiplier'!AE56,20%) -> 0.4287700743
A57: 12 | D57: 0.12 | E57: 12 | F57: =MAX('Shock Analysis - RW Multiplier'!$D57*'Shock Analysis - RW Multiplier'!F57,20%) -> 0.6787700743 | G57: =MAX('Shock Analysis - RW Multiplier'!$D57*'Shock Analysis - RW Multiplier'!G57,20%) -> 0.6689446996 | H57: =MAX('Shock Analysis - RW Multiplier'!$D57*'Shock Analysis - RW Multiplier'!H57,20%) -> 0.6591129645 | I57: =MAX('Shock Analysis - RW Multiplier'!$D57*'Shock Analysis - RW Multiplier'!I57,20%) -> 0.6492751007 | J57: =MAX('Shock Analysis - RW Multiplier'!$D57*'Shock Analysis - RW Multiplier'!J57,20%) -> 0.6394313314 | K57: =MAX('Shock Analysis - RW Multiplier'!$D57*'Shock Analysis - RW Multiplier'!K57,20%) -> 0.6295818718 | L57: =MAX('Shock Analysis - RW Multiplier'!$D57*'Shock Analysis - RW Multiplier'!L57,20%) -> 0.619726929 | M57: =MAX('Shock Analysis - RW Multiplier'!$D57*'Shock Analysis - RW Multiplier'!M57,20%) -> 0.6098667029 | N57: =MAX('Shock Analysis - RW Multiplier'!$D57*'Shock Analysis - RW Multiplier'!N57,20%) -> 0.6000013857 | O57: =MAX('Shock Analysis - RW Multiplier'!$D57*'Shock Analysis - RW Multiplier'!O57,20%) -> 0.590131163 | P57: =MAX('Shock Analysis - RW Multiplier'!$D57*'Shock Analysis - RW Multiplier'!P57,20%) -> 0.5802562135 | Q57: =MAX('Shock Analysis - RW Multiplier'!$D57*'Shock Analysis - RW Multiplier'!Q57,20%) -> 0.5703767092 | R57: =MAX('Shock Analysis - RW Multiplier'!$D57*'Shock Analysis - RW Multiplier'!R57,20%) -> 0.5604928162 | S57: =MAX('Shock Analysis - RW Multiplier'!$D57*'Shock Analysis - RW Multiplier'!S57,20%) -> 0.5506046942 | T57: =MAX('Shock Analysis - RW Multiplier'!$D57*'Shock Analysis - RW Multiplier'!T57,20%) -> 0.5407124972 | U57: =MAX('Shock Analysis - RW Multiplier'!$D57*'Shock Analysis - RW Multiplier'!U57,20%) -> 0.5308163738 | V57: =MAX('Shock Analysis - RW Multiplier'!$D57*'Shock Analysis - RW Multiplier'!V57,20%) -> 0.5209164669 | W57: =MAX('Shock Analysis - RW Multiplier'!$D57*'Shock Analysis - RW Multiplier'!W57,20%) -> 0.5110129142 | X57: =MAX('Shock Analysis - RW Multiplier'!$D57*'Shock Analysis - RW Multiplier'!X57,20%) -> 0.5011058487 | Y57: =MAX('Shock Analysis - RW Multiplier'!$D57*'Shock Analysis - RW Multiplier'!Y57,20%) -> 0.4911953983 | Z57: =MAX('Shock Analysis - RW Multiplier'!$D57*'Shock Analysis - RW Multiplier'!Z57,20%) -> 0.4812816862 | AA57: =MAX('Shock Analysis - RW Multiplier'!$D57*'Shock Analysis - RW Multiplier'!AA57,20%) -> 0.4713648312 | AB57: =MAX('Shock Analysis - RW Multiplier'!$D57*'Shock Analysis - RW Multiplier'!AB57,20%) -> 0.4614449479 | AC57: =MAX('Shock Analysis - RW Multiplier'!$D57*'Shock Analysis - RW Multiplier'!AC57,20%) -> 0.4515221464 | AD57: =MAX('Shock Analysis - RW Multiplier'!$D57*'Shock Analysis - RW Multiplier'!AD57,20%) -> 0.4415965332 | AE57: =MAX('Shock Analysis - RW Multiplier'!$D57*'Shock Analysis - RW Multiplier'!AE57,20%) -> 0.4316682106
A58: 13 | D58: 0.14 | E58: 13 | F58: =MAX('Shock Analysis - RW Multiplier'!$D58*'Shock Analysis - RW Multiplier'!F58,20%) -> 0.6816682106 | G58: =MAX('Shock Analysis - RW Multiplier'!$D58*'Shock Analysis - RW Multiplier'!G58,20%) -> 0.6717372773 | H58: =MAX('Shock Analysis - RW Multiplier'!$D58*'Shock Analysis - RW Multiplier'!H58,20%) -> 0.6618038284 | I58: =MAX('Shock Analysis - RW Multiplier'!$D58*'Shock Analysis - RW Multiplier'!I58,20%) -> 0.6518679555 | J58: =MAX('Shock Analysis - RW Multiplier'!$D58*'Shock Analysis - RW Multiplier'!J58,20%) -> 0.6419297469 | K58: =MAX('Shock Analysis - RW Multiplier'!$D58*'Shock Analysis - RW Multiplier'!K58,20%) -> 0.6319892876 | L58: =MAX('Shock Analysis - RW Multiplier'!$D58*'Shock Analysis - RW Multiplier'!L58,20%) -> 0.6220466598 | M58: =MAX('Shock Analysis - RW Multiplier'!$D58*'Shock Analysis - RW Multiplier'!M58,20%) -> 0.6121019422 | N58: =MAX('Shock Analysis - RW Multiplier'!$D58*'Shock Analysis - RW Multiplier'!N58,20%) -> 0.6021552111 | O58: =MAX('Shock Analysis - RW Multiplier'!$D58*'Shock Analysis - RW Multiplier'!O58,20%) -> 0.5922065398 | P58: =MAX('Shock Analysis - RW Multiplier'!$D58*'Shock Analysis - RW Multiplier'!P58,20%) -> 0.582255999 | Q58: =MAX('Shock Analysis - RW Multiplier'!$D58*'Shock Analysis - RW Multiplier'!Q58,20%) -> 0.5723036567 | R58: =MAX('Shock Analysis - RW Multiplier'!$D58*'Shock Analysis - RW Multiplier'!R58,20%) -> 0.5623495786 | S58: =MAX('Shock Analysis - RW Multiplier'!$D58*'Shock Analysis - RW Multiplier'!S58,20%) -> 0.5523938279 | T58: =MAX('Shock Analysis - RW Multiplier'!$D58*'Shock Analysis - RW Multiplier'!T58,20%) -> 0.5424364655 | U58: =MAX('Shock Analysis - RW Multiplier'!$D58*'Shock Analysis - RW Multiplier'!U58,20%) -> 0.5324775501 | V58: =MAX('Shock Analysis - RW Multiplier'!$D58*'Shock Analysis - RW Multiplier'!V58,20%) -> 0.5225171383 | W58: =MAX('Shock Analysis - RW Multiplier'!$D58*'Shock Analysis - RW Multiplier'!W58,20%) -> 0.5125552845 | X58: =MAX('Shock Analysis - RW Multiplier'!$D58*'Shock Analysis - RW Multiplier'!X58,20%) -> 0.5025920414 | Y58: =MAX('Shock Analysis - RW Multiplier'!$D58*'Shock Analysis - RW Multiplier'!Y58,20%) -> 0.4926274595 | Z58: =MAX('Shock Analysis - RW Multiplier'!$D58*'Shock Analysis - RW Multiplier'!Z58,20%) -> 0.4826615875 | AA58: =MAX('Shock Analysis - RW Multiplier'!$D58*'Shock Analysis - RW Multiplier'!AA58,20%) -> 0.4726944725 | AB58: =MAX('Shock Analysis - RW Multiplier'!$D58*'Shock Analysis - RW Multiplier'!AB58,20%) -> 0.4627261597 | AC58: =MAX('Shock Analysis - RW Multiplier'!$D58*'Shock Analysis - RW Multiplier'!AC58,20%) -> 0.4527566928 | AD58: =MAX('Shock Analysis - RW Multiplier'!$D58*'Shock Analysis - RW Multiplier'!AD58,20%) -> 0.4427861138 | AE58: =MAX('Shock Analysis - RW Multiplier'!$D58*'Shock Analysis - RW Multiplier'!AE58,20%) -> 0.4328144632
A59: 14 | D59: 0.16 | E59: 14 | F59: =MAX('Shock Analysis - RW Multiplier'!$D59*'Shock Analysis - RW Multiplier'!F59,20%) -> 0.6828144632 | G59: =MAX('Shock Analysis - RW Multiplier'!$D59*'Shock Analysis - RW Multiplier'!G59,20%) -> 0.67284178 | H59: =MAX('Shock Analysis - RW Multiplier'!$D59*'Shock Analysis - RW Multiplier'!H59,20%) -> 0.6628681019 | I59: =MAX('Shock Analysis - RW Multiplier'!$D59*'Shock Analysis - RW Multiplier'!I59,20%) -> 0.652893465 | J59: =MAX('Shock Analysis - RW Multiplier'!$D59*'Shock Analysis - RW Multiplier'!J59,20%) -> 0.6429179044 | K59: =MAX('Shock Analysis - RW Multiplier'!$D59*'Shock Analysis - RW Multiplier'!K59,20%) -> 0.6329414536 | L59: =MAX('Shock Analysis - RW Multiplier'!$D59*'Shock Analysis - RW Multiplier'!L59,20%) -> 0.622964145 | M59: =MAX('Shock Analysis - RW Multiplier'!$D59*'Shock Analysis - RW Multiplier'!M59,20%) -> 0.61298601 | N59: =MAX('Shock Analysis - RW Multiplier'!$D59*'Shock Analysis - RW Multiplier'!N59,20%) -> 0.6030070786 | O59: =MAX('Shock Analysis - RW Multiplier'!$D59*'Shock Analysis - RW Multiplier'!O59,20%) -> 0.5930273798 | P59: =MAX('Shock Analysis - RW Multiplier'!$D59*'Shock Analysis - RW Multiplier'!P59,20%) -> 0.5830469416 | Q59: =MAX('Shock Analysis - RW Multiplier'!$D59*'Shock Analysis - RW Multiplier'!Q59,20%) -> 0.5730657909 | R59: =MAX('Shock Analysis - RW Multiplier'!$D59*'Shock Analysis - RW Multiplier'!R59,20%) -> 0.5630839536 | S59: =MAX('Shock Analysis - RW Multiplier'!$D59*'Shock Analysis - RW Multiplier'!S59,20%) -> 0.5531014548 | T59: =MAX('Shock Analysis - RW Multiplier'!$D59*'Shock Analysis - RW Multiplier'!T59,20%) -> 0.5431183186 | U59: =MAX('Shock Analysis - RW Multiplier'!$D59*'Shock Analysis - RW Multiplier'!U59,20%) -> 0.5331345681 | V59: =MAX('Shock Analysis - RW Multiplier'!$D59*'Shock Analysis - RW Multiplier'!V59,20%) -> 0.5231502257 | W59: =MAX('Shock Analysis - RW Multiplier'!$D59*'Shock Analysis - RW Multiplier'!W59,20%) -> 0.5131653131 | X59: =MAX('Shock Analysis - RW Multiplier'!$D59*'Shock Analysis - RW Multiplier'!X59,20%) -> 0.503179851 | Y59: =MAX('Shock Analysis - RW Multiplier'!$D59*'Shock Analysis - RW Multiplier'!Y59,20%) -> 0.4931938593 | Z59: =MAX('Shock Analysis - RW Multiplier'!$D59*'Shock Analysis - RW Multiplier'!Z59,20%) -> 0.4832073574 | AA59: =MAX('Shock Analysis - RW Multiplier'!$D59*'Shock Analysis - RW Multiplier'!AA59,20%) -> 0.4732203639 | AB59: =MAX('Shock Analysis - RW Multiplier'!$D59*'Shock Analysis - RW Multiplier'!AB59,20%) -> 0.4632328966 | AC59: =MAX('Shock Analysis - RW Multiplier'!$D59*'Shock Analysis - RW Multiplier'!AC59,20%) -> 0.4532449729 | AD59: =MAX('Shock Analysis - RW Multiplier'!$D59*'Shock Analysis - RW Multiplier'!AD59,20%) -> 0.4432566093 | AE59: =MAX('Shock Analysis - RW Multiplier'!$D59*'Shock Analysis - RW Multiplier'!AE59,20%) -> 0.4332678218
A60: 15 | D60: 0.2 | E60: 15 | F60: =MAX('Shock Analysis - RW Multiplier'!$D60*'Shock Analysis - RW Multiplier'!F60,20%) -> 0.6834471314 | G60: =MAX('Shock Analysis - RW Multiplier'!$D60*'Shock Analysis - RW Multiplier'!G60,20%) -> 0.6734514046 | H60: =MAX('Shock Analysis - RW Multiplier'!$D60*'Shock Analysis - RW Multiplier'!H60,20%) -> 0.6634555221 | I60: =MAX('Shock Analysis - RW Multiplier'!$D60*'Shock Analysis - RW Multiplier'!I60,20%) -> 0.6534594897 | J60: =MAX('Shock Analysis - RW Multiplier'!$D60*'Shock Analysis - RW Multiplier'!J60,20%) -> 0.6434633128 | K60: =MAX('Shock Analysis - RW Multiplier'!$D60*'Shock Analysis - RW Multiplier'!K60,20%) -> 0.6334669966 | L60: =MAX('Shock Analysis - RW Multiplier'!$D60*'Shock Analysis - RW Multiplier'!L60,20%) -> 0.6234705463 | M60: =MAX('Shock Analysis - RW Multiplier'!$D60*'Shock Analysis - RW Multiplier'!M60,20%) -> 0.6134739666 | N60: =MAX('Shock Analysis - RW Multiplier'!$D60*'Shock Analysis - RW Multiplier'!N60,20%) -> 0.6034772624 | O60: =MAX('Shock Analysis - RW Multiplier'!$D60*'Shock Analysis - RW Multiplier'!O60,20%) -> 0.5934804382 | P60: =MAX('Shock Analysis - RW Multiplier'!$D60*'Shock Analysis - RW Multiplier'!P60,20%) -> 0.5834834982 | Q60: =MAX('Shock Analysis - RW Multiplier'!$D60*'Shock Analysis - RW Multiplier'!Q60,20%) -> 0.5734864468 | R60: =MAX('Shock Analysis - RW Multiplier'!$D60*'Shock Analysis - RW Multiplier'!R60,20%) -> 0.5634892881 | S60: =MAX('Shock Analysis - RW Multiplier'!$D60*'Shock Analysis - RW Multiplier'!S60,20%) -> 0.5534920258 | T60: =MAX('Shock Analysis - RW Multiplier'!$D60*'Shock Analysis - RW Multiplier'!T60,20%) -> 0.5434946638 | U60: =MAX('Shock Analysis - RW Multiplier'!$D60*'Shock Analysis - RW Multiplier'!U60,20%) -> 0.5334972057 | V60: =MAX('Shock Analysis - RW Multiplier'!$D60*'Shock Analysis - RW Multiplier'!V60,20%) -> 0.5234996551 | W60: =MAX('Shock Analysis - RW Multiplier'!$D60*'Shock Analysis - RW Multiplier'!W60,20%) -> 0.5135020152 | X60: =MAX('Shock Analysis - RW Multiplier'!$D60*'Shock Analysis - RW Multiplier'!X60,20%) -> 0.5035042894 | Y60: =MAX('Shock Analysis - RW Multiplier'!$D60*'Shock Analysis - RW Multiplier'!Y60,20%) -> 0.4935064807 | Z60: =MAX('Shock Analysis - RW Multiplier'!$D60*'Shock Analysis - RW Multiplier'!Z60,20%) -> 0.4835085923 | AA60: =MAX('Shock Analysis - RW Multiplier'!$D60*'Shock Analysis - RW Multiplier'!AA60,20%) -> 0.4735106269 | AB60: =MAX('Shock Analysis - RW Multiplier'!$D60*'Shock Analysis - RW Multiplier'!AB60,20%) -> 0.4635125874 | AC60: =MAX('Shock Analysis - RW Multiplier'!$D60*'Shock Analysis - RW Multiplier'!AC60,20%) -> 0.4535144765 | AD60: =MAX('Shock Analysis - RW Multiplier'!$D60*'Shock Analysis - RW Multiplier'!AD60,20%) -> 0.4435162968 | AE60: =MAX('Shock Analysis - RW Multiplier'!$D60*'Shock Analysis - RW Multiplier'!AE60,20%) -> 0.4335180508
A61: 16 | D61: 0.24 | E61: 16 | F61: =MAX('Shock Analysis - RW Multiplier'!$D61*'Shock Analysis - RW Multiplier'!F61,20%) -> 0.6835461004 | G61: =MAX('Shock Analysis - RW Multiplier'!$D61*'Shock Analysis - RW Multiplier'!G61,20%) -> 0.6735467688 | H61: =MAX('Shock Analysis - RW Multiplier'!$D61*'Shock Analysis - RW Multiplier'!H61,20%) -> 0.6635474129 | I61: =MAX('Shock Analysis - RW Multiplier'!$D61*'Shock Analysis - RW Multiplier'!I61,20%) -> 0.6535480336 | J61: =MAX('Shock Analysis - RW Multiplier'!$D61*'Shock Analysis - RW Multiplier'!J61,20%) -> 0.6435486316 | K61: =MAX('Shock Analysis - RW Multiplier'!$D61*'Shock Analysis - RW Multiplier'!K61,20%) -> 0.6335492079 | L61: =MAX('Shock Analysis - RW Multiplier'!$D61*'Shock Analysis - RW Multiplier'!L61,20%) -> 0.6235497632 | M61: =MAX('Shock Analysis - RW Multiplier'!$D61*'Shock Analysis - RW Multiplier'!M61,20%) -> 0.6135502982 | N61: =MAX('Shock Analysis - RW Multiplier'!$D61*'Shock Analysis - RW Multiplier'!N61,20%) -> 0.6035508138 | O61: =MAX('Shock Analysis - RW Multiplier'!$D61*'Shock Analysis - RW Multiplier'!O61,20%) -> 0.5935513106 | P61: =MAX('Shock Analysis - RW Multiplier'!$D61*'Shock Analysis - RW Multiplier'!P61,20%) -> 0.5835517893 | Q61: =MAX('Shock Analysis - RW Multiplier'!$D61*'Shock Analysis - RW Multiplier'!Q61,20%) -> 0.5735522505 | R61: =MAX('Shock Analysis - RW Multiplier'!$D61*'Shock Analysis - RW Multiplier'!R61,20%) -> 0.563552695 | S61: =MAX('Shock Analysis - RW Multiplier'!$D61*'Shock Analysis - RW Multiplier'!S61,20%) -> 0.5535531232 | T61: =MAX('Shock Analysis - RW Multiplier'!$D61*'Shock Analysis - RW Multiplier'!T61,20%) -> 0.5435535359 | U61: =MAX('Shock Analysis - RW Multiplier'!$D61*'Shock Analysis - RW Multiplier'!U61,20%) -> 0.5335539335 | V61: =MAX('Shock Analysis - RW Multiplier'!$D61*'Shock Analysis - RW Multiplier'!V61,20%) -> 0.5235543167 | W61: =MAX('Shock Analysis - RW Multiplier'!$D61*'Shock Analysis - RW Multiplier'!W61,20%) -> 0.5135546859 | X61: =MAX('Shock Analysis - RW Multiplier'!$D61*'Shock Analysis - RW Multiplier'!X61,20%) -> 0.5035550416 | Y61: =MAX('Shock Analysis - RW Multiplier'!$D61*'Shock Analysis - RW Multiplier'!Y61,20%) -> 0.4935553844 | Z61: =MAX('Shock Analysis - RW Multiplier'!$D61*'Shock Analysis - RW Multiplier'!Z61,20%) -> 0.4835557147 | AA61: =MAX('Shock Analysis - RW Multiplier'!$D61*'Shock Analysis - RW Multiplier'!AA61,20%) -> 0.473556033 | AB61: =MAX('Shock Analysis - RW Multiplier'!$D61*'Shock Analysis - RW Multiplier'!AB61,20%) -> 0.4635563397 | AC61: =MAX('Shock Analysis - RW Multiplier'!$D61*'Shock Analysis - RW Multiplier'!AC61,20%) -> 0.4535566352 | AD61: =MAX('Shock Analysis - RW Multiplier'!$D61*'Shock Analysis - RW Multiplier'!AD61,20%) -> 0.44355692 | AE61: =MAX('Shock Analysis - RW Multiplier'!$D61*'Shock Analysis - RW Multiplier'!AE61,20%) -> 0.4335571944
A62: 17 | D62: 0.28 | E62: 17 | F62: =MAX('Shock Analysis - RW Multiplier'!$D62*'Shock Analysis - RW Multiplier'!F62,20%) -> 0.6835615822 | G62: =MAX('Shock Analysis - RW Multiplier'!$D62*'Shock Analysis - RW Multiplier'!G62,20%) -> 0.6735616867 | H62: =MAX('Shock Analysis - RW Multiplier'!$D62*'Shock Analysis - RW Multiplier'!H62,20%) -> 0.6635617875 | I62: =MAX('Shock Analysis - RW Multiplier'!$D62*'Shock Analysis - RW Multiplier'!I62,20%) -> 0.6535618846 | J62: =MAX('Shock Analysis - RW Multiplier'!$D62*'Shock Analysis - RW Multiplier'!J62,20%) -> 0.6435619782 | K62: =MAX('Shock Analysis - RW Multiplier'!$D62*'Shock Analysis - RW Multiplier'!K62,20%) -> 0.6335620683 | L62: =MAX('Shock Analysis - RW Multiplier'!$D62*'Shock Analysis - RW Multiplier'!L62,20%) -> 0.6235621552 | M62: =MAX('Shock Analysis - RW Multiplier'!$D62*'Shock Analysis - RW Multiplier'!M62,20%) -> 0.6135622389 | N62: =MAX('Shock Analysis - RW Multiplier'!$D62*'Shock Analysis - RW Multiplier'!N62,20%) -> 0.6035623195 | O62: =MAX('Shock Analysis - RW Multiplier'!$D62*'Shock Analysis - RW Multiplier'!O62,20%) -> 0.5935623972 | P62: =MAX('Shock Analysis - RW Multiplier'!$D62*'Shock Analysis - RW Multiplier'!P62,20%) -> 0.5835624721 | Q62: =MAX('Shock Analysis - RW Multiplier'!$D62*'Shock Analysis - RW Multiplier'!Q62,20%) -> 0.5735625443 | R62: =MAX('Shock Analysis - RW Multiplier'!$D62*'Shock Analysis - RW Multiplier'!R62,20%) -> 0.5635626138 | S62: =MAX('Shock Analysis - RW Multiplier'!$D62*'Shock Analysis - RW Multiplier'!S62,20%) -> 0.5535626808 | T62: =MAX('Shock Analysis - RW Multiplier'!$D62*'Shock Analysis - RW Multiplier'!T62,20%) -> 0.5435627453 | U62: =MAX('Shock Analysis - RW Multiplier'!$D62*'Shock Analysis - RW Multiplier'!U62,20%) -> 0.5335628075 | V62: =MAX('Shock Analysis - RW Multiplier'!$D62*'Shock Analysis - RW Multiplier'!V62,20%) -> 0.5235628675 | W62: =MAX('Shock Analysis - RW Multiplier'!$D62*'Shock Analysis - RW Multiplier'!W62,20%) -> 0.5135629252 | X62: =MAX('Shock Analysis - RW Multiplier'!$D62*'Shock Analysis - RW Multiplier'!X62,20%) -> 0.5035629809 | Y62: =MAX('Shock Analysis - RW Multiplier'!$D62*'Shock Analysis - RW Multiplier'!Y62,20%) -> 0.4935630345 | Z62: =MAX('Shock Analysis - RW Multiplier'!$D62*'Shock Analysis - RW Multiplier'!Z62,20%) -> 0.4835630862 | AA62: =MAX('Shock Analysis - RW Multiplier'!$D62*'Shock Analysis - RW Multiplier'!AA62,20%) -> 0.473563136 | AB62: =MAX('Shock Analysis - RW Multiplier'!$D62*'Shock Analysis - RW Multiplier'!AB62,20%) -> 0.4635631839 | AC62: =MAX('Shock Analysis - RW Multiplier'!$D62*'Shock Analysis - RW Multiplier'!AC62,20%) -> 0.4535632302 | AD62: =MAX('Shock Analysis - RW Multiplier'!$D62*'Shock Analysis - RW Multiplier'!AD62,20%) -> 0.4435632747 | AE62: =MAX('Shock Analysis - RW Multiplier'!$D62*'Shock Analysis - RW Multiplier'!AE62,20%) -> 0.4335633176
A63: 18 | D63: 0.32 | E63: 18 | F63: =MAX('Shock Analysis - RW Multiplier'!$D63*'Shock Analysis - RW Multiplier'!F63,20%) -> 0.683564004 | G63: =MAX('Shock Analysis - RW Multiplier'!$D63*'Shock Analysis - RW Multiplier'!G63,20%) -> 0.6735640204 | H63: =MAX('Shock Analysis - RW Multiplier'!$D63*'Shock Analysis - RW Multiplier'!H63,20%) -> 0.6635640361 | I63: =MAX('Shock Analysis - RW Multiplier'!$D63*'Shock Analysis - RW Multiplier'!I63,20%) -> 0.6535640513 | J63: =MAX('Shock Analysis - RW Multiplier'!$D63*'Shock Analysis - RW Multiplier'!J63,20%) -> 0.643564066 | K63: =MAX('Shock Analysis - RW Multiplier'!$D63*'Shock Analysis - RW Multiplier'!K63,20%) -> 0.6335640801 | L63: =MAX('Shock Analysis - RW Multiplier'!$D63*'Shock Analysis - RW Multiplier'!L63,20%) -> 0.6235640937 | M63: =MAX('Shock Analysis - RW Multiplier'!$D63*'Shock Analysis - RW Multiplier'!M63,20%) -> 0.6135641067 | N63: =MAX('Shock Analysis - RW Multiplier'!$D63*'Shock Analysis - RW Multiplier'!N63,20%) -> 0.6035641194 | O63: =MAX('Shock Analysis - RW Multiplier'!$D63*'Shock Analysis - RW Multiplier'!O63,20%) -> 0.5935641315 | P63: =MAX('Shock Analysis - RW Multiplier'!$D63*'Shock Analysis - RW Multiplier'!P63,20%) -> 0.5835641432 | Q63: =MAX('Shock Analysis - RW Multiplier'!$D63*'Shock Analysis - RW Multiplier'!Q63,20%) -> 0.5735641545 | R63: =MAX('Shock Analysis - RW Multiplier'!$D63*'Shock Analysis - RW Multiplier'!R63,20%) -> 0.5635641654 | S63: =MAX('Shock Analysis - RW Multiplier'!$D63*'Shock Analysis - RW Multiplier'!S63,20%) -> 0.5535641759 | T63: =MAX('Shock Analysis - RW Multiplier'!$D63*'Shock Analysis - RW Multiplier'!T63,20%) -> 0.543564186 | U63: =MAX('Shock Analysis - RW Multiplier'!$D63*'Shock Analysis - RW Multiplier'!U63,20%) -> 0.5335641957 | V63: =MAX('Shock Analysis - RW Multiplier'!$D63*'Shock Analysis - RW Multiplier'!V63,20%) -> 0.5235642051 | W63: =MAX('Shock Analysis - RW Multiplier'!$D63*'Shock Analysis - RW Multiplier'!W63,20%) -> 0.5135642141 | X63: =MAX('Shock Analysis - RW Multiplier'!$D63*'Shock Analysis - RW Multiplier'!X63,20%) -> 0.5035642228 | Y63: =MAX('Shock Analysis - RW Multiplier'!$D63*'Shock Analysis - RW Multiplier'!Y63,20%) -> 0.4935642312 | Z63: =MAX('Shock Analysis - RW Multiplier'!$D63*'Shock Analysis - RW Multiplier'!Z63,20%) -> 0.4835642393 | AA63: =MAX('Shock Analysis - RW Multiplier'!$D63*'Shock Analysis - RW Multiplier'!AA63,20%) -> 0.4735642471 | AB63: =MAX('Shock Analysis - RW Multiplier'!$D63*'Shock Analysis - RW Multiplier'!AB63,20%) -> 0.4635642546 | AC63: =MAX('Shock Analysis - RW Multiplier'!$D63*'Shock Analysis - RW Multiplier'!AC63,20%) -> 0.4535642618 | AD63: =MAX('Shock Analysis - RW Multiplier'!$D63*'Shock Analysis - RW Multiplier'!AD63,20%) -> 0.4435642688 | AE63: =MAX('Shock Analysis - RW Multiplier'!$D63*'Shock Analysis - RW Multiplier'!AE63,20%) -> 0.4335642755
A64: 19 | D64: 0.36 | E64: 19 | F64: =MAX('Shock Analysis - RW Multiplier'!$D64*'Shock Analysis - RW Multiplier'!F64,20%) -> 0.6835643829 | G64: =MAX('Shock Analysis - RW Multiplier'!$D64*'Shock Analysis - RW Multiplier'!G64,20%) -> 0.6735643854 | H64: =MAX('Shock Analysis - RW Multiplier'!$D64*'Shock Analysis - RW Multiplier'!H64,20%) -> 0.6635643879 | I64: =MAX('Shock Analysis - RW Multiplier'!$D64*'Shock Analysis - RW Multiplier'!I64,20%) -> 0.6535643903 | J64: =MAX('Shock Analysis - RW Multiplier'!$D64*'Shock Analysis - RW Multiplier'!J64,20%) -> 0.6435643926 | K64: =MAX('Shock Analysis - RW Multiplier'!$D64*'Shock Analysis - RW Multiplier'!K64,20%) -> 0.6335643948 | L64: =MAX('Shock Analysis - RW Multiplier'!$D64*'Shock Analysis - RW Multiplier'!L64,20%) -> 0.6235643969 | M64: =MAX('Shock Analysis - RW Multiplier'!$D64*'Shock Analysis - RW Multiplier'!M64,20%) -> 0.6135643989 | N64: =MAX('Shock Analysis - RW Multiplier'!$D64*'Shock Analysis - RW Multiplier'!N64,20%) -> 0.6035644009 | O64: =MAX('Shock Analysis - RW Multiplier'!$D64*'Shock Analysis - RW Multiplier'!O64,20%) -> 0.5935644028 | P64: =MAX('Shock Analysis - RW Multiplier'!$D64*'Shock Analysis - RW Multiplier'!P64,20%) -> 0.5835644046 | Q64: =MAX('Shock Analysis - RW Multiplier'!$D64*'Shock Analysis - RW Multiplier'!Q64,20%) -> 0.5735644064 | R64: =MAX('Shock Analysis - RW Multiplier'!$D64*'Shock Analysis - RW Multiplier'!R64,20%) -> 0.5635644081 | S64: =MAX('Shock Analysis - RW Multiplier'!$D64*'Shock Analysis - RW Multiplier'!S64,20%) -> 0.5535644098 | T64: =MAX('Shock Analysis - RW Multiplier'!$D64*'Shock Analysis - RW Multiplier'!T64,20%) -> 0.5435644113 | U64: =MAX('Shock Analysis - RW Multiplier'!$D64*'Shock Analysis - RW Multiplier'!U64,20%) -> 0.5335644129 | V64: =MAX('Shock Analysis - RW Multiplier'!$D64*'Shock Analysis - RW Multiplier'!V64,20%) -> 0.5235644143 | W64: =MAX('Shock Analysis - RW Multiplier'!$D64*'Shock Analysis - RW Multiplier'!W64,20%) -> 0.5135644157 | X64: =MAX('Shock Analysis - RW Multiplier'!$D64*'Shock Analysis - RW Multiplier'!X64,20%) -> 0.5035644171 | Y64: =MAX('Shock Analysis - RW Multiplier'!$D64*'Shock Analysis - RW Multiplier'!Y64,20%) -> 0.4935644184 | Z64: =MAX('Shock Analysis - RW Multiplier'!$D64*'Shock Analysis - RW Multiplier'!Z64,20%) -> 0.4835644197 | AA64: =MAX('Shock Analysis - RW Multiplier'!$D64*'Shock Analysis - RW Multiplier'!AA64,20%) -> 0.4735644209 | AB64: =MAX('Shock Analysis - RW Multiplier'!$D64*'Shock Analysis - RW Multiplier'!AB64,20%) -> 0.4635644221 | AC64: =MAX('Shock Analysis - RW Multiplier'!$D64*'Shock Analysis - RW Multiplier'!AC64,20%) -> 0.4535644232 | AD64: =MAX('Shock Analysis - RW Multiplier'!$D64*'Shock Analysis - RW Multiplier'!AD64,20%) -> 0.4435644243 | AE64: =MAX('Shock Analysis - RW Multiplier'!$D64*'Shock Analysis - RW Multiplier'!AE64,20%) -> 0.4335644253
A65: 20 | D65: 0.4 | E65: 20 | F65: =MAX('Shock Analysis - RW Multiplier'!$D65*'Shock Analysis - RW Multiplier'!F65,20%) -> 0.6835644421 | G65: =MAX('Shock Analysis - RW Multiplier'!$D65*'Shock Analysis - RW Multiplier'!G65,20%) -> 0.6735644425 | H65: =MAX('Shock Analysis - RW Multiplier'!$D65*'Shock Analysis - RW Multiplier'!H65,20%) -> 0.6635644429 | I65: =MAX('Shock Analysis - RW Multiplier'!$D65*'Shock Analysis - RW Multiplier'!I65,20%) -> 0.6535644433 | J65: =MAX('Shock Analysis - RW Multiplier'!$D65*'Shock Analysis - RW Multiplier'!J65,20%) -> 0.6435644437 | K65: =MAX('Shock Analysis - RW Multiplier'!$D65*'Shock Analysis - RW Multiplier'!K65,20%) -> 0.633564444 | L65: =MAX('Shock Analysis - RW Multiplier'!$D65*'Shock Analysis - RW Multiplier'!L65,20%) -> 0.6235644443 | M65: =MAX('Shock Analysis - RW Multiplier'!$D65*'Shock Analysis - RW Multiplier'!M65,20%) -> 0.6135644446 | N65: =MAX('Shock Analysis - RW Multiplier'!$D65*'Shock Analysis - RW Multiplier'!N65,20%) -> 0.603564445 | O65: =MAX('Shock Analysis - RW Multiplier'!$D65*'Shock Analysis - RW Multiplier'!O65,20%) -> 0.5935644453 | P65: =MAX('Shock Analysis - RW Multiplier'!$D65*'Shock Analysis - RW Multiplier'!P65,20%) -> 0.5835644455 | Q65: =MAX('Shock Analysis - RW Multiplier'!$D65*'Shock Analysis - RW Multiplier'!Q65,20%) -> 0.5735644458 | R65: =MAX('Shock Analysis - RW Multiplier'!$D65*'Shock Analysis - RW Multiplier'!R65,20%) -> 0.5635644461 | S65: =MAX('Shock Analysis - RW Multiplier'!$D65*'Shock Analysis - RW Multiplier'!S65,20%) -> 0.5535644463 | T65: =MAX('Shock Analysis - RW Multiplier'!$D65*'Shock Analysis - RW Multiplier'!T65,20%) -> 0.5435644466 | U65: =MAX('Shock Analysis - RW Multiplier'!$D65*'Shock Analysis - RW Multiplier'!U65,20%) -> 0.5335644468 | V65: =MAX('Shock Analysis - RW Multiplier'!$D65*'Shock Analysis - RW Multiplier'!V65,20%) -> 0.5235644471 | W65: =MAX('Shock Analysis - RW Multiplier'!$D65*'Shock Analysis - RW Multiplier'!W65,20%) -> 0.5135644473 | X65: =MAX('Shock Analysis - RW Multiplier'!$D65*'Shock Analysis - RW Multiplier'!X65,20%) -> 0.5035644475 | Y65: =MAX('Shock Analysis - RW Multiplier'!$D65*'Shock Analysis - RW Multiplier'!Y65,20%) -> 0.4935644477 | Z65: =MAX('Shock Analysis - RW Multiplier'!$D65*'Shock Analysis - RW Multiplier'!Z65,20%) -> 0.4835644479 | AA65: =MAX('Shock Analysis - RW Multiplier'!$D65*'Shock Analysis - RW Multiplier'!AA65,20%) -> 0.4735644481 | AB65: =MAX('Shock Analysis - RW Multiplier'!$D65*'Shock Analysis - RW Multiplier'!AB65,20%) -> 0.4635644483 | AC65: =MAX('Shock Analysis - RW Multiplier'!$D65*'Shock Analysis - RW Multiplier'!AC65,20%) -> 0.4535644484 | AD65: =MAX('Shock Analysis - RW Multiplier'!$D65*'Shock Analysis - RW Multiplier'!AD65,20%) -> 0.4435644486 | AE65: =MAX('Shock Analysis - RW Multiplier'!$D65*'Shock Analysis - RW Multiplier'!AE65,20%) -> 0.4335644488
C74: mailto:info@wilwinn.com?subject=SSFA Calculator

Sheet Shock Analysis Instructions (hidden)
B6: SSFA Shock Analysis Instructions
B8: 1) Enable Macros before using the Shock Analysis Tool
B10: 2) The shock analysis tool illustrates the Risk Weight Multipliers (Shock Analysis - RW Multiplier tab) and Percentages (Shock Analysis - RW% tab)
B11: under different levels of the Credit Enhancement Obligation and First Loss Account
B28: The table above shows the risk weight multipliers under different credit enhancement obligation levels (left axis) and first loss account
B29: levels (right axis).
B31: The Shock Analysis - RW Multiplier and the Shock Analysis - RW% tabs consist of two tables - one for the MPF Original program and another table
B32: for the MPF 125 Program. The tables reflect the appropriate percentages of the first loss account as experienced under these two programs.
B34: 3) By default, the Weighted Average Capital Requirement (KG) and the Ratio of Delinquent Loans to Total Balance are based on the inputs entered
B35: in the Calculator Tab.
B37: In order to change these inputs, please update KG and Ratio of Delinquent Loans to Total Balance Assumptions in the Shock Analysis - RW Multiplier tab:
B39: Assumptions
B40: Weighted Average Capital Requirement (KG) (%):
B41: Ratio of Delinquent Loans (90+ days) to Total Balance (%):
B43: 4) Click the Update Shock Analysis button every time the Calculator tab or the KG and Ratio of Delinquent Loans to Total Balance assumptions
B44: are updated:
B48: 5) Please note the Risk Weight Percentages in the Shock Analysis - RW% tab are based on the inputs entered in the Shock Analysis - RW Multiplier
B49: tab.

Sheet All_Inputs
B6: BASEL III SSFA Inputs | L6: Scenario
B9: Weighted Average Capital Requirement (KG) (%): | J9: ='Base Case'!$P$5 -> 0.04025 | L9: =Scenario!$P$5 -> 0
B11: Ratio of Delinquent Loans (90+ days) to Total Balance (W) (%): | J11: ='Base Case'!$P$7 -> 0.00625 | L11: =Scenario!$P$7 -> 0
B13: Weighted Average Capital Requirement Adjusted for Delinquencies (KA) (%): | J13: ='Base Case'!$P$8 -> 0.0431234375 | L13: =Scenario!$P$8 -> 0
B15: Credit Enhancement Obligation (%): | J15: ='Base Case'!$P$10 -> 0.05 | L15: =Scenario!$P$10 -> 0
B17: First Loss Account (Attachment Position or A): | J17: ='Base Case'!$P$12 -> 0.0125 | L17: =Scenario!$P$12 -> 0
B19: Detachment Position (D): | J19: ='Base Case'!$P$19 -> 0.0625 | L19: =Scenario!$P$19 -> 0
B21: Calibration Parameter (P): | J21: ='Base Case'!$P$26 -> 0.5 | L21: =Scenario!$P$26 -> 0.5
B23: Alpha | J23: ='Base Case'!$P$29 -> -46.37849197 | L23: =Scenario!$P$29 -> 
B25: u (D - KA) | J25: ='Base Case'!$P$33 -> 0.0193765625 | L25: =Scenario!$P$33 -> 0
B27: L (A - KA) | J27: ='Base Case'!$P$35 -> 0 | L27: =Scenario!$P$35 -> 0
B29: KSSFA | J29: ='Base Case'!$P$38 -> 0.659744782 | L29: =Scenario!$P$38 -> 0
B31: Is D < KA? | J31: =IF('Base Case'!$P$42>0,"Yes","No") -> No | L31: =IF(Scenario!$P$42>0,"Yes","No") -> Yes
B33: Is A >= KA? | J33: =IF('Base Case'!$P$43>0,"Yes","No") -> No | L33: =IF(Scenario!$P$43>0,"Yes","No") -> No
B35: Risk Weight (RW): | J35: ='Base Case'!$P$44 -> 10.85175588 | L35: =Scenario!$P$44 -> 12.5

Sheet Definitions
B6: Base Case Inputs
C8: Loans Sold and Outstanding
C9: Total loans sold and outstanding should be input by dollar amount per the pooled detail report.
D10: ($26,117,643 in example)
C12: First Loss Account (FLA)
C13: The FLA is funded by the FHLB and absorbs foreclosure losses up to the funded amount. It should be input by dollar amount
C14: per the pooled detail report. ($17,491 in example)
C16: Credit Enhancement (CE) Obligation
C17: The total credit enhancement obligation should be input per the master commitment summary. The CE obgligation is the maximum
C18: amount the PFI can lose due to foreclosure losses under the master commitment.
D19: ($1,149,173.68 in example)
B22: BASEL III SSFA Output
C24: KG
C25: KG is the weighted-average capital requirement of the underlying loans and is expressed as a percentage value between zero and 100.
C26: In effect, it is the capital charge the PFI would incur if it held the loans directly, rather than the synthetic securitiy arising from the sale to the FHLB.
C27: KG is typically 4% for current loans and 8% for loans which are 90+ days past due or in non-accrual status.
C30: Parameter W
C31: Parameter W is the ratio of delinquent loans to the total loans sold and outstanding. It is expressed as a percentage value between 0 and 100.
C32: For this calculation, loans must meet the following criteria:
C33: i. ninety days or more past due;
C34: ii. subject to a bankruptcy or insolvency proceeding;
C35: iii. in the process of foreclosure
C36: iv. held as real estate owned
C37: v. has contractually deferred interest payments for 90 days or more
C38: vi. is in default
C40: Parameter KA
C41: KA is the weighted-average capital requirement adjusted for delinquencies. KG is adjusted for delinquent loans to calculate KA,
C42: according to the following formula:
C43: KA = (1-W)*KG + (0.5*W)
C45: Parameter A - Attachment Position
C46: Parameter A is the attachment point and is equal to the first loss account as a percentage of the loans sold and outstanding.
C47: Basically, it represents the point at which the PFI begins incurring losses. The value is zero at the start for Original MPF
C48: program and grows at 4 basis points per year, provided there are no losses. The value is initially set at 1% for the MPF 125
C49: program. The value could increase over time due to prepayments.
C51: Parameter D - Detachment Position
C52: Parameter D is the detachment point and is equal to the sum of the first loss account and credit enhancement obligation amount
C53: as a percentage of the loans sold and outstanding. In effect, it represents the point at which the PFI would no longer incur losses.
C55: Calibration Parameter (ρ)
C56: A supervisory calibration parameter, ρ, is an indicator variable that is equal to 0.5 for the synthetic securitization exposures
C57: which arise under the MPF program.
C59: KSSFA
C60: KSSFA is the capital requirement per unit of the securitization exposure and is a function of the following variables:
C62: i. α = -
C64: ii. ρ = An indicator variable (calibration parameter) that is equal to 0.5
C65: iii. µ = D - KA
C66: iv. ɩ = max(A - KA, 0)
